Workbook

Sheet LOGO
A1: FY2021 Preliminary MRGF Calculation
A4: This file produces a detailed description of the calculation of any community's FY2021
A5: municipal revenue growth factor, which is a key component of the Chapter 70 state aid to
A6: education formula. The growth factors contained in this workbook were used by the
A7: Department of Elementary and Secondary Education's Office of School Finance in calculating
A8: FY2021 Chapter 70 estimates.
A12: If you have any problems with this file or questions regarding the MRGF calculations, contact
A13: Local Aid at localaid@dor.state.ma.us.

Sheet JURCODES (hidden)
A1: COD | B1: JURNAME | C1: JUR | D1: SELECT
A2: 1 | B2: ABINGTON | D2: 1
A3: 2 | B3: ACTON
A4: 3 | B4: ACUSHNET
A5: 4 | B5: ADAMS
A6: 5 | B6: AGAWAM
A7: 6 | B7: ALFORD
A8: 7 | B8: AMESBURY
A9: 8 | B9: AMHERST
A10: 9 | B10: ANDOVER
A11: 10 | B11: ARLINGTON
A12: 11 | B12: ASHBURNHAM
A13: 12 | B13: ASHBY
A14: 13 | B14: ASHFIELD
A15: 14 | B15: ASHLAND
A16: 15 | B16: ATHOL
A17: 16 | B17: ATTLEBORO
A18: 17 | B18: AUBURN
A19: 18 | B19: AVON
A20: 19 | B20: AYER
A21: 20 | B21: BARNSTABLE
A22: 21 | B22: BARRE
A23: 22 | B23: BECKET
A24: 23 | B24: BEDFORD
A25: 24 | B25: BELCHERTOWN
A26: 25 | B26: BELLINGHAM
A27: 26 | B27: BELMONT
A28: 27 | B28: BERKLEY
A29: 28 | B29: BERLIN
A30: 29 | B30: BERNARDSTON
A31: 30 | B31: BEVERLY
A32: 31 | B32: BILLERICA
A33: 32 | B33: BLACKSTONE
A34: 33 | B34: BLANDFORD
A35: 34 | B35: BOLTON
A36: 35 | B36: BOSTON
A37: 36 | B37: BOURNE
A38: 37 | B38: BOXBOROUGH
A39: 38 | B39: BOXFORD
A40: 39 | B40: BOYLSTON
A41: 40 | B41: BRAINTREE
A42: 41 | B42: BREWSTER
A43: 42 | B43: BRIDGEWATER
A44: 43 | B44: BRIMFIELD
A45: 44 | B45: BROCKTON
A46: 45 | B46: BROOKFIELD
A47: 46 | B47: BROOKLINE
A48: 47 | B48: BUCKLAND
A49: 48 | B49: BURLINGTON
A50: 49 | B50: CAMBRIDGE
A51: 50 | B51: CANTON
A52: 51 | B52: CARLISLE
A53: 52 | B53: CARVER
A54: 53 | B54: CHARLEMONT
A55: 54 | B55: CHARLTON
A56: 55 | B56: CHATHAM
A57: 56 | B57: CHELMSFORD
A58: 57 | B58: CHELSEA
A59: 58 | B59: CHESHIRE
A60: 59 | B60: CHESTER
A61: 60 | B61: CHESTERFIELD
A62: 61 | B62: CHICOPEE
A63: 62 | B63: CHILMARK
A64: 63 | B64: CLARKSBURG
A65: 64 | B65: CLINTON
A66: 65 | B66: COHASSET
A67: 66 | B67: COLRAIN
A68: 67 | B68: CONCORD
A69: 68 | B69: CONWAY
A70: 69 | B70: CUMMINGTON
A71: 70 | B71: DALTON
A72: 71 | B72: DANVERS
A73: 72 | B73: DARTMOUTH
A74: 73 | B74: DEDHAM
A75: 74 | B75: DEERFIELD
A76: 75 | B76: DENNIS
A77: 76 | B77: DIGHTON
A78: 77 | B78: DOUGLAS
A79: 78 | B79: DOVER
A80: 79 | B80: DRACUT
A81: 80 | B81: DUDLEY
A82: 81 | B82: DUNSTABLE
A83: 82 | B83: DUXBURY
A84: 83 | B84: EAST BRIDGEWATER
A85: 84 | B85: EAST BROOKFIELD
A86: 85 | B86: EAST LONGMEADOW
A87: 86 | B87: EASTHAM
A88: 87 | B88: EASTHAMPTON
A89: 88 | B89: EASTON
A90: 89 | B90: EDGARTOWN
A91: 90 | B91: EGREMONT
A92: 91 | B92: ERVING
A93: 92 | B93: ESSEX
A94: 93 | B94: EVERETT
A95: 94 | B95: FAIRHAVEN
A96: 95 | B96: FALL RIVER
A97: 96 | B97: FALMOUTH
A98: 97 | B98: FITCHBURG
A99: 98 | B99: FLORIDA
A100: 99 | B100: FOXBOROUGH
A101: 100 | B101: FRAMINGHAM
A102: 101 | B102: FRANKLIN
A103: 102 | B103: FREETOWN
A104: 103 | B104: GARDNER
A105: 104 | B105: GAY HEAD
A106: 105 | B106: GEORGETOWN
A107: 106 | B107: GILL
A108: 107 | B108: GLOUCESTER
A109: 108 | B109: GOSHEN
A110: 109 | B110: GOSNOLD
A111: 110 | B111: GRAFTON
A112: 111 | B112: GRANBY
A113: 112 | B113: GRANVILLE
A114: 113 | B114: GREAT BARRINGTON
A115: 114 | B115: GREENFIELD
A116: 115 | B116: GROTON
A117: 116 | B117: GROVELAND
A118: 117 | B118: HADLEY
A119: 118 | B119: HALIFAX
A120: 119 | B120: HAMILTON
A121: 120 | B121: HAMPDEN
A122: 121 | B122: HANCOCK
A123: 122 | B123: HANOVER
A124: 123 | B124: HANSON
A125: 124 | B125: HARDWICK
A126: 125 | B126: HARVARD
A127: 126 | B127: HARWICH
A128: 127 | B128: HATFIELD
A129: 128 | B129: HAVERHILL
A130: 129 | B130: HAWLEY
A131: 130 | B131: HEATH
A132: 131 | B132: HINGHAM
A133: 132 | B133: HINSDALE
A134: 133 | B134: HOLBROOK
A135: 134 | B135: HOLDEN
A136: 135 | B136: HOLLAND
A137: 136 | B137: HOLLISTON
A138: 137 | B138: HOLYOKE
A139: 138 | B139: HOPEDALE
A140: 139 | B140: HOPKINTON
A141: 140 | B141: HUBBARDSTON
A142: 141 | B142: HUDSON
A143: 142 | B143: HULL
A144: 143 | B144: HUNTINGTON
A145: 144 | B145: IPSWICH
A146: 145 | B146: KINGSTON
A147: 146 | B147: LAKEVILLE
A148: 147 | B148: LANCASTER
A149: 148 | B149: LANESBOROUGH
A150: 149 | B150: LAWRENCE
A151: 150 | B151: LEE
A152: 151 | B152: LEICESTER
A153: 152 | B153: LENOX
A154: 153 | B154: LEOMINSTER
A155: 154 | B155: LEVERETT
A156: 155 | B156: LEXINGTON
A157: 156 | B157: LEYDEN
A158: 157 | B158: LINCOLN
A159: 158 | B159: LITTLETON
A160: 159 | B160: LONGMEADOW
A161: 160 | B161: LOWELL
A162: 161 | B162: LUDLOW
A163: 162 | B163: LUNENBURG
A164: 163 | B164: LYNN
A165: 164 | B165: LYNNFIELD
A166: 165 | B166: MALDEN
A167: 166 | B167: MANCHESTER
A168: 167 | B168: MANSFIELD
A169: 168 | B169: MARBLEHEAD
A170: 169 | B170: MARION
A171: 170 | B171: MARLBOROUGH
A172: 171 | B172: MARSHFIELD
A173: 172 | B173: MASHPEE
A174: 173 | B174: MATTAPOISETT
A175: 174 | B175: MAYNARD
A176: 175 | B176: MEDFIELD
A177: 176 | B177: MEDFORD
A178: 177 | B178: MEDWAY
A179: 178 | B179: MELROSE
A180: 179 | B180: MENDON
A181: 180 | B181: MERRIMAC
A182: 181 | B182: METHUEN
A183: 182 | B183: MIDDLEBOROUGH
A184: 183 | B184: MIDDLEFIELD
A185: 184 | B185: MIDDLETON
A186: 185 | B186: MILFORD
A187: 186 | B187: MILLBURY
A188: 187 | B188: MILLIS
A189: 188 | B189: MILLVILLE
A190: 189 | B190: MILTON
A191: 190 | B191: MONROE
A192: 191 | B192: MONSON
A193: 192 | B193: MONTAGUE
A194: 193 | B194: MONTEREY
A195: 194 | B195: MONTGOMERY
A196: 195 | B196: MOUNT WASHINGTON
A197: 196 | B197: NAHANT
A198: 197 | B198: NANTUCKET
A199: 198 | B199: NATICK
A200: 199 | B200: NEEDHAM
... 153 more rows

Sheet Community Summary
B1: Massachusetts Department of Revenue
B2: Division of Local Services
B3: Preliminary Municipal Revenue Growth Factor (MRGF) Calculation, FY2021
B4: =VLOOKUP(SELECT,jurcodes,2) -> ABINGTON
L6: Fiscal Year | N6: Fiscal Year
L7: 2020 | N7: 2021
A8: 1. | B8: LEVY LIMIT BASE | G8: AMOUNT | J8: 3. | K8: CHANGE IN REVENUE SHARING | L8: Cherry Sheet | N8: Estimates
B10: =IF(VLOOKUP(SELECT,levybase,9)>0,"FY2020 Levy Limit Prior to Exclusions","FY2019 Levy Limit Prior to Exclusions") -> FY2020 Levy Limit Prior to Exclusions | G10: =IF(VLOOKUP(SELECT,levybase,9)>0,VLOOKUP(SELECT,levybase,9),VLOOKUP(SELECT,levybase,3)) -> 33620233
B11: =IF(VLOOKUP(SELECT,levybase,9)>0,"Impact of FY1994-FY2020 Overrides on FY2020 Limit","Impact of FY1994-FY2019 Overrides on FY2019 Limit") -> Impact of FY1994-FY2020 Overrides on FY2020 Limit | G11: =IF(VLOOKUP(SELECT,levybase,9)>0,VLOOKUP(SELECT,levybase,11),VLOOKUP(SELECT,levybase,6)) -> 832054
B12: =IF(VLOOKUP(SELECT,levybase,9)>0,"FY2020 Limit Adjusted for Overrides","FY2019 Limit Adjusted for Overrides") -> FY2020 Limit Adjusted for Overrides | G12: =IF(VLOOKUP(SELECT,levybase,9)>0,VLOOKUP(SELECT,levybase,12),VLOOKUP(SELECT,levybase,7)) -> 32788179 | K12: Unrestricted General Government Aid | L12: =VLOOKUP(SELECT,GRS,3) -> 2088894 | N12: =VLOOKUP(SELECT,GRS,8) -> 2147383
B13: =IF(VLOOKUP(SELECT,levybase,9)>0,"","Estimated FY2013 Limit = FY2012*1.025 plus") ->  | K13: State Owned Land | L13: =VLOOKUP(SELECT,GRS,4) -> 138184 | N13: =VLOOKUP(SELECT,GRS,9) -> 138184
B14: =IF(VLOOKUP(SELECT,levybase,9)>0,"","New growth percentage (part 2) * adjusted 2012 Limit") ->  | G14: =IF(VLOOKUP(SELECT,levybase,9)>0,"",VLOOKUP(SELECT,levybase,8)) ->  | K14: TOTAL | L14: =VLOOKUP(SELECT,GRS,5) -> 2227078 | N14: =VLOOKUP(SELECT,GRS,10) -> 2285567
L16: =CONCATENATE("FY",TEXT(VLOOKUP(SELECT,LOCR,2),0)) -> FY2019 | N16: =CONCATENATE("FY",TEXT(VLOOKUP(SELECT,LOCR,12),0)) -> FY2020
A17: 2. | B17: INCREASE IN LEVY LIMIT GROWTH DUE TO NEW GROWTH | J17: 4. | K17: RECURRING LOCAL RECEIPTS | L17: Budget | N17: Budget
C18: Levy Limit | F18: New | G18: Percentage
C19: Without | E19: Certified | F19: Growth | G19: of Previous | K19: Motor Vehicle Excise | L19: =VLOOKUP(SELECT,LOCR,3) -> 2104723 | N19: =VLOOKUP(SELECT,LOCR,13) -> 2531824
B20: Fiscal | C20: Exclusions, | D20: CH | E20: New | F20: Adjusted | G20: Year's | K20: Other Excise | L20: =VLOOKUP(SELECT,LOCR,4) -> 285000 | N20: =VLOOKUP(SELECT,LOCR,14) -> 340000
B21: Year | C21: Overides | D21: 653 | E21: Growth | F21: for 653 | G21: Limit | K21: Penalties and Interest | L21: =VLOOKUP(SELECT,LOCR,5) -> 225000 | N21: =VLOOKUP(SELECT,LOCR,15) -> 250000
K22: Payments in Lieu | L22: =VLOOKUP(SELECT,LOCR,6) -> 0 | N22: =VLOOKUP(SELECT,LOCR,16) -> 0
B23: FY2015 | C23: =VLOOKUP(SELECT,levygrowth,3) -> 27084671 | K23: Fines and Forfeits | L23: =VLOOKUP(SELECT,LOCR,7) -> 40000 | N23: =VLOOKUP(SELECT,LOCR,17) -> 50000
B24: FY2016 | C24: =VLOOKUP(SELECT,levygrowth,4) -> 28072153 | D24: =IF(VLOOKUP(SELECT,levygrowth,8)=2007,2007,IF(VLOOKUP(SELECT,levygrowth,9)=2007,"2007*","")) ->  | E24: =VLOOKUP(SELECT,levygrowth,12) -> 310365 | F24: =VLOOKUP(SELECT,levygrowth,17) -> 310365 | G24: =VLOOKUP(SELECT,levygrowth,22) -> 0.0115 | K24: Investment Income | L24: =VLOOKUP(SELECT,LOCR,8) -> 65000 | N24: =VLOOKUP(SELECT,LOCR,18) -> 85000
B25: FY2017 | C25: =VLOOKUP(SELECT,levygrowth,5) -> 29102181 | D25: =IF(VLOOKUP(SELECT,levygrowth,8)=2008,2008,IF(VLOOKUP(SELECT,levygrowth,9)=2008,"2008*","")) ->  | E25: =VLOOKUP(SELECT,levygrowth,13) -> 328224 | F25: =VLOOKUP(SELECT,levygrowth,18) -> 328224 | G25: =VLOOKUP(SELECT,levygrowth,23) -> 0.0117 | K25: Miscellaneous Recurring | L25: =VLOOKUP(SELECT,LOCR,9) -> 25000 | N25: =VLOOKUP(SELECT,LOCR,19) -> 245000
B26: FY2018 | C26: =VLOOKUP(SELECT,levygrowth,6) -> 30291788 | D26: =IF(VLOOKUP(SELECT,levygrowth,8)=2009,2009,IF(VLOOKUP(SELECT,levygrowth,9)=2009,"2009*","")) ->  | E26: =VLOOKUP(SELECT,levygrowth,14) -> 462052 | F26: =VLOOKUP(SELECT,levygrowth,19) -> 462052 | G26: =VLOOKUP(SELECT,levygrowth,24) -> 0.0159
B27: FY2019 | C27: =VLOOKUP(SELECT,levygrowth,7) -> 31592621 | D27: =IF(VLOOKUP(SELECT,levygrowth,8)=2010,2010,IF(VLOOKUP(SELECT,levygrowth,9)=2010,"2010*","")) ->  | E27: =VLOOKUP(SELECT,levygrowth,15) -> 543538 | F27: =VLOOKUP(SELECT,levygrowth,20) -> 543538 | G27: =VLOOKUP(SELECT,levygrowth,25) -> 0.0179 | K27: TOTAL | L27: =VLOOKUP(SELECT,LOCR,10) -> 2744723 | N27: =VLOOKUP(SELECT,LOCR,20) -> 3501824
B28: FY2020 | D28: =IF(VLOOKUP(SELECT,levygrowth,8)=2011,2011,IF(VLOOKUP(SELECT,levygrowth,9)=2011,"2011*","")) ->  | E28: =VLOOKUP(SELECT,levygrowth,16) -> 405742 | F28: =VLOOKUP(SELECT,levygrowth,21) -> 405742 | G28: =VLOOKUP(SELECT,levygrowth,26) -> 0.0128
J29: 5. | K29: SUMMARY | L29: Amount | N29: Pct Chg
B30: Average of Last Three Years | G30: =VLOOKUP(SELECT,levygrowth,28) -> 0.0155
B31: Lowest Three of Last Four Years | G31: =VLOOKUP(SELECT,levygrowth,29) -> 0.0135 | K31: FY2020 MRGF Levy Limit | L31: =VLOOKUP(SELECT,MRGF,2) -> 32788179
B32: Maximum, Last Three Years | G32: =VLOOKUP(SELECT,levygrowth,31) -> 0.0179 | K32: FY2020 General Revenue Sharing | L32: =VLOOKUP(SELECT,MRGF,4) -> 2227078
B33: Average of Two Smaller Years | G33: =VLOOKUP(SELECT,levygrowth,32) -> 0.0144 | K33: =CONCATENATE("FY",TEXT(VLOOKUP(SELECT,LOCR,2),0)," Budgeted Recurring Local Receipts") -> FY2019 Budgeted Recurring Local Receipts | L33: =VLOOKUP(SELECT,MRGF,5) -> 2744723
B34: Difference, Maximum Minus 2 Yr Average | G34: =VLOOKUP(SELECT,levygrowth,33) -> 0.0035 | K34: Total Base Municipal Revenues | L34: =VLOOKUP(SELECT,MRGF,7) -> 37759980
B36: Percent Increase in New Growth for MRGF | G36: =VLOOKUP(SELECT,levygrowth,35) -> 0.0155 | K36: FY2021 Estimated Levy Ceiling | L36: =VLOOKUP(SELECT,levybase,17) -> 52381085
K37: FY2020 Levy Limit * 1.025 | L37: =VLOOKUP(SELECT,MRGF,9) -> 33607883
K38: FY2021 Estimated New Growth | L38: =VLOOKUP(SELECT,MRGF,10) -> 508217
K39: FY2021 Estimated Levy Limit | L39: =(VLOOKUP(SELECT,MRGF,9))+(VLOOKUP(SELECT,MRGF,10)) -> 34116100 | N39: =VLOOKUP(SELECT,MRGF,11) -> 4.049999239
K40: FY2021 General Revenue Sharing | L40: =VLOOKUP(SELECT,MRGF,12) -> 2285567 | N40: =VLOOKUP(SELECT,MRGF,13) -> 2.626266345
K41: =CONCATENATE("FY",TEXT(VLOOKUP(SELECT,LOCR,12),0)," Budgeted Recurring Local Receipts") -> FY2020 Budgeted Recurring Local Receipts | L41: =VLOOKUP(SELECT,MRGF,14) -> 3501824 | N41: =VLOOKUP(SELECT,MRGF,16) -> 27.58387641
K42: Total Estimated Current Municipal Revenues | L42: =VLOOKUP(SELECT,MRGF,17) -> 39903491
B44: =IF(VLOOKUP(SELECT,levygrowth,9)>94,("*Adopted CH 653"),"") -> *Adopted CH 653 | K44: Change, Base to Current Revenues | L44: =VLOOKUP(SELECT,MRGF,19) -> 2143511 | N44: =VLOOKUP(SELECT,MRGF,20) -> 5.68
B45: =IF(VLOOKUP(SELECT,levygrowth,10)>93,CONCATENATE("Rescinded CH 653 in FY",TEXT(VLOOKUP(SELECT,levygrowth,10),0)),"") -> 
K47: FY2021 Preliminary Municipal Revenue Growth Factor | N47: =VLOOKUP(SELECT,MRGF,20) -> 5.68
A56: =TODAY() -> 2026-07-16

Sheet New growth (hidden)
B1: Calculation of Increment in Levy Limit Due to New Growth
C4: FY2015 | D4: FY2016 | E4: FY2017 | F4: FY2018 | G4: FY2019 | H4: FY2020 | L4: New | M4: New | N4: New | O4: New | P4: New
C5: Limit Prior | D5: Limit Prior | E5: Limit Prior | F5: Limit Prior | G5: Limit Prior | H5: Limit Prior | L5: Growth | M5: Growth | N5: Growth | O5: Growth | P5: Growth | Q5: Adjusted | R5: Adjusted | S5: Adjusted | T5: Adjusted | U5: Adjusted | AB5: Average, | AC5: Lowest | AE5: Maximum | AF5: Avg of | AG5: Difference, | AI5: Avg Pct | AJ5: Estimated
C6: to Exclusion | D6: to Exclusion | E6: to Exclusion | F6: to Exclusion | G6: to Exclusion | H6: to Exclusion | I6: Ch 653 | J6: Ch 653 | L6: FY2016 | M6: FY2017 | N6: FY2018 | O6: FY2019 | P6: FY2020 | Q6: New | R6: New | S6: New | T6: New | U6: New | V6: FY2016 | W6: FY2017 | X6: FY2018 | Y6: FY2019 | Z6: FY2020 | AB6: Last | AC6: Three of | AE6: Percentage, | AF6: Two | AG6: Maximum | AI6: Increase | AJ6: New Growth
A7: DOR | C7: Adjusted | D7: Adjusted | E7: Adjusted | F7: Adjusted | G7: Adjusted | H7: Adjusted | I7: Growth | J7: Growth | L7: Unadjusted | M7: Unadjusted | N7: Unadjusted | O7: Unadjusted | P7: Unadjusted | Q7: Growth | R7: Growth | S7: Growth | T7: Growth | U7: Growth | V7: Growth % | W7: Growth % | X7: Growth % | Y7: Growth % | Z7: Growth % | AB7: Three | AC7: Last Four | AE7: Last 3 | AF7: Smaller | AG7: Minus | AI7: In Limit | AJ7: FY2021, Before
A8: CDE | B8: MUNICIPALITY | C8: for Overrides | D8: for Overrides | E8: for Overrides | F8: for Overrides | G8: for Overrides | H8: for Overrides | I8: Begun | J8: Ended | L8: for Ch 653 | M8: for Ch 653 | N8: for Ch 653 | O8: for Ch 653 | P8: for Ch 653 | Q8: FY2016 | R8: FY2017 | S8: FY2018 | T8: FY2019 | U8: FY2020 | V8: Of PY Limit | W8: Of PY Limit | X8: Of PY Limit | Y8: Of PY Limit | Z8: Of PY Limit | AB8: Years | AC8: Years | AE8: Years | AF8: Years | AG8: 2 Yr Avg | AI8: From Growth | AJ8: Ceiling Check
A10: 1 | B10: ABINGTON | C10: 27084671 | D10: 28072153 | E10: 29102181 | F10: 30291788 | G10: 31592621 | H10: 32788179 | I10: 2005 | J10: 0 | L10: 310365 | M10: 328224 | N10: 462052 | O10: 543538 | P10: 405742 | Q10: 310365 | R10: 328224 | S10: 462052 | T10: 543538 | U10: 405742 | V10: 0.0115 | W10: 0.0117 | X10: 0.0159 | Y10: 0.0179 | Z10: 0.0128 | AB10: 0.0155 | AC10: 0.0135 | AE10: 0.0179 | AF10: 0.0144 | AG10: 0.0035 | AI10: 0.0155 | AJ10: 508217
A11: 2 | B11: ACTON | C11: 64051305 | D11: 67059833 | E11: 69908788 | F11: 72522973 | G11: 74990655 | H11: 77655148 | I11: 1991 | J11: 0 | L11: 1407246 | M11: 1172459 | N11: 866466 | O11: 654608 | P11: 789726 | Q11: 1407246 | R11: 1172459 | S11: 866466 | T11: 654608 | U11: 789726 | V11: 0.022 | W11: 0.0175 | X11: 0.0124 | Y11: 0.009 | Z11: 0.0105 | AB11: 0.0106 | AC11: 0.0106 | AE11: 0.0124 | AF11: 0.0098 | AG11: 0.0026 | AI11: 0.0106 | AJ11: 823145
A12: 3 | B12: ACUSHNET | C12: 14748893 | D12: 15350126 | E12: 15936384 | F12: 16601843 | G12: 17237500 | H12: 18027438 | I12: 0 | J12: 0 | L12: 232511 | M12: 202505 | N12: 267049 | O12: 220611 | P12: 359000 | Q12: 232511 | R12: 202505 | S12: 267049 | T12: 220611 | U12: 359000 | V12: 0.0158 | W12: 0.0132 | X12: 0.0168 | Y12: 0.0133 | Z12: 0.0208 | AB12: 0.017 | AC12: 0.0144 | AE12: 0.0208 | AF12: 0.0151 | AG12: 0.0057 | AI12: 0.017 | AJ12: 306466
A13: 4 | B13: ADAMS | C13: 9812474 | D13: 10226727 | E13: 10578747 | F13: 10984702 | G13: 11356251 | H13: 11708307 | I13: 1991 | J13: 0 | L13: 145991 | M13: 96352 | N13: 141486 | O13: 96931 | P13: 68150 | Q13: 145991 | R13: 96352 | S13: 141486 | T13: 96931 | U13: 68150 | V13: 0.0149 | W13: 0.0094 | X13: 0.0134 | Y13: 0.0088 | Z13: 0.006 | AB13: 0.0094 | AC13: 0.0081 | AE13: 0.0134 | AF13: 0.0074 | AG13: 0.006 | AI13: 0.0094 | AJ13: 110058
A14: 5 | B14: AGAWAM | C14: 63784154 | D14: 65929345 | E14: 68211393 | F14: 70533487 | G14: 73038831 | H14: 76081914 | I14: 1991 | J14: 0 | L14: 550587 | M14: 608127 | N14: 616809 | O14: 668159 | P14: 1217112 | Q14: 550587 | R14: 608127 | S14: 616809 | T14: 668159 | U14: 1217112 | V14: 0.0086 | W14: 0.0092 | X14: 0.009 | Y14: 0.0095 | Z14: 0.0167 | AB14: 0.0117 | AC14: 0.0092 | AE14: 0.0167 | AF14: 0.0093 | AG14: 0.0074 | AI14: 0.0117 | AJ14: 890158
A15: 6 | B15: ALFORD | C15: 1446267 | D15: 1493722 | E15: 1539276 | F15: 1593842 | G15: 1641470 | H15: 1689068 | I15: 0 | J15: 0 | L15: 11298 | M15: 8211 | N15: 16084 | O15: 7782 | P15: 6561 | Q15: 11298 | R15: 8211 | S15: 16084 | T15: 7782 | U15: 6561 | V15: 0.0078 | W15: 0.0055 | X15: 0.0104 | Y15: 0.0049 | Z15: 0.004 | AB15: 0.0064 | AC15: 0.0048 | AE15: 0.0104 | AF15: 0.0045 | AG15: 0.0059 | AI15: 0.0064 | AJ15: 10810
A16: 7 | B16: AMESBURY | C16: 39136754 | D16: 40582205 | E16: 42109486 | F16: 44116384 | G16: 45766634 | H16: 47359518 | I16: 1991 | J16: 0 | L16: 467032 | M16: 512726 | N16: 954161 | O16: 547340 | P16: 448718 | Q16: 467032 | R16: 512726 | S16: 954161 | T16: 547340 | U16: 448718 | V16: 0.0119 | W16: 0.0126 | X16: 0.0227 | Y16: 0.0124 | Z16: 0.0098 | AB16: 0.015 | AC16: 0.0116 | AE16: 0.0227 | AF16: 0.0111 | AG16: 0.0116 | AI16: 0.015 | AJ16: 710393
A17: 8 | B17: AMHERST | C17: 40521111 | D17: 42158770 | E17: 44225013 | F17: 46061571 | G17: 48033096 | H17: 50089984 | I17: 1991 | J17: 0 | L17: 624631 | M17: 1012274 | N17: 730933 | O17: 819985 | P17: 856060 | Q17: 624631 | R17: 1012274 | S17: 730933 | T17: 819985 | U17: 856060 | V17: 0.0154 | W17: 0.024 | X17: 0.0165 | Y17: 0.0178 | Z17: 0.0178 | AB17: 0.0174 | AC17: 0.0174 | AE17: 0.0178 | AF17: 0.0172 | AG17: 0.0006 | AI17: 0.0174 | AJ17: 871566
A18: 9 | B18: ANDOVER | C18: 119797140 | D18: 124996152 | E18: 130709372 | F18: 136417582 | G18: 142600951 | H18: 150531622 | I18: 1991 | J18: 0 | L18: 2204083 | M18: 2588316 | N18: 2440476 | O18: 2772929 | P18: 4365647 | Q18: 2204083 | R18: 2588316 | S18: 2440476 | T18: 2772929 | U18: 4365647 | V18: 0.0184 | W18: 0.0207 | X18: 0.0187 | Y18: 0.0203 | Z18: 0.0306 | AB18: 0.0232 | AC18: 0.0199 | AE18: 0.0306 | AF18: 0.0195 | AG18: 0.0111 | AI18: 0.0232 | AJ18: 3492334
A19: 10 | B19: ARLINGTON | C19: 84488187 | D19: 87938058 | E19: 91206653 | F19: 94750632 | G19: 98100604 | H19: 106869736 | I19: 1991 | J19: 0 | L19: 1337666 | M19: 1070144 | N19: 1263812 | O19: 981206 | P19: 816617 | Q19: 1337666 | R19: 1070144 | S19: 1263812 | T19: 981206 | U19: 816617 | V19: 0.0158 | W19: 0.0122 | X19: 0.0139 | Y19: 0.0104 | Z19: 0.0083 | AB19: 0.0109 | AC19: 0.0103 | AE19: 0.0139 | AF19: 0.0094 | AG19: 0.0045 | AI19: 0.0109 | AJ19: 1164880
A20: 11 | B20: ASHBURNHAM | C20: 8219690 | D20: 8509098 | E20: 8829961 | F20: 9194733 | G20: 9611263 | H20: 9501460 | I20: 2004 | J20: 0 | L20: 83916 | M20: 108135 | N20: 144023 | O20: 186661 | P20: 125572 | Q20: 83916 | R20: 108135 | S20: 144023 | T20: 186661 | U20: 125572 | V20: 0.0102 | W20: 0.0127 | X20: 0.0163 | Y20: 0.0203 | Z20: 0.0131 | AB20: 0.0166 | AC20: 0.014 | AE20: 0.0203 | AF20: 0.0147 | AG20: 0.0056 | AI20: 0.0166 | AJ20: 157724
A21: 12 | B21: ASHBY | C21: 4975879 | D21: 5131184 | E21: 5291932 | F21: 5470698 | G21: 5668740 | H21: 5884703 | I21: 1991 | J21: 0 | L21: 30908 | M21: 32468 | N21: 46467 | O21: 61274 | P21: 74245 | Q21: 30908 | R21: 32468 | S21: 46467 | T21: 61274 | U21: 74245 | V21: 0.0062 | W21: 0.0063 | X21: 0.0088 | Y21: 0.0112 | Z21: 0.0131 | AB21: 0.011 | AC21: 0.0088 | AE21: 0.0131 | AF21: 0.01 | AG21: 0.0031 | AI21: 0.011 | AJ21: 64732
A22: 13 | B22: ASHFIELD | C22: 3239947 | D22: 3356836 | E22: 3530903 | F22: 3675687 | G22: 3793195 | H22: 3938120 | I22: 0 | J22: 0 | L22: 35890 | M22: 90146 | N22: 56511 | O22: 25616 | P22: 50095 | Q22: 35890 | R22: 90146 | S22: 56511 | T22: 25616 | U22: 50095 | V22: 0.0111 | W22: 0.0269 | X22: 0.016 | Y22: 0.007 | Z22: 0.0132 | AB22: 0.0121 | AC22: 0.0121 | AE22: 0.016 | AF22: 0.0101 | AG22: 0.0059 | AI22: 0.0121 | AJ22: 47651
A23: 14 | B23: ASHLAND | C23: 36554361 | D23: 38227209 | E23: 39960022 | F23: 42081316 | G23: 44426174 | H23: 46224897 | I23: 0 | J23: 0 | L23: 758989 | M23: 777133 | N23: 1122293 | O23: 1292825 | P23: 688069 | Q23: 758989 | R23: 777133 | S23: 1122293 | T23: 1292825 | U23: 688069 | V23: 0.0208 | W23: 0.0203 | X23: 0.0281 | Y23: 0.0307 | Z23: 0.0155 | AB23: 0.0248 | AC23: 0.0213 | AE23: 0.0307 | AF23: 0.0218 | AG23: 0.0089 | AI23: 0.0248 | AJ23: 1146377
A24: 15 | B24: ATHOL | C24: 9366583 | D24: 9707230 | E24: 10118920 | F24: 10496033 | G24: 11120241 | H24: 11659210 | I24: 2004 | J24: 0 | L24: 106483 | M24: 169009 | N24: 124140 | O24: 361807 | P24: 260963 | Q24: 106483 | R24: 169009 | S24: 124140 | T24: 361807 | U24: 260963 | V24: 0.0114 | W24: 0.0174 | X24: 0.0123 | Y24: 0.0345 | Z24: 0.0235 | AB24: 0.0234 | AC24: 0.0177 | AE24: 0.0345 | AF24: 0.0179 | AG24: 0.0166 | AI24: 0.0234 | AJ24: 272826
A25: 16 | B25: ATTLEBORO | C25: 62607068 | D25: 64673256 | E25: 67582586 | F25: 70764061 | G25: 73464173 | H25: 76079548 | I25: 2003 | J25: 0 | L25: 501011 | M25: 1292499 | N25: 1491910 | O25: 931010 | P25: 778771 | Q25: 501011 | R25: 1292499 | S25: 1491910 | T25: 931010 | U25: 778771 | V25: 0.008 | W25: 0.02 | X25: 0.0221 | Y25: 0.0132 | Z25: 0.0106 | AB25: 0.0153 | AC25: 0.0146 | AE25: 0.0221 | AF25: 0.0119 | AG25: 0.0102 | AI25: 0.0153 | AJ25: 1164017
A26: 17 | B26: AUBURN | C26: 35318833 | D26: 37066462 | E26: 38860391 | F26: 40442045 | G26: 42109861 | H26: 44093695 | I26: 2013 | J26: 0 | L26: 864659 | M26: 867267 | N26: 610144 | O26: 656765 | P26: 931088 | Q26: 864659 | R26: 867267 | S26: 610144 | T26: 656765 | U26: 931088 | V26: 0.0245 | W26: 0.0234 | X26: 0.0157 | Y26: 0.0162 | Z26: 0.0221 | AB26: 0.018 | AC26: 0.018 | AE26: 0.0221 | AF26: 0.016 | AG26: 0.0061 | AI26: 0.018 | AJ26: 793687
A27: 18 | B27: AVON | C27: 15511476 | D27: 16156706 | E27: 16989291 | F27: 17874039 | G27: 18708734 | H27: 19542594 | I27: 2013 | J27: 0 | L27: 257443 | M27: 428667 | N27: 460016 | O27: 360022 | P27: 366141 | Q27: 257443 | R27: 428667 | S27: 460016 | T27: 360022 | U27: 366141 | V27: 0.0166 | W27: 0.0265 | X27: 0.0271 | Y27: 0.0201 | Z27: 0.0196 | AB27: 0.0223 | AC27: 0.0221 | AE27: 0.0271 | AF27: 0.0199 | AG27: 0.0072 | AI27: 0.0223 | AJ27: 435800
A28: 19 | B28: AYER | C28: 18635179 | D28: 19547769 | E28: 20562898 | F28: 22037327 | G28: 23328753 | H28: 24559228 | I28: 1992 | J28: 0 | L28: 446710 | M28: 526435 | N28: 960356 | O28: 740493 | P28: 647256 | Q28: 446710 | R28: 526435 | S28: 960356 | T28: 740493 | U28: 647256 | V28: 0.024 | W28: 0.0269 | X28: 0.0467 | Y28: 0.0336 | Z28: 0.0277 | AB28: 0.036 | AC28: 0.0294 | AE28: 0.0467 | AF28: 0.0307 | AG28: 0.016 | AI28: 0.036 | AJ28: 884132
A29: 20 | B29: BARNSTABLE | C29: 104892708 | D29: 108645163 | E29: 112771807 | F29: 116900171 | G29: 121259225 | H29: 125537222 | I29: 2008 | J29: 0 | L29: 1130137 | M29: 1410515 | N29: 1309069 | O29: 1436550 | P29: 1246516 | Q29: 1130137 | R29: 1410515 | S29: 1309069 | T29: 1436550 | U29: 1246516 | V29: 0.0108 | W29: 0.013 | X29: 0.0116 | Y29: 0.0123 | Z29: 0.0103 | AB29: 0.0114 | AC29: 0.0114 | AE29: 0.0123 | AF29: 0.011 | AG29: 0.0013 | AI29: 0.0114 | AJ29: 1431124
A30: 21 | B30: BARRE | C30: 6754811 | D30: 7191587 | E30: 7457332 | F30: 7805228 | G30: 8087275 | H30: 8401060 | I30: 0 | J30: 0 | L30: 266427 | M30: 85955 | N30: 161463 | O30: 86916 | P30: 107090 | Q30: 266427 | R30: 85955 | S30: 161463 | T30: 86916 | U30: 107090 | V30: 0.0394 | W30: 0.012 | X30: 0.0217 | Y30: 0.0111 | Z30: 0.0132 | AB30: 0.0153 | AC30: 0.0121 | AE30: 0.0217 | AF30: 0.0122 | AG30: 0.0095 | AI30: 0.0153 | AJ30: 128536
A31: 22 | B31: BECKET | C31: 4816180 | D31: 4980022 | E31: 5143432 | F31: 5326608 | G31: 5504297 | H31: 5753200 | I31: 0 | J31: 0 | L31: 43437 | M31: 38909 | N31: 54590 | O31: 44523 | P31: 77822 | Q31: 43437 | R31: 38909 | S31: 54590 | T31: 44523 | U31: 77822 | V31: 0.009 | W31: 0.0078 | X31: 0.0106 | Y31: 0.0084 | Z31: 0.0141 | AB31: 0.011 | AC31: 0.0089 | AE31: 0.0141 | AF31: 0.0095 | AG31: 0.0046 | AI31: 0.011 | AJ31: 63285
A32: 23 | B32: BEDFORD | C32: 56898024 | D32: 59955561 | E32: 63165951 | F32: 66660425 | G32: 69820484 | H32: 72855273 | I32: 1992 | J32: 0 | L32: 1621513 | M32: 1647420 | N32: 1915325 | O32: 1493548 | P32: 1289277 | Q32: 1621513 | R32: 1647420 | S32: 1915325 | T32: 1493548 | U32: 1289277 | V32: 0.0285 | W32: 0.0275 | X32: 0.0303 | Y32: 0.0224 | Z32: 0.0185 | AB32: 0.0237 | AC32: 0.0228 | AE32: 0.0303 | AF32: 0.0205 | AG32: 0.0098 | AI32: 0.0237 | AJ32: 1726670
A33: 24 | B33: BELCHERTOWN | C33: 23301205 | D33: 24227554 | E33: 25210235 | F33: 26333465 | G33: 27507359 | H33: 28624718 | I33: 2000 | J33: 0 | L33: 343819 | M33: 376992 | N33: 491348 | O33: 515557 | P33: 429675 | Q33: 343819 | R33: 376992 | S33: 491348 | T33: 515557 | U33: 429675 | V33: 0.0148 | W33: 0.0156 | X33: 0.0195 | Y33: 0.0196 | Z33: 0.0156 | AB33: 0.0182 | AC33: 0.0169 | AE33: 0.0196 | AF33: 0.0176 | AG33: 0.002 | AI33: 0.0182 | AJ33: 520970
A34: 25 | B34: BELLINGHAM | C34: 33703797 | D34: 35170174 | E34: 36672859 | F34: 37954471 | G34: 39837833 | H34: 41820156 | I34: 1995 | J34: 0 | L34: 623782 | M34: 623431 | N34: 364791 | O34: 934500 | P34: 986377 | Q34: 623782 | R34: 623431 | S34: 364791 | T34: 934500 | U34: 986377 | V34: 0.0185 | W34: 0.0177 | X34: 0.0099 | Y34: 0.0246 | Z34: 0.0248 | AB34: 0.0198 | AC34: 0.0174 | AE34: 0.0248 | AF34: 0.0173 | AG34: 0.0075 | AI34: 0.0198 | AJ34: 828039
A35: 26 | B35: BELMONT | C35: 65139389 | D35: 67382653 | E35: 69855490 | F35: 73622285 | G35: 76474758 | H35: 79495329 | I35: 0 | J35: 0 | L35: 614779 | M35: 788271 | N35: 2020408 | O35: 1011916 | P35: 1108702 | Q35: 614779 | R35: 788271 | S35: 2020408 | T35: 1011916 | U35: 1108702 | V35: 0.0094 | W35: 0.0117 | X35: 0.0289 | Y35: 0.0137 | Z35: 0.0145 | AB35: 0.019 | AC35: 0.0133 | AE35: 0.0289 | AF35: 0.0141 | AG35: 0.0148 | AI35: 0.019 | AJ35: 1510411
A36: 27 | B36: BERKLEY | C36: 7236905 | D36: 7492359 | E36: 7812378 | F36: 8151165 | G36: 8536059 | H36: 8929537 | I36: 1992 | J36: 0 | L36: 74532 | M36: 132710 | N36: 143478 | O36: 181115 | P36: 180077 | Q36: 74532 | R36: 132710 | S36: 143478 | T36: 181115 | U36: 180077 | V36: 0.0103 | W36: 0.0177 | X36: 0.0184 | Y36: 0.0222 | Z36: 0.0211 | AB36: 0.0206 | AC36: 0.0191 | AE36: 0.0222 | AF36: 0.0198 | AG36: 0.0024 | AI36: 0.0206 | AJ36: 183948
A37: 28 | B37: BERLIN | C37: 9156459 | D37: 9914649 | E37: 10358256 | F37: 11013907 | G37: 11548875 | H37: 12051641 | I37: 1993 | J37: 0 | L37: 529278 | M37: 195741 | N37: 396695 | O37: 259621 | P37: 214044 | Q37: 529278 | R37: 195741 | S37: 396695 | T37: 259621 | U37: 214044 | V37: 0.0578 | W37: 0.0197 | X37: 0.0383 | Y37: 0.0236 | Z37: 0.0185 | AB37: 0.0268 | AC37: 0.0206 | AE37: 0.0383 | AF37: 0.0211 | AG37: 0.0172 | AI37: 0.0268 | AJ37: 322984
A38: 29 | B38: BERNARDSTON | C38: 3774155 | D38: 3950186 | E38: 4081615 | F38: 4202185 | G38: 4355366 | H38: 4570462 | I38: 0 | J38: 0 | L38: 81677 | M38: 32674 | N38: 18530 | O38: 48126 | P38: 106212 | Q38: 81677 | R38: 32674 | S38: 18530 | T38: 48126 | U38: 106212 | V38: 0.0216 | W38: 0.0083 | X38: 0.0045 | Y38: 0.0115 | Z38: 0.0244 | AB38: 0.0135 | AC38: 0.0081 | AE38: 0.0244 | AF38: 0.008 | AG38: 0.0164 | AI38: 0.0135 | AJ38: 61701
A39: 30 | B39: BEVERLY | C39: 88212708 | D39: 91261034 | E39: 94850290 | F39: 99407098 | G39: 103596037 | H39: 108035190 | I39: 1991 | J39: 0 | L39: 843008 | M39: 1307730 | N39: 2185551 | O39: 1703762 | P39: 1849252 | Q39: 843008 | R39: 1307730 | S39: 2185551 | T39: 1703762 | U39: 1849252 | V39: 0.0096 | W39: 0.0143 | X39: 0.023 | Y39: 0.0171 | Z39: 0.0179 | AB39: 0.0193 | AC39: 0.0164 | AE39: 0.023 | AF39: 0.0175 | AG39: 0.0055 | AI39: 0.0193 | AJ39: 2085079
A40: 31 | B40: BILLERICA | C40: 111794698 | D40: 117139310 | E40: 123003679 | F40: 128919297 | G40: 134931118 | H40: 141531357 | I40: 0 | J40: 0 | L40: 2523591 | M40: 2606525 | N40: 2811618 | O40: 2502528 | P40: 3226961 | Q40: 2523591 | R40: 2606525 | S40: 2811618 | T40: 2502528 | U40: 3226961 | V40: 0.0226 | W40: 0.0223 | X40: 0.0229 | Y40: 0.0194 | Z40: 0.0239 | AB40: 0.0221 | AC40: 0.0215 | AE40: 0.0239 | AF40: 0.0212 | AG40: 0.0027 | AI40: 0.0221 | AJ40: 3127843
A41: 32 | B41: BLACKSTONE | C41: 15939467 | D41: 16530730 | E41: 17202444 | F41: 17959202 | G41: 18738701 | H41: 19444909 | I41: 1991 | J41: 0 | L41: 192776 | M41: 258446 | N41: 326493 | O41: 330519 | P41: 237740 | Q41: 192776 | R41: 258446 | S41: 326493 | T41: 330519 | U41: 237740 | V41: 0.0121 | W41: 0.0156 | X41: 0.019 | Y41: 0.0184 | Z41: 0.0127 | AB41: 0.0167 | AC41: 0.0156 | AE41: 0.019 | AF41: 0.0156 | AG41: 0.0034 | AI41: 0.0167 | AJ41: 324730
A42: 33 | B42: BLANDFORD | C42: 2088296 | D42: 2262733 | E42: 2337974 | F42: 2428306 | G42: 2521152 | H42: 2631588 | I42: 0 | J42: 0 | L42: 122230 | M42: 18673 | N42: 31883 | O42: 32139 | P42: 47407 | Q42: 122230 | R42: 18673 | S42: 31883 | T42: 32139 | U42: 47407 | V42: 0.0585 | W42: 0.0083 | X42: 0.0136 | Y42: 0.0132 | Z42: 0.0188 | AB42: 0.0152 | AC42: 0.0117 | AE42: 0.0188 | AF42: 0.0134 | AG42: 0.0054 | AI42: 0.0152 | AJ42: 40000
A43: 34 | B43: BOLTON | C43: 16240669 | D43: 16845985 | E43: 17565139 | F43: 18382898 | G43: 19148000 | H43: 19992283 | I43: 1991 | J43: 0 | L43: 199299 | M43: 298005 | N43: 378630 | O43: 305529 | P43: 365583 | Q43: 199299 | R43: 298005 | S43: 378630 | T43: 305529 | U43: 365583 | V43: 0.0123 | W43: 0.0177 | X43: 0.0216 | Y43: 0.0166 | Z43: 0.0191 | AB43: 0.0191 | AC43: 0.0178 | AE43: 0.0216 | AF43: 0.0179 | AG43: 0.0037 | AI43: 0.0191 | AJ43: 381853
A44: 35 | B44: BOSTON | C44: 1867957148 | D44: 1962273860 | E44: 2086846743 | F44: 2216600850 | G44: 2350783055 | H44: 2509114748 | I44: 0 | J44: 0 | L44: 47539508 | M44: 74737096 | N44: 76567353 | O44: 77309352 | P44: 98717191 | Q44: 47539508 | R44: 74737096 | S44: 76567353 | T44: 77309352 | U44: 98717191 | V44: 0.0254 | W44: 0.0381 | X44: 0.0367 | Y44: 0.0349 | Z44: 0.042 | AB44: 0.0379 | AC44: 0.0366 | AE44: 0.042 | AF44: 0.0358 | AG44: 0.0062 | AI44: 0.0379 | AJ44: 95095449
A45: 36 | B45: BOURNE | C45: 37761009 | D45: 39356518 | E45: 40996131 | F45: 42592137 | G45: 44258927 | H45: 45900739 | I45: 2004 | J45: 0 | L45: 651484 | M45: 650787 | N45: 571102 | O45: 601987 | P45: 522773 | Q45: 651484 | R45: 650787 | S45: 571102 | T45: 601987 | U45: 522773 | V45: 0.0173 | W45: 0.0165 | X45: 0.0139 | Y45: 0.0141 | Z45: 0.0118 | AB45: 0.0133 | AC45: 0.0133 | AE45: 0.0141 | AF45: 0.0129 | AG45: 0.0012 | AI45: 0.0133 | AJ45: 610480
A46: 37 | B46: BOXBOROUGH | C46: 16574256 | D46: 17188009 | E46: 17875541 | F46: 18974646 | G46: 19840525 | H46: 20576812 | I46: 2000 | J46: 0 | L46: 199397 | M46: 257831 | N46: 652217 | O46: 390015 | P46: 240274 | Q46: 199397 | R46: 257831 | S46: 652217 | T46: 390015 | U46: 240274 | V46: 0.012 | W46: 0.015 | X46: 0.0365 | Y46: 0.0206 | Z46: 0.0121 | AB46: 0.0231 | AC46: 0.0159 | AE46: 0.0365 | AF46: 0.0164 | AG46: 0.0201 | AI46: 0.0159 | AJ46: 327171
A47: 38 | B47: BOXFORD | C47: 20808077 | D47: 21502898 | E47: 22243994 | F47: 23065137 | G47: 23869311 | H47: 24460487 | I47: 1999 | J47: 0 | L47: 174619 | M47: 203524 | N47: 254879 | O47: 227546 | P47: 191761 | Q47: 174619 | R47: 203524 | S47: 254879 | T47: 227546 | U47: 191761 | V47: 0.0084 | W47: 0.0095 | X47: 0.0115 | Y47: 0.0099 | Z47: 0.008 | AB47: 0.0098 | AC47: 0.0091 | AE47: 0.0115 | AF47: 0.009 | AG47: 0.0025 | AI47: 0.0098 | AJ47: 239713
A48: 39 | B48: BOYLSTON | C48: 9332378 | D48: 9814229 | E48: 10267246 | F48: 10822245 | G48: 12000542 | H48: 12718273 | I48: 0 | J48: 0 | L48: 248541 | M48: 207661 | N48: 298317 | O48: 907741 | P48: 417718 | Q48: 248541 | R48: 207661 | S48: 298317 | T48: 907741 | U48: 417718 | V48: 0.0266 | W48: 0.0212 | X48: 0.0291 | Y48: 0.0839 | Z48: 0.0348 | AB48: 0.0493 | AC48: 0.0284 | AE48: 0.0839 | AF48: 0.032 | AG48: 0.0519 | AI48: 0.0284 | AJ48: 361199
A49: 40 | B49: BRAINTREE | C49: 80058826 | D49: 82954706 | E49: 86299839 | F49: 89528431 | G49: 92686291 | H49: 96036025 | I49: 2006 | J49: 0 | L49: 894409 | M49: 1271265 | N49: 1071096 | O49: 919649 | P49: 1032577 | Q49: 894409 | R49: 1271265 | S49: 1071096 | T49: 919649 | U49: 1032577 | V49: 0.0112 | W49: 0.0153 | X49: 0.0124 | Y49: 0.0103 | Z49: 0.0111 | AB49: 0.0113 | AC49: 0.0113 | AE49: 0.0124 | AF49: 0.0107 | AG49: 0.0017 | AI49: 0.0113 | AJ49: 1085207
A50: 41 | B50: BREWSTER | C50: 24042906 | D50: 24847621 | E50: 25828023 | F50: 26792809 | G50: 27817378 | H50: 29129227 | I50: 0 | J50: 0 | L50: 203642 | M50: 359212 | N50: 319085 | O50: 354749 | P50: 309571 | Q50: 203642 | R50: 359212 | S50: 319085 | T50: 354749 | U50: 309571 | V50: 0.0085 | W50: 0.0145 | X50: 0.0124 | Y50: 0.0132 | Z50: 0.0111 | AB50: 0.0122 | AC50: 0.0122 | AE50: 0.0132 | AF50: 0.0118 | AG50: 0.0014 | AI50: 0.0122 | AJ50: 355377
A51: 42 | B51: BRIDGEWATER | C51: 32361229 | D51: 33912904 | E51: 35666350 | F51: 37341250 | G51: 39152303 | H51: 40927756 | I51: 0 | J51: 0 | L51: 741118 | M51: 905623 | N51: 778434 | O51: 872356 | P51: 791546 | Q51: 741118 | R51: 905623 | S51: 778434 | T51: 872356 | U51: 791546 | V51: 0.0229 | W51: 0.0267 | X51: 0.0218 | Y51: 0.0234 | Z51: 0.0202 | AB51: 0.0218 | AC51: 0.0218 | AE51: 0.0234 | AF51: 0.021 | AG51: 0.0024 | AI51: 0.0218 | AJ51: 892225
A52: 43 | B52: BRIMFIELD | C52: 6485219 | D52: 6730522 | E52: 6992071 | F52: 7237714 | G52: 7485472 | H52: 7716005 | I52: 1991 | J52: 0 | L52: 83173 | M52: 93286 | N52: 70841 | O52: 66815 | P52: 43396 | Q52: 83173 | R52: 93286 | S52: 70841 | T52: 66815 | U52: 43396 | V52: 0.0128 | W52: 0.0139 | X52: 0.0101 | Y52: 0.0092 | Z52: 0.0058 | AB52: 0.0084 | AC52: 0.0084 | AE52: 0.0101 | AF52: 0.0075 | AG52: 0.0026 | AI52: 0.0084 | AJ52: 64814
A53: 44 | B53: BROCKTON | C53: 121079995 | D53: 127045434 | E53: 132480953 | F53: 137859951 | G53: 143674763 | H53: 149036481 | I53: 1991 | J53: 0 | L53: 2938439 | M53: 2259383 | N53: 2066974 | O53: 2368313 | P53: 1769849 | Q53: 2938439 | R53: 2259383 | S53: 2066974 | T53: 2368313 | U53: 1769849 | V53: 0.0243 | W53: 0.0178 | X53: 0.0156 | Y53: 0.0172 | Z53: 0.0123 | AB53: 0.015 | AC53: 0.015 | AE53: 0.0172 | AF53: 0.014 | AG53: 0.0032 | AI53: 0.015 | AJ53: 2235547
A54: 45 | B54: BROOKFIELD | C54: 4621597 | D54: 4792162 | E54: 4956539 | F54: 5191955 | G54: 5449013 | H54: 5668022 | I54: 0 | J54: 0 | L54: 55025 | M54: 44573 | N54: 111503 | O54: 127259 | P54: 82784 | Q54: 55025 | R54: 44573 | S54: 111503 | T54: 127259 | U54: 82784 | V54: 0.0119 | W54: 0.0093 | X54: 0.0225 | Y54: 0.0245 | Z54: 0.0152 | AB54: 0.0207 | AC54: 0.0157 | AE54: 0.0245 | AF54: 0.0189 | AG54: 0.0056 | AI54: 0.0207 | AJ54: 117328
A55: 46 | B55: BROOKLINE | C55: 169407603 | D55: 175733519 | E55: 182838477 | F55: 189673546 | G55: 197016712 | H55: 204707848 | I55: 0 | J55: 0 | L55: 2090726 | M55: 2711620 | N55: 2264107 | O55: 2601328 | P55: 2765718 | Q55: 2090726 | R55: 2711620 | S55: 2264107 | T55: 2601328 | U55: 2765718 | V55: 0.0123 | W55: 0.0154 | X55: 0.0124 | Y55: 0.0137 | Z55: 0.014 | AB55: 0.0134 | AC55: 0.0134 | AE55: 0.014 | AF55: 0.0131 | AG55: 0.0009 | AI55: 0.0134 | AJ55: 2743085
A56: 47 | B56: BUCKLAND | C56: 3152566 | D56: 3281502 | E56: 3423371 | F56: 3529299 | G56: 3641719 | H56: 3755552 | I56: 0 | J56: 0 | L56: 50122 | M56: 59831 | N56: 20343 | O56: 24187 | P56: 22790 | Q56: 50122 | R56: 59831 | S56: 20343 | T56: 24187 | U56: 22790 | V56: 0.0159 | W56: 0.0182 | X56: 0.0059 | Y56: 0.0069 | Z56: 0.0063 | AB56: 0.0064 | AC56: 0.0064 | AE56: 0.0069 | AF56: 0.0061 | AG56: 0.0008 | AI56: 0.0064 | AJ56: 24036
A57: 48 | B57: BURLINGTON | C57: 99908178 | D57: 105612937 | E57: 111067433 | F57: 117266931 | G57: 123645873 | H57: 130007610 | I57: 0 | J57: 0 | L57: 3207055 | M57: 2814173 | N57: 3422812 | O57: 3447269 | P57: 3270590 | Q57: 3207055 | R57: 2814173 | S57: 3422812 | T57: 3447269 | U57: 3270590 | V57: 0.0321 | W57: 0.0266 | X57: 0.0308 | Y57: 0.0294 | Z57: 0.0265 | AB57: 0.0289 | AC57: 0.0275 | AE57: 0.0308 | AF57: 0.028 | AG57: 0.0028 | AI57: 0.0289 | AJ57: 3757220
A58: 49 | B58: CAMBRIDGE | C58: 475410995 | D58: 509472549 | E58: 540959800 | F58: 570550306 | G58: 599170668 | H58: 628478895 | I58: 0 | J58: 0 | L58: 21321353 | M58: 18282278 | N58: 15405065 | O58: 13973778 | P58: 14436731 | Q58: 21321353 | R58: 18282278 | S58: 15405065 | T58: 13973778 | U58: 14436731 | V58: 0.0448 | W58: 0.0359 | X58: 0.0285 | Y58: 0.0245 | Z58: 0.0241 | AB58: 0.0257 | AC58: 0.0257 | AE58: 0.0285 | AF58: 0.0243 | AG58: 0.0042 | AI58: 0.0257 | AJ58: 16151908
A59: 50 | B59: CANTON | C59: 59069175 | D59: 61858950 | E59: 65010907 | F59: 68009198 | G59: 70624664 | H59: 74125029 | I59: 2005 | J59: 0 | L59: 1313045 | M59: 1605483 | N59: 1373018 | O59: 915236 | P59: 1734748 | Q59: 1313045 | R59: 1605483 | S59: 1373018 | T59: 915236 | U59: 1734748 | V59: 0.0222 | W59: 0.026 | X59: 0.0211 | Y59: 0.0135 | Z59: 0.0246 | AB59: 0.0197 | AC59: 0.0197 | AE59: 0.0246 | AF59: 0.0173 | AG59: 0.0073 | AI59: 0.0197 | AJ59: 1460263
A60: 51 | B60: CARLISLE | C60: 20092874 | D60: 20927143 | E60: 21722969 | F60: 22539451 | G60: 23365940 | H60: 24396248 | I60: 1997 | J60: 0 | L60: 331947 | M60: 272648 | N60: 273408 | O60: 263002 | P60: 446160 | Q60: 331947 | R60: 272648 | S60: 273408 | T60: 263002 | U60: 446160 | V60: 0.0165 | W60: 0.013 | X60: 0.0126 | Y60: 0.0117 | Z60: 0.0191 | AB60: 0.0145 | AC60: 0.0124 | AE60: 0.0191 | AF60: 0.0122 | AG60: 0.0069 | AI60: 0.0145 | AJ60: 353746
A61: 52 | B61: CARVER | C61: 21085057 | D61: 21899430 | E61: 22905353 | F61: 23905837 | G61: 24824537 | H61: 25987764 | I61: 1991 | J61: 2001 | L61: 287247 | M61: 348249 | N61: 424464 | O61: 321054 | P61: 542614 | Q61: 287247 | R61: 348249 | S61: 424464 | T61: 321054 | U61: 542614 | V61: 0.0136 | W61: 0.0159 | X61: 0.0185 | Y61: 0.0134 | Z61: 0.0219 | AB61: 0.0179 | AC61: 0.0159 | AE61: 0.0219 | AF61: 0.016 | AG61: 0.0059 | AI61: 0.0179 | AJ61: 465181
A62: 53 | B62: CHARLEMONT | C62: 2579666 | D62: 2716985 | E62: 2818202 | F62: 2977962 | G62: 3086335 | H62: 3207212 | I62: 0 | J62: 0 | L62: 72774 | M62: 33292 | N62: 89305 | O62: 33924 | P62: 42716 | Q62: 72774 | R62: 33292 | S62: 89305 | T62: 33924 | U62: 42716 | V62: 0.0282 | W62: 0.0123 | X62: 0.0317 | Y62: 0.0114 | Z62: 0.0138 | AB62: 0.019 | AC62: 0.0125 | AE62: 0.0317 | AF62: 0.0126 | AG62: 0.0191 | AI62: 0.019 | AJ62: 60937
A63: 54 | B63: CHARLTON | C63: 16410495 | D63: 17277860 | E63: 18009251 | F63: 18894054 | G63: 19851765 | H63: 21031164 | I63: 1996 | J63: 0 | L63: 457103 | M63: 299444 | N63: 434572 | O63: 485359 | P63: 683105 | Q63: 457103 | R63: 299444 | S63: 434572 | T63: 485359 | U63: 683105 | V63: 0.0279 | W63: 0.0173 | X63: 0.0241 | Y63: 0.0257 | Z63: 0.0344 | AB63: 0.0281 | AC63: 0.0224 | AE63: 0.0344 | AF63: 0.0249 | AG63: 0.0095 | AI63: 0.0281 | AJ63: 590976
A64: 55 | B64: CHATHAM | C64: 22805322 | D64: 23677336 | E64: 24793850 | F64: 25912342 | G64: 27004261 | H64: 28160604 | I64: 0 | J64: 0 | L64: 301881 | M64: 524580 | N64: 498646 | O64: 444110 | P64: 481911 | Q64: 301881 | R64: 524580 | S64: 498646 | T64: 444110 | U64: 481911 | V64: 0.0132 | W64: 0.0222 | X64: 0.0201 | Y64: 0.0171 | Z64: 0.0178 | AB64: 0.0183 | AC64: 0.0183 | AE64: 0.0201 | AF64: 0.0175 | AG64: 0.0026 | AI64: 0.0183 | AJ64: 515339
A65: 56 | B65: CHELMSFORD | C65: 82024358 | D65: 85490204 | E65: 90161406 | F65: 93668498 | G65: 97520293 | H65: 101789687 | I65: 1991 | J65: 0 | L65: 1415237 | M65: 2533947 | N65: 1253057 | O65: 1510083 | P65: 1831387 | Q65: 1415237 | R65: 2533947 | S65: 1253057 | T65: 1510083 | U65: 1831387 | V65: 0.0173 | W65: 0.0296 | X65: 0.0139 | Y65: 0.0161 | Z65: 0.0188 | AB65: 0.0163 | AC65: 0.0163 | AE65: 0.0188 | AF65: 0.015 | AG65: 0.0038 | AI65: 0.0163 | AJ65: 1659172
A66: 57 | B66: CHELSEA | C66: 45869995 | D66: 48322835 | E66: 51980785 | F66: 54878173 | G66: 57906281 | H66: 61485089 | I66: 0 | J66: 0 | L66: 1306090 | M66: 2449879 | N66: 2056881 | O66: 1656154 | P66: 2221542 | Q66: 1306090 | R66: 2449879 | S66: 2056881 | T66: 1656154 | U66: 2221542 | V66: 0.0285 | W66: 0.0507 | X66: 0.0396 | Y66: 0.0302 | Z66: 0.0384 | AB66: 0.0361 | AC66: 0.0361 | AE66: 0.0396 | AF66: 0.0343 | AG66: 0.0053 | AI66: 0.0361 | AJ66: 2219612
A67: 58 | B67: CHESHIRE | C67: 3067810 | D67: 3173655 | E67: 3284567 | F67: 3395437 | G67: 3510757 | H67: 3613907 | I67: 0 | J67: 0 | L67: 26063 | M67: 31570 | N67: 28755 | O67: 30434 | P67: 15381 | Q67: 26063 | R67: 31570 | S67: 28755 | T67: 30434 | U67: 15381 | V67: 0.0085 | W67: 0.0099 | X67: 0.0088 | Y67: 0.009 | Z67: 0.0044 | AB67: 0.0074 | AC67: 0.0074 | AE67: 0.009 | AF67: 0.0066 | AG67: 0.0024 | AI67: 0.0074 | AJ67: 26743
A68: 59 | B68: CHESTER | C68: 2238326 | D68: 2348314 | E68: 2433506 | F68: 2517629 | G68: 2590373 | H68: 2671146 | I68: 2000 | J68: 0 | L68: 54030 | M68: 26484 | N68: 23286 | O68: 9804 | P68: 16014 | Q68: 54030 | R68: 26484 | S68: 23286 | T68: 9804 | U68: 16014 | V68: 0.0241 | W68: 0.0113 | X68: 0.0096 | Y68: 0.0039 | Z68: 0.0062 | AB68: 0.0066 | AC68: 0.0066 | AE68: 0.0096 | AF68: 0.0051 | AG68: 0.0045 | AI68: 0.0066 | AJ68: 17630
A69: 60 | B69: CHESTERFIELD | C69: 2762555 | D69: 2857402 | E69: 2952119 | F69: 3055865 | G69: 3165362 | H69: 3301345 | I69: 0 | J69: 0 | L69: 25783 | M69: 22565 | N69: 29943 | O69: 33100 | P69: 56849 | Q69: 25783 | R69: 22565 | S69: 29943 | T69: 33100 | U69: 56849 | V69: 0.0093 | W69: 0.0079 | X69: 0.0101 | Y69: 0.0108 | Z69: 0.018 | AB69: 0.013 | AC69: 0.0096 | AE69: 0.018 | AF69: 0.0105 | AG69: 0.0075 | AI69: 0.013 | AJ69: 42917
A70: 61 | B70: CHICOPEE | C70: 78940863 | D70: 82085653 | E70: 85085256 | F70: 88297903 | G70: 91689322 | H70: 95030164 | I70: 0 | J70: 0 | L70: 1171268 | M70: 947462 | N70: 1085516 | O70: 1180831 | P70: 1048609 | Q70: 1171268 | R70: 947462 | S70: 1085516 | T70: 1180831 | U70: 1048609 | V70: 0.0148 | W70: 0.0115 | X70: 0.0128 | Y70: 0.0134 | Z70: 0.0114 | AB70: 0.0125 | AC70: 0.0119 | AE70: 0.0134 | AF70: 0.0121 | AG70: 0.0013 | AI70: 0.0125 | AJ70: 1187877
A71: 62 | B71: CHILMARK | C71: 4967272 | D71: 5178743 | E71: 5383064 | F71: 5604232 | G71: 5831027 | H71: 6144147 | I71: 1991 | J71: 0 | L71: 87289 | M71: 74853 | N71: 86591 | O71: 86689 | P71: 90766 | Q71: 87289 | R71: 74853 | S71: 86591 | T71: 86689 | U71: 90766 | V71: 0.0176 | W71: 0.0145 | X71: 0.0161 | Y71: 0.0155 | Z71: 0.0156 | AB71: 0.0157 | AC71: 0.0152 | AE71: 0.0161 | AF71: 0.0156 | AG71: 0.0005 | AI71: 0.0157 | AJ71: 96463
A72: 63 | B72: CLARKSBURG | C72: 1680025 | D72: 1736349 | E72: 1792235 | F72: 1868756 | G72: 1924899 | H72: 2018524 | I72: 0 | J72: 0 | L72: 14323 | M72: 12477 | N72: 31715 | O72: 9424 | P72: 45503 | Q72: 14323 | R72: 12477 | S72: 31715 | T72: 9424 | U72: 45503 | V72: 0.0085 | W72: 0.0072 | X72: 0.0177 | Y72: 0.005 | Z72: 0.0236 | AB72: 0.0154 | AC72: 0.01 | AE72: 0.0236 | AF72: 0.0114 | AG72: 0.0122 | AI72: 0.0154 | AJ72: 31085
A73: 64 | B73: CLINTON | C73: 19869665 | D73: 20765696 | E73: 21843211 | F73: 24110850 | G73: 25991616 | H73: 27155562 | I73: 2004 | J73: 0 | L73: 399289 | M73: 558373 | N73: 1721559 | O73: 1277995 | P73: 514156 | Q73: 399289 | R73: 558373 | S73: 1721559 | T73: 1277995 | U73: 514156 | V73: 0.0201 | W73: 0.0269 | X73: 0.0788 | Y73: 0.053 | Z73: 0.0198 | AB73: 0.0505 | AC73: 0.0332 | AE73: 0.0788 | AF73: 0.0364 | AG73: 0.0424 | AI73: 0.0332 | AJ73: 901565
A74: 65 | B74: COHASSET | C74: 28806904 | D74: 30048909 | E74: 31552568 | F74: 33053598 | G74: 34680015 | H74: 36056433 | I74: 1991 | J74: 0 | L74: 521832 | M74: 752436 | N74: 712215 | O74: 800077 | P74: 509417 | Q74: 521832 | R74: 752436 | S74: 712215 | T74: 800077 | U74: 509417 | V74: 0.0181 | W74: 0.025 | X74: 0.0226 | Y74: 0.0242 | Z74: 0.0147 | AB74: 0.0205 | AC74: 0.0205 | AE74: 0.0242 | AF74: 0.0187 | AG74: 0.0055 | AI74: 0.0205 | AJ74: 739157
A75: 66 | B75: COLRAIN | C75: 3095132 | D75: 3256677 | E75: 3365278 | F75: 3473748 | G75: 3594737 | H75: 3722805 | I75: 0 | J75: 0 | L75: 84167 | M75: 27184 | N75: 24338 | O75: 34145 | P75: 38200 | Q75: 84167 | R75: 27184 | S75: 24338 | T75: 34145 | U75: 38200 | V75: 0.0272 | W75: 0.0083 | X75: 0.0072 | Y75: 0.0098 | Z75: 0.0106 | AB75: 0.0092 | AC75: 0.0084 | AE75: 0.0106 | AF75: 0.0085 | AG75: 0.0021 | AI75: 0.0092 | AJ75: 34250
A76: 67 | B76: CONCORD | C76: 64593711 | D76: 67492558 | E76: 70616837 | F76: 73703588 | G76: 76782131 | H76: 79896943 | I76: 2002 | J76: 0 | L76: 1284004 | M76: 1412859 | N76: 1321330 | O76: 1235953 | P76: 1195259 | Q76: 1284004 | R76: 1412859 | S76: 1321330 | T76: 1235953 | U76: 1195259 | V76: 0.0199 | W76: 0.0209 | X76: 0.0187 | Y76: 0.0168 | Z76: 0.0156 | AB76: 0.017 | AC76: 0.017 | AE76: 0.0187 | AF76: 0.0162 | AG76: 0.0025 | AI76: 0.017 | AJ76: 1358248
A77: 68 | B77: CONWAY | C77: 4012945 | D77: 4140284 | E77: 4389163 | F77: 4521189 | G77: 4776510 | H77: 4977761 | I77: 0 | J77: 0 | L77: 27016 | M77: 145372 | N77: 22297 | O77: 134040 | P77: 81838 | Q77: 27016 | R77: 145372 | S77: 22297 | T77: 134040 | U77: 81838 | V77: 0.0067 | W77: 0.0351 | X77: 0.0051 | Y77: 0.0296 | Z77: 0.0171 | AB77: 0.0173 | AC77: 0.0173 | AE77: 0.0296 | AF77: 0.0111 | AG77: 0.0185 | AI77: 0.0173 | AJ77: 86115
A78: 69 | B78: CUMMINGTON | C78: 1645075 | D78: 1705754 | E78: 1763064 | F78: 1826663 | G78: 1889349 | H78: 1970288 | I78: 0 | J78: 0 | L78: 19552 | M78: 14666 | N78: 19522 | O78: 17019 | P78: 33706 | Q78: 19552 | R78: 14666 | S78: 19522 | T78: 17019 | U78: 33706 | V78: 0.0119 | W78: 0.0086 | X78: 0.0111 | Y78: 0.0093 | Z78: 0.0178 | AB78: 0.0127 | AC78: 0.0097 | AE78: 0.0178 | AF78: 0.0102 | AG78: 0.0076 | AI78: 0.0127 | AJ78: 25023
A79: 70 | B79: DALTON | C79: 10993339 | D79: 11329558 | E79: 11666382 | F79: 12035249 | G79: 12481313 | H79: 12984294 | I79: 0 | J79: 0 | L79: 61386 | M79: 53585 | N79: 77207 | O79: 145183 | P79: 190948 | Q79: 61386 | R79: 53585 | S79: 77207 | T79: 145183 | U79: 190948 | V79: 0.0056 | W79: 0.0047 | X79: 0.0066 | Y79: 0.0121 | Z79: 0.0153 | AB79: 0.0113 | AC79: 0.0078 | AE79: 0.0153 | AF79: 0.0094 | AG79: 0.0059 | AI79: 0.0113 | AJ79: 146723
A80: 71 | B80: DANVERS | C80: 67839074 | D80: 70394408 | E80: 72783734 | F80: 75516164 | G80: 78198964 | H80: 80994021 | I80: 1991 | J80: 0 | L80: 859357 | M80: 629466 | N80: 912837 | O80: 794896 | P80: 840083 | Q80: 859357 | R80: 629466 | S80: 912837 | T80: 794896 | U80: 840083 | V80: 0.0127 | W80: 0.0089 | X80: 0.0125 | Y80: 0.0105 | Z80: 0.0107 | AB80: 0.0112 | AC80: 0.01 | AE80: 0.0125 | AF80: 0.0106 | AG80: 0.0019 | AI80: 0.0112 | AJ80: 907133
A81: 72 | B81: DARTMOUTH | C81: 50324169 | D81: 52962119 | E81: 55137061 | F81: 57341320 | G81: 59346956 | H81: 61564845 | I81: 2004 | J81: 0 | L81: 1379845 | M81: 842857 | N81: 822352 | O81: 572103 | P81: 734215 | Q81: 1379845 | R81: 842857 | S81: 822352 | T81: 572103 | U81: 734215 | V81: 0.0274 | W81: 0.0159 | X81: 0.0149 | Y81: 0.01 | Z81: 0.0124 | AB81: 0.0124 | AC81: 0.0124 | AE81: 0.0149 | AF81: 0.0112 | AG81: 0.0037 | AI81: 0.0124 | AJ81: 763404
A82: 73 | B82: DEDHAM | C82: 79745732 | D82: 82788288 | E82: 86097851 | F82: 89441008 | G82: 93000263 | H82: 96531276 | I82: 0 | J82: 0 | L82: 1048913 | M82: 1239856 | N82: 1190711 | O82: 1323230 | P82: 1206006 | Q82: 1048913 | R82: 1239856 | S82: 1190711 | T82: 1323230 | U82: 1206006 | V82: 0.0132 | W82: 0.015 | X82: 0.0138 | Y82: 0.0148 | Z82: 0.013 | AB82: 0.0139 | AC82: 0.0139 | AE82: 0.0148 | AF82: 0.0134 | AG82: 0.0014 | AI82: 0.0139 | AJ82: 1341785
A83: 74 | B83: DEERFIELD | C83: 8377481 | D83: 8693118 | E83: 9049716 | F83: 9447838 | G83: 9876075 | H83: 10260285 | I83: 1995 | J83: 0 | L83: 106200 | M83: 139270 | N83: 171879 | O83: 192041 | P83: 137308 | Q83: 106200 | R83: 139270 | S83: 171879 | T83: 192041 | U83: 137308 | V83: 0.0127 | W83: 0.016 | X83: 0.019 | Y83: 0.0203 | Z83: 0.0139 | AB83: 0.0177 | AC83: 0.0163 | AE83: 0.0203 | AF83: 0.0165 | AG83: 0.0038 | AI83: 0.0177 | AJ83: 181607
A84: 75 | B84: DENNIS | C84: 31974036 | D84: 33151923 | E84: 34387981 | F84: 35560281 | G84: 36714645 | H84: 37932691 | I84: 2011 | J84: 0 | L84: 378536 | M84: 407260 | N84: 312601 | O84: 265357 | P84: 300989 | Q84: 378536 | R84: 407260 | S84: 312601 | T84: 265357 | U84: 300989 | V84: 0.0118 | W84: 0.0123 | X84: 0.0091 | Y84: 0.0075 | Z84: 0.0082 | AB84: 0.0083 | AC84: 0.0083 | AE84: 0.0091 | AF84: 0.0079 | AG84: 0.0012 | AI84: 0.0083 | AJ84: 314841
A85: 76 | B85: DIGHTON | C85: 14246283 | D85: 14874815 | E85: 15832896 | F85: 16682131 | G85: 17533123 | H85: 18525532 | I85: 2012 | J85: 0 | L85: 267618 | M85: 586211 | N85: 453413 | O85: 433758 | P85: 554081 | Q85: 267618 | R85: 586211 | S85: 453413 | T85: 433758 | U85: 554081 | V85: 0.0188 | W85: 0.0394 | X85: 0.0286 | Y85: 0.026 | Z85: 0.0316 | AB85: 0.0287 | AC85: 0.0287 | AE85: 0.0316 | AF85: 0.0273 | AG85: 0.0043 | AI85: 0.0287 | AJ85: 531683
A86: 77 | B86: DOUGLAS | C86: 11742883 | D86: 12187036 | E86: 12600831 | F86: 13115418 | G86: 13690916 | H86: 14434360 | I86: 1992 | J86: 1998 | L86: 150581 | M86: 109119 | N86: 199566 | O86: 247612 | P86: 400776 | Q86: 150581 | R86: 109119 | S86: 199566 | T86: 247612 | U86: 400776 | V86: 0.0128 | W86: 0.009 | X86: 0.0158 | Y86: 0.0189 | Z86: 0.0293 | AB86: 0.0213 | AC86: 0.0146 | AE86: 0.0293 | AF86: 0.0174 | AG86: 0.0119 | AI86: 0.0213 | AJ86: 307452
A87: 78 | B87: DOVER | C87: 25315086 | D87: 26509534 | E87: 27705855 | F87: 28915471 | G87: 30145661 | H87: 31203977 | I87: 1993 | J87: 0 | L87: 561571 | M87: 533583 | N87: 516969 | O87: 506809 | P87: 304675 | Q87: 561571 | R87: 533583 | S87: 516969 | T87: 506809 | U87: 304675 | V87: 0.0222 | W87: 0.0201 | X87: 0.0187 | Y87: 0.0175 | Z87: 0.0101 | AB87: 0.0154 | AC87: 0.0154 | AE87: 0.0187 | AF87: 0.0138 | AG87: 0.0049 | AI87: 0.0154 | AJ87: 480541
A88: 79 | B88: DRACUT | C88: 40389103 | D88: 41916775 | E88: 43644368 | F88: 45512281 | G88: 47461299 | H88: 49198678 | I88: 1991 | J88: 0 | L88: 517944 | M88: 679674 | N88: 776804 | O88: 811211 | P88: 550847 | Q88: 517944 | R88: 679674 | S88: 776804 | T88: 811211 | U88: 550847 | V88: 0.0128 | W88: 0.0162 | X88: 0.0178 | Y88: 0.0178 | Z88: 0.0116 | AB88: 0.0157 | AC88: 0.0152 | AE88: 0.0178 | AF88: 0.0147 | AG88: 0.0031 | AI88: 0.0157 | AJ88: 772419
A89: 80 | B89: DUDLEY | C89: 8313999 | D89: 8628289 | E89: 9022311 | F89: 9351627 | G89: 9822846 | H89: 10178293 | I89: 2003 | J89: 0 | L89: 106440 | M89: 175336 | N89: 103758 | O89: 141313 | P89: 109065 | Q89: 106440 | R89: 175336 | S89: 103758 | T89: 141313 | U89: 109065 | V89: 0.0128 | W89: 0.0203 | X89: 0.0115 | Y89: 0.0151 | Z89: 0.0111 | AB89: 0.0126 | AC89: 0.0126 | AE89: 0.0151 | AF89: 0.0113 | AG89: 0.0038 | AI89: 0.0126 | AJ89: 128246
A90: 81 | B90: DUNSTABLE | C90: 6100979 | D90: 6343733 | E90: 6586801 | F90: 6904150 | G90: 7247368 | H90: 7574022 | I90: 2007 | J90: 0 | L90: 90230 | M90: 84475 | N90: 152679 | O90: 170614 | P90: 139356 | Q90: 90230 | R90: 84475 | S90: 152679 | T90: 170614 | U90: 139356 | V90: 0.0148 | W90: 0.0133 | X90: 0.0232 | Y90: 0.0247 | Z90: 0.0192 | AB90: 0.0224 | AC90: 0.0186 | AE90: 0.0247 | AF90: 0.0212 | AG90: 0.0035 | AI90: 0.0224 | AJ90: 169658
A91: 82 | B91: DUXBURY | C91: 47190675 | D91: 49001918 | E91: 51143782 | F91: 53293997 | G91: 55206582 | H91: 57123110 | I91: 2005 | J91: 0 | L91: 631476 | M91: 898607 | N91: 845923 | O91: 580235 | P91: 536363 | Q91: 631476 | R91: 898607 | S91: 845923 | T91: 580235 | U91: 536363 | V91: 0.0134 | W91: 0.0183 | X91: 0.0165 | Y91: 0.0109 | Z91: 0.0097 | AB91: 0.0124 | AC91: 0.0124 | AE91: 0.0165 | AF91: 0.0103 | AG91: 0.0062 | AI91: 0.0124 | AJ91: 708327
A92: 83 | B92: EAST BRIDGEWAT | C92: 23768544 | D92: 24584612 | E92: 25490345 | F92: 26351353 | G92: 27320944 | H92: 28364047 | I92: 2006 | J92: 0 | L92: 221733 | M92: 291118 | N92: 223749 | O92: 310807 | P92: 360079 | Q92: 221733 | R92: 291118 | S92: 223749 | T92: 310807 | U92: 360079 | V92: 0.0093 | W92: 0.0118 | X92: 0.0088 | Y92: 0.0118 | Z92: 0.0132 | AB92: 0.0113 | AC92: 0.0108 | AE92: 0.0132 | AF92: 0.0103 | AG92: 0.0029 | AI92: 0.0113 | AJ92: 320514
A93: 84 | B93: EAST BROOKFIEL | C93: 3036075 | D93: 3152603 | E93: 3411993 | F93: 3561821 | G93: 3706310 | H93: 3870757 | I93: 0 | J93: 0 | L93: 40626 | M93: 180575 | N93: 64528 | O93: 55443 | P93: 71789 | Q93: 40626 | R93: 180575 | S93: 64528 | T93: 55443 | U93: 71789 | V93: 0.0134 | W93: 0.0573 | X93: 0.0189 | Y93: 0.0156 | Z93: 0.0194 | AB93: 0.018 | AC93: 0.018 | AE93: 0.0194 | AF93: 0.0173 | AG93: 0.0021 | AI93: 0.018 | AJ93: 69674
A94: 85 | B94: EAST LONGMEADO | C94: 36882128 | D94: 38368359 | E94: 39748268 | F94: 41170794 | G94: 42778627 | H94: 44321187 | I94: 2013 | J94: 0 | L94: 564178 | M94: 420700 | N94: 428819 | O94: 569443 | P94: 473094 | Q94: 564178 | R94: 420700 | S94: 428819 | T94: 569443 | U94: 473094 | V94: 0.0153 | W94: 0.011 | X94: 0.0108 | Y94: 0.0138 | Z94: 0.0111 | AB94: 0.0119 | AC94: 0.011 | AE94: 0.0138 | AF94: 0.011 | AG94: 0.0028 | AI94: 0.0119 | AJ94: 527422
A95: 86 | B95: EASTHAM | C95: 15248233 | D95: 15729783 | E95: 16258185 | F95: 16809439 | G95: 17374730 | H95: 17928494 | I95: 0 | J95: 0 | L95: 100344 | M95: 135158 | N95: 144737 | O95: 145119 | P95: 119330 | Q95: 100344 | R95: 135158 | S95: 144737 | T95: 145119 | U95: 119330 | V95: 0.0066 | W95: 0.0086 | X95: 0.0089 | Y95: 0.0086 | Z95: 0.0069 | AB95: 0.0081 | AC95: 0.008 | AE95: 0.0089 | AF95: 0.0078 | AG95: 0.0011 | AI95: 0.0081 | AJ95: 145221
A96: 87 | B96: EASTHAMPTON | C96: 19731716 | D96: 20448887 | E96: 21287021 | F96: 22058451 | G96: 22869840 | H96: 23717269 | I96: 2004 | J96: 0 | L96: 223878 | M96: 326911 | N96: 239255 | O96: 259927 | P96: 275683 | Q96: 223878 | R96: 326911 | S96: 239255 | T96: 259927 | U96: 275683 | V96: 0.0113 | W96: 0.016 | X96: 0.0112 | Y96: 0.0118 | Z96: 0.0121 | AB96: 0.0117 | AC96: 0.0117 | AE96: 0.0121 | AF96: 0.0115 | AG96: 0.0006 | AI96: 0.0117 | AJ96: 277492
A97: 88 | B97: EASTON | C97: 42340443 | D97: 44193109 | E97: 45990719 | F97: 48141698 | G97: 50210978 | H97: 52401801 | I97: 0 | J97: 0 | L97: 794155 | M97: 691445 | N97: 1001211 | O97: 865141 | P97: 935548 | Q97: 794155 | R97: 691445 | S97: 1001211 | T97: 865141 | U97: 935548 | V97: 0.0188 | W97: 0.0156 | X97: 0.0218 | Y97: 0.018 | Z97: 0.0186 | AB97: 0.0195 | AC97: 0.0174 | AE97: 0.0218 | AF97: 0.0183 | AG97: 0.0035 | AI97: 0.0195 | AJ97: 1021835
A98: 89 | B98: EDGARTOWN | C98: 17801165 | D98: 18621719 | E98: 19499814 | F98: 20425655 | G98: 21357045 | H98: 22745023 | I98: 0 | J98: 0 | L98: 368696 | M98: 411415 | N98: 431088 | O98: 417825 | P98: 454051 | Q98: 368696 | R98: 411415 | S98: 431088 | T98: 417825 | U98: 454051 | V98: 0.0207 | W98: 0.0221 | X98: 0.0221 | Y98: 0.0205 | Z98: 0.0213 | AB98: 0.0213 | AC98: 0.0213 | AE98: 0.0221 | AF98: 0.0209 | AG98: 0.0012 | AI98: 0.0213 | AJ98: 484469
A99: 90 | B99: EGREMONT | C99: 3813002 | D99: 3936179 | E99: 4075632 | F99: 4209885 | G99: 4349391 | H99: 4485945 | I99: 0 | J99: 0 | L99: 27852 | M99: 41049 | N99: 32362 | O99: 34259 | P99: 27819 | Q99: 27852 | R99: 41049 | S99: 32362 | T99: 34259 | U99: 27819 | V99: 0.0073 | W99: 0.0104 | X99: 0.0079 | Y99: 0.0081 | Z99: 0.0064 | AB99: 0.0075 | AC99: 0.0075 | AE99: 0.0081 | AF99: 0.0072 | AG99: 0.0009 | AI99: 0.0075 | AJ99: 33645
A100: 91 | B100: ERVING | C100: 8760928 | D100: 9144568 | E100: 9444803 | F100: 9689539 | G100: 10620755 | H100: 10909997 | I100: 0 | J100: 0 | L100: 164617 | M100: 71621 | N100: 8616 | O100: 688978 | P100: 23723 | Q100: 164617 | R100: 71621 | S100: 8616 | T100: 688978 | U100: 23723 | V100: 0.0188 | W100: 0.0078 | X100: 0.0009 | Y100: 0.0711 | Z100: 0.0022 | AB100: 0.0247 | AC100: 0.0036 | AE100: 0.0711 | AF100: 0.0016 | AG100: 0.0695 | AI100: 0.0036 | AJ100: 39276
A101: 92 | B101: ESSEX | C101: 8342502 | D101: 8631578 | E101: 8943941 | F101: 9254379 | G101: 9579362 | H101: 9938252 | I101: 0 | J101: 0 | L101: 78159 | M101: 91522 | N101: 86839 | O101: 93623 | P101: 119406 | Q101: 78159 | R101: 91522 | S101: 86839 | T101: 93623 | U101: 119406 | V101: 0.0094 | W101: 0.0106 | X101: 0.0097 | Y101: 0.0101 | Z101: 0.0125 | AB101: 0.0108 | AC101: 0.0101 | AE101: 0.0125 | AF101: 0.0099 | AG101: 0.0026 | AI101: 0.0108 | AJ101: 107333
A102: 93 | B102: EVERETT | C102: 94510401 | D102: 99542806 | E102: 104642418 | F102: 110457822 | G102: 136743488 | H102: 144152596 | I102: 1991 | J102: 2014 | L102: 2669645 | M102: 2611042 | N102: 3199344 | O102: 23524220 | P102: 3990521 | Q102: 2669645 | R102: 2611042 | S102: 3199344 | T102: 23524220 | U102: 3990521 | V102: 0.0282 | W102: 0.0262 | X102: 0.0306 | Y102: 0.213 | Z102: 0.0292 | AB102: 0.0909 | AC102: 0.0287 | AE102: 0.213 | AF102: 0.0299 | AG102: 0.1831 | AI102: 0.0287 | AJ102: 4137180
A103: 94 | B103: FAIRHAVEN | C103: 23977759 | D103: 24760441 | E103: 25653486 | F103: 26676342 | G103: 27566372 | H103: 28484856 | I103: 0 | J103: 0 | L103: 176154 | M103: 274034 | N103: 381519 | O103: 223121 | P103: 229325 | Q103: 176154 | R103: 274034 | S103: 381519 | T103: 223121 | U103: 229325 | V103: 0.0073 | W103: 0.0111 | X103: 0.0149 | Y103: 0.0084 | Z103: 0.0083 | AB103: 0.0105 | AC103: 0.0093 | AE103: 0.0149 | AF103: 0.0084 | AG103: 0.0065 | AI103: 0.0105 | AJ103: 299091
A104: 95 | B104: FALL RIVER | C104: 86422352 | D104: 89857302 | E104: 93644049 | F104: 97454740 | G104: 102122896 | H104: 106816456 | I104: 0 | J104: 0 | L104: 1274391 | M104: 1540314 | N104: 1469590 | O104: 2231787 | P104: 2140488 | Q104: 1274391 | R104: 1540314 | S104: 1469590 | T104: 2231787 | U104: 2140488 | V104: 0.0147 | W104: 0.0171 | X104: 0.0157 | Y104: 0.0229 | Z104: 0.021 | AB104: 0.0199 | AC104: 0.0179 | AE104: 0.0229 | AF104: 0.0184 | AG104: 0.0045 | AI104: 0.0199 | AJ104: 2125647
A105: 96 | B105: FALMOUTH | C105: 79940771 | D105: 82946698 | E105: 85952903 | F105: 89054950 | G105: 92065051 | H105: 95461519 | I105: 2007 | J105: 0 | L105: 1007407 | M105: 932538 | N105: 953225 | O105: 783727 | P105: 1093012 | Q105: 1007407 | R105: 932538 | S105: 953225 | T105: 783727 | U105: 1093012 | V105: 0.0126 | W105: 0.0112 | X105: 0.0111 | Y105: 0.0088 | Z105: 0.0119 | AB105: 0.0106 | AC105: 0.0104 | AE105: 0.0119 | AF105: 0.01 | AG105: 0.0019 | AI105: 0.0106 | AJ105: 1011892
A106: 97 | B106: FITCHBURG | C106: 45980026 | D106: 47650217 | E106: 49602326 | F106: 51485090 | G106: 53682908 | H106: 55682046 | I106: 1991 | J106: 0 | L106: 520690 | M106: 760854 | N106: 642706 | O106: 857948 | P106: 657065 | Q106: 520690 | R106: 760854 | S106: 642706 | T106: 857948 | U106: 657065 | V106: 0.0113 | W106: 0.016 | X106: 0.013 | Y106: 0.0167 | Z106: 0.0122 | AB106: 0.014 | AC106: 0.0137 | AE106: 0.0167 | AF106: 0.0126 | AG106: 0.0041 | AI106: 0.014 | AJ106: 779549
A107: 98 | B107: FLORIDA | C107: 1980016 | D107: 2040295 | E107: 2097556 | F107: 2158598 | G107: 2399378 | H107: 0 | I107: 0 | J107: 0 | L107: 10779 | M107: 6253 | N107: 8603 | O107: 186815 | P107: 19893 | Q107: 10779 | R107: 6253 | S107: 8603 | T107: 186815 | U107: 19893 | V107: 0.0054 | W107: 0.0031 | X107: 0.0041 | Y107: 0.0865 | Z107: 0.0083 | AB107: 0.033 | AC107: 0.0052 | AE107: 0.0865 | AF107: 0.0062 | AG107: 0.0803 | AI107: 0.0052 | AJ107: 12854
A108: 99 | B108: FOXBOROUGH | C108: 38563873 | D108: 40615130 | E108: 42582722 | F108: 45237199 | G108: 47576229 | H108: 49768722 | I108: 1991 | J108: 0 | L108: 1087160 | M108: 952214 | N108: 1589909 | O108: 1208100 | P108: 1003087 | Q108: 1087160 | R108: 952214 | S108: 1589909 | T108: 1208100 | U108: 1003087 | V108: 0.0282 | W108: 0.0234 | X108: 0.0373 | Y108: 0.0267 | Z108: 0.0211 | AB108: 0.0284 | AC108: 0.0237 | AE108: 0.0373 | AF108: 0.0239 | AG108: 0.0134 | AI108: 0.0284 | AJ108: 1413432
A109: 100 | B109: FRAMINGHAM | C109: 169222943 | D109: 175527068 | E109: 183070364 | F109: 190849721 | G109: 198845456 | H109: 207062248 | I109: 1991 | J109: 0 | L109: 2073552 | M109: 3155119 | N109: 3202598 | O109: 3224492 | P109: 3227115 | Q109: 2073552 | R109: 3155119 | S109: 3202598 | T109: 3224492 | U109: 3227115 | V109: 0.0123 | W109: 0.018 | X109: 0.0175 | Y109: 0.0169 | Z109: 0.0162 | AB109: 0.0169 | AC109: 0.0169 | AE109: 0.0175 | AF109: 0.0166 | AG109: 0.0009 | AI109: 0.0169 | AJ109: 3499352
A110: 101 | B110: FRANKLIN | C110: 58724454 | D110: 61012570 | E110: 63723420 | F110: 66796108 | G110: 69981489 | H110: 73595444 | I110: 1996 | J110: 0 | L110: 820004 | M110: 1185535 | N110: 1479602 | O110: 1515478 | P110: 1864418 | Q110: 820004 | R110: 1185535 | S110: 1479602 | T110: 1515478 | U110: 1864418 | V110: 0.014 | W110: 0.0194 | X110: 0.0232 | Y110: 0.0227 | Z110: 0.0266 | AB110: 0.0242 | AC110: 0.0218 | AE110: 0.0266 | AF110: 0.023 | AG110: 0.0036 | AI110: 0.0242 | AJ110: 1781010
A111: 102 | B111: FREETOWN | C111: 16889666 | D111: 17656495 | E111: 18459630 | F111: 19501997 | G111: 20288107 | H111: 21671372 | I111: 0 | J111: 0 | L111: 344585 | M111: 361725 | N111: 580874 | O111: 298562 | P111: 876060 | Q111: 344585 | R111: 361725 | S111: 580874 | T111: 298562 | U111: 876060 | V111: 0.0204 | W111: 0.0205 | X111: 0.0315 | Y111: 0.0153 | Z111: 0.0432 | AB111: 0.03 | AC111: 0.0224 | AE111: 0.0432 | AF111: 0.0234 | AG111: 0.0198 | AI111: 0.03 | AJ111: 650141
A112: 103 | B112: GARDNER | C112: 22612309 | D112: 23528443 | E112: 24781672 | F112: 25888215 | G112: 27018062 | H112: 28240124 | I112: 2009 | J112: 0 | L112: 350826 | M112: 659728 | N112: 468194 | O112: 482642 | P112: 461042 | Q112: 350826 | R112: 659728 | S112: 468194 | T112: 482642 | U112: 461042 | V112: 0.0155 | W112: 0.028 | X112: 0.0189 | Y112: 0.0186 | Z112: 0.0171 | AB112: 0.0182 | AC112: 0.0182 | AE112: 0.0189 | AF112: 0.0179 | AG112: 0.001 | AI112: 0.0182 | AJ112: 513970
A113: 104 | B113: GAY HEAD | C113: 2492418 | D113: 2566119 | E113: 2654425 | F113: 2750062 | G113: 2848266 | H113: 3209351 | I113: 0 | J113: 0 | L113: 11390 | M113: 24153 | N113: 29276 | O113: 29452 | P113: 24879 | Q113: 11390 | R113: 24153 | S113: 29276 | T113: 29452 | U113: 24879 | V113: 0.0046 | W113: 0.0094 | X113: 0.011 | Y113: 0.0107 | Z113: 0.0087 | AB113: 0.0101 | AC113: 0.0096 | AE113: 0.011 | AF113: 0.0097 | AG113: 0.0013 | AI113: 0.0101 | AJ113: 32414
A114: 105 | B114: GEORGETOWN | C114: 14591882 | D114: 15120657 | E114: 15743947 | F114: 16457382 | G114: 17026034 | H114: 17663734 | I114: 0 | J114: 0 | L114: 163978 | M114: 245244 | N114: 319837 | O114: 157217 | P114: 212049 | Q114: 163978 | R114: 245244 | S114: 319837 | T114: 157217 | U114: 212049 | V114: 0.0112 | W114: 0.0162 | X114: 0.0203 | Y114: 0.0096 | Z114: 0.0125 | AB114: 0.0141 | AC114: 0.0128 | AE114: 0.0203 | AF114: 0.0111 | AG114: 0.0092 | AI114: 0.0141 | AJ114: 249059
A115: 106 | B115: GILL | C115: 2212106 | D115: 2328351 | E115: 2458541 | F115: 2552827 | G115: 2665584 | H115: 0 | I115: 0 | J115: 0 | L115: 60943 | M115: 71810 | N115: 32823 | O115: 48936 | P115: 9879 | Q115: 60943 | R115: 71810 | S115: 32823 | T115: 48936 | U115: 9879 | V115: 0.0275 | W115: 0.0308 | X115: 0.0134 | Y115: 0.0192 | Z115: 0.0037 | AB115: 0.0121 | AC115: 0.0121 | AE115: 0.0192 | AF115: 0.0086 | AG115: 0.0106 | AI115: 0.0121 | AJ115: 33450
A116: 107 | B116: GLOUCESTER | C116: 67991888 | D116: 70726400 | E116: 73445650 | F116: 76265313 | G116: 79051706 | H116: 82035573 | I116: 0 | J116: 0 | L116: 1034715 | M116: 951090 | N116: 983522 | O116: 879760 | P116: 1006905 | Q116: 1034715 | R116: 951090 | S116: 983522 | T116: 879760 | U116: 1006905 | V116: 0.0152 | W116: 0.0134 | X116: 0.0134 | Y116: 0.0115 | Z116: 0.0127 | AB116: 0.0125 | AC116: 0.0125 | AE116: 0.0134 | AF116: 0.0121 | AG116: 0.0013 | AI116: 0.0125 | AJ116: 1025445
A117: 108 | B117: GOSHEN | C117: 2041414 | D117: 2104870 | E117: 2183303 | F117: 2282872 | G117: 2361373 | H117: 2443882 | I117: 0 | J117: 0 | L117: 12421 | M117: 25811 | N117: 44986 | O117: 21429 | P117: 23475 | Q117: 12421 | R117: 25811 | S117: 44986 | T117: 21429 | U117: 23475 | V117: 0.0061 | W117: 0.0123 | X117: 0.0206 | Y117: 0.0094 | Z117: 0.0099 | AB117: 0.0133 | AC117: 0.0105 | AE117: 0.0206 | AF117: 0.0097 | AG117: 0.0109 | AI117: 0.0133 | AJ117: 32504
A118: 109 | B118: GOSNOLD | C118: 457216 | D118: 469093 | E118: 480821 | F118: 495762 | G118: 511645 | H118: 0 | I118: 0 | J118: 0 | L118: 446 | M118: 0 | N118: 2921 | O118: 3489 | P118: 9 | Q118: 446 | R118: 0 | S118: 2921 | T118: 3489 | U118: 9 | V118: 0.001 | W118: 0 | X118: 0.0061 | Y118: 0.007 | Z118: 0 | AB118: 0.0044 | AC118: 0.002 | AE118: 0.007 | AF118: 0.0031 | AG118: 0.0039 | AI118: 0.0044 | AJ118: 2317
A119: 110 | B119: GRAFTON | C119: 29834675 | D119: 31004015 | E119: 32325594 | F119: 33852142 | G119: 35307865 | H119: 37083854 | I119: 2002 | J119: 0 | L119: 420911 | M119: 546479 | N119: 718408 | O119: 609420 | P119: 893293 | Q119: 420911 | R119: 546479 | S119: 718408 | T119: 609420 | U119: 893293 | V119: 0.0141 | W119: 0.0176 | X119: 0.0222 | Y119: 0.018 | Z119: 0.0253 | AB119: 0.0218 | AC119: 0.0193 | AE119: 0.0253 | AF119: 0.0201 | AG119: 0.0052 | AI119: 0.0218 | AJ119: 808428
A120: 111 | B120: GRANBY | C120: 9330064 | D120: 9689236 | E120: 10075291 | F120: 10481037 | G120: 10946478 | H120: 11354129 | I120: 0 | J120: 0 | L120: 125920 | M120: 143824 | N120: 153863 | O120: 203415 | P120: 103989 | Q120: 125920 | R120: 143824 | S120: 153863 | T120: 203415 | U120: 103989 | V120: 0.0135 | W120: 0.0148 | X120: 0.0153 | Y120: 0.0194 | Z120: 0.0095 | AB120: 0.0147 | AC120: 0.0132 | AE120: 0.0194 | AF120: 0.0124 | AG120: 0.007 | AI120: 0.0147 | AJ120: 166906
A121: 112 | B121: GRANVILLE | C121: 2855584 | D121: 2958230 | E121: 3074796 | F121: 3167565 | G121: 3261763 | H121: 3402034 | I121: 0 | J121: 0 | L121: 31256 | M121: 42610 | N121: 15899 | O121: 15009 | P121: 58727 | Q121: 31256 | R121: 42610 | S121: 15899 | T121: 15009 | U121: 58727 | V121: 0.0109 | W121: 0.0144 | X121: 0.0052 | Y121: 0.0047 | Z121: 0.018 | AB121: 0.0093 | AC121: 0.0081 | AE121: 0.018 | AF121: 0.005 | AG121: 0.013 | AI121: 0.0093 | AJ121: 31639
A122: 113 | B122: GREAT BARRINGT | C122: 19125974 | D122: 19847630 | E122: 20877814 | F122: 21717815 | G122: 22803152 | H122: 23576289 | I122: 0 | J122: 0 | L122: 243507 | M122: 533993 | N122: 318056 | O122: 542392 | P122: 194274 | Q122: 243507 | R122: 533993 | S122: 318056 | T122: 542392 | U122: 194274 | V122: 0.0127 | W122: 0.0269 | X122: 0.0152 | Y122: 0.025 | Z122: 0.0085 | AB122: 0.0162 | AC122: 0.0162 | AE122: 0.025 | AF122: 0.0119 | AG122: 0.0131 | AI122: 0.0162 | AJ122: 381936
A123: 114 | B123: GREENFIELD | C123: 29088817 | D123: 30219063 | E123: 31550523 | F123: 33175019 | G123: 34278055 | H123: 35435096 | I123: 2006 | J123: 0 | L123: 403026 | M123: 575983 | N123: 835733 | O123: 273661 | P123: 292164 | Q123: 403026 | R123: 575983 | S123: 835733 | T123: 273661 | U123: 292164 | V123: 0.0139 | W123: 0.0191 | X123: 0.0265 | Y123: 0.0082 | Z123: 0.0085 | AB123: 0.0144 | AC123: 0.0119 | AE123: 0.0265 | AF123: 0.0084 | AG123: 0.0181 | AI123: 0.0144 | AJ123: 510265
A124: 115 | B124: GROTON | C124: 23181809 | D124: 24138372 | E124: 25187945 | F124: 26322587 | G124: 27536957 | H124: 28741001 | I124: 2003 | J124: 0 | L124: 377018 | M124: 446114 | N124: 504944 | O124: 556305 | P124: 515620 | Q124: 377018 | R124: 446114 | S124: 504944 | T124: 556305 | U124: 515620 | V124: 0.0163 | W124: 0.0185 | X124: 0.02 | Y124: 0.0211 | Z124: 0.0187 | AB124: 0.0199 | AC124: 0.0191 | AE124: 0.0211 | AF124: 0.0194 | AG124: 0.0017 | AI124: 0.0199 | AJ124: 571946
A125: 116 | B125: GROVELAND | C125: 10140481 | D125: 10510707 | E125: 10920875 | F125: 11353165 | G125: 11777343 | H125: 12256841 | I125: 1991 | J125: 0 | L125: 116714 | M125: 147401 | N125: 159268 | O125: 140349 | P125: 185065 | Q125: 116714 | R125: 147401 | S125: 159268 | T125: 140349 | U125: 185065 | V125: 0.0115 | W125: 0.014 | X125: 0.0146 | Y125: 0.0124 | Z125: 0.0157 | AB125: 0.0142 | AC125: 0.0137 | AE125: 0.0157 | AF125: 0.0135 | AG125: 0.0022 | AI125: 0.0142 | AJ125: 174047
A126: 117 | B126: HADLEY | C126: 9359333 | D126: 9718621 | E126: 10157691 | F126: 10576297 | G126: 11032660 | H126: 11621843 | I126: 1992 | J126: 0 | L126: 125305 | M126: 194694 | N126: 164664 | O126: 191930 | P126: 294768 | Q126: 125305 | R126: 194694 | S126: 164664 | T126: 191930 | U126: 294768 | V126: 0.0134 | W126: 0.02 | X126: 0.0162 | Y126: 0.0181 | Z126: 0.0267 | AB126: 0.0203 | AC126: 0.0181 | AE126: 0.0267 | AF126: 0.0172 | AG126: 0.0095 | AI126: 0.0203 | AJ126: 235923
A127: 118 | B127: HALIFAX | C127: 13027836 | D127: 13561395 | E127: 14187352 | F127: 14711044 | G127: 15242239 | H127: 15758854 | I127: 0 | J127: 0 | L127: 207863 | M127: 286922 | N127: 169008 | O127: 163419 | P127: 135559 | Q127: 207863 | R127: 286922 | S127: 169008 | T127: 163419 | U127: 135559 | V127: 0.016 | W127: 0.0212 | X127: 0.0119 | Y127: 0.0111 | Z127: 0.0089 | AB127: 0.0106 | AC127: 0.0106 | AE127: 0.0119 | AF127: 0.01 | AG127: 0.0019 | AI127: 0.0106 | AJ127: 167044
A128: 119 | B128: HAMILTON | C128: 17984227 | D128: 18679090 | E128: 19472979 | F128: 20282884 | G128: 20935674 | H128: 21645646 | I128: 1995 | J128: 0 | L128: 245257 | M128: 326912 | N128: 323081 | O128: 145718 | P128: 186580 | Q128: 245257 | R128: 326912 | S128: 323081 | T128: 145718 | U128: 186580 | V128: 0.0136 | W128: 0.0175 | X128: 0.0166 | Y128: 0.0072 | Z128: 0.0089 | AB128: 0.0109 | AC128: 0.0109 | AE128: 0.0166 | AF128: 0.0081 | AG128: 0.0085 | AI128: 0.0109 | AJ128: 235938
A129: 120 | B129: HAMPDEN | C129: 9719362 | D129: 10418493 | E129: 10923139 | F129: 11649278 | G129: 12082323 | H129: 12454681 | I129: 0 | J129: 0 | L129: 456147 | M129: 244184 | N129: 453061 | O129: 141813 | P129: 70300 | Q129: 456147 | R129: 244184 | S129: 453061 | T129: 141813 | U129: 70300 | V129: 0.0469 | W129: 0.0234 | X129: 0.0415 | Y129: 0.0122 | Z129: 0.0058 | AB129: 0.0198 | AC129: 0.0138 | AE129: 0.0415 | AF129: 0.009 | AG129: 0.0325 | AI129: 0.0138 | AJ129: 171875
A130: 121 | B130: HANCOCK | C130: 2056537 | D130: 2117800 | E130: 2180512 | F130: 2281410 | G130: 2348777 | H130: 2410484 | I130: 0 | J130: 0 | L130: 9850 | M130: 9767 | N130: 46385 | O130: 10332 | P130: 2988 | Q130: 9850 | R130: 9767 | S130: 46385 | T130: 10332 | U130: 2988 | V130: 0.0048 | W130: 0.0046 | X130: 0.0213 | Y130: 0.0045 | Z130: 0.0013 | AB130: 0.009 | AC130: 0.0035 | AE130: 0.0213 | AF130: 0.0029 | AG130: 0.0184 | AI130: 0.009 | AJ130: 21694
A131: 122 | B131: HANOVER | C131: 33921736 | D131: 35108968 | E131: 36242613 | F131: 37634174 | G131: 39259975 | H131: 40766305 | I131: 0 | J131: 0 | L131: 339189 | M131: 255920 | N131: 485495 | O131: 684946 | P131: 524831 | Q131: 339189 | R131: 255920 | S131: 485495 | T131: 684946 | U131: 524831 | V131: 0.01 | W131: 0.0073 | X131: 0.0134 | Y131: 0.0182 | Z131: 0.0134 | AB131: 0.015 | AC131: 0.0114 | AE131: 0.0182 | AF131: 0.0134 | AG131: 0.0048 | AI131: 0.015 | AJ131: 611495
A132: 123 | B132: HANSON | C132: 15915972 | D132: 16687712 | E132: 17577942 | F132: 18408023 | G132: 19298027 | H132: 20106487 | I132: 2011 | J132: 0 | L132: 373841 | M132: 473037 | N132: 390633 | O132: 429803 | P132: 326009 | Q132: 373841 | R132: 473037 | S132: 390633 | T132: 429803 | U132: 326009 | V132: 0.0235 | W132: 0.0283 | X132: 0.0222 | Y132: 0.0233 | Z132: 0.0169 | AB132: 0.0208 | AC132: 0.0208 | AE132: 0.0233 | AF132: 0.0196 | AG132: 0.0037 | AI132: 0.0208 | AJ132: 418215
A133: 124 | B133: HARDWICK | C133: 3439606 | D133: 3569620 | E133: 3677514 | F133: 3811640 | G133: 3945989 | H133: 4101377 | I133: 0 | J133: 0 | L133: 44024 | M133: 18653 | N133: 40289 | O133: 39058 | P133: 56738 | Q133: 44024 | R133: 18653 | S133: 40289 | T133: 39058 | U133: 56738 | V133: 0.0128 | W133: 0.0052 | X133: 0.011 | Y133: 0.0102 | Z133: 0.0144 | AB133: 0.0119 | AC133: 0.0088 | AE133: 0.0144 | AF133: 0.0106 | AG133: 0.0038 | AI133: 0.0119 | AJ133: 48806
A134: 125 | B134: HARVARD | C134: 14037606 | D134: 14547998 | E134: 15045476 | F134: 15580418 | G134: 16151484 | H134: 16667075 | I134: 1993 | J134: 0 | L134: 159451 | M134: 133779 | N134: 158805 | O134: 181556 | P134: 111804 | Q134: 159451 | R134: 133779 | S134: 158805 | T134: 181556 | U134: 111804 | V134: 0.0114 | W134: 0.0092 | X134: 0.0106 | Y134: 0.0117 | Z134: 0.0069 | AB134: 0.0097 | AC134: 0.0089 | AE134: 0.0117 | AF134: 0.0088 | AG134: 0.0029 | AI134: 0.0097 | AJ134: 161671
A135: 126 | B135: HARWICH | C135: 34898040 | D135: 36237130 | E135: 37477829 | F135: 38782332 | G135: 40145509 | H135: 41490683 | I135: 2011 | J135: 0 | L135: 466639 | M135: 334771 | N135: 366280 | O135: 393619 | P135: 341536 | Q135: 466639 | R135: 334771 | S135: 366280 | T135: 393619 | U135: 341536 | V135: 0.0134 | W135: 0.0092 | X135: 0.0098 | Y135: 0.0101 | Z135: 0.0085 | AB135: 0.0095 | AC135: 0.0092 | AE135: 0.0101 | AF135: 0.0092 | AG135: 0.0009 | AI135: 0.0095 | AJ135: 394161
A136: 127 | B136: HATFIELD | C136: 6309300 | D136: 6530228 | E136: 6777232 | F136: 7034699 | G136: 7276362 | H136: 7623786 | I136: 1991 | J136: 0 | L136: 63195 | M136: 83749 | N136: 88036 | O136: 65796 | P136: 165515 | Q136: 63195 | R136: 83749 | S136: 88036 | T136: 65796 | U136: 165515 | V136: 0.01 | W136: 0.0128 | X136: 0.013 | Y136: 0.0094 | Z136: 0.0227 | AB136: 0.015 | AC136: 0.0117 | AE136: 0.0227 | AF136: 0.0112 | AG136: 0.0115 | AI136: 0.015 | AJ136: 114357
A137: 128 | B137: HAVERHILL | C137: 90829283 | D137: 94194099 | E137: 97948608 | F137: 101846990 | G137: 105856629 | H137: 110211975 | I137: 2003 | J137: 0 | L137: 1094084 | M137: 1399657 | N137: 1449667 | O137: 1463464 | P137: 1708930 | Q137: 1094084 | R137: 1399657 | S137: 1449667 | T137: 1463464 | U137: 1708930 | V137: 0.012 | W137: 0.0149 | X137: 0.0148 | Y137: 0.0144 | Z137: 0.0161 | AB137: 0.0151 | AC137: 0.0147 | AE137: 0.0161 | AF137: 0.0146 | AG137: 0.0015 | AI137: 0.0151 | AJ137: 1664201
A138: 129 | B138: HAWLEY | C138: 787923 | D138: 820658 | E138: 851138 | F138: 883598 | G138: 916486 | H138: 949471 | I138: 1991 | J138: 0 | L138: 13037 | M138: 9964 | N138: 11182 | O138: 10798 | P138: 10073 | Q138: 13037 | R138: 9964 | S138: 11182 | T138: 10798 | U138: 10073 | V138: 0.0165 | W138: 0.0121 | X138: 0.0131 | Y138: 0.0122 | Z138: 0.011 | AB138: 0.0121 | AC138: 0.0118 | AE138: 0.0131 | AF138: 0.0116 | AG138: 0.0015 | AI138: 0.0121 | AJ138: 11489
A139: 130 | B139: HEATH | C139: 1907474 | D139: 2007125 | E139: 2084464 | F139: 2062326 | G139: 2058608 | H139: 2067685 | I139: 1995 | J139: 0 | L139: 51965 | M139: 28228 | N139: 10700 | O139: 3365 | P139: 22570 | Q139: 51965 | R139: 28228 | S139: 10700 | T139: 3365 | U139: 22570 | V139: 0.0272 | W139: 0.0141 | X139: 0.0051 | Y139: 0.0016 | Z139: 0.011 | AB139: 0.0059 | AC139: 0.0059 | AE139: 0.011 | AF139: 0.0034 | AG139: 0.0076 | AI139: 0.0059 | AJ139: 12199
A140: 131 | B140: HINGHAM | C140: 65889390 | D140: 68715119 | E140: 71019296 | F140: 73331307 | G140: 76169172 | H140: 79423977 | I140: 0 | J140: 0 | L140: 1178494 | M140: 586299 | N140: 536529 | O140: 1004583 | P140: 1350576 | Q140: 1178494 | R140: 586299 | S140: 536529 | T140: 1004583 | U140: 1350576 | V140: 0.0179 | W140: 0.0085 | X140: 0.0076 | Y140: 0.0137 | Z140: 0.0177 | AB140: 0.013 | AC140: 0.0099 | AE140: 0.0177 | AF140: 0.0107 | AG140: 0.007 | AI140: 0.013 | AJ140: 1032512
A141: 132 | B141: HINSDALE | C141: 4136791 | D141: 4277270 | E141: 4411000 | F141: 4600942 | G141: 4765580 | H141: 4983986 | I141: 0 | J141: 0 | L141: 37059 | M141: 26798 | N141: 79667 | O141: 49614 | P141: 99266 | Q141: 37059 | R141: 26798 | S141: 79667 | T141: 49614 | U141: 99266 | V141: 0.009 | W141: 0.0063 | X141: 0.0181 | Y141: 0.0108 | Z141: 0.0208 | AB141: 0.0166 | AC141: 0.0117 | AE141: 0.0208 | AF141: 0.0145 | AG141: 0.0063 | AI141: 0.0166 | AJ141: 82734
A142: 133 | B142: HOLBROOK | C142: 18510496 | D142: 19195012 | E142: 19991275 | F142: 20856620 | G142: 21697680 | H142: 22532031 | I142: 1991 | J142: 0 | L142: 219779 | M142: 316387 | N142: 360698 | O142: 319645 | P142: 291909 | Q142: 219779 | R142: 316387 | S142: 360698 | T142: 319645 | U142: 291909 | V142: 0.0119 | W142: 0.0165 | X142: 0.018 | Y142: 0.0153 | Z142: 0.0135 | AB142: 0.0156 | AC142: 0.0151 | AE142: 0.018 | AF142: 0.0144 | AG142: 0.0036 | AI142: 0.0156 | AJ142: 351500
A143: 134 | B143: HOLDEN | C143: 31677475 | D143: 33258322 | E143: 34780209 | F143: 36468157 | G143: 38179514 | H143: 39897093 | I143: 1991 | J143: 0 | L143: 788910 | M143: 690429 | N143: 818443 | O143: 799653 | P143: 763091 | Q143: 788910 | R143: 690429 | S143: 818443 | T143: 799653 | U143: 763091 | V143: 0.0249 | W143: 0.0208 | X143: 0.0235 | Y143: 0.0219 | Z143: 0.02 | AB143: 0.0218 | AC143: 0.0209 | AE143: 0.0235 | AF143: 0.021 | AG143: 0.0025 | AI143: 0.0218 | AJ143: 869757
A144: 135 | B144: HOLLAND | C144: 4316878 | D144: 4487481 | E144: 4645995 | F144: 4807807 | G144: 4976663 | H144: 5160183 | I144: 2009 | J144: 0 | L144: 62031 | M144: 46327 | N144: 43570 | O144: 47037 | P144: 59104 | Q144: 62031 | R144: 46327 | S144: 43570 | T144: 47037 | U144: 59104 | V144: 0.0144 | W144: 0.0103 | X144: 0.0094 | Y144: 0.0098 | Z144: 0.0119 | AB144: 0.0104 | AC144: 0.0098 | AE144: 0.0119 | AF144: 0.0096 | AG144: 0.0023 | AI144: 0.0104 | AJ144: 53666
A145: 136 | B145: HOLLISTON | C145: 34318250 | D145: 36037552 | E145: 37695559 | F145: 39593837 | G145: 41546606 | H145: 43275822 | I145: 1992 | J145: 0 | L145: 850223 | M145: 757068 | N145: 932198 | O145: 962923 | P145: 769038 | Q145: 850223 | R145: 757068 | S145: 932198 | T145: 962923 | U145: 769038 | V145: 0.0248 | W145: 0.021 | X145: 0.0247 | Y145: 0.0243 | Z145: 0.0185 | AB145: 0.0225 | AC145: 0.0213 | AE145: 0.0247 | AF145: 0.0214 | AG145: 0.0033 | AI145: 0.0225 | AJ145: 973706
A146: 137 | B146: HOLYOKE | C146: 51236193 | D146: 51422961 | E146: 52231403 | F146: 52427035 | G146: 53918766 | H146: 56039874 | I146: 0 | J146: 0 | L146: 420504 | M146: 320793 | N146: 518516 | O146: 407348 | P146: 1219156 | Q146: 420504 | R146: 320793 | S146: 518516 | T146: 407348 | U146: 1219156 | V146: 0.0082 | W146: 0.0062 | X146: 0.0099 | Y146: 0.0078 | Z146: 0.0226 | AB146: 0.0134 | AC146: 0.008 | AE146: 0.0226 | AF146: 0.0089 | AG146: 0.0137 | AI146: 0.0134 | AJ146: 722511
A147: 138 | B147: HOPEDALE | C147: 12375923 | D147: 12802790 | E147: 13345855 | F147: 13802052 | G147: 14339924 | H147: 15361867 | I147: 1991 | J147: 0 | L147: 117469 | M147: 222995 | N147: 118581 | O147: 192821 | P147: 233445 | Q147: 117469 | R147: 222995 | S147: 118581 | T147: 192821 | U147: 233445 | V147: 0.0095 | W147: 0.0174 | X147: 0.0089 | Y147: 0.014 | Z147: 0.0163 | AB147: 0.0131 | AC147: 0.0131 | AE147: 0.0163 | AF147: 0.0115 | AG147: 0.0048 | AI147: 0.0131 | AJ147: 201240
A148: 139 | B148: HOPKINTON | C148: 45712397 | D148: 48397350 | E148: 51742794 | F148: 54326021 | G148: 57907756 | H148: 0 | I148: 2000 | J148: 0 | L148: 1542143 | M148: 2135510 | N148: 2789465 | O148: 2219652 | P148: 2316574 | Q148: 1542143 | R148: 2135510 | S148: 2789465 | T148: 2219652 | U148: 2316574 | V148: 0.0337 | W148: 0.0441 | X148: 0.0539 | Y148: 0.0409 | Z148: 0.04 | AB148: 0.0449 | AC148: 0.0417 | AE148: 0.0539 | AF148: 0.0405 | AG148: 0.0134 | AI148: 0.0449 | AJ148: 2781802
A149: 140 | B149: HUBBARDSTON | C149: 6026187 | D149: 6267018 | E149: 6518127 | F149: 6774154 | G149: 7032910 | H149: 7273006 | I149: 2002 | J149: 0 | L149: 90176 | M149: 94434 | N149: 93074 | O149: 89402 | P149: 64273 | Q149: 90176 | R149: 94434 | S149: 93074 | T149: 89402 | U149: 64273 | V149: 0.015 | W149: 0.0151 | X149: 0.0143 | Y149: 0.0132 | Z149: 0.0091 | AB149: 0.0122 | AC149: 0.0122 | AE149: 0.0143 | AF149: 0.0112 | AG149: 0.0031 | AI149: 0.0122 | AJ149: 88731
A150: 141 | B150: HUDSON | C150: 41955423 | D150: 43753564 | E150: 45896901 | F150: 47803174 | G150: 49897596 | H150: 51902188 | I150: 1994 | J150: 0 | L150: 749255 | M150: 1049498 | N150: 758850 | O150: 899343 | P150: 757152 | Q150: 749255 | R150: 1049498 | S150: 758850 | T150: 899343 | U150: 757152 | V150: 0.0179 | W150: 0.024 | X150: 0.0165 | Y150: 0.0188 | Z150: 0.0152 | AB150: 0.0168 | AC150: 0.0168 | AE150: 0.0188 | AF150: 0.0159 | AG150: 0.0029 | AI150: 0.0168 | AJ150: 871957
A151: 142 | B151: HULL | C151: 25520418 | D151: 26286223 | E151: 27146406 | F151: 28040403 | G151: 28951146 | H151: 29976106 | I151: 1992 | J151: 0 | L151: 127795 | M151: 203027 | N151: 215337 | O151: 209733 | P151: 301181 | Q151: 127795 | R151: 203027 | S151: 215337 | T151: 209733 | U151: 301181 | V151: 0.005 | W151: 0.0077 | X151: 0.0079 | Y151: 0.0075 | Z151: 0.0104 | AB151: 0.0086 | AC151: 0.0077 | AE151: 0.0104 | AF151: 0.0077 | AG151: 0.0027 | AI151: 0.0086 | AJ151: 257795
A152: 143 | B152: HUNTINGTON | C152: 3024501 | D152: 3113221 | E152: 3228495 | F152: 3324121 | G152: 3421189 | H152: 3559687 | I152: 2013 | J152: 0 | L152: 13108 | M152: 37443 | N152: 14914 | O152: 13965 | P152: 52968 | Q152: 13108 | R152: 37443 | S152: 14914 | T152: 13965 | U152: 52968 | V152: 0.0043 | W152: 0.012 | X152: 0.0046 | Y152: 0.0042 | Z152: 0.0155 | AB152: 0.0081 | AC152: 0.0069 | AE152: 0.0155 | AF152: 0.0044 | AG152: 0.0111 | AI152: 0.0081 | AJ152: 28833
A153: 144 | B153: IPSWICH | C153: 29723896 | D153: 30833571 | E153: 32151255 | F153: 33256900 | G153: 34444947 | H153: 35583750 | I153: 1991 | J153: 0 | L153: 366577 | M153: 546845 | N153: 301864 | O153: 356624 | P153: 277679 | Q153: 366577 | R153: 546845 | S153: 301864 | T153: 356624 | U153: 277679 | V153: 0.0123 | W153: 0.0177 | X153: 0.0094 | Y153: 0.0107 | Z153: 0.0081 | AB153: 0.0094 | AC153: 0.0094 | AE153: 0.0107 | AF153: 0.0088 | AG153: 0.0019 | AI153: 0.0094 | AJ153: 334487
A154: 145 | B154: KINGSTON | C154: 25445146 | D154: 26662726 | E154: 27960783 | F154: 29786464 | G154: 30901535 | H154: 32106154 | I154: 0 | J154: 0 | L154: 581451 | M154: 631489 | N154: 1126662 | O154: 370410 | P154: 439025 | Q154: 581451 | R154: 631489 | S154: 1126662 | T154: 370410 | U154: 439025 | V154: 0.0229 | W154: 0.0237 | X154: 0.0403 | Y154: 0.0124 | Z154: 0.0142 | AB154: 0.0223 | AC154: 0.0168 | AE154: 0.0403 | AF154: 0.0133 | AG154: 0.027 | AI154: 0.0168 | AJ154: 539383
A155: 146 | B155: LAKEVILLE | C155: 15880947 | D155: 16617996 | E155: 17258380 | F155: 18005858 | G155: 18782364 | H155: 19656669 | I155: 2013 | J155: 0 | L155: 340026 | M155: 224934 | N155: 316018 | O155: 326359 | P155: 404745 | Q155: 340026 | R155: 224934 | S155: 316018 | T155: 326359 | U155: 404745 | V155: 0.0214 | W155: 0.0135 | X155: 0.0183 | Y155: 0.0181 | Z155: 0.0215 | AB155: 0.0193 | AC155: 0.0166 | AE155: 0.0215 | AF155: 0.0182 | AG155: 0.0033 | AI155: 0.0193 | AJ155: 379374
A156: 147 | B156: LANCASTER | C156: 11904573 | D156: 12395242 | E156: 13026175 | F156: 13523195 | G156: 14109456 | H156: 15064170 | I156: 2000 | J156: 0 | L156: 193054 | M156: 321052 | N156: 171366 | O156: 248181 | P156: 601978 | Q156: 193054 | R156: 321052 | S156: 171366 | T156: 248181 | U156: 601978 | V156: 0.0162 | W156: 0.0259 | X156: 0.0132 | Y156: 0.0184 | Z156: 0.0427 | AB156: 0.0248 | AC156: 0.0192 | AE156: 0.0427 | AF156: 0.0158 | AG156: 0.0269 | AI156: 0.0192 | AJ156: 289232
A157: 148 | B157: LANESBOROUGH | C157: 7573102 | D157: 7823529 | E157: 8079420 | F157: 8343686 | G157: 8618973 | H157: 9002151 | I157: 0 | J157: 0 | L157: 61099 | M157: 60303 | N157: 62280 | O157: 66695 | P157: 167704 | Q157: 61099 | R157: 60303 | S157: 62280 | T157: 66695 | U157: 167704 | V157: 0.0081 | W157: 0.0077 | X157: 0.0077 | Y157: 0.008 | Z157: 0.0195 | AB157: 0.0117 | AC157: 0.0078 | AE157: 0.0195 | AF157: 0.0079 | AG157: 0.0116 | AI157: 0.0117 | AJ157: 105325
A158: 149 | B158: LAWRENCE | C158: 60555260 | D158: 63711774 | E158: 67210871 | F158: 70661377 | G158: 74107308 | H158: 80249851 | I158: 0 | J158: 0 | L158: 1642632 | M158: 1883729 | N158: 1749216 | O158: 1674238 | P158: 4270706 | Q158: 1642632 | R158: 1883729 | S158: 1749216 | T158: 1674238 | U158: 4270706 | V158: 0.0271 | W158: 0.0296 | X158: 0.026 | Y158: 0.0237 | Z158: 0.0576 | AB158: 0.0358 | AC158: 0.0264 | AE158: 0.0576 | AF158: 0.0249 | AG158: 0.0327 | AI158: 0.0264 | AJ158: 2118596
A159: 150 | B159: LEE | C159: 13398385 | D159: 13915178 | E159: 14417880 | F159: 14987659 | G159: 15602526 | H159: 16278394 | I159: 1991 | J159: 0 | L159: 181173 | M159: 154823 | N159: 209332 | O159: 240175 | P159: 285805 | Q159: 181173 | R159: 154823 | S159: 209332 | T159: 240175 | U159: 285805 | V159: 0.0135 | W159: 0.0111 | X159: 0.0145 | Y159: 0.016 | Z159: 0.0183 | AB159: 0.0163 | AC159: 0.0139 | AE159: 0.0183 | AF159: 0.0153 | AG159: 0.003 | AI159: 0.0163 | AJ159: 265338
A160: 151 | B160: LEICESTER | C160: 12449284 | D160: 12980784 | E160: 13469075 | F160: 14001857 | G160: 14615965 | H160: 15292785 | I160: 0 | J160: 0 | L160: 220268 | M160: 163771 | N160: 196055 | O160: 264062 | P160: 311421 | Q160: 220268 | R160: 163771 | S160: 196055 | T160: 264062 | U160: 311421 | V160: 0.0177 | W160: 0.0126 | X160: 0.0146 | Y160: 0.0189 | Z160: 0.0213 | AB160: 0.0183 | AC160: 0.0154 | AE160: 0.0213 | AF160: 0.0168 | AG160: 0.0045 | AI160: 0.0183 | AJ160: 279858
A161: 152 | B161: LENOX | C161: 14994894 | D161: 15532903 | E161: 16072857 | F161: 16892223 | G161: 17783155 | H161: 18419626 | I161: 2018 | J161: 0 | L161: 163137 | M161: 151631 | N161: 417545 | O161: 456842 | P161: 191892 | Q161: 163137 | R161: 151631 | S161: 278363 | T161: 456842 | U161: 191892 | V161: 0.0109 | W161: 0.0098 | X161: 0.0173 | Y161: 0.027 | Z161: 0.0108 | AB161: 0.0184 | AC161: 0.0126 | AE161: 0.027 | AF161: 0.0141 | AG161: 0.0129 | AI161: 0.0184 | AJ161: 338921
A162: 153 | B162: LEOMINSTER | C162: 65231774 | D162: 68087327 | E162: 71007742 | F162: 74049153 | G162: 77287086 | H162: 80298856 | I162: 1995 | J162: 0 | L162: 1224759 | M162: 1218232 | N162: 1266217 | O162: 1375155 | P162: 1079593 | Q162: 1224759 | R162: 1218232 | S162: 1266217 | T162: 1375155 | U162: 1079593 | V162: 0.0188 | W162: 0.0179 | X162: 0.0178 | Y162: 0.0186 | Z162: 0.014 | AB162: 0.0168 | AC162: 0.0166 | AE162: 0.0186 | AF162: 0.0159 | AG162: 0.0027 | AI162: 0.0168 | AJ162: 1349021
A163: 154 | B163: LEVERETT | C163: 4375166 | D163: 4522541 | E163: 4697238 | F163: 4876132 | G163: 5083837 | H163: 5296674 | I163: 1991 | J163: 0 | L163: 37995 | M163: 61634 | N163: 61463 | O163: 85802 | P163: 85741 | Q163: 37995 | R163: 61634 | S163: 61463 | T163: 85802 | U163: 85741 | V163: 0.0087 | W163: 0.0136 | X163: 0.0131 | Y163: 0.0176 | Z163: 0.0169 | AB163: 0.0159 | AC163: 0.0145 | AE163: 0.0176 | AF163: 0.015 | AG163: 0.0026 | AI163: 0.0159 | AJ163: 84217
A164: 155 | B164: LEXINGTON | C164: 129101885 | D164: 135104579 | E164: 141804255 | F164: 148706496 | G164: 155730639 | H164: 163232408 | I164: 1991 | J164: 0 | L164: 2672134 | M164: 3309344 | N164: 3357135 | O164: 3270004 | P164: 3608503 | Q164: 2672134 | R164: 3309344 | S164: 3357135 | T164: 3270004 | U164: 3608503 | V164: 0.0207 | W164: 0.0245 | X164: 0.0237 | Y164: 0.022 | Z164: 0.0232 | AB164: 0.023 | AC164: 0.023 | AE164: 0.0237 | AF164: 0.0226 | AG164: 0.0011 | AI164: 0.023 | AJ164: 3754345
A165: 156 | B165: LEYDEN | C165: 1672733 | D165: 1721853 | E165: 1771804 | F165: 1820724 | G165: 1878027 | H165: 1932264 | I165: 1991 | J165: 0 | L165: 7302 | M165: 6905 | N165: 4625 | O165: 11785 | P165: 7286 | Q165: 7302 | R165: 6905 | S165: 4625 | T165: 11785 | U165: 7286 | V165: 0.0044 | W165: 0.004 | X165: 0.0026 | Y165: 0.0065 | Z165: 0.0039 | AB165: 0.0043 | AC165: 0.0035 | AE165: 0.0065 | AF165: 0.0033 | AG165: 0.0032 | AI165: 0.0043 | AJ165: 8309
A166: 157 | B166: LINCOLN | C166: 22073141 | D166: 22912242 | E166: 23823983 | F166: 24580535 | G166: 25224589 | H166: 25937914 | I166: 1996 | J166: 0 | L166: 287273 | M166: 338935 | N166: 160953 | O166: 29541 | P166: 82710 | Q166: 287273 | R166: 338935 | S166: 160953 | T166: 29541 | U166: 82710 | V166: 0.013 | W166: 0.0148 | X166: 0.0068 | Y166: 0.0012 | Z166: 0.0033 | AB166: 0.0038 | AC166: 0.0038 | AE166: 0.0068 | AF166: 0.0023 | AG166: 0.0045 | AI166: 0.0038 | AJ166: 98564
A167: 158 | B167: LITTLETON | C167: 26559206 | D167: 28472409 | E167: 31286005 | F167: 33270386 | G167: 35938075 | H167: 37973455 | I167: 0 | J167: 0 | L167: 1249222 | M167: 1987105 | N167: 1202231 | O167: 1835455 | P167: 1136928 | Q167: 1249222 | R167: 1987105 | S167: 1202231 | T167: 1835455 | U167: 1136928 | V167: 0.047 | W167: 0.0698 | X167: 0.0384 | Y167: 0.0552 | Z167: 0.0316 | AB167: 0.0417 | AC167: 0.0417 | AE167: 0.0552 | AF167: 0.035 | AG167: 0.0202 | AI167: 0.0417 | AJ167: 1583493
A168: 159 | B168: LONGMEADOW | C168: 37781176 | D168: 38954003 | E168: 40107569 | F168: 41340174 | G168: 42640565 | H168: 44067400 | I168: 1991 | J168: 0 | L168: 228298 | M168: 179716 | N168: 229916 | O168: 266887 | P168: 360075 | Q168: 228298 | R168: 179716 | S168: 229916 | T168: 266887 | U168: 360075 | V168: 0.006 | W168: 0.0046 | X168: 0.0057 | Y168: 0.0065 | Z168: 0.0084 | AB168: 0.0069 | AC168: 0.0056 | AE168: 0.0084 | AF168: 0.0061 | AG168: 0.0023 | AI168: 0.0069 | AJ168: 304065
A169: 160 | B169: LOWELL | C169: 128838969 | D169: 134307160 | E169: 140808634 | F169: 146747545 | G169: 152560490 | H169: 158905239 | I169: 1991 | J169: 0 | L169: 2247217 | M169: 3143795 | N169: 2418695 | O169: 2144212 | P169: 2530737 | Q169: 2247217 | R169: 3143795 | S169: 2418695 | T169: 2144212 | U169: 2530737 | V169: 0.0174 | W169: 0.0234 | X169: 0.0172 | Y169: 0.0146 | Z169: 0.0166 | AB169: 0.0161 | AC169: 0.0161 | AE169: 0.0172 | AF169: 0.0156 | AG169: 0.0016 | AI169: 0.0161 | AJ169: 2558374
A170: 161 | B170: LUDLOW | C170: 35290482 | D170: 36551239 | E170: 37886042 | F170: 39450650 | G170: 41088672 | H170: 42772547 | I170: 0 | J170: 0 | L170: 378495 | M170: 421022 | N170: 617457 | O170: 651756 | P170: 656658 | Q170: 378495 | R170: 421022 | S170: 617457 | T170: 651756 | U170: 656658 | V170: 0.0107 | W170: 0.0115 | X170: 0.0163 | Y170: 0.0165 | Z170: 0.016 | AB170: 0.0163 | AC170: 0.0146 | AE170: 0.0165 | AF170: 0.0162 | AG170: 0.0003 | AI170: 0.0163 | AJ170: 697193
A171: 162 | B171: LUNENBURG | C171: 19013813 | D171: 19850014 | E171: 20835908 | F171: 21838302 | G171: 22856796 | H171: 23794447 | I171: 0 | J171: 0 | L171: 360856 | M171: 487955 | N171: 481496 | O171: 472536 | P171: 366231 | Q171: 360856 | R171: 487955 | S171: 481496 | T171: 472536 | U171: 366231 | V171: 0.019 | W171: 0.0246 | X171: 0.0231 | Y171: 0.0216 | Z171: 0.016 | AB171: 0.0202 | AC171: 0.0202 | AE171: 0.0231 | AF171: 0.0188 | AG171: 0.0043 | AI171: 0.0202 | AJ171: 480648
A172: 163 | B172: LYNN | C172: 112048550 | D172: 117194784 | E172: 121530630 | F172: 126245456 | G172: 131247559 | H172: 136429137 | I172: 1992 | J172: 0 | L172: 2345020 | M172: 1405625 | N172: 1674342 | O172: 1845967 | P172: 1884440 | Q172: 2345020 | R172: 1405625 | S172: 1674342 | T172: 1845967 | U172: 1884440 | V172: 0.0209 | W172: 0.012 | X172: 0.0138 | Y172: 0.0146 | Z172: 0.0144 | AB172: 0.0143 | AC172: 0.0134 | AE172: 0.0146 | AF172: 0.0141 | AG172: 0.0005 | AI172: 0.0143 | AJ172: 1950937
A173: 164 | B173: LYNNFIELD | C173: 30988312 | D173: 32882789 | E173: 34303700 | F173: 35597066 | G173: 36870564 | H173: 38404725 | I173: 1991 | J173: 0 | L173: 1119769 | M173: 598841 | N173: 435773 | O173: 377843 | P173: 612396 | Q173: 1119769 | R173: 598841 | S173: 435773 | T173: 377843 | U173: 612396 | V173: 0.0361 | W173: 0.0182 | X173: 0.0127 | Y173: 0.0106 | Z173: 0.0166 | AB173: 0.0133 | AC173: 0.0133 | AE173: 0.0166 | AF173: 0.0117 | AG173: 0.0049 | AI173: 0.0133 | AJ173: 510783
A174: 165 | B174: MALDEN | C174: 75893339 | D174: 79071792 | E174: 83008386 | F174: 86826081 | G174: 90263355 | H174: 94569307 | I174: 1994 | J174: 0 | L174: 1281120 | M174: 1959799 | N174: 1742485 | O174: 1266622 | P174: 2049368 | Q174: 1281120 | R174: 1959799 | S174: 1742485 | T174: 1266622 | U174: 2049368 | V174: 0.0169 | W174: 0.0248 | X174: 0.021 | Y174: 0.0146 | Z174: 0.0227 | AB174: 0.0194 | AC174: 0.0194 | AE174: 0.0227 | AF174: 0.0178 | AG174: 0.0049 | AI174: 0.0194 | AJ174: 1834645
A175: 166 | B175: MANCHESTER | C175: 18482626 | D175: 19252684 | E175: 20088508 | F175: 20867145 | G175: 21664958 | H175: 22372852 | I175: 1998 | J175: 0 | L175: 307992 | M175: 354507 | N175: 276127 | O175: 276134 | P175: 166271 | Q175: 307992 | R175: 354507 | S175: 276127 | T175: 276134 | U175: 166271 | V175: 0.0167 | W175: 0.0184 | X175: 0.0137 | Y175: 0.0132 | Z175: 0.0077 | AB175: 0.0115 | AC175: 0.0115 | AE175: 0.0137 | AF175: 0.0105 | AG175: 0.0032 | AI175: 0.0115 | AJ175: 257288
A176: 167 | B176: MANSFIELD | C176: 50550594 | D176: 52997225 | E176: 55476985 | F176: 57822467 | G176: 60338710 | H176: 62548558 | I176: 1993 | J176: 0 | L176: 1182866 | M176: 1154830 | N176: 958557 | O176: 1070681 | P176: 701381 | Q176: 1182866 | R176: 1154830 | S176: 958557 | T176: 1070681 | U176: 701381 | V176: 0.0234 | W176: 0.0218 | X176: 0.0173 | Y176: 0.0185 | Z176: 0.0116 | AB176: 0.0158 | AC176: 0.0158 | AE176: 0.0185 | AF176: 0.0145 | AG176: 0.004 | AI176: 0.0158 | AJ176: 988267
A177: 168 | B177: MARBLEHEAD | C177: 47963807 | D177: 49584103 | E177: 51331445 | F177: 52983355 | G177: 54625370 | H177: 56294235 | I177: 2006 | J177: 0 | L177: 421201 | M177: 507739 | N177: 368624 | O177: 317431 | P177: 303231 | Q177: 421201 | R177: 507739 | S177: 368624 | T177: 317431 | U177: 303231 | V177: 0.0088 | W177: 0.0102 | X177: 0.0072 | Y177: 0.006 | Z177: 0.0056 | AB177: 0.0063 | AC177: 0.0063 | AE177: 0.0072 | AF177: 0.0058 | AG177: 0.0014 | AI177: 0.0063 | AJ177: 354654
A178: 169 | B178: MARION | C178: 14379201 | D178: 14884628 | E178: 15433588 | F178: 16033569 | G178: 16606927 | H178: 17620938 | I178: 2005 | J178: 0 | L178: 145947 | M178: 176844 | N178: 214142 | O178: 172518 | P178: 178838 | Q178: 145947 | R178: 176844 | S178: 214142 | T178: 172518 | U178: 178838 | V178: 0.0101 | W178: 0.0119 | X178: 0.0139 | Y178: 0.0108 | Z178: 0.0108 | AB178: 0.0118 | AC178: 0.0112 | AE178: 0.0139 | AF178: 0.0108 | AG178: 0.0031 | AI178: 0.0118 | AJ178: 207927
A179: 170 | B179: MARLBOROUGH | C179: 113153270 | D179: 119963736 | E179: 124710450 | F179: 131259954 | G179: 138028167 | H179: 144113359 | I179: 0 | J179: 0 | L179: 3981634 | M179: 2801390 | N179: 3431743 | O179: 3486714 | P179: 2634488 | Q179: 3981634 | R179: 2801390 | S179: 3431743 | T179: 3486714 | U179: 2634488 | V179: 0.0352 | W179: 0.0234 | X179: 0.0275 | Y179: 0.0266 | Z179: 0.0191 | AB179: 0.0244 | AC179: 0.023 | AE179: 0.0275 | AF179: 0.0229 | AG179: 0.0046 | AI179: 0.0244 | AJ179: 3516366
A180: 171 | B180: MARSHFIELD | C180: 52015146 | D180: 53993189 | E180: 56092990 | F180: 58185898 | G180: 60343478 | H180: 62435562 | I180: 1992 | J180: 0 | L180: 674854 | M180: 742106 | N180: 690583 | O180: 702428 | P180: 583497 | Q180: 674854 | R180: 742106 | S180: 690583 | T180: 702428 | U180: 583497 | V180: 0.013 | W180: 0.0137 | X180: 0.0123 | Y180: 0.0121 | Z180: 0.0097 | AB180: 0.0114 | AC180: 0.0114 | AE180: 0.0123 | AF180: 0.0109 | AG180: 0.0014 | AI180: 0.0114 | AJ180: 711765
A181: 172 | B181: MASHPEE | C181: 40709631 | D181: 42467181 | E181: 44267702 | F181: 46068055 | G181: 48001741 | H181: 49968699 | I181: 0 | J181: 0 | L181: 739809 | M181: 738841 | N181: 693660 | O181: 781985 | P181: 766914 | Q181: 739809 | R181: 738841 | S181: 693660 | T181: 781985 | U181: 766914 | V181: 0.0182 | W181: 0.0174 | X181: 0.0157 | Y181: 0.017 | Z181: 0.016 | AB181: 0.0162 | AC181: 0.0162 | AE181: 0.017 | AF181: 0.0159 | AG181: 0.0011 | AI181: 0.0162 | AJ181: 809493
A182: 173 | B182: MATTAPOISETT | C182: 17115953 | D182: 17837308 | E182: 18531026 | F182: 19244879 | G182: 20041869 | H182: 20842029 | I182: 0 | J182: 0 | L182: 293456 | M182: 212439 | N182: 250577 | O182: 314798 | P182: 299113 | Q182: 293456 | R182: 212439 | S182: 250577 | T182: 314798 | U182: 299113 | V182: 0.0171 | W182: 0.0119 | X182: 0.0135 | Y182: 0.0164 | Z182: 0.0149 | AB182: 0.0149 | AC182: 0.0134 | AE182: 0.0164 | AF182: 0.0142 | AG182: 0.0022 | AI182: 0.0149 | AJ182: 310546
A183: 174 | B183: MAYNARD | C183: 23691534 | D183: 24712599 | E183: 25611047 | F183: 26682292 | G183: 27639329 | H183: 28986815 | I183: 1991 | J183: 0 | L183: 428776 | M183: 280633 | N183: 430968 | O183: 270176 | P183: 656502 | Q183: 428776 | R183: 280633 | S183: 430968 | T183: 270176 | U183: 656502 | V183: 0.0181 | W183: 0.0114 | X183: 0.0168 | Y183: 0.0101 | Z183: 0.0238 | AB183: 0.0169 | AC183: 0.0128 | AE183: 0.0238 | AF183: 0.0135 | AG183: 0.0103 | AI183: 0.0169 | AJ183: 489877
A184: 175 | B184: MEDFIELD | C184: 28785822 | D184: 29884604 | E184: 31065346 | F184: 32226908 | G184: 33405874 | H184: 34793822 | I184: 1995 | J184: 0 | L184: 379136 | M184: 433627 | N184: 384928 | O184: 373294 | P184: 552801 | Q184: 379136 | R184: 433627 | S184: 384928 | T184: 373294 | U184: 552801 | V184: 0.0132 | W184: 0.0145 | X184: 0.0124 | Y184: 0.0116 | Z184: 0.0165 | AB184: 0.0135 | AC184: 0.0128 | AE184: 0.0165 | AF184: 0.012 | AG184: 0.0045 | AI184: 0.0135 | AJ184: 469717
A185: 176 | B185: MEDFORD | C185: 96504325 | D185: 100854325 | E185: 105140200 | F185: 109528185 | G185: 113940518 | H185: 118138663 | I185: 0 | J185: 0 | L185: 1937392 | M185: 1759225 | N185: 1759480 | O185: 1674128 | P185: 1352288 | Q185: 1937392 | R185: 1759225 | S185: 1759480 | T185: 1674128 | U185: 1352288 | V185: 0.0201 | W185: 0.0174 | X185: 0.0167 | Y185: 0.0153 | Z185: 0.0119 | AB185: 0.0146 | AC185: 0.0146 | AE185: 0.0167 | AF185: 0.0136 | AG185: 0.0031 | AI185: 0.0146 | AJ185: 1724824
A186: 177 | B186: MEDWAY | C186: 27705648 | D186: 28914951 | E186: 30122519 | F186: 31557264 | G186: 37189189 | H186: 38635928 | I186: 0 | J186: 0 | L186: 516662 | M186: 484694 | N186: 681683 | O186: 4842993 | P186: 517009 | Q186: 516662 | R186: 484694 | S186: 681683 | T186: 4842993 | U186: 517009 | V186: 0.0186 | W186: 0.0168 | X186: 0.0226 | Y186: 0.1535 | Z186: 0.0139 | AB186: 0.0633 | AC186: 0.0178 | AE186: 0.1535 | AF186: 0.0183 | AG186: 0.1352 | AI186: 0.0178 | AJ186: 687720
A187: 178 | B187: MELROSE | C187: 49487204 | D187: 51414034 | E187: 53426783 | F187: 55368833 | G187: 57521943 | H187: 64738724 | I187: 2007 | J187: 0 | L187: 689650 | M187: 727398 | N187: 606380 | O187: 768889 | P187: 598732 | Q187: 689650 | R187: 727398 | S187: 606380 | T187: 768889 | U187: 598732 | V187: 0.0139 | W187: 0.0141 | X187: 0.0113 | Y187: 0.0139 | Z187: 0.0104 | AB187: 0.0119 | AC187: 0.0119 | AE187: 0.0139 | AF187: 0.0109 | AG187: 0.003 | AI187: 0.0119 | AJ187: 770391
A188: 179 | B188: MENDON | C188: 10218075 | D188: 10751363 | E188: 11202563 | F188: 11863359 | G188: 12521680 | H188: 13093429 | I188: 2014 | J188: 0 | L188: 277836 | M188: 182416 | N188: 380732 | O188: 361737 | P188: 258707 | Q188: 277836 | R188: 182416 | S188: 380732 | T188: 361737 | U188: 258707 | V188: 0.0272 | W188: 0.017 | X188: 0.034 | Y188: 0.0305 | Z188: 0.0207 | AB188: 0.0284 | AC188: 0.0227 | AE188: 0.034 | AF188: 0.0256 | AG188: 0.0084 | AI188: 0.0284 | AJ188: 371853
A189: 180 | B189: MERRIMAC | C189: 9091440 | D189: 9471943 | E189: 9908940 | F189: 10376972 | G189: 10864443 | H189: 11229037 | I189: 0 | J189: 0 | L189: 153217 | M189: 200198 | N189: 220308 | O189: 228047 | P189: 92983 | Q189: 153217 | R189: 200198 | S189: 220308 | T189: 228047 | U189: 92983 | V189: 0.0169 | W189: 0.0211 | X189: 0.0222 | Y189: 0.022 | Z189: 0.0086 | AB189: 0.0176 | AC189: 0.0172 | AE189: 0.0222 | AF189: 0.0153 | AG189: 0.0069 | AI189: 0.0176 | AJ189: 197631
A190: 181 | B190: METHUEN | C190: 77798956 | D190: 80592982 | E190: 83578045 | F190: 86698275 | G190: 90014577 | H190: 93348857 | I190: 1991 | J190: 0 | L190: 849052 | M190: 970238 | N190: 1030779 | O190: 1148845 | P190: 1083916 | Q190: 849052 | R190: 970238 | S190: 1030779 | T190: 1148845 | U190: 1083916 | V190: 0.0109 | W190: 0.012 | X190: 0.0123 | Y190: 0.0133 | Z190: 0.012 | AB190: 0.0125 | AC190: 0.0121 | AE190: 0.0133 | AF190: 0.0122 | AG190: 0.0011 | AI190: 0.0125 | AJ190: 1166861
A191: 182 | B191: MIDDLEBOROUGH | C191: 35585189 | D191: 37002975 | E191: 38749307 | F191: 40482738 | G191: 42271292 | H191: 44431811 | I191: 0 | J191: 0 | L191: 528156 | M191: 821258 | N191: 764272 | O191: 767330 | P191: 1103737 | Q191: 528156 | R191: 821258 | S191: 764272 | T191: 767330 | U191: 1103737 | V191: 0.0148 | W191: 0.0222 | X191: 0.0197 | Y191: 0.019 | Z191: 0.0261 | AB191: 0.0216 | AC191: 0.0203 | AE191: 0.0261 | AF191: 0.0194 | AG191: 0.0067 | AI191: 0.0216 | AJ191: 959727
A192: 183 | B192: MIDDLEFIELD | C192: 1260822 | D192: 1300881 | E192: 1341436 | F192: 1378983 | G192: 1423245 | H192: 1463886 | I192: 1991 | J192: 0 | L192: 8538 | M192: 8033 | N192: 4011 | O192: 9787 | P192: 5060 | Q192: 8538 | R192: 8033 | S192: 4011 | T192: 9787 | U192: 5060 | V192: 0.0068 | W192: 0.0062 | X192: 0.003 | Y192: 0.0071 | Z192: 0.0036 | AB192: 0.0046 | AC192: 0.0043 | AE192: 0.0071 | AF192: 0.0033 | AG192: 0.0038 | AI192: 0.0046 | AJ192: 6734
A193: 184 | B193: MIDDLETON | C193: 21697449 | D193: 22759701 | E193: 23800954 | F193: 25068581 | G193: 26268182 | H193: 27689363 | I193: 1991 | J193: 0 | L193: 519816 | M193: 472261 | N193: 672603 | O193: 572886 | P193: 764477 | Q193: 519816 | R193: 472261 | S193: 672603 | T193: 572886 | U193: 764477 | V193: 0.024 | W193: 0.0207 | X193: 0.0283 | Y193: 0.0229 | Z193: 0.0291 | AB193: 0.0268 | AC193: 0.024 | AE193: 0.0291 | AF193: 0.0256 | AG193: 0.0035 | AI193: 0.0268 | AJ193: 742075
A194: 185 | B194: MILFORD | C194: 60593474 | D194: 62894398 | E194: 65383458 | F194: 67893461 | G194: 70897896 | H194: 73699324 | I194: 2004 | J194: 0 | L194: 786087 | M194: 904316 | N194: 875417 | O194: 1307098 | P194: 1029887 | Q194: 786087 | R194: 904316 | S194: 875417 | T194: 1307098 | U194: 1029887 | V194: 0.013 | W194: 0.0144 | X194: 0.0134 | Y194: 0.0193 | Z194: 0.0145 | AB194: 0.0157 | AC194: 0.0141 | AE194: 0.0193 | AF194: 0.014 | AG194: 0.0053 | AI194: 0.0157 | AJ194: 1157079
A195: 186 | B195: MILLBURY | C195: 20747347 | D195: 21667181 | E195: 22934431 | F195: 24012723 | G195: 25332451 | H195: 26788885 | I195: 0 | J195: 0 | L195: 401150 | M195: 725570 | N195: 504931 | O195: 719410 | P195: 823123 | Q195: 401150 | R195: 725570 | S195: 504931 | T195: 719410 | U195: 823123 | V195: 0.0193 | W195: 0.0335 | X195: 0.022 | Y195: 0.03 | Z195: 0.0325 | AB195: 0.0282 | AC195: 0.0282 | AE195: 0.0325 | AF195: 0.026 | AG195: 0.0065 | AI195: 0.0282 | AJ195: 755447
A196: 187 | B196: MILLIS | C196: 14468964 | D196: 15128450 | E196: 15974020 | F196: 16838769 | G196: 17911968 | H196: 19041464 | I196: 2003 | J196: 0 | L196: 297761 | M196: 467359 | N196: 465398 | O196: 652230 | P196: 681697 | Q196: 297761 | R196: 467359 | S196: 465398 | T196: 652230 | U196: 681697 | V196: 0.0206 | W196: 0.0309 | X196: 0.0291 | Y196: 0.0387 | Z196: 0.0381 | AB196: 0.0353 | AC196: 0.0327 | AE196: 0.0387 | AF196: 0.0336 | AG196: 0.0051 | AI196: 0.0353 | AJ196: 672164
A197: 188 | B197: MILLVILLE | C197: 4211865 | D197: 4347770 | E197: 4521859 | F197: 4659119 | G197: 4850197 | H197: 5015056 | I197: 1991 | J197: 0 | L197: 30608 | M197: 65395 | N197: 24214 | O197: 66786 | P197: 43604 | Q197: 30608 | R197: 65395 | S197: 24214 | T197: 66786 | U197: 43604 | V197: 0.0073 | W197: 0.015 | X197: 0.0054 | Y197: 0.0143 | Z197: 0.009 | AB197: 0.0096 | AC197: 0.0096 | AE197: 0.0143 | AF197: 0.0072 | AG197: 0.0071 | AI197: 0.0096 | AJ197: 48145
A198: 189 | B198: MILTON | C198: 54555113 | D198: 56655480 | E198: 58756713 | F198: 61038527 | G198: 63462511 | H198: 62709536 | I198: 0 | J198: 0 | L198: 736489 | M198: 684846 | N198: 812896 | O198: 898021 | P198: 797727 | Q198: 736489 | R198: 684846 | S198: 812896 | T198: 898021 | U198: 797727 | V198: 0.0135 | W198: 0.0121 | X198: 0.0138 | Y198: 0.0147 | Z198: 0.0126 | AB198: 0.0137 | AC198: 0.0128 | AE198: 0.0147 | AF198: 0.0132 | AG198: 0.0015 | AI198: 0.0137 | AJ198: 859121
A199: 190 | B199: MONROE | C199: 581932 | D199: 598056 | E199: 613522 | F199: 622379 | G199: 639015 | H199: 655693 | I199: 0 | J199: 0 | L199: 1576 | M199: 515 | N199: 1855 | O199: 1077 | P199: 703 | Q199: 1576 | R199: 515 | S199: 1855 | T199: 1077 | U199: 703 | V199: 0.0027 | W199: 0.0009 | X199: 0.003 | Y199: 0.0017 | Z199: 0.0011 | AB199: 0.0019 | AC199: 0.0012 | AE199: 0.003 | AF199: 0.0014 | AG199: 0.0016 | AI199: 0.0019 | AJ199: 1236
A200: 191 | B200: MONSON | C200: 11630619 | D200: 12083872 | E200: 12508994 | F200: 13027613 | G200: 13492214 | H200: 14084185 | I200: 1991 | J200: 0 | L200: 162488 | M200: 123026 | N200: 205894 | O200: 132856 | P200: 253833 | Q200: 162488 | R200: 123026 | S200: 205894 | T200: 132856 | U200: 253833 | V200: 0.014 | W200: 0.0102 | X200: 0.0165 | Y200: 0.0102 | Z200: 0.0188 | AB200: 0.0152 | AC200: 0.0123 | AE200: 0.0188 | AF200: 0.0134 | AG200: 0.0054 | AI200: 0.0152 | AJ200: 214080
A201: 192 | B201: MONTAGUE | C201: 14020056 | D201: 14514877 | E201: 15143147 | F201: 16133116 | G201: 17056517 | H201: 18037588 | I201: 2010 | J201: 0 | L201: 144319 | M201: 265398 | N201: 611390 | O201: 520073 | P201: 564663 | Q201: 144319 | R201: 265398 | S201: 611390 | T201: 520073 | U201: 564663 | V201: 0.0103 | W201: 0.0183 | X201: 0.0404 | Y201: 0.0322 | Z201: 0.0331 | AB201: 0.0352 | AC201: 0.0279 | AE201: 0.0404 | AF201: 0.0327 | AG201: 0.0077 | AI201: 0.0352 | AJ201: 634923
A202: 193 | B202: MONTEREY | C202: 2694274 | D202: 2784941 | E202: 2873936 | F202: 2978977 | G202: 3080282 | H202: 3196706 | I202: 0 | J202: 0 | L202: 23310 | M202: 19371 | N202: 33193 | O202: 26830 | P202: 39417 | Q202: 23310 | R202: 19371 | S202: 33193 | T202: 26830 | U202: 39417 | V202: 0.0087 | W202: 0.007 | X202: 0.0115 | Y202: 0.009 | Z202: 0.0128 | AB202: 0.0111 | AC202: 0.0092 | AE202: 0.0128 | AF202: 0.0103 | AG202: 0.0025 | AI202: 0.0111 | AJ202: 35483
A203: 194 | B203: MONTGOMERY | C203: 1499033 | D203: 1564838 | E203: 1613435 | F203: 1659121 | G203: 1708335 | H203: 1775205 | I203: 1991 | J203: 0 | L203: 28329 | M203: 9476 | N203: 5350 | O203: 7736 | P203: 24162 | Q203: 28329 | R203: 9476 | S203: 5350 | T203: 7736 | U203: 24162 | V203: 0.0189 | W203: 0.0061 | X203: 0.0033 | Y203: 0.0047 | Z203: 0.0141 | AB203: 0.0074 | AC203: 0.0047 | AE203: 0.0141 | AF203: 0.004 | AG203: 0.0101 | AI203: 0.0074 | AJ203: 13137
... 158 more rows

Sheet levy limit base (hidden)
A1: Calculation of Levy Limit Base
A2: 1997-01-21
I4: Estimated
C5: FY2018 | D5: FY2018 | G5: Impact of | H5: FY19 | I5: FY19 Limit | J5: FY20 | L5: Impact of | M5: FY20
C6: Actual | D6: Actual | G6: FY94-FY19 | H6: Limit | I6: for MRGF | J6: Actual | L6: FY94-FY20 | M6: Limit | T6: FY20
C7: Limit Prior | D7: Limit Prior | E7: FY2018 | F7: FY2019 | G7: Overrides | H7: Adjusted | I7: Prior to | J7: Limit Prior | K7: FY20 | L7: Overrides | M7: Adjusted | O7: FY19 | P7: FY21 | R7: Ceiling for | T7: Limit for
C8: to Exclusions | D8: to Exclusions | E8: Overrides | F8: Overrides | G8: In FY19 | H8: For Overrides | I8: Ceiling Check | J8: to Exclusions | K8: Overrides | L8: in FY20 | M8: For Overrides | O8: Levy Ceiling | P8: Levy Ceiling | R8: FY21 MRGF | T8: MRGF
A10: ABINGTON | B10: 1 | C10: 31083749 | D10: 32404381 | E10: 0 | F10: 0 | G10: 811760 | H10: 31592621 | I10: 31592621 | J10: 33620233 | K10: 0 | L10: 832054 | M10: 32788179 | O10: 52381085 | P10: 52381085 | R10: 52381085 | T10: 32788179
A11: ACTON | B11: 2 | C11: 81644435 | D11: 84340154 | E11: 0 | F11: 0 | G11: 9349499 | H11: 74990655 | I11: 74990655 | J11: 87238384 | K11: 0 | L11: 9583236 | M11: 77655148 | O11: 111287539 | P11: 111287539 | R11: 111287539 | T11: 77655148
A12: ACUSHNET | B12: 3 | C12: 16601843 | D12: 17237500 | E12: 0 | F12: 0 | G12: 0 | H12: 17237500 | I12: 17237500 | J12: 18027438 | K12: 0 | L12: 0 | M12: 18027438 | O12: 30364804 | P12: 30364804 | R12: 30364804 | T12: 18027438
A13: ADAMS | B13: 4 | C13: 10984702 | D13: 11356251 | E13: 0 | F13: 0 | G13: 0 | H13: 11356251 | I13: 11356251 | J13: 11708307 | K13: 0 | L13: 0 | M13: 11708307 | O13: 12854673 | P13: 12854673 | R13: 12854673 | T13: 11708307
A14: AGAWAM | B14: 5 | C14: 70533487 | D14: 73038831 | E14: 0 | F14: 0 | G14: 0 | H14: 73038831 | I14: 73038831 | J14: 76081914 | K14: 0 | L14: 0 | M14: 76081914 | O14: 76712052 | P14: 76712052 | R14: 76712052 | T14: 76081914
A15: ALFORD | B15: 6 | C15: 1593842 | D15: 1641470 | E15: 0 | F15: 0 | G15: 0 | H15: 1641470 | I15: 1641470 | J15: 1689068 | K15: 0 | L15: 0 | M15: 1689068 | O15: 6865851 | P15: 6865851 | R15: 6865851 | T15: 1689068
A16: AMESBURY | B16: 7 | C16: 44116384 | D16: 45766634 | E16: 0 | F16: 0 | G16: 0 | H16: 45766634 | I16: 45766634 | J16: 47359518 | K16: 0 | L16: 0 | M16: 47359518 | O16: 57139252 | P16: 57139252 | R16: 57139252 | T16: 47359518
A17: AMHERST | B17: 8 | C17: 50700146 | D17: 52787635 | E17: 0 | F17: 0 | G17: 4754539 | H17: 48033096 | I17: 48033096 | J17: 54963386 | K17: 0 | L17: 4873402 | M17: 50089984 | O17: 60510440 | P17: 60510440 | R17: 60510440 | T17: 50089984
A18: ANDOVER | B18: 9 | C18: 136417582 | D18: 142600951 | E18: 0 | F18: 0 | G18: 0 | H18: 142600951 | I18: 142600951 | J18: 150531622 | K18: 0 | L18: 0 | M18: 150531622 | O18: 208033436 | P18: 208033436 | R18: 208033436 | T18: 150531622
A19: ARLINGTON | B19: 10 | C19: 109965991 | D19: 113696347 | E19: 0 | F19: 0 | G19: 15595743 | H19: 98100604 | I19: 98100604 | J19: 122855373 | K19: 0 | L19: 15985637 | M19: 106869736 | O19: 275335205 | P19: 275335205 | R19: 275335205 | T19: 106869736
A20: ASHBURNHAM | B20: 11 | C20: 12029260 | D20: 12516653 | E20: 475656 | F20: 475656 | G20: 3381046 | H20: 9135607 | I20: 9611263 | J20: 12955141 | K20: 475656 | L20: 3453681 | M20: 9501460 | O20: 15924268 | P20: 15924268 | R20: 15924268 | T20: 9501460
A21: ASHBY | B21: 12 | C21: 5780183 | D21: 5985962 | E21: 0 | F21: 0 | G21: 317222 | H21: 5668740 | I21: 5668740 | J21: 6209856 | K21: 0 | L21: 325153 | M21: 5884703 | O21: 8219710 | P21: 8219710 | R21: 8219710 | T21: 5884703
A22: ASHFIELD | B22: 13 | C22: 3939855 | D22: 4063967 | E22: 0 | F22: 0 | G22: 270772 | H22: 3793195 | I22: 3793195 | J22: 4215661 | K22: 0 | L22: 277541 | M22: 3938120 | O22: 6113646 | P22: 6113646 | R22: 6113646 | T22: 3938120
A23: ASHLAND | B23: 14 | C23: 42081316 | D23: 44426174 | E23: 0 | F23: 0 | G23: 0 | H23: 44426174 | I23: 44426174 | J23: 46224897 | K23: 0 | L23: 0 | M23: 46224897 | O23: 70835880 | P23: 70835880 | R23: 70835880 | T23: 46224897
A24: ATHOL | B24: 15 | C24: 11932928 | D24: 12593058 | E24: 0 | F24: 0 | G24: 1472817 | H24: 11120241 | I24: 11120241 | J24: 13168847 | K24: 0 | L24: 1509637 | M24: 11659210 | O24: 19408876 | P24: 19408876 | R24: 19408876 | T24: 11659210
A25: ATTLEBORO | B25: 16 | C25: 70764061 | D25: 73464173 | E25: 0 | F25: 0 | G25: 0 | H25: 73464173 | I25: 73464173 | J25: 76079548 | K25: 0 | L25: 0 | M25: 76079548 | O25: 121111741 | P25: 121111741 | R25: 121111741 | T25: 76079548
A26: AUBURN | B26: 17 | C26: 43089839 | D26: 44823850 | E26: 0 | F26: 0 | G26: 2713989 | H26: 42109861 | I26: 42109861 | J26: 46875534 | K26: 0 | L26: 2781839 | M26: 44093695 | O26: 53879355 | P26: 53879355 | R26: 53879355 | T26: 44093695
A27: AVON | B27: 18 | C27: 19268191 | D27: 20137740 | E27: 0 | F27: 0 | G27: 1429006 | H27: 18708734 | I27: 18708734 | J27: 21007325 | K27: 0 | L27: 1464731 | M27: 19542594 | O27: 20414414 | P27: 20414414 | R27: 20414414 | T27: 19542594
A28: AYER | B28: 19 | C28: 22809032 | D28: 24119751 | E28: 0 | F28: 0 | G28: 790998 | H28: 23328753 | I28: 23328753 | J28: 25370001 | K28: 0 | L28: 810773 | M28: 24559228 | O28: 30793777 | P28: 30793777 | R28: 30793777 | T28: 24559228
A29: BARNSTABLE | B29: 20 | C29: 116900171 | D29: 121259225 | E29: 0 | F29: 0 | G29: 0 | H29: 121259225 | I29: 121259225 | J29: 125537222 | K29: 0 | L29: 0 | M29: 125537222 | O29: 356395403 | P29: 356395403 | R29: 356395403 | T29: 125537222
A30: BARRE | B30: 21 | C30: 7805228 | D30: 8087275 | E30: 0 | F30: 0 | G30: 0 | H30: 8087275 | I30: 8087275 | J30: 8401060 | K30: 0 | L30: 0 | M30: 8401060 | O30: 11567411 | P30: 11567411 | R30: 11567411 | T30: 8401060
A31: BECKET | B31: 22 | C31: 5781022 | D31: 5970071 | E31: 0 | F31: 0 | G31: 465774 | H31: 5504297 | I31: 5504297 | J31: 6230618 | K31: 0 | L31: 477418 | M31: 5753200 | O31: 12596641 | P31: 12596641 | R31: 12596641 | T31: 5753200
A32: BEDFORD | B32: 23 | C32: 66660425 | D32: 69820484 | E32: 0 | F32: 0 | G32: 0 | H32: 69820484 | I32: 69820484 | J32: 72855273 | K32: 0 | L32: 0 | M32: 72855273 | O32: 98918899 | P32: 98918899 | R32: 98918899 | T32: 72855273
A33: BELCHERTOWN | B33: 24 | C33: 26333465 | D33: 27507359 | E33: 0 | F33: 0 | G33: 0 | H33: 27507359 | I33: 27507359 | J33: 28624718 | K33: 0 | L33: 0 | M33: 28624718 | O33: 37770235 | P33: 37770235 | R33: 37770235 | T33: 28624718
A34: BELLINGHAM | B34: 25 | C34: 37954471 | D34: 39837833 | E34: 0 | F34: 0 | G34: 0 | H34: 39837833 | I34: 39837833 | J34: 41820156 | K34: 0 | L34: 0 | M34: 41820156 | O34: 63508455 | P34: 63508455 | R34: 63508455 | T34: 41820156
A35: BELMONT | B35: 26 | C35: 86086128 | D35: 89250197 | E35: 0 | F35: 0 | G35: 12775439 | H35: 76474758 | I35: 76474758 | J35: 92590154 | K35: 0 | L35: 13094825 | M35: 79495329 | O35: 198666950 | P35: 198666950 | R35: 198666950 | T35: 79495329
A36: BERKLEY | B36: 27 | C36: 9049927 | D36: 9457290 | E36: 0 | F36: 0 | G36: 921231 | H36: 8536059 | I36: 8536059 | J36: 9873799 | K36: 0 | L36: 944262 | M36: 8929537 | O36: 22473067 | P36: 22473067 | R36: 22473067 | T36: 8929537
A37: BERLIN | B37: 28 | C37: 11033857 | D37: 11569324 | E37: 0 | F37: 0 | G37: 20449 | H37: 11548875 | I37: 11548875 | J37: 12072601 | K37: 0 | L37: 20960 | M37: 12051641 | O37: 16004243 | P37: 16004243 | R37: 16004243 | T37: 12051641
A38: BERNARDSTON | B38: 29 | C38: 4202185 | D38: 4355366 | E38: 0 | F38: 0 | G38: 0 | H38: 4355366 | I38: 4355366 | J38: 4570462 | K38: 0 | L38: 0 | M38: 4570462 | O38: 5489427 | P38: 5489427 | R38: 5489427 | T38: 4570462
A39: BEVERLY | B39: 30 | C39: 99407098 | D39: 103596037 | E39: 0 | F39: 0 | G39: 0 | H39: 103596037 | I39: 103596037 | J39: 108035190 | K39: 0 | L39: 0 | M39: 108035190 | O39: 174530948 | P39: 174530948 | R39: 174530948 | T39: 108035190
A40: BILLERICA | B40: 31 | C40: 128919297 | D40: 134931118 | E40: 0 | F40: 0 | G40: 0 | H40: 134931118 | I40: 134931118 | J40: 141531357 | K40: 0 | L40: 0 | M40: 141531357 | O40: 174152488 | P40: 174152488 | R40: 174152488 | T40: 141531357
A41: BLACKSTONE | B41: 32 | C41: 17959202 | D41: 18738701 | E41: 0 | F41: 0 | G41: 0 | H41: 18738701 | I41: 18738701 | J41: 19444909 | K41: 0 | L41: 0 | M41: 19444909 | O41: 24651396 | P41: 24651396 | R41: 24651396 | T41: 19444909
A42: BLANDFORD | B42: 33 | C42: 2858934 | D42: 2962546 | E42: 0 | F42: 0 | G42: 441394 | H42: 2521152 | I42: 2521152 | J42: 3084017 | K42: 0 | L42: 452429 | M42: 2631588 | O42: 4302692 | P42: 4302692 | R42: 4302692 | T42: 2631588
A43: BOLTON | B43: 34 | C43: 19891622 | D43: 20694442 | E43: 0 | F43: 0 | G43: 1546442 | H43: 19148000 | I43: 19148000 | J43: 21577386 | K43: 0 | L43: 1585103 | M43: 19992283 | O43: 26421643 | P43: 26421643 | R43: 26421643 | T43: 19992283
A44: BOSTON | B44: 35 | C44: 2216600850 | D44: 2350783055 | E44: 0 | F44: 0 | G44: 0 | H44: 2350783055 | I44: 2350783055 | J44: 2509114748 | K44: 0 | L44: 0 | M44: 2509114748 | O44: 4112853018 | P44: 4112853018 | R44: 4112853018 | T44: 2509114748
A45: BOURNE | B45: 36 | C45: 45011685 | D45: 46738964 | E45: 0 | F45: 0 | G45: 2480037 | H45: 44258927 | I45: 44258927 | J45: 48442777 | K45: 0 | L45: 2542038 | M45: 45900739 | O45: 119027071 | P45: 119027071 | R45: 119027071 | T45: 45900739
A46: BOXBOROUGH | B46: 37 | C46: 20320009 | D46: 21219522 | E46: 0 | F46: 0 | G46: 1378997 | H46: 19840525 | I46: 19840525 | J46: 21990284 | K46: 0 | L46: 1413472 | M46: 20576812 | O46: 29196842 | P46: 29196842 | R46: 29196842 | T46: 20576812
A47: BOXFORD | B47: 38 | C47: 29022765 | D47: 29975880 | E47: 197318 | F47: 197318 | G47: 6303887 | H47: 23671993 | I47: 23869311 | J47: 30917038 | K47: 197318 | L47: 6456551 | M47: 24460487 | O47: 45588174 | P47: 45588174 | R47: 45588174 | T47: 24460487
A48: BOYLSTON | B48: 39 | C48: 11802490 | D48: 13005293 | E48: 0 | F48: 0 | G48: 1004751 | H48: 12000542 | I48: 12000542 | J48: 13748143 | K48: 0 | L48: 1029870 | M48: 12718273 | O48: 19639160 | P48: 19639160 | R48: 19639160 | T48: 12718273
A49: BRAINTREE | B49: 40 | C49: 89528431 | D49: 92686291 | E49: 0 | F49: 0 | G49: 0 | H49: 92686291 | I49: 92686291 | J49: 96036025 | K49: 0 | L49: 0 | M49: 96036025 | O49: 180183143 | P49: 180183143 | R49: 180183143 | T49: 96036025
A50: BREWSTER | B50: 41 | C50: 30648080 | D50: 31769031 | E50: 0 | F50: 0 | G50: 3951653 | H50: 27817378 | I50: 27817378 | J50: 33179671 | K50: 0 | L50: 4050444 | M50: 29129227 | O50: 98612932 | P50: 98612932 | R50: 98612932 | T50: 29129227
A51: BRIDGEWATER | B51: 42 | C51: 40588392 | D51: 42480624 | E51: 0 | F51: 0 | G51: 3328321 | H51: 39152303 | I51: 39152303 | J51: 44339285 | K51: 0 | L51: 3411529 | M51: 40927756 | O51: 76069508 | P51: 76069508 | R51: 76069508 | T51: 40927756
A52: BRIMFIELD | B52: 43 | C52: 7237714 | D52: 7485472 | E52: 0 | F52: 0 | G52: 0 | H52: 7485472 | I52: 7485472 | J52: 7716005 | K52: 0 | L52: 0 | M52: 7716005 | O52: 10483952 | P52: 10483952 | R52: 10483952 | T52: 7716005
A53: BROCKTON | B53: 44 | C53: 137859951 | D53: 143674763 | E53: 0 | F53: 0 | G53: 0 | H53: 143674763 | I53: 143674763 | J53: 149036481 | K53: 0 | L53: 0 | M53: 149036481 | O53: 196087387 | P53: 196087387 | R53: 196087387 | T53: 149036481
A54: BROOKFIELD | B54: 45 | C54: 5191955 | D54: 5449013 | E54: 0 | F54: 0 | G54: 0 | H54: 5449013 | I54: 5449013 | J54: 5668022 | K54: 0 | L54: 0 | M54: 5668022 | O54: 6974226 | P54: 6974226 | R54: 6974226 | T54: 5668022
A55: BROOKLINE | B55: 46 | C55: 210376535 | D55: 224812701 | E55: 0 | F55: 0 | G55: 21220564 | H55: 203592137 | I55: 197016712 | J55: 233198737 | K55: 0 | L55: 28490889 | M55: 204707848 | O55: 628010210 | P55: 628010210 | R55: 628010210 | T55: 204707848
A56: BUCKLAND | B56: 47 | C56: 3781466 | D56: 3900190 | E56: 0 | F56: 0 | G56: 258471 | H56: 3641719 | I56: 3641719 | J56: 4020485 | K56: 0 | L56: 264933 | M56: 3755552 | O56: 5322888 | P56: 5322888 | R56: 5322888 | T56: 3755552
A57: BURLINGTON | B57: 48 | C57: 117266931 | D57: 123645873 | E57: 0 | F57: 0 | G57: 0 | H57: 123645873 | I57: 123645873 | J57: 130007610 | K57: 0 | L57: 0 | M57: 130007610 | O57: 165319752 | P57: 165319752 | R57: 165319752 | T57: 130007610
A58: CAMBRIDGE | B58: 49 | C58: 570550306 | D58: 599170668 | E58: 0 | F58: 0 | G58: 0 | H58: 599170668 | I58: 599170668 | J58: 628478895 | K58: 0 | L58: 0 | M58: 628478895 | O58: 1224428502 | P58: 1224428502 | R58: 1224428502 | T58: 628478895
A59: CANTON | B59: 50 | C59: 73481199 | D59: 76233465 | E59: 0 | F59: 0 | G59: 5608801 | H59: 70624664 | I59: 70624664 | J59: 79874050 | K59: 0 | L59: 5749021 | M59: 74125029 | O59: 124726827 | P59: 124726827 | R59: 124726827 | T59: 74125029
A60: CARLISLE | B60: 51 | C60: 25902026 | D60: 26812579 | E60: 0 | F60: 0 | G60: 3446639 | H60: 23365940 | I60: 23365940 | J60: 27929053 | K60: 0 | L60: 3532805 | M60: 24396248 | O60: 37704890 | P60: 37704890 | R60: 37704890 | T60: 24396248
A61: CARVER | B61: 52 | C61: 23905837 | D61: 24824537 | E61: 0 | F61: 0 | G61: 0 | H61: 24824537 | I61: 24824537 | J61: 25987764 | K61: 0 | L61: 0 | M61: 25987764 | O61: 34408267 | P61: 34408267 | R61: 34408267 | T61: 25987764
A62: CHARLEMONT | B62: 53 | C62: 2977962 | D62: 3086335 | E62: 0 | F62: 0 | G62: 0 | H62: 3086335 | I62: 3086335 | J62: 3207212 | K62: 0 | L62: 0 | M62: 3207212 | O62: 3493456 | P62: 3493456 | R62: 3493456 | T62: 3207212
A63: CHARLTON | B63: 54 | C63: 19275350 | D63: 21786248 | E63: 0 | F63: 0 | G63: 390828 | H63: 21395420 | I63: 19851765 | J63: 23014009 | K63: 0 | L63: 1982845 | M63: 21031164 | O63: 39636229 | P63: 39636229 | R63: 39636229 | T63: 21031164
A64: CHATHAM | B64: 55 | C64: 29050068 | D64: 30220430 | E64: 0 | F64: 0 | G64: 3216169 | H64: 27004261 | I64: 27004261 | J64: 31457177 | K64: 0 | L64: 3296573 | M64: 28160604 | O64: 176924743 | P64: 176924743 | R64: 176924743 | T64: 28160604
A65: CHELMSFORD | B65: 56 | C65: 93668498 | D65: 97520293 | E65: 0 | F65: 0 | G65: 0 | H65: 97520293 | I65: 97520293 | J65: 101789687 | K65: 0 | L65: 0 | M65: 101789687 | O65: 146436252 | P65: 146436252 | R65: 146436252 | T65: 101789687
A66: CHELSEA | B66: 57 | C66: 54878173 | D66: 57906281 | E66: 0 | F66: 0 | G66: 0 | H66: 57906281 | I66: 57906281 | J66: 61485089 | K66: 0 | L66: 0 | M66: 61485089 | O66: 86918628 | P66: 86918628 | R66: 86918628 | T66: 61485089
A67: CHESHIRE | B67: 58 | C67: 3605741 | D67: 3726319 | E67: 0 | F67: 0 | G67: 215562 | H67: 3510757 | I67: 3510757 | J67: 3834858 | K67: 0 | L67: 220951 | M67: 3613907 | O67: 7902444 | P67: 7902444 | R67: 7902444 | T67: 3613907
A68: CHESTER | B68: 59 | C68: 2686252 | D68: 2763212 | E68: 0 | F68: 0 | G68: 172839 | H68: 2590373 | I68: 2590373 | J68: 2848306 | K68: 0 | L68: 177160 | M68: 2671146 | O68: 2907729 | P68: 2907729 | R68: 2907729 | T68: 2671146
A69: CHESTERFIELD | B69: 60 | C69: 3055865 | D69: 3165362 | E69: 0 | F69: 0 | G69: 0 | H69: 3165362 | I69: 3165362 | J69: 3301345 | K69: 0 | L69: 0 | M69: 3301345 | O69: 3796965 | P69: 3796965 | R69: 3796965 | T69: 3301345
A70: CHICOPEE | B70: 61 | C70: 88297903 | D70: 91689322 | E70: 0 | F70: 0 | G70: 0 | H70: 91689322 | I70: 91689322 | J70: 95030164 | K70: 0 | L70: 0 | M70: 95030164 | O70: 99149314 | P70: 99149314 | R70: 99149314 | T70: 95030164
A71: CHILMARK | B71: 62 | C71: 8337828 | D71: 8804100 | E71: 0 | F71: 0 | G71: 2801936 | H71: 6002164 | I71: 5831027 | J71: 9191547 | K71: 0 | L71: 3047400 | M71: 6144147 | O71: 81906876 | P71: 81906876 | R71: 81906876 | T71: 6144147
A72: CLARKSBURG | B72: 63 | C72: 1868756 | D72: 1924899 | E72: 0 | F72: 0 | G72: 0 | H72: 1924899 | I72: 1924899 | J72: 2018524 | K72: 0 | L72: 0 | M72: 2018524 | O72: 3009326 | P72: 3009326 | R72: 3009326 | T72: 2018524
A73: CLINTON | B73: 64 | C73: 25235019 | D73: 27143889 | E73: 0 | F73: 0 | G73: 1152273 | H73: 25991616 | I73: 25991616 | J73: 28336642 | K73: 0 | L73: 1181080 | M73: 27155562 | O73: 35743616 | P73: 35743616 | R73: 35743616 | T73: 27155562
A74: COHASSET | B74: 65 | C74: 35688027 | D74: 37380305 | E74: 0 | F74: 0 | G74: 2700290 | H74: 34680015 | I74: 34680015 | J74: 38824230 | K74: 0 | L74: 2767797 | M74: 36056433 | O74: 75082896 | P74: 75082896 | R74: 75082896 | T74: 36056433
A75: COLRAIN | B75: 66 | C75: 3473748 | D75: 0 | E75: 0 | F75: 0 | G75: 0 | H75: 0 | I75: 3594737 | J75: 3722805 | K75: 0 | L75: 0 | M75: 3722805 | O75: 0 | P75: 4296757 | R75: 4296757 | T75: 3722805
A76: CONCORD | B76: 67 | C76: 85491022 | D76: 88864251 | E76: 0 | F76: 0 | G76: 12082120 | H76: 76782131 | I76: 76782131 | J76: 92281116 | K76: 0 | L76: 12384173 | M76: 79896943 | O76: 161175838 | P76: 161175838 | R76: 161175838 | T76: 79896943
A77: CONWAY | B77: 68 | C77: 4781522 | D77: 5043351 | E77: 0 | F77: 0 | G77: 266841 | H77: 4776510 | I77: 4776510 | J77: 5251273 | K77: 0 | L77: 273512 | M77: 4977761 | O77: 6589919 | P77: 6589919 | R77: 6589919 | T77: 4977761
A78: CUMMINGTON | B78: 69 | C78: 1869307 | D78: 1933059 | E78: 0 | F78: 0 | G78: 43710 | H78: 1889349 | I78: 1889349 | J78: 2015091 | K78: 0 | L78: 44803 | M78: 1970288 | O78: 3216117 | P78: 3216117 | R78: 3216117 | T78: 1970288
A79: DALTON | B79: 70 | C79: 12035249 | D79: 12481313 | E79: 0 | F79: 0 | G79: 0 | H79: 12481313 | I79: 12481313 | J79: 12984294 | K79: 0 | L79: 0 | M79: 12984294 | O79: 15303100 | P79: 15303100 | R79: 15303100 | T79: 12984294
A80: DANVERS | B80: 71 | C80: 75516164 | D80: 78198964 | E80: 0 | F80: 0 | G80: 0 | H80: 78198964 | I80: 78198964 | J80: 80994021 | K80: 0 | L80: 0 | M80: 80994021 | O80: 129101693 | P80: 129101693 | R80: 129101693 | T80: 80994021
A81: DARTMOUTH | B81: 72 | C81: 59926087 | D81: 61996342 | E81: 0 | F81: 0 | G81: 2649386 | H81: 59346956 | I81: 59346956 | J81: 64280466 | K81: 0 | L81: 2715621 | M81: 61564845 | O81: 145067538 | P81: 145067538 | R81: 145067538 | T81: 61564845
A82: DEDHAM | B82: 73 | C82: 89441008 | D82: 93000263 | E82: 0 | F82: 0 | G82: 0 | H82: 93000263 | I82: 93000263 | J82: 96531276 | K82: 0 | L82: 0 | M82: 96531276 | O82: 127188241 | P82: 127188241 | R82: 127188241 | T82: 96531276
A83: DEERFIELD | B83: 74 | C83: 10459810 | D83: 10913346 | E83: 0 | F83: 0 | G83: 1037271 | H83: 9876075 | I83: 9876075 | J83: 11323488 | K83: 0 | L83: 1063203 | M83: 10260285 | O83: 17892076 | P83: 17892076 | R83: 17892076 | T83: 10260285
A84: DENNIS | B84: 75 | C84: 40989617 | D84: 42279714 | E84: 0 | F84: 0 | G84: 5565069 | H84: 36714645 | I84: 36714645 | J84: 43636887 | K84: 0 | L84: 5704196 | M84: 37932691 | O84: 177100001 | P84: 177100001 | R84: 177100001 | T84: 37932691
A85: DIGHTON | B85: 76 | C85: 16682131 | D85: 17533123 | E85: 0 | F85: 0 | G85: 0 | H85: 17533123 | I85: 17533123 | J85: 18525532 | K85: 0 | L85: 0 | M85: 18525532 | O85: 26466159 | P85: 26466159 | R85: 26466159 | T85: 18525532
A86: DOUGLAS | B86: 77 | C86: 13288266 | D86: 15368085 | E86: 0 | F86: 0 | G86: 177169 | H86: 15190916 | I86: 13690916 | J86: 16153458 | K86: 0 | L86: 1719098 | M86: 14434360 | O86: 25501807 | P86: 25501807 | R86: 25501807 | T86: 14434360
A87: DOVER | B87: 78 | C87: 32012170 | D87: 33319777 | E87: 0 | F87: 0 | G87: 3174116 | H87: 30145661 | I87: 30145661 | J87: 34457446 | K87: 0 | L87: 3253469 | M87: 31203977 | O87: 66505402 | P87: 66505402 | R87: 66505402 | T87: 31203977
A88: DRACUT | B88: 79 | C88: 45512281 | D88: 47461299 | E88: 0 | F88: 0 | G88: 0 | H88: 47461299 | I88: 47461299 | J88: 49198678 | K88: 0 | L88: 0 | M88: 49198678 | O88: 91129725 | P88: 91129725 | R88: 91129725 | T88: 49198678
A89: DUDLEY | B89: 80 | C89: 9793930 | D89: 11820540 | E89: 0 | F89: 0 | G89: 453361 | H89: 11367179 | I89: 9822846 | J89: 12225929 | K89: 0 | L89: 2047636 | M89: 10178293 | O89: 25557768 | P89: 25557768 | R89: 25557768 | T89: 10178293
A90: DUNSTABLE | B90: 81 | C90: 8392642 | D90: 8773072 | E90: 0 | F90: 0 | G90: 1525704 | H90: 7247368 | I90: 7247368 | J90: 9137869 | K90: 0 | L90: 1563847 | M90: 7574022 | O90: 13662222 | P90: 13662222 | R90: 13662222 | T90: 7574022
A91: DUXBURY | B91: 82 | C91: 53293997 | D91: 55206582 | E91: 0 | F91: 0 | G91: 0 | H91: 55206582 | I91: 55206582 | J91: 57123110 | K91: 0 | L91: 0 | M91: 57123110 | O91: 106602127 | P91: 106602127 | R91: 106602127 | T91: 57123110
A92: EAST BRIDGEWAT | B92: 83 | C92: 26351353 | D92: 27320944 | E92: 0 | F92: 0 | G92: 0 | H92: 27320944 | I92: 27320944 | J92: 28364047 | K92: 0 | L92: 0 | M92: 28364047 | O92: 43172593 | P92: 43172593 | R92: 43172593 | T92: 28364047
A93: EAST BROOKFIEL | B93: 84 | C93: 3561821 | D93: 3706310 | E93: 0 | F93: 0 | G93: 0 | H93: 3706310 | I93: 3706310 | J93: 3870757 | K93: 0 | L93: 0 | M93: 3870757 | O93: 6037231 | P93: 6037231 | R93: 6037231 | T93: 3870757
A94: EAST LONGMEADO | B94: 85 | C94: 41170794 | D94: 42778627 | E94: 0 | F94: 0 | G94: 0 | H94: 42778627 | I94: 42778627 | J94: 44321187 | K94: 0 | L94: 0 | M94: 44321187 | O94: 49874686 | P94: 49874686 | R94: 49874686 | T94: 44321187
A95: EASTHAM | B95: 86 | C95: 20101081 | D95: 21114663 | E95: 0 | F95: 0 | G95: 3373933 | H95: 17740730 | I95: 17374730 | J95: 21761925 | K95: 0 | L95: 3833431 | M95: 17928494 | O95: 73666629 | P95: 73666629 | R95: 73666629 | T95: 17928494
A96: EASTHAMPTON | B96: 87 | C96: 22484346 | D96: 23306382 | E96: 0 | F96: 0 | G96: 436542 | H96: 22869840 | I96: 22869840 | J96: 24164725 | K96: 0 | L96: 447456 | M96: 23717269 | O96: 40013771 | P96: 40013771 | R96: 40013771 | T96: 23717269
A97: EASTON | B97: 88 | C97: 52493985 | D97: 54672072 | E97: 0 | F97: 0 | G97: 4461094 | H97: 50210978 | I97: 50210978 | J97: 56974422 | K97: 0 | L97: 4572621 | M97: 52401801 | O97: 88620545 | P97: 88620545 | R97: 88620545 | T97: 52401801
A98: EDGARTOWN | B98: 89 | C98: 26570454 | D98: 27655464 | E98: 0 | F98: 0 | G98: 6298419 | H98: 21357045 | I98: 21357045 | J98: 29200902 | K98: 0 | L98: 6455879 | M98: 22745023 | O98: 222145231 | P98: 222145231 | R98: 222145231 | T98: 22745023
A99: EGREMONT | B99: 90 | C99: 4209885 | D99: 4349391 | E99: 0 | F99: 0 | G99: 0 | H99: 4349391 | I99: 4349391 | J99: 4485945 | K99: 0 | L99: 0 | M99: 4485945 | O99: 10261544 | P99: 10261544 | R99: 10261544 | T99: 4485945
A100: ERVING | B100: 91 | C100: 9689539 | D100: 10620755 | E100: 0 | F100: 0 | G100: 0 | H100: 10620755 | I100: 10620755 | J100: 10909997 | K100: 0 | L100: 0 | M100: 10909997 | O100: 23477253 | P100: 23477253 | R100: 23477253 | T100: 10909997
A101: ESSEX | B101: 92 | C101: 11850598 | D101: 12240486 | E101: 0 | F101: 0 | G101: 2661124 | H101: 9579362 | I101: 9579362 | J101: 12665904 | K101: 0 | L101: 2727652 | M101: 9938252 | O101: 21647234 | P101: 21647234 | R101: 21647234 | T101: 9938252
A102: EVERETT | B102: 93 | C102: 110457822 | D102: 136743488 | E102: 0 | F102: 0 | G102: 0 | H102: 136743488 | I102: 136743488 | J102: 144152596 | K102: 0 | L102: 0 | M102: 144152596 | O102: 164013039 | P102: 164013039 | R102: 164013039 | T102: 144152596
A103: FAIRHAVEN | B103: 94 | C103: 26676342 | D103: 27566372 | E103: 0 | F103: 0 | G103: 0 | H103: 27566372 | I103: 27566372 | J103: 28484856 | K103: 0 | L103: 0 | M103: 28484856 | O103: 53421027 | P103: 53421027 | R103: 53421027 | T103: 28484856
A104: FALL RIVER | B104: 95 | C104: 97454740 | D104: 102122896 | E104: 0 | F104: 0 | G104: 0 | H104: 102122896 | I104: 102122896 | J104: 106816456 | K104: 0 | L104: 0 | M104: 106816456 | O104: 139947903 | P104: 139947903 | R104: 139947903 | T104: 106816456
A105: FALMOUTH | B105: 96 | C105: 90621629 | D105: 93670897 | E105: 0 | F105: 0 | G105: 1605846 | H105: 92065051 | I105: 92065051 | J105: 97107511 | K105: 0 | L105: 1645992 | M105: 95461519 | O105: 301262560 | P105: 301262560 | R105: 301262560 | T105: 95461519
A106: FITCHBURG | B106: 97 | C106: 51485090 | D106: 53682908 | E106: 0 | F106: 0 | G106: 0 | H106: 53682908 | I106: 53682908 | J106: 55682046 | K106: 0 | L106: 0 | M106: 55682046 | O106: 64389824 | P106: 64389824 | R106: 64389824 | T106: 55682046
A107: FLORIDA | B107: 98 | C107: 2421013 | D107: 0 | E107: 0 | F107: 0 | G107: 268975 | H107: 0 | I107: 2399378 | J107: 0 | K107: 0 | L107: 275699 | M107: 0 | O107: 0 | P107: 4460408 | R107: 4460408 | T107: 2471839
A108: FOXBOROUGH | B108: 99 | C108: 45237199 | D108: 47576229 | E108: 0 | F108: 0 | G108: 0 | H108: 47576229 | I108: 47576229 | J108: 49768722 | K108: 0 | L108: 0 | M108: 49768722 | O108: 80192124 | P108: 80192124 | R108: 80192124 | T108: 49768722
A109: FRAMINGHAM | B109: 100 | C109: 200985321 | D109: 209234446 | E109: 0 | F109: 0 | G109: 10388990 | H109: 198845456 | I109: 198845456 | J109: 217710963 | K109: 0 | L109: 10648715 | M109: 207062248 | O109: 244695406 | P109: 244695406 | R109: 244695406 | T109: 207062248
A110: FRANKLIN | B110: 101 | C110: 70168037 | D110: 73437716 | E110: 0 | F110: 0 | G110: 3456227 | H110: 69981489 | I110: 69981489 | J110: 77138077 | K110: 0 | L110: 3542633 | M110: 73595444 | O110: 131844518 | P110: 131844518 | R110: 131844518 | T110: 73595444
A111: FREETOWN | B111: 102 | C111: 19501997 | D111: 20288107 | E111: 0 | F111: 0 | G111: 0 | H111: 20288107 | I111: 20288107 | J111: 21671372 | K111: 0 | L111: 0 | M111: 21671372 | O111: 34827782 | P111: 34827782 | R111: 34827782 | T111: 21671372
A112: GARDNER | B112: 103 | C112: 25888215 | D112: 27018062 | E112: 0 | F112: 0 | G112: 0 | H112: 27018062 | I112: 27018062 | J112: 28240124 | K112: 0 | L112: 0 | M112: 28240124 | O112: 33434945 | P112: 33434945 | R112: 33434945 | T112: 28240124
A113: GAY HEAD | B113: 104 | C113: 4048826 | D113: 4504499 | E113: 110000 | F113: 110000 | G113: 1441233 | H113: 3063266 | I113: 2848266 | J113: 5016990 | K113: 110000 | L113: 1807639 | M113: 3209351 | O113: 18645091 | P113: 18645091 | R113: 18645091 | T113: 3209351
A114: GEORGETOWN | B114: 105 | C114: 17932673 | D114: 18646207 | E114: 0 | F114: 0 | G114: 1512173 | H114: 17134034 | I114: 17026034 | J114: 19324411 | K114: 0 | L114: 1660677 | M114: 17663734 | O114: 32980819 | P114: 32980819 | R114: 32980819 | T114: 17663734
A115: GILL | B115: 106 | C115: 2747123 | D115: 0 | E115: 0 | F115: 0 | G115: 199153 | H115: 0 | I115: 2665584 | J115: 0 | K115: 0 | L115: 204132 | M115: 0 | O115: 0 | P115: 3957716 | R115: 3957716 | T115: 2764477
A116: GLOUCESTER | B116: 107 | C116: 76265313 | D116: 79051706 | E116: 0 | F116: 0 | G116: 0 | H116: 79051706 | I116: 79051706 | J116: 82035573 | K116: 0 | L116: 0 | M116: 82035573 | O116: 165351430 | P116: 165351430 | R116: 165351430 | T116: 82035573
A117: GOSHEN | B117: 108 | C117: 2282872 | D117: 2361373 | E117: 0 | F117: 0 | G117: 0 | H117: 2361373 | I117: 2361373 | J117: 2443882 | K117: 0 | L117: 0 | M117: 2443882 | O117: 4047711 | P117: 4047711 | R117: 4047711 | T117: 2443882
A118: GOSNOLD | B118: 109 | C118: 699602 | D118: 0 | E118: 0 | F118: 0 | G118: 208936 | H118: 0 | I118: 511645 | J118: 0 | K118: 0 | L118: 214159 | M118: 0 | O118: 0 | P118: 5723852 | R118: 5723852 | T118: 526687
A119: GRAFTON | B119: 110 | C119: 36005923 | D119: 37515491 | E119: 0 | F119: 0 | G119: 2207626 | H119: 35307865 | I119: 35307865 | J119: 39346671 | K119: 0 | L119: 2262817 | M119: 37083854 | O119: 63304668 | P119: 63304668 | R119: 63304668 | T119: 37083854
A120: GRANBY | B120: 111 | C120: 11619470 | D120: 12113372 | E120: -30000 | F120: -30000 | G120: 1136894 | H120: 10976478 | I120: 10946478 | J120: 12520195 | K120: -30000 | L120: 1166066 | M120: 11354129 | O120: 16680538 | P120: 16680538 | R120: 16680538 | T120: 11354129
A121: GRANVILLE | B121: 112 | C121: 3167565 | D121: 3261763 | E121: 0 | F121: 0 | G121: 0 | H121: 3261763 | I121: 3261763 | J121: 3402034 | K121: 0 | L121: 0 | M121: 3402034 | O121: 4933818 | P121: 4933818 | R121: 4933818 | T121: 3402034
A122: GREAT BARRINGT | B122: 113 | C122: 21717815 | D122: 22803152 | E122: 0 | F122: 0 | G122: 0 | H122: 22803152 | I122: 22803152 | J122: 23576289 | K122: 0 | L122: 0 | M122: 23576289 | O122: 37374362 | P122: 37374362 | R122: 37374362 | T122: 23576289
A123: GREENFIELD | B123: 114 | C123: 33175019 | D123: 34278055 | E123: 0 | F123: 0 | G123: 0 | H123: 34278055 | I123: 34278055 | J123: 35435096 | K123: 0 | L123: 0 | M123: 35435096 | O123: 36922180 | P123: 36922180 | R123: 36922180 | T123: 35435096
A124: GROTON | B124: 115 | C124: 29360224 | D124: 30650535 | E124: 0 | F124: 0 | G124: 3113578 | H124: 27536957 | I124: 27536957 | J124: 31932418 | K124: 0 | L124: 3191417 | M124: 28741001 | O124: 44656171 | P124: 44656171 | R124: 44656171 | T124: 28741001
A125: GROVELAND | B125: 116 | C125: 13441118 | D125: 13917495 | E125: 0 | F125: 0 | G125: 2140152 | H125: 11777343 | I125: 11777343 | J125: 14450497 | K125: 0 | L125: 2193656 | M125: 12256841 | O125: 25336806 | P125: 25336806 | R125: 25336806 | T125: 12256841
A126: HADLEY | B126: 117 | C126: 10576297 | D126: 11032660 | E126: 0 | F126: 0 | G126: 0 | H126: 11032660 | I126: 11032660 | J126: 11621843 | K126: 0 | L126: 0 | M126: 11621843 | O126: 24542277 | P126: 24542277 | R126: 24542277 | T126: 11621843
A127: HALIFAX | B127: 118 | C127: 15617995 | D127: 16171864 | E127: 0 | F127: 0 | G127: 929625 | H127: 15242239 | I127: 15242239 | J127: 16711720 | K127: 0 | L127: 952866 | M127: 15758854 | O127: 23556889 | P127: 23556889 | R127: 23556889 | T127: 15758854
A128: HAMILTON | B128: 119 | C128: 27198556 | D128: 28024238 | E128: 0 | F128: 0 | G128: 7088564 | H128: 20935674 | I128: 20935674 | J128: 28911424 | K128: 0 | L128: 7265778 | M128: 21645646 | O128: 41742923 | P128: 41742923 | R128: 41742923 | T128: 21645646
A129: HAMPDEN | B129: 120 | C129: 11649278 | D129: 12082323 | E129: 0 | F129: 0 | G129: 0 | H129: 12082323 | I129: 12082323 | J129: 12454681 | K129: 0 | L129: 0 | M129: 12454681 | O129: 15610102 | P129: 15610102 | R129: 15610102 | T129: 12454681
A130: HANCOCK | B130: 121 | C130: 2281410 | D130: 2348777 | E130: 0 | F130: 0 | G130: 0 | H130: 2348777 | I130: 2348777 | J130: 2410484 | K130: 0 | L130: 0 | M130: 2410484 | O130: 7576616 | P130: 7576616 | R130: 7576616 | T130: 2410484
A131: HANOVER | B131: 122 | C131: 39600831 | D131: 41275798 | E131: 0 | F131: 0 | G131: 2015823 | H131: 39259975 | I131: 39259975 | J131: 42832524 | K131: 0 | L131: 2066219 | M131: 40766305 | O131: 68678364 | P131: 68678364 | R131: 68678364 | T131: 40766305
A132: HANSON | B132: 123 | C132: 19240837 | D132: 20151661 | E132: 0 | F132: 0 | G132: 853634 | H132: 19298027 | I132: 19298027 | J132: 20981462 | K132: 0 | L132: 874975 | M132: 20106487 | O132: 33327567 | P132: 33327567 | R132: 33327567 | T132: 20106487
A133: HARDWICK | B133: 124 | C133: 3811640 | D133: 0 | E133: 0 | F133: 0 | G133: 0 | H133: 0 | I133: 3945989 | J133: 4101377 | K133: 0 | L133: 0 | M133: 4101377 | O133: 0 | P133: 6067963 | R133: 6067963 | T133: 4101377
A134: HARVARD | B134: 125 | C134: 19615932 | D134: 20287886 | E134: 0 | F134: 0 | G134: 4136402 | H134: 16151484 | I134: 16151484 | J134: 20906887 | K134: 0 | L134: 4239812 | M134: 16667075 | O134: 30631225 | P134: 30631225 | R134: 30631225 | T134: 16667075
A135: HARWICH | B135: 126 | C135: 42683458 | D135: 44144163 | E135: 0 | F135: 0 | G135: 3998654 | H135: 40145509 | I135: 40145509 | J135: 45589303 | K135: 0 | L135: 4098620 | M135: 41490683 | O135: 142087360 | P135: 142087360 | R135: 142087360 | T135: 41490683
A136: HATFIELD | B136: 127 | C136: 7075286 | D136: 7317964 | E136: 0 | F136: 0 | G136: 41602 | H136: 7276362 | I136: 7276362 | J136: 7666428 | K136: 0 | L136: 42642 | M136: 7623786 | O136: 13426903 | P136: 13426903 | R136: 13426903 | T136: 7623786
A137: HAVERHILL | B137: 128 | C137: 101846990 | D137: 105856629 | E137: 0 | F137: 0 | G137: 0 | H137: 105856629 | I137: 105856629 | J137: 110211975 | K137: 0 | L137: 0 | M137: 110211975 | O137: 166548517 | P137: 166548517 | R137: 166548517 | T137: 110211975
A138: HAWLEY | B138: 129 | C138: 883598 | D138: 916486 | E138: 0 | F138: 0 | G138: 0 | H138: 916486 | I138: 916486 | J138: 949471 | K138: 0 | L138: 0 | M138: 949471 | O138: 1251106 | P138: 1251106 | R138: 1251106 | T138: 949471
A139: HEATH | B139: 130 | C139: 2252102 | D139: 2253128 | E139: 0 | F139: 0 | G139: 194520 | H139: 2058608 | I139: 2058608 | J139: 2267068 | K139: 0 | L139: 199383 | M139: 2067685 | O139: 2253128 | P139: 2253128 | R139: 2253128 | T139: 2067685
A140: HINGHAM | B140: 131 | C140: 76509213 | D140: 79426526 | E140: 0 | F140: 0 | G140: 3257354 | H140: 76169172 | I140: 76169172 | J140: 82762765 | K140: 0 | L140: 3338788 | M140: 79423977 | O140: 177439624 | P140: 177439624 | R140: 177439624 | T140: 79423977
A141: HINSDALE | B141: 132 | C141: 4600942 | D141: 4765580 | E141: 0 | F141: 0 | G141: 0 | H141: 4765580 | I141: 4765580 | J141: 4983986 | K141: 0 | L141: 0 | M141: 4983986 | O141: 7741047 | P141: 7741047 | R141: 7741047 | T141: 4983986
A142: HOLBROOK | B142: 133 | C142: 23647854 | D142: 24558695 | E142: 0 | F142: 0 | G142: 2861015 | H142: 21697680 | I142: 21697680 | J142: 25464571 | K142: 0 | L142: 2932540 | M142: 22532031 | O142: 32331527 | P142: 32331527 | R142: 32331527 | T142: 22532031
A143: HOLDEN | B143: 134 | C143: 36468157 | D143: 38179514 | E143: 0 | F143: 0 | G143: 0 | H143: 38179514 | I143: 38179514 | J143: 39897093 | K143: 0 | L143: 0 | M143: 39897093 | O143: 59030466 | P143: 59030466 | R143: 59030466 | T143: 39897093
A144: HOLLAND | B144: 135 | C144: 5391798 | D144: 5575254 | E144: 0 | F144: 0 | G144: 598591 | H144: 4976663 | I144: 4976663 | J144: 5773739 | K144: 0 | L144: 613556 | M144: 5160183 | O144: 8227747 | P144: 8227747 | R144: 8227747 | T144: 5160183
A145: HOLLISTON | B145: 136 | C145: 43871193 | D145: 45930896 | E145: 0 | F145: 0 | G145: 4384290 | H145: 41546606 | I145: 41546606 | J145: 47769719 | K145: 0 | L145: 4493897 | M145: 43275822 | O145: 63546333 | P145: 63546333 | R145: 63546333 | T145: 43275822
A146: HOLYOKE | B146: 137 | C146: 52427035 | D146: 53918766 | E146: 0 | F146: 0 | G146: 0 | H146: 53918766 | I146: 53918766 | J146: 56039874 | K146: 0 | L146: 0 | M146: 56039874 | O146: 53918766 | P146: 53918766 | R146: 53918766 | T146: 53918766
A147: HOPEDALE | B147: 138 | C147: 13802052 | D147: 14339924 | E147: 0 | F147: 0 | G147: 0 | H147: 14339924 | I147: 14339924 | J147: 15361867 | K147: 0 | L147: 0 | M147: 15361867 | O147: 19002023 | P147: 19002023 | R147: 19002023 | T147: 15361867
A148: HOPKINTON | B148: 139 | C148: 60654433 | D148: 64394378 | E148: -1500000 | F148: -1500000 | G148: 3449122 | H148: 60945256 | I148: 57907756 | J148: 0 | K148: 0 | L148: 6648788 | M148: 0 | O148: 99541752 | P148: 99541752 | R148: 99541752 | T148: 61955508
A149: HUBBARDSTON | B149: 140 | C149: 6774154 | D149: 7032910 | E149: 0 | F149: 0 | G149: 0 | H149: 7032910 | I149: 7032910 | J149: 7273006 | K149: 0 | L149: 0 | M149: 7273006 | O149: 11710145 | P149: 11710145 | R149: 11710145 | T149: 7273006
A150: HUDSON | B150: 141 | C150: 47803174 | D150: 49897596 | E150: 0 | F150: 0 | G150: 0 | H150: 49897596 | I150: 49897596 | J150: 51902188 | K150: 0 | L150: 0 | M150: 51902188 | O150: 68613088 | P150: 68613088 | R150: 68613088 | T150: 51902188
A151: HULL | B151: 142 | C151: 28040403 | D151: 28951146 | E151: 0 | F151: 0 | G151: 0 | H151: 28951146 | I151: 28951146 | J151: 29976106 | K151: 0 | L151: 0 | M151: 29976106 | O151: 56172093 | P151: 56172093 | R151: 56172093 | T151: 29976106
A152: HUNTINGTON | B152: 143 | C152: 3456309 | D152: 3556682 | E152: 0 | F152: 0 | G152: 135493 | H152: 3421189 | I152: 3421189 | J152: 3698567 | K152: 0 | L152: 138880 | M152: 3559687 | O152: 4646117 | P152: 4646117 | R152: 4646117 | T152: 3559687
A153: IPSWICH | B153: 144 | C153: 38120352 | D153: 39429985 | E153: 0 | F153: 0 | G153: 4985038 | H153: 34444947 | I153: 34444947 | J153: 40693414 | K153: 0 | L153: 5109664 | M153: 35583750 | O153: 73802816 | P153: 73802816 | R153: 73802816 | T153: 35583750
A154: KINGSTON | B154: 145 | C154: 32374414 | D154: 33554184 | E154: 0 | F154: 0 | G154: 2652649 | H154: 30901535 | I154: 30901535 | J154: 34825119 | K154: 0 | L154: 2718965 | M154: 32106154 | O154: 52477655 | P154: 52477655 | R154: 52477655 | T154: 32106154
A155: LAKEVILLE | B155: 146 | C155: 21785037 | D155: 22656022 | E155: 0 | F155: 0 | G155: 3873658 | H155: 18782364 | I155: 18782364 | J155: 23627168 | K155: 0 | L155: 3970499 | M155: 19656669 | O155: 43741399 | P155: 43741399 | R155: 43741399 | T155: 19656669
A156: LANCASTER | B156: 147 | C156: 17054549 | D156: 17729094 | E156: 0 | F156: 0 | G156: 3619638 | H156: 14109456 | I156: 14109456 | J156: 18774299 | K156: 0 | L156: 3710129 | M156: 15064170 | O156: 23737357 | P156: 23737357 | R156: 23737357 | T156: 15064170
A157: LANESBOROUGH | B157: 148 | C157: 8343686 | D157: 8618973 | E157: 0 | F157: 0 | G157: 0 | H157: 8618973 | I157: 8618973 | J157: 9002151 | K157: 0 | L157: 0 | M157: 9002151 | O157: 9837467 | P157: 9837467 | R157: 9837467 | T157: 9002151
A158: LAWRENCE | B158: 149 | C158: 70661377 | D158: 74107308 | E158: 0 | F158: 0 | G158: 0 | H158: 74107308 | I158: 74107308 | J158: 80249851 | K158: 0 | L158: 0 | M158: 80249851 | O158: 105500804 | P158: 105500804 | R158: 105500804 | T158: 80249851
A159: LEE | B159: 150 | C159: 15362384 | D159: 15986619 | E159: 0 | F159: 0 | G159: 384093 | H159: 15602526 | I159: 15602526 | J159: 16672089 | K159: 0 | L159: 393695 | M159: 16278394 | O159: 23457452 | P159: 23457452 | R159: 23457452 | T159: 16278394
A160: LEICESTER | B160: 151 | C160: 14001857 | D160: 14615965 | E160: 0 | F160: 0 | G160: 0 | H160: 14615965 | I160: 14615965 | J160: 15292785 | K160: 0 | L160: 0 | M160: 15292785 | O160: 25732365 | P160: 25732365 | R160: 25732365 | T160: 15292785
A161: LENOX | B161: 152 | C161: 16892223 | D161: 17783155 | E161: 0 | F161: 0 | G161: 0 | H161: 17783155 | I161: 17783155 | J161: 18419626 | K161: 0 | L161: 0 | M161: 18419626 | O161: 31215412 | P161: 31215412 | R161: 31215412 | T161: 18419626
A162: LEOMINSTER | B162: 153 | C162: 74049153 | D162: 77287086 | E162: 0 | F162: 0 | G162: 0 | H162: 77287086 | I162: 77287086 | J162: 80298856 | K162: 0 | L162: 0 | M162: 80298856 | O162: 97162659 | P162: 97162659 | R162: 97162659 | T162: 80298856
A163: LEVERETT | B163: 154 | C163: 5162859 | D163: 5377732 | E163: 0 | F163: 0 | G163: 293895 | H163: 5083837 | I163: 5083837 | J163: 5597916 | K163: 0 | L163: 301242 | M163: 5296674 | O163: 6462022 | P163: 6462022 | R163: 6462022 | T163: 5296674
A164: LEXINGTON | B164: 155 | C164: 169366479 | D164: 176907122 | E164: 0 | F164: 0 | G164: 21176483 | H164: 155730639 | I164: 155730639 | J164: 184938303 | K164: 0 | L164: 21705895 | M164: 163232408 | O164: 298060000 | P164: 298060000 | R164: 298060000 | T164: 163232408
A165: LEYDEN | B165: 156 | C165: 1820724 | D165: 1878027 | E165: 0 | F165: 0 | G165: 0 | H165: 1878027 | I165: 1878027 | J165: 1932264 | K165: 0 | L165: 0 | M165: 1932264 | O165: 2171007 | P165: 2171007 | R165: 2171007 | T165: 1932264
A166: LINCOLN | B166: 157 | C166: 27696403 | D166: 28418354 | E166: 0 | F166: 0 | G166: 3193765 | H166: 25224589 | I166: 25224589 | J166: 29211523 | K166: 0 | L166: 3273609 | M166: 25937914 | O166: 52890154 | P166: 52890154 | R166: 52890154 | T166: 25937914
A167: LITTLETON | B167: 158 | C167: 35349968 | D167: 38069647 | E167: 0 | F167: 0 | G167: 2131572 | H167: 35938075 | I167: 35938075 | J167: 40158316 | K167: 0 | L167: 2184861 | M167: 37973455 | O167: 48138205 | P167: 48138205 | R167: 48138205 | T167: 37973455
A168: LONGMEADOW | B168: 159 | C168: 46851176 | D168: 48289342 | E168: 0 | F168: 0 | G168: 5648777 | H168: 42640565 | I168: 42640565 | J168: 49857396 | K168: 0 | L168: 5789996 | M168: 44067400 | O168: 54552238 | P168: 54552238 | R168: 54552238 | T168: 44067400
A169: LOWELL | B169: 160 | C169: 146747545 | D169: 152560490 | E169: 0 | F169: 0 | G169: 0 | H169: 152560490 | I169: 152560490 | J169: 158905239 | K169: 0 | L169: 0 | M169: 158905239 | O169: 204695360 | P169: 204695360 | R169: 204695360 | T169: 158905239
A170: LUDLOW | B170: 161 | C170: 39450650 | D170: 41088672 | E170: 0 | F170: 0 | G170: 0 | H170: 41088672 | I170: 41088672 | J170: 42772547 | K170: 0 | L170: 0 | M170: 42772547 | O170: 51961479 | P170: 51961479 | R170: 51961479 | T170: 42772547
A171: LUNENBURG | B171: 162 | C171: 23087668 | D171: 24137396 | E171: 0 | F171: 0 | G171: 1280600 | H171: 22856796 | I171: 22856796 | J171: 25107062 | K171: 0 | L171: 1312615 | M171: 23794447 | O171: 36056217 | P171: 36056217 | R171: 36056217 | T171: 23794447
A172: LYNN | B172: 163 | C172: 126245456 | D172: 131247559 | E172: 0 | F172: 0 | G172: 0 | H172: 131247559 | I172: 131247559 | J172: 136429137 | K172: 0 | L172: 0 | M172: 136429137 | O172: 207964425 | P172: 207964425 | R172: 207964425 | T172: 136429137
A173: LYNNFIELD | B173: 164 | C173: 41182957 | D173: 42596102 | E173: 0 | F173: 0 | G173: 5725538 | H173: 36870564 | I173: 36870564 | J173: 44273401 | K173: 0 | L173: 5868676 | M173: 38404725 | O173: 77986427 | P173: 77986427 | R173: 77986427 | T173: 38404725
A174: MALDEN | B174: 165 | C174: 86826081 | D174: 90263355 | E174: 0 | F174: 0 | G174: 0 | H174: 90263355 | I174: 90263355 | J174: 94569307 | K174: 0 | L174: 0 | M174: 94569307 | O174: 192336403 | P174: 192336403 | R174: 192336403 | T174: 94569307
A175: MANCHESTER | B175: 166 | C175: 23714112 | D175: 24583099 | E175: 0 | F175: 0 | G175: 2918141 | H175: 21664958 | I175: 21664958 | J175: 25363947 | K175: 0 | L175: 2991095 | M175: 22372852 | O175: 61086664 | P175: 61086664 | R175: 61086664 | T175: 22372852
A176: MANSFIELD | B176: 167 | C176: 60178592 | D176: 62753738 | E176: 0 | F176: 0 | G176: 2415028 | H176: 60338710 | I176: 60338710 | J176: 65023962 | K176: 0 | L176: 2475404 | M176: 62548558 | O176: 96582530 | P176: 96582530 | R176: 96582530 | T176: 62548558
A177: MARBLEHEAD | B177: 168 | C177: 59592925 | D177: 61400179 | E177: 0 | F177: 0 | G177: 6774809 | H177: 54625370 | I177: 54625370 | J177: 63238414 | K177: 0 | L177: 6944179 | M177: 56294235 | O177: 157889226 | P177: 157889226 | R177: 157889226 | T177: 56294235
A178: MARION | B178: 169 | C178: 17691386 | D178: 18306189 | E178: 0 | F178: 0 | G178: 1699262 | H178: 16606927 | I178: 16606927 | J178: 19362682 | K178: 0 | L178: 1741744 | M178: 17620938 | O178: 43163144 | P178: 43163144 | R178: 43163144 | T178: 17620938
A179: MARLBOROUGH | B179: 170 | C179: 131259954 | D179: 138028167 | E179: 0 | F179: 0 | G179: 0 | H179: 138028167 | I179: 138028167 | J179: 144113359 | K179: 0 | L179: 0 | M179: 144113359 | O179: 149027078 | P179: 149027078 | R179: 149027078 | T179: 144113359
A180: MARSHFIELD | B180: 171 | C180: 60683624 | D180: 62903647 | E180: 0 | F180: 0 | G180: 2560169 | H180: 60343478 | I180: 60343478 | J180: 65059735 | K180: 0 | L180: 2624173 | M180: 62435562 | O180: 125013752 | P180: 125013752 | R180: 125013752 | T180: 62435562
A181: MASHPEE | B181: 172 | C181: 46068055 | D181: 48001741 | E181: 0 | F181: 0 | G181: 0 | H181: 48001741 | I181: 48001741 | J181: 49968699 | K181: 0 | L181: 0 | M181: 49968699 | O181: 134652250 | P181: 134652250 | R181: 134652250 | T181: 49968699
A182: MATTAPOISETT | B182: 173 | C182: 21161059 | D182: 22005954 | E182: 0 | F182: 0 | G182: 1964085 | H182: 20041869 | I182: 20041869 | J182: 22855216 | K182: 0 | L182: 2013187 | M182: 20842029 | O182: 44038675 | P182: 44038675 | R182: 44038675 | T182: 20842029
A183: MAYNARD | B183: 174 | C183: 28058307 | D183: 29049744 | E183: 0 | F183: 0 | G183: 1410415 | H183: 27639329 | I183: 27639329 | J183: 30432490 | K183: 0 | L183: 1445675 | M183: 28986815 | O183: 35864451 | P183: 35864451 | R183: 35864451 | T183: 28986815
A184: MEDFIELD | B184: 175 | C184: 39559733 | D184: 42835123 | E184: 0 | F184: 0 | G184: 7516146 | H184: 35318977 | I184: 33405874 | J184: 44458802 | K184: 0 | L184: 9664980 | M184: 34793822 | O184: 67052130 | P184: 67052130 | R184: 67052130 | T184: 34793822
A185: MEDFORD | B185: 176 | C185: 109528185 | D185: 113940518 | E185: 0 | F185: 0 | G185: 0 | H185: 113940518 | I185: 113940518 | J185: 118138663 | K185: 0 | L185: 0 | M185: 118138663 | O185: 270047293 | P185: 270047293 | R185: 270047293 | T185: 118138663
A186: MEDWAY | B186: 177 | C186: 34087272 | D186: 39782447 | E186: 0 | F186: 0 | G186: 2593258 | H186: 37189189 | I186: 37189189 | J186: 41294017 | K186: 0 | L186: 2658089 | M186: 38635928 | O186: 58164355 | P186: 58164355 | R186: 58164355 | T186: 38635928
A187: MELROSE | B187: 178 | C187: 55368833 | D187: 57521943 | E187: 0 | F187: 0 | G187: 0 | H187: 57521943 | I187: 57521943 | J187: 64738724 | K187: 0 | L187: 0 | M187: 64738724 | O187: 132583791 | P187: 132583791 | R187: 132583791 | T187: 64738724
A188: MENDON | B188: 179 | C188: 14477901 | D188: 15201586 | E188: 0 | F188: 0 | G188: 2679906 | H188: 12521680 | I188: 12521680 | J188: 15840333 | K188: 0 | L188: 2746904 | M188: 13093429 | O188: 24185196 | P188: 24185196 | R188: 24185196 | T188: 13093429
A189: MERRIMAC | B189: 180 | C189: 12282175 | D189: 12817276 | E189: 0 | F189: 0 | G189: 1952833 | H189: 10864443 | I189: 10864443 | J189: 13230691 | K189: 0 | L189: 2001654 | M189: 11229037 | O189: 20655168 | P189: 20655168 | R189: 20655168 | T189: 11229037
A190: METHUEN | B190: 181 | C190: 86698275 | D190: 90014577 | E190: 0 | F190: 0 | G190: 0 | H190: 90014577 | I190: 90014577 | J190: 93348857 | K190: 0 | L190: 0 | M190: 93348857 | O190: 139280668 | P190: 139280668 | R190: 139280668 | T190: 93348857
A191: MIDDLEBOROUGH | B191: 182 | C191: 40482738 | D191: 42271292 | E191: 0 | F191: 0 | G191: 0 | H191: 42271292 | I191: 42271292 | J191: 44431811 | K191: 0 | L191: 0 | M191: 44431811 | O191: 68329135 | P191: 68329135 | R191: 68329135 | T191: 44431811
A192: MIDDLEFIELD | B192: 183 | C192: 1378983 | D192: 1423245 | E192: 0 | F192: 0 | G192: 0 | H192: 1423245 | I192: 1423245 | J192: 1463886 | K192: 0 | L192: 0 | M192: 1463886 | O192: 1680668 | P192: 1680668 | R192: 1680668 | T192: 1463886
A193: MIDDLETON | B193: 184 | C193: 26764835 | D193: 28006842 | E193: 0 | F193: 0 | G193: 1738660 | H193: 26268182 | I193: 26268182 | J193: 29471490 | K193: 0 | L193: 1782127 | M193: 27689363 | O193: 52436491 | P193: 52436491 | R193: 52436491 | T193: 27689363
A194: MILFORD | B194: 185 | C194: 67893461 | D194: 70897896 | E194: 0 | F194: 0 | G194: 0 | H194: 70897896 | I194: 70897896 | J194: 73699324 | K194: 0 | L194: 0 | M194: 73699324 | O194: 85930178 | P194: 85930178 | R194: 85930178 | T194: 73699324
A195: MILLBURY | B195: 186 | C195: 24012723 | D195: 25332451 | E195: 0 | F195: 0 | G195: 0 | H195: 25332451 | I195: 25332451 | J195: 26788885 | K195: 0 | L195: 0 | M195: 26788885 | O195: 41679589 | P195: 41679589 | R195: 41679589 | T195: 26788885
A196: MILLIS | B196: 187 | C196: 19685399 | D196: 20829764 | E196: 0 | F196: 0 | G196: 2917796 | H196: 17911968 | I196: 17911968 | J196: 22032205 | K196: 0 | L196: 2990741 | M196: 19041464 | O196: 30000873 | P196: 30000873 | R196: 30000873 | T196: 19041464
A197: MILLVILLE | B197: 188 | C197: 4659119 | D197: 4850197 | E197: 0 | F197: 0 | G197: 0 | H197: 4850197 | I197: 4850197 | J197: 5015056 | K197: 0 | L197: 0 | M197: 5015056 | O197: 7798044 | P197: 7798044 | R197: 7798044 | T197: 5015056
A198: MILTON | B198: 189 | C198: 76769831 | D198: 79587098 | E198: 3137264 | F198: 3137264 | G198: 19261851 | H198: 60325247 | I198: 63462511 | J198: 82374502 | K198: 3137264 | L198: 19664966 | M198: 62709536 | O198: 152949470 | P198: 152949470 | R198: 152949470 | T198: 62709536
A199: MONROE | B199: 190 | C199: 622379 | D199: 0 | E199: 0 | F199: 0 | G199: 0 | H199: 0 | I199: 639015 | J199: 655693 | K199: 0 | L199: 0 | M199: 655693 | O199: 0 | P199: 650306 | R199: 650306 | T199: 650306
A200: MONSON | B200: 191 | C200: 13144423 | D200: 13611944 | E200: 0 | F200: 0 | G200: 119730 | H200: 13492214 | I200: 13492214 | J200: 14206908 | K200: 0 | L200: 122723 | M200: 14084185 | O200: 19232324 | P200: 19232324 | R200: 19232324 | T200: 14084185
A201: MONTAGUE | B201: 192 | C201: 16267561 | D201: 17194323 | E201: 0 | F201: 0 | G201: 137806 | H201: 17056517 | I201: 17056517 | J201: 18178839 | K201: 0 | L201: 141251 | M201: 18037588 | O201: 22256185 | P201: 22256185 | R201: 22256185 | T201: 18037588
A202: MONTEREY | B202: 193 | C202: 3875505 | D202: 3999223 | E202: 0 | F202: 0 | G202: 918941 | H202: 3080282 | I202: 3080282 | J202: 4138621 | K202: 0 | L202: 941915 | M202: 3196706 | O202: 13130660 | P202: 13130660 | R202: 13130660 | T202: 3196706
... 159 more rows

Sheet GRS (hidden)
A1: Change in General Revenue Sharing
J5: Estimated
E6: State- | H6: Estimated | J6: State- | K6: Estimated
B7: DOR | E7: Owned | F7: Total | H7: Additional | I7: Estimated | J7: Owned | K7: Total
A8: MUNICIPALITY | B8: CDE | D8: UGGA | E8: Land | F8: PY | H8: Assistance | I8: UGGA | J8: Land | K8: CY
A10: ABINGTON | B10: 1 | C10: 0 | D10: 2088894 | E10: 138184 | F10: =SUM(C10:E10) -> 2227078 | H10: 0 | I10: 2147383 | J10: 138184 | K10: =SUM(H10:J10) -> 2285567
A11: ACTON | B11: 2 | C11: 0 | D11: 1485383 | E11: 69544 | F11: =SUM(C11:E11) -> 1554927 | H11: 0 | I11: 1526974 | J11: 69544 | K11: =SUM(H11:J11) -> 1596518
A12: ACUSHNET | B12: 3 | C12: 0 | D12: 1610035 | E12: 43 | F12: 1610078 | H12: 0 | I12: 1655116 | J12: 43 | K12: 1655159
A13: ADAMS | B13: 4 | C13: 0 | D13: 2485998 | E13: 66682 | F13: 2552680 | H13: 0 | I13: 2555606 | J13: 66682 | K13: 2622288
A14: AGAWAM | B14: 5 | C14: 0 | D14: 3911960 | E14: 97708 | F14: 4009668 | H14: 0 | I14: 4021495 | J14: 97708 | K14: 4119203
A15: ALFORD | B15: 6 | C15: 0 | D15: 14902 | E15: 0 | F15: 14902 | H15: 0 | I15: 15319 | J15: 0 | K15: 15319
A16: AMESBURY | B16: 7 | C16: 0 | D16: 2065799 | E16: 0 | F16: 2065799 | H16: 0 | I16: 2123641 | J16: 0 | K16: 2123641
A17: AMHERST | B17: 8 | C17: 0 | D17: 8939803 | E17: 203540 | F17: 9143343 | H17: 0 | I17: 9190117 | J17: 203540 | K17: 9393657
A18: ANDOVER | B18: 9 | C18: 0 | D18: 1897423 | E18: 223355 | F18: 2120778 | H18: 0 | I18: 1950551 | J18: 223355 | K18: 2173906
A19: ARLINGTON | B19: 10 | C19: 0 | D19: 8056055 | E19: 0 | F19: 8056055 | H19: 0 | I19: 8281625 | J19: 0 | K19: 8281625
A20: ASHBURNHAM | B20: 11 | C20: 0 | D20: 844287 | E20: 100829 | F20: 945116 | H20: 0 | I20: 867927 | J20: 100829 | K20: 968756
A21: ASHBY | B21: 12 | C21: 0 | D21: 464959 | E21: 104362 | F21: 569321 | H21: 0 | I21: 477978 | J21: 104362 | K21: 582340
A22: ASHFIELD | B22: 13 | C22: 0 | D22: 197138 | E22: 11824 | F22: 208962 | H22: 0 | I22: 202658 | J22: 11824 | K22: 214482
A23: ASHLAND | B23: 14 | C23: 0 | D23: 1435983 | E23: 99824 | F23: 1535807 | H23: 0 | I23: 1476191 | J23: 99824 | K23: 1576015
A24: ATHOL | B24: 15 | C24: 0 | D24: 2811281 | E24: 48017 | F24: 2859298 | H24: 0 | I24: 2889997 | J24: 48017 | K24: 2938014
A25: ATTLEBORO | B25: 16 | C25: 0 | D25: 6057887 | E25: 0 | F25: 6057887 | H25: 0 | I25: 6227508 | J25: 0 | K25: 6227508
A26: AUBURN | B26: 17 | C26: 0 | D26: 1818556 | E26: 0 | F26: 1818556 | H26: 0 | I26: 1869476 | J26: 0 | K26: 1869476
A27: AVON | B27: 18 | C27: 0 | D27: 735982 | E27: 0 | F27: 735982 | H27: 0 | I27: 756589 | J27: 0 | K27: 756589
A28: AYER | B28: 19 | C28: 0 | D28: 803867 | E28: 14821 | F28: 818688 | H28: 0 | I28: 826375 | J28: 14821 | K28: 841196
A29: BARNSTABLE | B29: 20 | C29: 0 | D29: 2233598 | E29: 110446 | F29: 2344044 | H29: 0 | I29: 2296139 | J29: 110446 | K29: 2406585
A30: BARRE | B30: 21 | C30: 0 | D30: 955017 | E30: 68636 | F30: 1023653 | H30: 0 | I30: 981757 | J30: 68636 | K30: 1050393
A31: BECKET | B31: 22 | C31: 0 | D31: 96433 | E31: 45321 | F31: 141754 | H31: 0 | I31: 99133 | J31: 45321 | K31: 144454
A32: BEDFORD | B32: 23 | C32: 0 | D32: 1218953 | E32: 1022863 | F32: 2241816 | H32: 0 | I32: 1253084 | J32: 1022863 | K32: 2275947
A33: BELCHERTOWN | B33: 24 | C33: 0 | D33: 1806769 | E33: 156541 | F33: 1963310 | H33: 0 | I33: 1857359 | J33: 156541 | K33: 2013900
A34: BELLINGHAM | B34: 25 | C34: 0 | D34: 1801819 | E34: 879 | F34: 1802698 | H34: 0 | I34: 1852270 | J34: 879 | K34: 1853149
A35: BELMONT | B35: 26 | C35: 0 | D35: 2397629 | E35: 0 | F35: 2397629 | H35: 0 | I35: 2464763 | J35: 0 | K35: 2464763
A36: BERKLEY | B36: 27 | C36: 0 | D36: 646096 | E36: 31048 | F36: 677144 | H36: 0 | I36: 664187 | J36: 31048 | K36: 695235
A37: BERLIN | B37: 28 | C37: 0 | D37: 214087 | E37: 0 | F37: 214087 | H37: 0 | I37: 220081 | J37: 0 | K37: 220081
A38: BERNARDSTON | B38: 29 | C38: 0 | D38: 308844 | E38: 23634 | F38: 332478 | H38: 0 | I38: 317492 | J38: 23634 | K38: 341126
A39: BEVERLY | B39: 30 | C39: 0 | D39: 6201104 | E39: 0 | F39: 6201104 | H39: 0 | I39: 6374735 | J39: 0 | K39: 6374735
A40: BILLERICA | B40: 31 | C40: 0 | D40: 6183385 | E40: 140493 | F40: 6323878 | H40: 0 | I40: 6356520 | J40: 140493 | K40: 6497013
A41: BLACKSTONE | B41: 32 | C41: 0 | D41: 1453444 | E41: 26371 | F41: 1479815 | H41: 0 | I41: 1494140 | J41: 26371 | K41: 1520511
A42: BLANDFORD | B42: 33 | C42: 0 | D42: 134832 | E42: 20571 | F42: 155403 | H42: 0 | I42: 138607 | J42: 20571 | K42: 159178
A43: BOLTON | B43: 34 | C43: 0 | D43: 209654 | E43: 12208 | F43: 221862 | H43: 0 | I43: 215524 | J43: 12208 | K43: 227732
A44: BOSTON | B44: 35 | C44: 0 | D44: 201181161 | E44: 408662 | F44: 201589823 | H44: 0 | I44: 206814233 | J44: 408662 | K44: 207222895
A45: BOURNE | B45: 36 | C45: 0 | D45: 1556625 | E45: 600691 | F45: 2157316 | H45: 0 | I45: 1600210 | J45: 600691 | K45: 2200901
A46: BOXBOROUGH | B46: 37 | C46: 0 | D46: 267857 | E46: 3474 | F46: 271331 | H46: 0 | I46: 275357 | J46: 3474 | K46: 278831
A47: BOXFORD | B47: 38 | C47: 0 | D47: 516201 | E47: 162650 | F47: 678851 | H47: 0 | I47: 530655 | J47: 162650 | K47: 693305
A48: BOYLSTON | B48: 39 | C48: 0 | D48: 363726 | E48: 0 | F48: 363726 | H48: 0 | I48: 373910 | J48: 0 | K48: 373910
A49: BRAINTREE | B49: 40 | C49: 0 | D49: 6076372 | E49: 30807 | F49: 6107179 | H49: 0 | I49: 6246510 | J49: 30807 | K49: 6277317
A50: BREWSTER | B50: 41 | C50: 0 | D50: 419274 | E50: 315704 | F50: 734978 | H50: 0 | I50: 431014 | J50: 315704 | K50: 746718
A51: BRIDGEWATER | B51: 42 | C51: 0 | D51: 3867561 | E51: 360892 | F51: 4228453 | H51: 0 | I51: 3975853 | J51: 360892 | K51: 4336745
A52: BRIMFIELD | B52: 43 | C52: 0 | D52: 414004 | E52: 84114 | F52: 498118 | H52: 0 | I52: 425596 | J52: 84114 | K52: 509710
A53: BROCKTON | B53: 44 | C53: 0 | D53: 22233756 | E53: 232 | F53: 22233988 | H53: 0 | I53: 22856301 | J53: 232 | K53: 22856533
A54: BROOKFIELD | B54: 45 | C54: 0 | D54: 524296 | E54: 90875 | F54: 615171 | H54: 0 | I54: 538976 | J54: 90875 | K54: 629851
A55: BROOKLINE | B55: 46 | C55: 0 | D55: 6741760 | E55: 0 | F55: 6741760 | H55: 0 | I55: 6930529 | J55: 0 | K55: 6930529
A56: BUCKLAND | B56: 47 | C56: 0 | D56: 325143 | E56: 2404 | F56: 327547 | H56: 0 | I56: 334247 | J56: 2404 | K56: 336651
A57: BURLINGTON | B57: 48 | C57: 0 | D57: 2780883 | E57: 0 | F57: 2780883 | H57: 0 | I57: 2858748 | J57: 0 | K57: 2858748
A58: CAMBRIDGE | B58: 49 | C58: 0 | D58: 22812246 | E58: 0 | F58: 22812246 | H58: 0 | I58: 23450989 | J58: 0 | K58: 23450989
A59: CANTON | B59: 50 | C59: 0 | D59: 2277134 | E59: 38584 | F59: 2315718 | H59: 0 | I59: 2340894 | J59: 38584 | K59: 2379478
A60: CARLISLE | B60: 51 | C60: 0 | D60: 232942 | E60: 163746 | F60: 396688 | H60: 0 | I60: 239464 | J60: 163746 | K60: 403210
A61: CARVER | B61: 52 | C61: 0 | D61: 1551239 | E61: 174878 | F61: 1726117 | H61: 0 | I61: 1594674 | J61: 174878 | K61: 1769552
A62: CHARLEMONT | B62: 53 | C62: 0 | D62: 185614 | E62: 18961 | F62: 204575 | H62: 0 | I62: 190811 | J62: 18961 | K62: 209772
A63: CHARLTON | B63: 54 | C63: 0 | D63: 1538419 | E63: 5210 | F63: 1543629 | H63: 0 | I63: 1581495 | J63: 5210 | K63: 1586705
A64: CHATHAM | B64: 55 | C64: 0 | D64: 159810 | E64: 0 | F64: 159810 | H64: 0 | I64: 164285 | J64: 0 | K64: 164285
A65: CHELMSFORD | B65: 56 | C65: 0 | D65: 5389609 | E65: 5516 | F65: 5395125 | H65: 0 | I65: 5540518 | J65: 5516 | K65: 5546034
A66: CHELSEA | B66: 57 | C66: 0 | D66: 8721149 | E66: 137702 | F66: 8858851 | H66: 0 | I66: 8965341 | J66: 137702 | K66: 9103043
A67: CHESHIRE | B67: 58 | C67: 0 | D67: 652321 | E67: 110901 | F67: 763222 | H67: 0 | I67: 670586 | J67: 110901 | K67: 781487
A68: CHESTER | B68: 59 | C68: 0 | D68: 191177 | E68: 16961 | F68: 208138 | H68: 0 | I68: 196530 | J68: 16961 | K68: 213491
A69: CHESTERFIELD | B69: 60 | C69: 0 | D69: 146607 | E69: 71230 | F69: 217837 | H69: 0 | I69: 150712 | J69: 71230 | K69: 221942
A70: CHICOPEE | B70: 61 | C70: 0 | D70: 12227779 | E70: 0 | F70: 12227779 | H70: 0 | I70: 12570157 | J70: 0 | K70: 12570157
A71: CHILMARK | B71: 62 | C71: 0 | D71: 3983 | E71: 0 | F71: 3983 | H71: 0 | I71: 4095 | J71: 0 | K71: 4095
A72: CLARKSBURG | B72: 63 | C72: 0 | D72: 386290 | E72: 18885 | F72: 405175 | H72: 0 | I72: 397106 | J72: 18885 | K72: 415991
A73: CLINTON | B73: 64 | C73: 0 | D73: 2499684 | E73: 2418 | F73: 2502102 | H73: 0 | I73: 2569675 | J73: 2418 | K73: 2572093
A74: COHASSET | B74: 65 | C74: 0 | D74: 546320 | E74: 0 | F74: 546320 | H74: 0 | I74: 561617 | J74: 0 | K74: 561617
A75: COLRAIN | B75: 66 | C75: 0 | D75: 306467 | E75: 42248 | F75: =SUM(C75:E75) -> 348715 | H75: 0 | I75: 315048 | J75: 42248 | K75: =SUM(H75:J75) -> 357296
A76: CONCORD | B76: 67 | C76: 0 | D76: 1231888 | E76: 570619 | F76: 1802507 | H76: 0 | I76: 1266381 | J76: 570619 | K76: 1837000
A77: CONWAY | B77: 68 | C77: 0 | D77: 189777 | E77: 45671 | F77: 235448 | H77: 0 | I77: 195091 | J77: 45671 | K77: 240762
A78: CUMMINGTON | B78: 69 | C78: 0 | D78: 88584 | E78: 51372 | F78: 139956 | H78: 0 | I78: 91064 | J78: 51372 | K78: 142436
A79: DALTON | B79: 70 | C79: 0 | D79: 1208147 | E79: 55124 | F79: 1263271 | H79: 0 | I79: 1241975 | J79: 55124 | K79: 1297099
A80: DANVERS | B80: 71 | C80: 0 | D80: 3024383 | E80: 280264 | F80: 3304647 | H80: 0 | I80: 3109066 | J80: 280264 | K80: 3389330
A81: DARTMOUTH | B81: 72 | C81: 0 | D81: 2676827 | E81: 298529 | F81: 2975356 | H81: 0 | I81: 2751778 | J81: 298529 | K81: 3050307
A82: DEDHAM | B82: 73 | C82: 0 | D82: 3472478 | E82: 0 | F82: 3472478 | H82: 0 | I82: 3569707 | J82: 0 | K82: 3569707
A83: DEERFIELD | B83: 74 | C83: 0 | D83: 510020 | E83: 86261 | F83: 596281 | H83: 0 | I83: 524301 | J83: 86261 | K83: 610562
A84: DENNIS | B84: 75 | C84: 0 | D84: 578305 | E84: 8118 | F84: 586423 | H84: 0 | I84: 594498 | J84: 8118 | K84: 602616
A85: DIGHTON | B85: 76 | C85: 0 | D85: 821082 | E85: 4497 | F85: 825579 | H85: 0 | I85: 844072 | J85: 4497 | K85: 848569
A86: DOUGLAS | B86: 77 | C86: 0 | D86: 774922 | E86: 208645 | F86: 983567 | H86: 0 | I86: 796620 | J86: 208645 | K86: 1005265
A87: DOVER | B87: 78 | C87: 0 | D87: 204266 | E87: 65615 | F87: 269881 | H87: 0 | I87: 209985 | J87: 65615 | K87: 275600
A88: DRACUT | B88: 79 | C88: 0 | D88: 3720503 | E88: 42872 | F88: 3763375 | H88: 0 | I88: 3824677 | J88: 42872 | K88: 3867549
A89: DUDLEY | B89: 80 | C89: 0 | D89: 1897257 | E89: 0 | F89: 1897257 | H89: 0 | I89: 1950380 | J89: 0 | K89: 1950380
A90: DUNSTABLE | B90: 81 | C90: 0 | D90: 261176 | E90: 42435 | F90: 303611 | H90: 0 | I90: 268489 | J90: 42435 | K90: 310924
A91: DUXBURY | B91: 82 | C91: 0 | D91: 941254 | E91: 100780 | F91: 1042034 | H91: 0 | I91: 967609 | J91: 100780 | K91: 1068389
A92: EAST BRIDGEWAT | B92: 83 | C92: 0 | D92: 1589463 | E92: 3354 | F92: 1592817 | H92: 0 | I92: 1633968 | J92: 3354 | K92: 1637322
A93: EAST BROOKFIEL | B93: 84 | C93: 0 | D93: 307962 | E93: 3435 | F93: 311397 | H93: 0 | I93: 316585 | J93: 3435 | K93: 320020
A94: EAST LONGMEADO | B94: 85 | C94: 0 | D94: 1537043 | E94: 0 | F94: 1537043 | H94: 0 | I94: 1580080 | J94: 0 | K94: 1580080
A95: EASTHAM | B95: 86 | C95: 0 | D95: 158202 | E95: 1900 | F95: 160102 | H95: 0 | I95: 162632 | J95: 1900 | K95: 164532
A96: EASTHAMPTON | B96: 87 | C96: 0 | D96: 2984699 | E96: 3407 | F96: 2988106 | H96: 0 | I96: 3068271 | J96: 3407 | K96: 3071678
A97: EASTON | B97: 88 | C97: 0 | D97: 2325370 | E97: 95767 | F97: 2421137 | H97: 0 | I97: 2390480 | J97: 95767 | K97: 2486247
A98: EDGARTOWN | B98: 89 | C98: 0 | D98: 70733 | E98: 1465372 | F98: 1536105 | H98: 0 | I98: 72714 | J98: 1465372 | K98: 1538086
A99: EGREMONT | B99: 90 | C99: 0 | D99: 66998 | E99: 156206 | F99: 223204 | H99: 0 | I99: 68874 | J99: 156206 | K99: 225080
A100: ERVING | B100: 91 | C100: 0 | D100: 71370 | E100: 47485 | F100: 118855 | H100: 0 | I100: 73368 | J100: 47485 | K100: 120853
A101: ESSEX | B101: 92 | C101: 0 | D101: 259986 | E101: 1851 | F101: 261837 | H101: 0 | I101: 267266 | J101: 1851 | K101: 269117
A102: EVERETT | B102: 93 | C102: 0 | D102: 7336124 | E102: 0 | F102: 7336124 | H102: 0 | I102: 7541535 | J102: 0 | K102: 7541535
A103: FAIRHAVEN | B103: 94 | C103: 0 | D103: 2394507 | E103: 166179 | F103: 2560686 | H103: 0 | I103: 2461553 | J103: 166179 | K103: 2627732
A104: FALL RIVER | B104: 95 | C104: 0 | D104: 25304963 | E104: 333270 | F104: 25638233 | H104: 0 | I104: 26013502 | J104: 333270 | K104: 26346772
A105: FALMOUTH | B105: 96 | C105: 0 | D105: 1472161 | E105: 461240 | F105: 1933401 | H105: 0 | I105: 1513382 | J105: 461240 | K105: 1974622
A106: FITCHBURG | B106: 97 | C106: 0 | D106: 9061922 | E106: 47697 | F106: 9109619 | H106: 0 | I106: 9315656 | J106: 47697 | K106: 9363353
A107: FLORIDA | B107: 98 | C107: 0 | D107: 52853 | E107: 35815 | F107: 88668 | H107: 0 | I107: 54333 | J107: 35815 | K107: 90148
A108: FOXBOROUGH | B108: 99 | C108: 0 | D108: 1581670 | E108: 122445 | F108: 1704115 | H108: 0 | I108: 1625957 | J108: 122445 | K108: 1748402
A109: FRAMINGHAM | B109: 100 | C109: 0 | D109: 10564592 | E109: 465122 | F109: 11029714 | H109: 0 | I109: 10860401 | J109: 465122 | K109: 11325523
A110: FRANKLIN | B110: 101 | C110: 0 | D110: 2623839 | E110: 136032 | F110: 2759871 | H110: 0 | I110: 2697306 | J110: 136032 | K110: 2833338
A111: FREETOWN | B111: 102 | C111: 0 | D111: 1008321 | E111: 198492 | F111: 1206813 | H111: 0 | I111: 1036554 | J111: 198492 | K111: 1235046
A112: GARDNER | B112: 103 | C112: 0 | D112: 4499744 | E112: 50885 | F112: 4550629 | H112: 0 | I112: 4625737 | J112: 50885 | K112: 4676622
A113: GAY HEAD | B113: 104 | C113: 0 | D113: 2482 | E113: 2227 | F113: 4709 | H113: 0 | I113: 2551 | J113: 2227 | K113: 4778
A114: GEORGETOWN | B114: 105 | C114: 0 | D114: 760692 | E114: 140235 | F114: 900927 | H114: 0 | I114: 781991 | J114: 140235 | K114: 922226
A115: GILL | B115: 106 | C115: 0 | D115: 258287 | E115: 18279 | F115: 276566 | H115: 0 | I115: 265519 | J115: 18279 | K115: 283798
A116: GLOUCESTER | B116: 107 | C116: 0 | D116: 4241003 | E116: 23993 | F116: 4264996 | H116: 0 | I116: 4359751 | J116: 23993 | K116: 4383744
A117: GOSHEN | B117: 108 | C117: 0 | D117: 84950 | E117: 35965 | F117: 120915 | H117: 0 | I117: 87329 | J117: 35965 | K117: 123294
A118: GOSNOLD | B118: 109 | C118: 0 | D118: 2227 | E118: 23637 | F118: 25864 | H118: 0 | I118: 2289 | J118: 23637 | K118: 25926
A119: GRAFTON | B119: 110 | C119: 0 | D119: 1660319 | E119: 4949 | F119: 1665268 | H119: 0 | I119: 1706808 | J119: 4949 | K119: 1711757
A120: GRANBY | B120: 111 | C120: 0 | D120: 937587 | E120: 67834 | F120: 1005421 | H120: 0 | I120: 963839 | J120: 67834 | K120: 1031673
A121: GRANVILLE | B121: 112 | C121: 0 | D121: 170249 | E121: 53648 | F121: 223897 | H121: 0 | I121: 175016 | J121: 53648 | K121: 228664
A122: GREAT BARRINGT | B122: 113 | C122: 0 | D122: 805877 | E122: 248949 | F122: 1054826 | H122: 0 | I122: 828442 | J122: 248949 | K122: 1077391
A123: GREENFIELD | B123: 114 | C123: 0 | D123: 3371242 | E123: 29835 | F123: 3401077 | H123: 0 | I123: 3465637 | J123: 29835 | K123: 3495472
A124: GROTON | B124: 115 | C124: 0 | D124: 822557 | E124: 77979 | F124: 900536 | H124: 0 | I124: 845589 | J124: 77979 | K124: 923568
A125: GROVELAND | B125: 116 | C125: 0 | D125: 772960 | E125: 119276 | F125: 892236 | H125: 0 | I125: 794603 | J125: 119276 | K125: 913879
A126: HADLEY | B126: 117 | C126: 0 | D126: 481936 | E126: 220339 | F126: 702275 | H126: 0 | I126: 495430 | J126: 220339 | K126: 715769
A127: HALIFAX | B127: 118 | C127: 0 | D127: 963926 | E127: 47976 | F127: 1011902 | H127: 0 | I127: 990916 | J127: 47976 | K127: 1038892
A128: HAMILTON | B128: 119 | C128: 0 | D128: 713432 | E128: 143730 | F128: 857162 | H128: 0 | I128: 733408 | J128: 143730 | K128: 877138
A129: HAMPDEN | B129: 120 | C129: 0 | D129: 730571 | E129: 0 | F129: 730571 | H129: 0 | I129: 751027 | J129: 0 | K129: 751027
A130: HANCOCK | B130: 121 | C130: 0 | D130: 59953 | E130: 49989 | F130: 109942 | H130: 0 | I130: 61632 | J130: 49989 | K130: 111621
A131: HANOVER | B131: 122 | C131: 0 | D131: 2249434 | E131: 8380 | F131: 2257814 | H131: 0 | I131: 2312418 | J131: 8380 | K131: 2320798
A132: HANSON | B132: 123 | C132: 0 | D132: 1359810 | E132: 43401 | F132: 1403211 | H132: 0 | I132: 1397885 | J132: 43401 | K132: 1441286
A133: HARDWICK | B133: 124 | C133: 0 | D133: 494351 | E133: 58492 | F133: 552843 | H133: 0 | I133: 508193 | J133: 58492 | K133: 566685
A134: HARVARD | B134: 125 | C134: 0 | D134: 1572567 | E134: 4819 | F134: 1577386 | H134: 0 | I134: 1616599 | J134: 4819 | K134: 1621418
A135: HARWICH | B135: 126 | C135: 0 | D135: 457398 | E135: 82030 | F135: 539428 | H135: 0 | I135: 470205 | J135: 82030 | K135: 552235
A136: HATFIELD | B136: 127 | C136: 0 | D136: 331332 | E136: 4466 | F136: 335798 | H136: 0 | I136: 340609 | J136: 4466 | K136: 345075
A137: HAVERHILL | B137: 128 | C137: 0 | D137: 10436481 | E137: 941 | F137: 10437422 | H137: 0 | I137: 10728702 | J137: 941 | K137: 10729643
A138: HAWLEY | B138: 129 | C138: 0 | D138: 45954 | E138: 57635 | F138: 103589 | H138: 0 | I138: 47241 | J138: 57635 | K138: 104876
A139: HEATH | B139: 130 | C139: 0 | D139: 88845 | E139: 4410 | F139: =SUM(C139:E139) -> 93255 | H139: 0 | I139: 91333 | J139: 4410 | K139: =SUM(H139:J139) -> 95743
A140: HINGHAM | B140: 131 | C140: 0 | D140: 1675859 | E140: 4332 | F140: 1680191 | H140: 0 | I140: 1722783 | J140: 4332 | K140: 1727115
A141: HINSDALE | B141: 132 | C141: 0 | D141: 236433 | E141: 31816 | F141: 268249 | H141: 0 | I141: 243053 | J141: 31816 | K141: 274869
A142: HOLBROOK | B142: 133 | C142: 0 | D142: 1566803 | E142: 0 | F142: 1566803 | H142: 0 | I142: 1610673 | J142: 0 | K142: 1610673
A143: HOLDEN | B143: 134 | C143: 0 | D143: 2030218 | E143: 102605 | F143: 2132823 | H143: 0 | I143: 2087064 | J143: 102605 | K143: 2189669
A144: HOLLAND | B144: 135 | C144: 0 | D144: 214328 | E144: 3897 | F144: 218225 | H144: 0 | I144: 220329 | J144: 3897 | K144: 224226
A145: HOLLISTON | B145: 136 | C145: 0 | D145: 1644407 | E145: 2348 | F145: 1646755 | H145: 0 | I145: 1690450 | J145: 2348 | K145: 1692798
A146: HOLYOKE | B146: 137 | C146: 0 | D146: 10784446 | E146: 77810 | F146: 10862256 | H146: 0 | I146: 11086410 | J146: 77810 | K146: 11164220
A147: HOPEDALE | B147: 138 | C147: 0 | D147: 692424 | E147: 31 | F147: 692455 | H147: 0 | I147: 711812 | J147: 31 | K147: 711843
A148: HOPKINTON | B148: 139 | C148: 0 | D148: 834159 | E148: 346054 | F148: 1180213 | H148: 0 | I148: 857515 | J148: 346054 | K148: 1203569
A149: HUBBARDSTON | B149: 140 | C149: 0 | D149: 478330 | E149: 67295 | F149: 545625 | H149: 0 | I149: 491723 | J149: 67295 | K149: 559018
A150: HUDSON | B150: 141 | C150: 0 | D150: 2117490 | E150: 52650 | F150: 2170140 | H150: 0 | I150: 2176780 | J150: 52650 | K150: 2229430
A151: HULL | B151: 142 | C151: 0 | D151: 2250382 | E151: 23656 | F151: 2274038 | H151: 0 | I151: 2313393 | J151: 23656 | K151: 2337049
A152: HUNTINGTON | B152: 143 | C152: 0 | D152: 365967 | E152: 37034 | F152: 403001 | H152: 0 | I152: 376214 | J152: 37034 | K152: 413248
A153: IPSWICH | B153: 144 | C153: 0 | D153: 1704546 | E153: 375103 | F153: 2079649 | H153: 0 | I153: 1752273 | J153: 375103 | K153: 2127376
A154: KINGSTON | B154: 145 | C154: 0 | D154: 1019231 | E154: 32111 | F154: 1051342 | H154: 0 | I154: 1047769 | J154: 32111 | K154: 1079880
A155: LAKEVILLE | B155: 146 | C155: 0 | D155: 868848 | E155: 13345 | F155: 882193 | H155: 0 | I155: 893176 | J155: 13345 | K155: 906521
A156: LANCASTER | B156: 147 | C156: 0 | D156: 1015030 | E156: 125086 | F156: 1140116 | H156: 0 | I156: 1043451 | J156: 125086 | K156: 1168537
A157: LANESBOROUGH | B157: 148 | C157: 0 | D157: 366295 | E157: 108408 | F157: 474703 | H157: 0 | I157: 376551 | J157: 108408 | K157: 484959
A158: LAWRENCE | B158: 149 | C158: 0 | D158: 20849605 | E158: 6778 | F158: 20856383 | H158: 0 | I158: 21433394 | J158: 6778 | K158: 21440172
A159: LEE | B159: 150 | C159: 0 | D159: 661312 | E159: 66705 | F159: 728017 | H159: 0 | I159: 679829 | J159: 66705 | K159: 746534
A160: LEICESTER | B160: 151 | C160: 0 | D160: 1843736 | E160: 9922 | F160: 1853658 | H160: 0 | I160: 1895361 | J160: 9922 | K160: 1905283
A161: LENOX | B161: 152 | C161: 0 | D161: 566001 | E161: 40770 | F161: 606771 | H161: 0 | I161: 581849 | J161: 40770 | K161: 622619
A162: LEOMINSTER | B162: 153 | C162: 0 | D162: 6077376 | E162: 141003 | F162: 6218379 | H162: 0 | I162: 6247543 | J162: 141003 | K162: 6388546
A163: LEVERETT | B163: 154 | C163: 0 | D163: 189541 | E163: 16497 | F163: 206038 | H163: 0 | I163: 194848 | J163: 16497 | K163: 211345
A164: LEXINGTON | B164: 155 | C164: 0 | D164: 1627400 | E164: 0 | F164: 1627400 | H164: 0 | I164: 1672967 | J164: 0 | K164: 1672967
A165: LEYDEN | B165: 156 | C165: 0 | D165: 87430 | E165: 29574 | F165: 117004 | H165: 0 | I165: 89878 | J165: 29574 | K165: 119452
A166: LINCOLN | B166: 157 | C166: 0 | D166: 722906 | E166: 412583 | F166: 1135489 | H166: 0 | I166: 743147 | J166: 412583 | K166: 1155730
A167: LITTLETON | B167: 158 | C167: 0 | D167: 754817 | E167: 5702 | F167: 760519 | H167: 0 | I167: 775952 | J167: 5702 | K167: 781654
A168: LONGMEADOW | B168: 159 | C168: 0 | D168: 1483570 | E168: 0 | F168: 1483570 | H168: 0 | I168: 1525110 | J168: 0 | K168: 1525110
A169: LOWELL | B169: 160 | C169: 0 | D169: 26746523 | E169: 209228 | F169: 26955751 | H169: 0 | I169: 27495426 | J169: 209228 | K169: 27704654
A170: LUDLOW | B170: 161 | C170: 0 | D170: 3243895 | E170: 33644 | F170: 3277539 | H170: 0 | I170: 3334724 | J170: 33644 | K170: 3368368
A171: LUNENBURG | B171: 162 | C171: 0 | D171: 1122928 | E171: 26222 | F171: 1149150 | H171: 0 | I171: 1154370 | J171: 26222 | K171: 1180592
A172: LYNN | B172: 163 | C172: 0 | D172: 23774862 | E172: 1837 | F172: 23776699 | H172: 0 | I172: 24440558 | J172: 1837 | K172: 24442395
A173: LYNNFIELD | B173: 164 | C173: 0 | D173: 1104377 | E173: 42759 | F173: 1147136 | H173: 0 | I173: 1135300 | J173: 42759 | K173: 1178059
A174: MALDEN | B174: 165 | C174: 0 | D174: 13322297 | E174: 0 | F174: 13322297 | H174: 0 | I174: 13695321 | J174: 0 | K174: 13695321
A175: MANCHESTER | B175: 166 | C175: 0 | D175: 236147 | E175: 0 | F175: 236147 | H175: 0 | I175: 242759 | J175: 0 | K175: 242759
A176: MANSFIELD | B176: 167 | C176: 0 | D176: 2368619 | E176: 0 | F176: 2368619 | H176: 0 | I176: 2434940 | J176: 0 | K176: 2434940
A177: MARBLEHEAD | B177: 168 | C177: 0 | D177: 1209205 | E177: 0 | F177: 1209205 | H177: 0 | I177: 1243063 | J177: 0 | K177: 1243063
A178: MARION | B178: 169 | C178: 0 | D178: 239599 | E178: 24181 | F178: 263780 | H178: 0 | I178: 246308 | J178: 24181 | K178: 270489
A179: MARLBOROUGH | B179: 170 | C179: 0 | D179: 5780446 | E179: 75163 | F179: 5855609 | H179: 0 | I179: 5942298 | J179: 75163 | K179: 6017461
A180: MARSHFIELD | B180: 171 | C180: 0 | D180: 2300372 | E180: 3362 | F180: 2303734 | H180: 0 | I180: 2364782 | J180: 3362 | K180: 2368144
A181: MASHPEE | B181: 172 | C181: 0 | D181: 390683 | E181: 407859 | F181: 798542 | H181: 0 | I181: 401622 | J181: 407859 | K181: 809481
A182: MATTAPOISETT | B182: 173 | C182: 0 | D182: 430377 | E182: 174954 | F182: 605331 | H182: 0 | I182: 442428 | J182: 174954 | K182: 617382
A183: MAYNARD | B183: 174 | C183: 0 | D183: 1668251 | E183: 0 | F183: 1668251 | H183: 0 | I183: 1714962 | J183: 0 | K183: 1714962
A184: MEDFIELD | B184: 175 | C184: 0 | D184: 1539280 | E184: 47799 | F184: 1587079 | H184: 0 | I184: 1582380 | J184: 47799 | K184: 1630179
A185: MEDFORD | B185: 176 | C185: 0 | D185: 12880443 | E185: 53104 | F185: 12933547 | H185: 0 | I185: 13241095 | J185: 53104 | K185: 13294199
A186: MEDWAY | B186: 177 | C186: 0 | D186: 1295508 | E186: 0 | F186: 1295508 | H186: 0 | I186: 1331782 | J186: 0 | K186: 1331782
A187: MELROSE | B187: 178 | C187: 0 | D187: 5445804 | E187: 1188 | F187: 5446992 | H187: 0 | I187: 5598287 | J187: 1188 | K187: 5599475
A188: MENDON | B188: 179 | C188: 0 | D188: 433944 | E188: 4564 | F188: 438508 | H188: 0 | I188: 446094 | J188: 4564 | K188: 450658
A189: MERRIMAC | B189: 180 | C189: 0 | D189: 893448 | E189: 3085 | F189: 896533 | H189: 0 | I189: 918465 | J189: 3085 | K189: 921550
A190: METHUEN | B190: 181 | C190: 0 | D190: 5773605 | E190: 0 | F190: 5773605 | H190: 0 | I190: 5935266 | J190: 0 | K190: 5935266
A191: MIDDLEBOROUGH | B191: 182 | C191: 0 | D191: 2618046 | E191: 159941 | F191: 2777987 | H191: 0 | I191: 2691351 | J191: 159941 | K191: 2851292
A192: MIDDLEFIELD | B192: 183 | C192: 0 | D192: 56450 | E192: 56885 | F192: 113335 | H192: 0 | I192: 58031 | J192: 56885 | K192: 114916
A193: MIDDLETON | B193: 184 | C193: 0 | D193: 581010 | E193: 22117 | F193: 603127 | H193: 0 | I193: 597278 | J193: 22117 | K193: 619395
A194: MILFORD | B194: 185 | C194: 0 | D194: 3243398 | E194: 0 | F194: 3243398 | H194: 0 | I194: 3334213 | J194: 0 | K194: 3334213
A195: MILLBURY | B195: 186 | C195: 0 | D195: 1880366 | E195: 13574 | F195: 1893940 | H195: 0 | I195: 1933016 | J195: 13574 | K195: 1946590
A196: MILLIS | B196: 187 | C196: 0 | D196: 1111757 | E196: 0 | F196: 1111757 | H196: 0 | I196: 1142886 | J196: 0 | K196: 1142886
A197: MILLVILLE | B197: 188 | C197: 0 | D197: 432534 | E197: 2640 | F197: 435174 | H197: 0 | I197: 444645 | J197: 2640 | K197: 447285
A198: MILTON | B198: 189 | C198: 0 | D198: 3411993 | E198: 892080 | F198: 4304073 | H198: 0 | I198: 3507529 | J198: 892080 | K198: 4399609
A199: MONROE | B199: 190 | C199: 0 | D199: 19525 | E199: 7644 | F199: 27169 | H199: 0 | I199: 20072 | J199: 7644 | K199: 27716
A200: MONSON | B200: 191 | C200: 0 | D200: 1386152 | E200: 88246 | F200: 1474398 | H200: 0 | I200: 1424964 | J200: 88246 | K200: 1513210
A201: MONTAGUE | B201: 192 | C201: 0 | D201: 1521832 | E201: 221320 | F201: 1743152 | H201: 0 | I201: 1564443 | J201: 221320 | K201: 1785763
A202: MONTEREY | B202: 193 | C202: 0 | D202: 49097 | E202: 244817 | F202: 293914 | H202: 0 | I202: 50472 | J202: 244817 | K202: 295289
A203: MONTGOMERY | B203: 194 | C203: 0 | D203: 92154 | E203: 5632 | F203: =SUM(C203:E203) -> 97786 | H203: 0 | I203: 94734 | J203: 5632 | K203: =SUM(H203:J203) -> 100366
A204: MOUNT WASHINGT | B204: 195 | C204: 0 | D204: 31831 | E204: 239492 | F204: 271323 | H204: 0 | I204: 32722 | J204: 239492 | K204: 272214
... 157 more rows

Sheet Local Receipts (hidden)
A1: Recurring Local Receipts
A2: 1997-01-21
F3: Base Year Actuals | P3: Current Year Estimates
F5: Penalties | K5: Recurring | P5: Penalties | U5: Recurring | V5: Recurring
D6: Motor | F6: & Interest | G6: Payments | H6: Fines | K6: Local | N6: Motor | P6: & Interest | Q6: Payments | R6: Fines | U6: Local | V6: Local
C7: Base | D7: Vehicle | E7: Other | F7: On Tax & | G7: in-Lieu | H7: and | I7: Investment | J7: Miscel- | K7: Receipts | M7: Current | N7: Vehicle | O7: Other | P7: On Tax & | Q7: in-Lieu | R7: and | S7: Investment | T7: Miscel- | U7: Receipts | V7: Receipts
C8: Year | D8: Excise | E8: Excise | F8: Excise | G8: of Taxes | H8: Forfeits | I8: Income | J8: laneous | K8: Base | M8: Year | N8: Excise | O8: Excise | P8: Excise | Q8: of Taxes | R8: Forfeits | S8: Income | T8: laneous | U8: Current | V8: Base
A10: ABINGTON | B10: 1 | C10: 2019 | D10: 2104723 | E10: 285000 | F10: 225000 | G10: 0 | H10: 40000 | I10: 65000 | J10: 25000 | K10: =SUM(D10:J10) -> 2744723 | M10: 2020 | N10: 2531824 | O10: 340000 | P10: 250000 | Q10: 0 | R10: 50000 | S10: 85000 | T10: 245000 | U10: =SUM(N10:T10) -> 3501824 | V10: =SUM(N10:T10) -> 3501824
A11: ACTON | B11: 2 | C11: 2019 | D11: 3420000 | E11: 310000 | F11: 125000 | G11: 40000 | H11: 113000 | I11: 112000 | J11: 0 | K11: =SUM(D11:J11) -> 4120000 | M11: 2020 | N11: 3429000 | O11: 309000 | P11: 160000 | Q11: 45000 | R11: 92000 | S11: 117000 | T11: 0 | U11: =SUM(N11:T11) -> 4152000 | V11: =SUM(N11:T11) -> 4152000
A12: ACUSHNET | B12: 3 | C12: 2019 | D12: 1000000 | E12: 0 | F12: 110000 | G12: 0 | H12: 10000 | I12: 13500 | J12: 75000 | K12: 1208500 | M12: 2020 | N12: 1200000 | O12: 0 | P12: 110000 | Q12: 0 | R12: 10000 | S12: 13500 | T12: 75000 | U12: 1408500 | V12: 1408500
A13: ADAMS | B13: 4 | C13: 2019 | D13: 944504 | E13: 15213 | F13: 95956 | G13: 136900 | H13: 15700 | I13: 5000 | J13: 0 | K13: 1213273 | M13: 2020 | N13: 975000 | O13: 16000 | P13: 92538 | Q13: 151462 | R13: 16000 | S13: 5000 | T13: 0 | U13: 1256000 | V13: 1256000
A14: AGAWAM | B14: 5 | C14: 2019 | D14: 3650000 | E14: 0 | F14: 210000 | G14: 52000 | H14: 11900 | I14: 166000 | J14: 1228050 | K14: 5317950 | M14: 2020 | N14: 3500000 | O14: 160000 | P14: 196000 | Q14: 52000 | R14: 11900 | S14: 300000 | T14: 1496583 | U14: 5716483 | V14: 5716483
A15: ALFORD | B15: 6 | C15: 2019 | D15: 104000 | E15: 0 | F15: 18000 | G15: 0 | H15: 4500 | I15: 3000 | J15: 0 | K15: 129500 | M15: 2020 | N15: 95000 | O15: 0 | P15: 7000 | Q15: 0 | R15: 3000 | S15: 4700 | T15: 0 | U15: 109700 | V15: 109700
A16: AMESBURY | B16: 7 | C16: 2019 | D16: 2230000 | E16: 578500 | F16: 192500 | G16: 12000 | H16: 71500 | I16: 30500 | J16: 136000 | K16: 3251000 | M16: 2020 | N16: 2314606 | O16: 607000 | P16: 120000 | Q16: 12000 | R16: 60000 | S16: 40000 | T16: 185000 | U16: 3338606 | V16: 3338606
A17: AMHERST | B17: 8 | C17: 2019 | D17: 1875000 | E17: 687000 | F17: 197229 | G17: 948476 | H17: 97700 | I17: 80000 | J17: 260549 | K17: 4145954 | M17: 2020 | N17: 1930373 | O17: 700000 | P17: 232229 | Q17: 951277 | R17: 87700 | S17: 90000 | T17: 655549 | U17: 4647128 | V17: 4647128
A18: ANDOVER | B18: 9 | C18: 2019 | D18: 5331697 | E18: 2250205 | F18: 326345 | G18: 382000 | H18: 275000 | I18: 146100 | J18: 78114 | K18: 8789461 | M18: 2020 | N18: 5826858 | O18: 2358666 | P18: 461500 | Q18: 412000 | R18: 242000 | S18: 631269 | T18: 76121 | U18: 10008414 | V18: 10008414
A19: ARLINGTON | B19: 10 | C19: 2019 | D19: 4551000 | E19: 725000 | F19: 355000 | G19: 18000 | H19: 30000 | I19: 65000 | J19: 0 | K19: 5744000 | M19: 2020 | N19: 5051000 | O19: 725000 | P19: 355000 | Q19: 18000 | R19: 30000 | S19: 65000 | T19: 0 | U19: 6244000 | V19: 6244000
A20: ASHBURNHAM | B20: 11 | C20: 2019 | D20: 880595 | E20: 2012 | F20: 52983 | G20: 67637 | H20: 21850 | I20: 3900 | J20: 110000 | K20: 1138977 | M20: 2020 | N20: 890000 | O20: 2012 | P20: 120000 | Q20: 67930 | R20: 21850 | S20: 3900 | T20: 110000 | U20: 1215692 | V20: 1215692
A21: ASHBY | B21: 12 | C21: 2019 | D21: 400000 | E21: 0 | F21: 22500 | G21: 12000 | H21: 8500 | I21: 2400 | J21: 0 | K21: 445400 | M21: 2020 | N21: 410000 | O21: 0 | P21: 22000 | Q21: 12000 | R21: 9500 | S21: 2500 | T21: 0 | U21: 456000 | V21: 456000
A22: ASHFIELD | B22: 13 | C22: 2019 | D22: 178500 | E22: 0 | F22: 24000 | G22: 0 | H22: 2000 | I22: 3000 | J22: 0 | K22: 207500 | M22: 2020 | N22: 200000 | O22: 0 | P22: 17000 | Q22: 0 | R22: 3105.09 | S22: 13000 | T22: 0 | U22: 233105.09 | V22: 233105.09
A23: ASHLAND | B23: 14 | C23: 2019 | D23: 2565000 | E23: 225000 | F23: 195000 | G23: 0 | H23: 25000 | I23: 100000 | J23: 100000 | K23: 3210000 | M23: 2020 | N23: 2895000 | O23: 0 | P23: 230135.77 | Q23: 0 | R23: 30000 | S23: 200000 | T23: 100000 | U23: 3455135.77 | V23: 3455135.77
A24: ATHOL | B24: 15 | C24: 2019 | D24: 1020000 | E24: 126000 | F24: 190000 | G24: 0 | H24: 15000 | I24: 12000 | J24: 0 | K24: 1363000 | M24: 2020 | N24: 1050000 | O24: 140000 | P24: 195000 | Q24: 0 | R24: 15000 | S24: 25000 | T24: 0 | U24: 1425000 | V24: 1425000
A25: ATTLEBORO | B25: 16 | C25: 2019 | D25: 4900863.07 | E25: 645000 | F25: 410000 | G25: 6700 | H25: 250000 | I25: 20000 | J25: 477000 | K25: 6709563.07 | M25: 2020 | N25: 5009261.15 | O25: 685000 | P25: 410000 | Q25: 6700 | R25: 210000 | S25: 20000 | T25: 477000 | U25: 6817961.15 | V25: 6817961.15
A26: AUBURN | B26: 17 | C26: 2019 | D26: 2905000 | E26: 1025000 | F26: 250000 | G26: 42715.73 | H26: 145500 | I26: 75000 | J26: 0 | K26: 4443215.73 | M26: 2020 | N26: 2930000 | O26: 1025000 | P26: 245000 | Q26: 85000 | R26: 145500 | S26: 80000 | T26: 0 | U26: 4510500 | V26: 4510500
A27: AVON | B27: 18 | C27: 2019 | D27: 1072723 | E27: 70000 | F27: 140000 | G27: 73500 | H27: 25000 | I27: 150000 | J27: 35000 | K27: 1566223 | M27: 2020 | N27: 1075800 | O27: 70000 | P27: 181944 | Q27: 74970 | R27: 25500 | S27: 153000 | T27: 30000 | U27: 1611214 | V27: 1611214
A28: AYER | B28: 19 | C28: 2019 | D28: 1096400 | E28: 123000 | F28: 68000 | G28: 7500 | H28: 10000 | I28: 18000 | J28: 100000 | K28: 1422900 | M28: 2020 | N28: 1099000 | O28: 123000 | P28: 75000 | Q28: 7000 | R28: 9000 | S28: 23000 | T28: 120000 | U28: 1456000 | V28: 1456000
A29: BARNSTABLE | B29: 20 | C29: 2019 | D29: 7128259 | E29: 2030000 | F29: 1124000 | G29: 30000 | H29: 376000 | I29: 400000 | J29: 700000 | K29: 11788259 | M29: 2020 | N29: 7131377 | O29: 2060000 | P29: 1204000 | Q29: 32000 | R29: 330000 | S29: 400000 | T29: 600000 | U29: 11757377 | V29: 11757377
A30: BARRE | B30: 21 | C30: 2019 | D30: 650000 | E30: 0 | F30: 50000 | G30: 215085 | H30: 12500 | I30: 4000 | J30: 0 | K30: 931585 | M30: 2020 | N30: 722011.97 | O30: 0 | P30: 55000 | Q30: 220168.6 | R30: 13000 | S30: 10000 | T30: 0 | U30: 1020180.57 | V30: 1020180.57
A31: BECKET | B31: 22 | C31: 2019 | D31: 230000 | E31: 0 | F31: 100000 | G31: 5000 | H31: 9000 | I31: 15000 | J31: 0 | K31: 359000 | M31: 2020 | N31: 230000 | O31: 0 | P31: 100000 | Q31: 5000 | R31: 9000 | S31: 15000 | T31: 0 | U31: 359000 | V31: 359000
A32: BEDFORD | B32: 23 | C32: 2019 | D32: 1950000 | E32: 1100000 | F32: 50000 | G32: 1654518 | H32: 60000 | I32: 150000 | J32: 50000 | K32: 5014518 | M32: 2020 | N32: 1950000 | O32: 1050000 | P32: 50000 | Q32: 1734184 | R32: 60000 | S32: 220000 | T32: 30000 | U32: 5094184 | V32: 5094184
A33: BELCHERTOWN | B33: 24 | C33: 2019 | D33: 1915000 | E33: 97000 | F33: 155000 | G33: 328000 | H33: 40700 | I33: 50000 | J33: 185593 | K33: 2771293 | M33: 2020 | N33: 2000000 | O33: 100000 | P33: 140000 | Q33: 328000 | R33: 25700 | S33: 70000 | T33: 269593 | U33: 2933293 | V33: 2933293
A34: BELLINGHAM | B34: 25 | C34: 2019 | D34: 2500000 | E34: 355000 | F34: 225000 | G34: 83971 | H34: 101400 | I34: 40000 | J34: 242928 | K34: 3548299 | M34: 2020 | N34: 2650000 | O34: 370000 | P34: 285575 | Q34: 68733 | R34: 115700 | S34: 30000 | T34: 257928 | U34: 3777936 | V34: 3777936
A35: BELMONT | B35: 26 | C35: 2019 | D35: 3199812 | E35: 200000 | F35: 200000 | G35: 36000 | H35: 125075 | I35: 149308 | J35: 0 | K35: 3910195 | M35: 2020 | N35: 3435243 | O35: 229279 | P35: 330000 | Q35: 36000 | R35: 237733 | S35: 250000 | T35: 0 | U35: 4518255 | V35: 4518255
A36: BERKLEY | B36: 27 | C36: 2019 | D36: 654000 | E36: 20000 | F36: 45000 | G36: 0 | H36: 10605 | I36: 8000 | J36: 0 | K36: 737605 | M36: 2020 | N36: 730700 | O36: 20000 | P36: 45000 | Q36: 0 | R36: 10604 | S36: 20386 | T36: 0 | U36: 826690 | V36: 826690
A37: BERLIN | B37: 28 | C37: 2019 | D37: 536911 | E37: 51784 | F37: 24620 | G37: 67522 | H37: 38880 | I37: 18000 | J37: 21078 | K37: 758795 | M37: 2020 | N37: 535455 | O37: 82080 | P37: 29500 | Q37: 69613 | R37: 28250 | S37: 38515 | T37: 0 | U37: 783413 | V37: 783413
A38: BERNARDSTON | B38: 29 | C38: 2019 | D38: 248000 | E38: 90000 | F38: 15000 | G38: 0 | H38: 33500 | I38: 2600 | J38: 5000 | K38: 394100 | M38: 2020 | N38: 251850 | O38: 88000 | P38: 15000 | Q38: 0 | R38: 33000 | S38: 3103 | T38: 5000 | U38: 395953 | V38: 395953
A39: BEVERLY | B39: 30 | C39: 2019 | D39: 4725000 | E39: 870000 | F39: 320050 | G39: 236667 | H39: 85200 | I39: 75000 | J39: 820000 | K39: 7131917 | M39: 2020 | N39: 4500000 | O39: 875000 | P39: 320050 | Q39: 236667 | R39: 20000 | S39: 100000 | T39: 862000 | U39: 6913717 | V39: 6913717
A40: BILLERICA | B40: 31 | C40: 2019 | D40: 6300000 | E40: 1500000 | F40: 350000 | G40: 40000 | H40: 125000 | I40: 225000 | J40: 125000 | K40: 8665000 | M40: 2020 | N40: 6500000 | O40: 1500000 | P40: 355000 | Q40: 45000 | R40: 125000 | S40: 225000 | T40: 125000 | U40: 8875000 | V40: 8875000
A41: BLACKSTONE | B41: 32 | C41: 2019 | D41: 975000 | E41: 30000 | F41: 100000 | G41: 12000 | H41: 35000 | I41: 8000 | J41: 0 | K41: 1160000 | M41: 2020 | N41: 1150000 | O41: 40000 | P41: 100000 | Q41: 12000 | R41: 35000 | S41: 8000 | T41: 0 | U41: 1345000 | V41: 1345000
A42: BLANDFORD | B42: 33 | C42: 2019 | D42: 150000 | E42: 30000 | F42: 35000 | G42: 220000 | H42: 500 | I42: 2300 | J42: 0 | K42: 437800 | M42: 2020 | N42: 165000 | O42: 33000 | P42: 63000 | Q42: 260000 | R42: 5000 | S42: 2300 | T42: 0 | U42: 528300 | V42: 528300
A43: BOLTON | B43: 34 | C43: 2019 | D43: 865438 | E43: 10000 | F43: 50000 | G43: 0 | H43: 40000 | I43: 10000 | J43: 0 | K43: 975438 | M43: 2020 | N43: 900000 | O43: 62000 | P43: 60000 | Q43: 0 | R43: 40000 | S43: 12000 | T43: 0 | U43: 1074000 | V43: 1074000
A44: BOSTON | B44: 35 | C44: 2019 | D44: 52040000 | E44: 149250000 | F44: 9005000 | G44: 63016158 | H44: 68745000 | I44: 5000000 | J44: 7767338 | K44: 354823496 | M44: 2020 | N44: 52040000 | O44: 164000000 | P44: 8000000 | Q44: 68530000 | R44: 69175000 | S44: 15000000 | T44: 7767338 | U44: 384512338 | V44: 384512338
A45: BOURNE | B45: 36 | C45: 2019 | D45: 2850000 | E45: 525000 | F45: 196791 | G45: 20000 | H45: 125000 | I45: 46000 | J45: 649000 | K45: 4411791 | M45: 2020 | N45: 3215000 | O45: 555000 | P45: 168895.84 | Q45: 20000 | R45: 130000 | S45: 250000 | T45: 730000 | U45: 5068895.84 | V45: 5068895.84
A46: BOXBOROUGH | B46: 37 | C46: 2019 | D46: 800000 | E46: 127500 | F46: 40000 | G46: 0 | H46: 28500 | I46: 8000 | J46: 23000 | K46: 1027000 | M46: 2020 | N46: 840000 | O46: 181000 | P46: 40000 | Q46: 0 | R46: 28500 | S46: 25000 | T46: 33000 | U46: 1147500 | V46: 1147500
A47: BOXFORD | B47: 38 | C47: 2019 | D47: 1650000 | E47: 0 | F47: 72000 | G47: 0 | H47: 50000 | I47: 95000 | J47: 0 | K47: 1867000 | M47: 2020 | N47: 1630000 | O47: 0 | P47: 53300 | Q47: 0 | R47: 25000 | S47: 150000 | T47: 3983 | U47: 1862283 | V47: 1862283
A48: BOYLSTON | B48: 39 | C48: 2019 | D48: 1096000 | E48: 0 | F48: 32000 | G48: 595000 | H48: 13000 | I48: 5000 | J48: 100000 | K48: 1841000 | M48: 2020 | N48: 1022000 | O48: 0 | P48: 35000 | Q48: 595000 | R48: 13000 | S48: 20000 | T48: 100000 | U48: 1785000 | V48: 1785000
A49: BRAINTREE | B49: 40 | C49: 2019 | D49: 6613000 | E49: 2793000 | F49: 318000 | G49: 2572000 | H49: 97000 | I49: 1200000 | J49: 1511000 | K49: 15104000 | M49: 2020 | N49: 6673386 | O49: 2913000 | P49: 298000 | Q49: 2411000 | R49: 97000 | S49: 1070000 | T49: 1343000 | U49: 14805386 | V49: 14805386
A50: BREWSTER | B50: 41 | C50: 2019 | D50: 1651000 | E50: 1339200 | F50: 218000 | G50: 7000 | H50: 28200 | I50: 113784 | J50: 68500 | K50: 3425684 | M50: 2020 | N50: 1436262 | O50: 1214187 | P50: 152889 | Q50: 8328 | R50: 23826 | S50: 114793 | T50: 54778 | U50: 3005063 | V50: 3005063
A51: BRIDGEWATER | B51: 42 | C51: 2019 | D51: 3359518 | E51: 500000 | F51: 226143 | G51: 5121 | H51: 20000 | I51: 20000 | J51: 0 | K51: 4130782 | M51: 2020 | N51: 3331972.9 | O51: 500000 | P51: 261000 | Q51: 5121 | R51: 39000 | S51: 60254 | T51: 0 | U51: 4197347.9 | V51: 4197347.9
A52: BRIMFIELD | B52: 43 | C52: 2019 | D52: 532394.48 | E52: 2172 | F52: 60000 | G52: 2628 | H52: 2200 | I52: 9000 | J52: 60000 | K52: 668394.48 | M52: 2020 | N52: 465000 | O52: 1961 | P52: 50000 | Q52: 2688 | R52: 2935 | S52: 18777 | T52: 55000 | U52: 596361 | V52: 596361
A53: BROCKTON | B53: 44 | C53: 2019 | D53: 8330000 | E53: 2090000 | F53: 1845000 | G53: 165000 | H53: 250000 | I53: 480000 | J53: 1705000 | K53: 14865000 | M53: 2020 | N53: 8500000 | O53: 1900000 | P53: 1950000 | Q53: 160000 | R53: 350000 | S53: 400000 | T53: 1020000 | U53: 14280000 | V53: 14280000
A54: BROOKFIELD | B54: 45 | C54: 2019 | D54: 479361.72 | E54: 0 | F54: 58725.95 | G54: 5000 | H54: 4134 | I54: 4500 | J54: 18038.28 | K54: 569759.95 | M54: 2020 | N54: 447668.39 | O54: 0 | P54: 40000 | Q54: 5000 | R54: 12000 | S54: 15000 | T54: 25000 | U54: 544668.39 | V54: 544668.39
A55: BROOKLINE | B55: 46 | C55: 2019 | D55: 6022200 | E55: 2972410 | F55: 512806 | G55: 983636 | H55: 3592000 | I55: 436391 | J55: 1157379 | K55: 15676822 | M55: 2020 | N55: 6142644 | O55: 3460310 | P55: 525676 | Q55: 1010509 | R55: 3392000 | S55: 447300 | T55: 1081367 | U55: 16059806 | V55: 16059806
A56: BUCKLAND | B56: 47 | C56: 2019 | D56: 170000 | E56: 0 | F56: 15000 | G56: 0 | H56: 3000 | I56: 1500 | J56: 0 | K56: 189500 | M56: 2020 | N56: 170000 | O56: 0 | P56: 15000 | Q56: 0 | R56: 3000 | S56: 1500 | T56: 0 | U56: 189500 | V56: 189500
A57: BURLINGTON | B57: 48 | C57: 2019 | D57: 3933515.34 | E57: 4275000 | F57: 400000 | G57: 520000 | H57: 25000 | I57: 250000 | J57: 210000 | K57: 9613515.34 | M57: 2020 | N57: 4097757.1 | O57: 4460000 | P57: 225000 | Q57: 520000 | R57: 15000 | S57: 485000 | T57: 260000 | U57: 10062757.1 | V57: 10062757.1
A58: CAMBRIDGE | B58: 49 | C58: 2019 | D58: 7200000 | E58: 20012500 | F58: 550000 | G58: 7100000 | H58: 11343735 | I58: 2810000 | J58: 1000000 | K58: 50016235 | M58: 2020 | N58: 7600000 | O58: 20750000 | P58: 550000 | Q58: 7100000 | R58: 10244395 | S58: 4870000 | T58: 1000000 | U58: 52114395 | V58: 52114395
A59: CANTON | B59: 50 | C59: 2019 | D59: 4000000 | E59: 550000 | F59: 300000 | G59: 242736 | H59: 100000 | I59: 80000 | J59: 150000 | K59: 5422736 | M59: 2020 | N59: 4300000 | O59: 550000 | P59: 275000 | Q59: 248804 | R59: 80000 | S59: 300000 | T59: 250000 | U59: 6003804 | V59: 6003804
A60: CARLISLE | B60: 51 | C60: 2019 | D60: 902112 | E60: 0 | F60: 49000 | G60: 7000 | H60: 4000 | I60: 12000 | J60: 12473 | K60: 986585 | M60: 2020 | N60: 950000 | O60: 0 | P60: 49000 | Q60: 7000 | R60: 4000 | S60: 13000 | T60: 12000 | U60: 1035000 | V60: 1035000
A61: CARVER | B61: 52 | C61: 2019 | D61: 1640183 | E61: 234003 | F61: 160000 | G61: 28000 | H61: 24631 | I61: 37000 | J61: 138000 | K61: 2261817 | M61: 2020 | N61: 1742353 | O61: 239752 | P61: 170167 | Q61: 28589 | R61: 24573 | S61: 55678 | T61: 41202 | U61: 2302314 | V61: 2302314
A62: CHARLEMONT | B62: 53 | C62: 2019 | D62: 145000 | E62: 25000 | F62: 33000 | G62: 882 | H62: 2000 | I62: 3750 | J62: 8000 | K62: 217632 | M62: 2020 | N62: 140000 | O62: 32000 | P62: 35000 | Q62: 1000 | R62: 0 | S62: 5000 | T62: 0 | U62: 213000 | V62: 213000
A63: CHARLTON | B63: 54 | C63: 2019 | D63: 1825000 | E63: 199000 | F63: 75500 | G63: 700000 | H63: 80200 | I63: 12000 | J63: 24000 | K63: 2915700 | M63: 2020 | N63: 2000000 | O63: 185150 | P63: 78000 | Q63: 700000 | R63: 82000 | S63: 45500 | T63: 32500 | U63: 3123150 | V63: 3123150
A64: CHATHAM | B64: 55 | C64: 2019 | D64: 985000 | E64: 1665000 | F64: 150000 | G64: 25000 | H64: 30000 | I64: 32500 | J64: 2500 | K64: 2890000 | M64: 2020 | N64: 985000 | O64: 1700000 | P64: 150000 | Q64: 25000 | R64: 40000 | S64: 75000 | T64: 2500 | U64: 2977500 | V64: 2977500
A65: CHELMSFORD | B65: 56 | C65: 2019 | D65: 5450000 | E65: 1048524 | F65: 430000 | G65: 70393 | H65: 170000 | I65: 150000 | J65: 922883 | K65: 8241800 | M65: 2020 | N65: 5400000 | O65: 1070000 | P65: 450000 | Q65: 53393 | R65: 170000 | S65: 217000 | T65: 876407 | U65: 8236800 | V65: 8236800
A66: CHELSEA | B66: 57 | C66: 2019 | D66: 11700000 | E66: 2300000 | F66: 350000 | G66: 1816509 | H66: 2700000 | I66: 1400000 | J66: 700000 | K66: 20966509 | M66: 2020 | N66: 12100000 | O66: 2450000 | P66: 358750 | Q66: 1800000 | R66: 2752500 | S66: 1300000 | T66: 1350000 | U66: 22111250 | V66: 22111250
A67: CHESHIRE | B67: 58 | C67: 2019 | D67: 540000 | E67: 0 | F67: 25000 | G67: 0 | H67: 4300 | I67: 3500 | J67: 0 | K67: 572800 | M67: 2020 | N67: 570000 | O67: 0 | P67: 30000 | Q67: 0 | R67: 3800 | S67: 5000 | T67: 0 | U67: 608800 | V67: 608800
A68: CHESTER | B68: 59 | C68: 2019 | D68: 140000 | E68: 0 | F68: 28000 | G68: 7550 | H68: 4500 | I68: 4000 | J68: 0 | K68: 184050 | M68: 2020 | N68: 160000 | O68: 0 | P68: 15000 | Q68: 11500 | R68: 3000 | S68: 3400 | T68: 3000 | U68: 195900 | V68: 195900
A69: CHESTERFIELD | B69: 60 | C69: 2019 | D69: 158000 | E69: 0 | F69: 36674.12 | G69: 0 | H69: 505 | I69: 1010 | J69: 2500 | K69: 198689.12 | M69: 2020 | N69: 160000 | O69: 0 | P69: 29000 | Q69: 282 | R69: 600 | S69: 9450 | T69: 2500 | U69: 201832 | V69: 201832
A70: CHICOPEE | B70: 61 | C70: 2019 | D70: 5650000 | E70: 1160000 | F70: 500000 | G70: 1300000 | H70: 230000 | I70: 350000 | J70: 700000 | K70: 9890000 | M70: 2020 | N70: 6200000 | O70: 1207008 | P70: 500000 | Q70: 1300000 | R70: 250000 | S70: 500000 | T70: 650000 | U70: 10607008 | V70: 10607008
A71: CHILMARK | B71: 62 | C71: 2019 | D71: 260000 | E71: 58000 | F71: 28000 | G71: 5000 | H71: 7500 | I71: 4500 | J71: 0 | K71: 363000 | M71: 2020 | N71: 260000 | O71: 80000 | P71: 32000 | Q71: 5000 | R71: 8000 | S71: 6000 | T71: 0 | U71: 391000 | V71: 391000
A72: CLARKSBURG | B72: 63 | C72: 2019 | D72: 230296.27 | E72: 2650 | F72: 13200 | G72: 0 | H72: 1200 | I72: 3855 | J72: 21750 | K72: 272951.27 | M72: 2020 | N72: 230600 | O72: 2790 | P72: 13200 | Q72: 0 | R72: 1400 | S72: 4500 | T72: 21750 | U72: 274240 | V72: 274240
A73: CLINTON | B73: 64 | C73: 2019 | D73: 1400000 | E73: 0 | F73: 220000 | G73: 200000 | H73: 25000 | I73: 25000 | J73: 150000 | K73: 2020000 | M73: 2020 | N73: 1498879 | O73: 80000 | P73: 200000 | Q73: 280000 | R73: 20000 | S73: 125000 | T73: 250000 | U73: 2453879 | V73: 2453879
A74: COHASSET | B74: 65 | C74: 2019 | D74: 1188297 | E74: 192519 | F74: 130000 | G74: 1291 | H74: 25000 | I74: 33936 | J74: 8242 | K74: 1579285 | M74: 2020 | N74: 1543102 | O74: 194445 | P74: 131300 | Q74: 1304 | R74: 25250 | S74: 34275 | T74: 8324 | U74: 1938000 | V74: 1938000
A75: COLRAIN | B75: 66 | C75: 2019 | D75: 130000 | E75: 0 | F75: 10000 | G75: 0 | H75: 6000 | I75: 1000 | J75: 0 | K75: =SUM(D75:J75) -> 147000 | M75: 2020 | N75: 130000 | O75: 0 | P75: 10000 | Q75: 0 | R75: 6000 | S75: 1000 | T75: 0 | U75: =SUM(N75:T75) -> 147000 | V75: =SUM(N75:T75) -> 147000
A76: CONCORD | B76: 67 | C76: 2019 | D76: 3095601 | E76: 1235000 | F76: 160000 | G76: 20000 | H76: 50000 | I76: 500000 | J76: 115000 | K76: 5175601 | M76: 2020 | N76: 3316531 | O76: 1555269 | P76: 150000 | Q76: 20000 | R76: 75000 | S76: 700000 | T76: 160000 | U76: 5976800 | V76: 5976800
A77: CONWAY | B77: 68 | C77: 2019 | D77: 215000 | E77: 0 | F77: 15000 | G77: 0 | H77: 1000 | I77: 5000 | J77: 0 | K77: 236000 | M77: 2020 | N77: 220000 | O77: 0 | P77: 11000 | Q77: 0 | R77: 1000 | S77: 5000 | T77: 0 | U77: 237000 | V77: 237000
A78: CUMMINGTON | B78: 69 | C78: 2019 | D78: 97000 | E78: 0 | F78: 10000 | G78: 1000 | H78: 1000 | I78: 500 | J78: 0 | K78: 109500 | M78: 2020 | N78: 101500 | O78: 0 | P78: 9000 | Q78: 1000 | R78: 500 | S78: 500 | T78: 0 | U78: 112500 | V78: 112500
A79: DALTON | B79: 70 | C79: 2019 | D79: 750000 | E79: 38850 | F79: 45000 | G79: 6600 | H79: 14700 | I79: 10000 | J79: 0 | K79: 865150 | M79: 2020 | N79: 750000 | O79: 38850 | P79: 46000 | Q79: 6600 | R79: 13700 | S79: 10000 | T79: 0 | U79: 865150 | V79: 865150
A80: DANVERS | B80: 71 | C80: 2019 | D80: 4400000 | E80: 2460000 | F80: 300000 | G80: 1220000 | H80: 50000 | I80: 160000 | J80: 303000 | K80: 8893000 | M80: 2020 | N80: 4450000 | O80: 2475000 | P80: 300000 | Q80: 1220000 | R80: 50000 | S80: 160000 | T80: 424077.88 | U80: 9079077.88 | V80: 9079077.88
A81: DARTMOUTH | B81: 72 | C81: 2019 | D81: 3850000 | E81: 1025000 | F81: 250000 | G81: 10000 | H81: 100000 | I81: 46000 | J81: 200000 | K81: 5481000 | M81: 2020 | N81: 3935000 | O81: 1040000 | P81: 250000 | Q81: 10000 | R81: 100000 | S81: 48000 | T81: 200000 | U81: 5583000 | V81: 5583000
A82: DEDHAM | B82: 73 | C82: 2019 | D82: 3800000 | E82: 0 | F82: 550000 | G82: 28000 | H82: 160000 | I82: 250000 | J82: 275000 | K82: 5063000 | M82: 2020 | N82: 3800000 | O82: 0 | P82: 600000 | Q82: 140000 | R82: 130000 | S82: 200000 | T82: 290000 | U82: 5160000 | V82: 5160000
A83: DEERFIELD | B83: 74 | C83: 2019 | D83: 585000 | E83: 210000 | F83: 25000 | G83: 130000 | H83: 50000 | I83: 12000 | J83: 25000 | K83: 1037000 | M83: 2020 | N83: 615000 | O83: 245000 | P83: 35000 | Q83: 160000 | R83: 55000 | S83: 25000 | T83: 25000 | U83: 1160000 | V83: 1160000
A84: DENNIS | B84: 75 | C84: 2019 | D84: 2178000 | E84: 845000 | F84: 390000 | G84: 0 | H84: 70000 | I84: 15000 | J84: 145000 | K84: 3643000 | M84: 2020 | N84: 1998000 | O84: 845000 | P84: 390000 | Q84: 0 | R84: 70000 | S84: 15000 | T84: 325000 | U84: 3643000 | V84: 3643000
A85: DIGHTON | B85: 76 | C85: 2019 | D85: 1076118.75 | E85: 24000 | F85: 88615 | G85: 3410.67 | H85: 1550 | I85: 23000 | J85: 5410 | K85: 1222104.42 | M85: 2020 | N85: 1220902.8 | O85: 21559.93 | P85: 88749.5 | Q85: 3410.67 | R85: 598.24 | S85: 61234.2 | T85: 66548 | U85: 1463003.34 | V85: 1463003.34
A86: DOUGLAS | B86: 77 | C86: 2019 | D86: 1041927 | E86: 28400 | F86: 110000 | G86: 0 | H86: 20000 | I86: 19000 | J86: 30000 | K86: 1249327 | M86: 2020 | N86: 1069812 | O86: 28400 | P86: 110000 | Q86: 0 | R86: 20000 | S86: 19000 | T86: 30000 | U86: 1277212 | V86: 1277212
A87: DOVER | B87: 78 | C87: 2019 | D87: 1200000 | E87: 200 | F87: 50000 | G87: 0 | H87: 1800 | I87: 75000 | J87: 0 | K87: 1327000 | M87: 2020 | N87: 1350000 | O87: 200 | P87: 75000 | Q87: 200 | R87: 2000 | S87: 75000 | T87: 0 | U87: 1502400 | V87: 1502400
A88: DRACUT | B88: 79 | C88: 2019 | D88: 4745674 | E88: 378000 | F88: 110000 | G88: 20744 | H88: 12500 | I88: 75000 | J88: 251500 | K88: 5593418 | M88: 2020 | N88: 4807440 | O88: 450000 | P88: 175000 | Q88: 21302 | R88: 53000 | S88: 100000 | T88: 260000 | U88: 5866742 | V88: 5866742
A89: DUDLEY | B89: 80 | C89: 2019 | D89: 1543720 | E89: 78000 | F89: 124500 | G89: 850 | H89: 38625 | I89: 28170 | J89: 0 | K89: 1813865 | M89: 2020 | N89: 1683720 | O89: 97000 | P89: 124500 | Q89: 850 | R89: 38790 | S89: 91710 | T89: 0 | U89: 2036570 | V89: 2036570
A90: DUNSTABLE | B90: 81 | C90: 2019 | D90: 550000 | E90: 3000 | F90: 35000 | G90: 0 | H90: 10000 | I90: 7000 | J90: 0 | K90: 605000 | M90: 2020 | N90: 550000 | O90: 3000 | P90: 25000 | Q90: 0 | R90: 15000 | S90: 8000 | T90: 0 | U90: 601000 | V90: 601000
A91: DUXBURY | B91: 82 | C91: 2019 | D91: 2605540 | E91: 94699 | F91: 200000 | G91: 8250 | H91: 30360 | I91: 185645 | J91: 696500 | K91: 3820994 | M91: 2020 | N91: 2790811.2 | O91: 131256 | P91: 229199 | Q91: 7260 | R91: 36500 | S91: 250176 | T91: 724928 | U91: 4170130.2 | V91: 4170130.2
A92: EAST BRIDGEWAT | B92: 83 | C92: 2019 | D92: 1946159 | E92: 0 | F92: 275000 | G92: 3000 | H92: 20000 | I92: 35000 | J92: 70000 | K92: 2349159 | M92: 2020 | N92: 1971159 | O92: 0 | P92: 315000 | Q92: 3000 | R92: 20000 | S92: 85000 | T92: 70000 | U92: 2464159 | V92: 2464159
A93: EAST BROOKFIEL | B93: 84 | C93: 2019 | D93: 300000 | E93: 1000 | F93: 20000 | G93: 0 | H93: 10000 | I93: 2000 | J93: 0 | K93: 333000 | M93: 2020 | N93: 300000 | O93: 1500 | P93: 20000 | Q93: 0 | R93: 13000 | S93: 3000 | T93: 0 | U93: 337500 | V93: 337500
A94: EAST LONGMEADO | B94: 85 | C94: 2019 | D94: 2408169.06 | E94: 315000 | F94: 225000 | G94: 61000 | H94: 5000 | I94: 60000 | J94: 330000 | K94: 3404169.06 | M94: 2020 | N94: 2432008.13 | O94: 325000 | P94: 200000 | Q94: 63500 | R94: 10000 | S94: 150000 | T94: 430000 | U94: 3610508.13 | V94: 3610508.13
A95: EASTHAM | B95: 86 | C95: 2019 | D95: 880000 | E95: 388000 | F95: 90000 | G95: 8000 | H95: 34000 | I95: 20000 | J95: 32500 | K95: 1452500 | M95: 2020 | N95: 880000 | O95: 403000 | P95: 90000 | Q95: 8000 | R95: 34000 | S95: 22000 | T95: 33000 | U95: 1470000 | V95: 1470000
A96: EASTHAMPTON | B96: 87 | C96: 2019 | D96: 1600909 | E96: 180000 | F96: 115000 | G96: 33000 | H96: 32000 | I96: 15000 | J96: 90000 | K96: 2065909 | M96: 2020 | N96: 1778075.32 | O96: 265000 | P96: 105000 | Q96: 33000 | R96: 25000 | S96: 21500 | T96: 125000 | U96: 2352575.32 | V96: 2352575.32
A97: EASTON | B97: 88 | C97: 2019 | D97: 3750000 | E97: 345000 | F97: 275000 | G97: 0 | H97: 25000 | I97: 55000 | J97: 619000 | K97: 5069000 | M97: 2020 | N97: 3830000 | O97: 400000 | P97: 275000 | Q97: 0 | R97: 27000 | S97: 75000 | T97: 599000 | U97: 5206000 | V97: 5206000
A98: EDGARTOWN | B98: 89 | C98: 2019 | D98: 850000 | E98: 887500 | F98: 85000 | G98: 28000.17 | H98: 45000 | I98: 30000 | J98: 0 | K98: 1925500.17 | M98: 2020 | N98: 850000 | O98: 1032718.4 | P98: 85000 | Q98: 28000.17 | R98: 45000 | S98: 30000 | T98: 0 | U98: 2070718.57 | V98: 2070718.57
A99: EGREMONT | B99: 90 | C99: 2019 | D99: 215000 | E99: 0 | F99: 20000 | G99: 700 | H99: 12000 | I99: 4000 | J99: 12000 | K99: 263700 | M99: 2020 | N99: 220000 | O99: 0 | P99: 19000 | Q99: 700 | R99: 1000 | S99: 9500 | T99: 13000 | U99: 263200 | V99: 263200
A100: ERVING | B100: 91 | C100: 2019 | D100: 175000 | E100: 792 | F100: 6600 | G100: 0 | H100: 20000 | I100: 30000 | J100: 70000 | K100: 302392 | M100: 2020 | N100: 160000 | O100: 800 | P100: 6500 | Q100: 0 | R100: 8000 | S100: 25000 | T100: 40700 | U100: 241000 | V100: 241000
A101: ESSEX | B101: 92 | C101: 2019 | D101: 675000 | E101: 229000 | F101: 22000 | G101: 0 | H101: 10275 | I101: 25000 | J101: 0 | K101: 961275 | M101: 2020 | N101: 675000 | O101: 224475 | P101: 22550 | Q101: 0 | R101: 7665 | S101: 56500 | T101: 0 | U101: 986190 | V101: 986190
A102: EVERETT | B102: 93 | C102: 2019 | D102: 3700000 | E102: 500000 | F102: 350000 | G102: 14000 | H102: 1000000 | I102: 35000 | J102: 950000 | K102: 6549000 | M102: 2020 | N102: 4000000 | O102: 23250000 | P102: 350000 | Q102: 14000 | R102: 1000000 | S102: 250000 | T102: 6250000 | U102: 35114000 | V102: 35114000
A103: FAIRHAVEN | B103: 94 | C103: 2019 | D103: 1700000 | E103: 600000 | F103: 325000 | G103: 170000 | H103: 4000 | I103: 30000 | J103: 40000 | K103: 2869000 | M103: 2020 | N103: 2000000 | O103: 600000 | P103: 350000 | Q103: 170000 | R103: 5000 | S103: 210000 | T103: 90000 | U103: 3425000 | V103: 3425000
A104: FALL RIVER | B104: 95 | C104: 2019 | D104: 8230000 | E104: 1347300 | F104: 1411000 | G104: 429400 | H104: 1550000 | I104: 115000 | J104: 2770330 | K104: 15853030 | M104: 2020 | N104: 8230000 | O104: 2331000 | P104: 1230000 | Q104: 410000 | R104: 1693285 | S104: 657382.51 | T104: 2180000 | U104: 16731667.51 | V104: 16731667.51
A105: FALMOUTH | B105: 96 | C105: 2019 | D105: 4000000 | E105: 1560000 | F105: 575000 | G105: 165000 | H105: 80000 | I105: 40000 | J105: 40000 | K105: 6460000 | M105: 2020 | N105: 4425000 | O105: 1560000 | P105: 575000 | Q105: 165000 | R105: 80000 | S105: 191000 | T105: 40000 | U105: 7036000 | V105: 7036000
A106: FITCHBURG | B106: 97 | C106: 2019 | D106: 3777668.42 | E106: 900000 | F106: 580000 | G106: 224000 | H106: 142000 | I106: 75000 | J106: 750000 | K106: 6448668.42 | M106: 2020 | N106: 4196532.74 | O106: 1050000 | P106: 700000 | Q106: 206500 | R106: 160000 | S106: 300000 | T106: 725000 | U106: 7338032.74 | V106: 7338032.74
A107: FLORIDA | B107: 98 | C107: 2018 | D107: 80000 | E107: 0 | F107: 5000 | G107: 180000 | H107: 1000 | I107: 3000 | J107: 0 | K107: 269000 | M107: 2019 | N107: 80000 | O107: 0 | P107: 2000 | Q107: 180000 | R107: 1000 | S107: 3000 | T107: 0 | U107: 266000 | V107: 266000
A108: FOXBOROUGH | B108: 99 | C108: 2019 | D108: 3065872 | E108: 2803275 | F108: 185281 | G108: 2118068 | H108: 78407 | I108: 270108 | J108: 326948 | K108: 8847959 | M108: 2020 | N108: 3148412 | O108: 2819762 | P108: 245004 | Q108: 2730863 | R108: 54597 | S108: 383711 | T108: 40235 | U108: 9422584 | V108: 9422584
A109: FRAMINGHAM | B109: 100 | C109: 2019 | D109: 8470400 | E109: 3121980 | F109: 1415701 | G109: 671564 | H109: 404855 | I109: 61778 | J109: 2408358 | K109: 16554636 | M109: 2020 | N109: 8573024 | O109: 3212134 | P109: 970439 | Q109: 657949 | R109: 320936 | S109: 296534 | T109: 1823882 | U109: 15854898 | V109: 15854898
A110: FRANKLIN | B110: 101 | C110: 2019 | D110: 4469160 | E110: 1065090 | F110: 296000 | G110: 20200 | H110: 99000 | I110: 151000 | J110: 206000 | K110: 6306450 | M110: 2020 | N110: 4619680 | O110: 1049462 | P110: 261027 | Q110: 34000 | R110: 110516 | S110: 350185 | T110: 265273 | U110: 6690143 | V110: 6690143
A111: FREETOWN | B111: 102 | C111: 2019 | D111: 1895000 | E111: 1000 | F111: 50000 | G111: 5000 | H111: 10000 | I111: 12333 | J111: 20000 | K111: 1993333 | M111: 2020 | N111: 1700000 | O111: 5800 | P111: 120000 | Q111: 0 | R111: 38000 | S111: 12333 | T111: 81528 | U111: 1957661 | V111: 1957661
A112: GARDNER | B112: 103 | C112: 2019 | D112: 1920462 | E112: 115000 | F112: 300000 | G112: 40000 | H112: 116100 | I112: 25000 | J112: 425000 | K112: 2941562 | M112: 2020 | N112: 2094985 | O112: 282276 | P112: 330990 | Q112: 43000 | R112: 125479 | S112: 45000 | T112: 517636 | U112: 3439366 | V112: 3439366
A113: GAY HEAD | B113: 104 | C113: 2019 | D113: 50000 | E113: 10000 | F113: 44500 | G113: 7500 | H113: 7000 | I113: 2500 | J113: 2000 | K113: 123500 | M113: 2020 | N113: 50000 | O113: 10000 | P113: 44500 | Q113: 7500 | R113: 7000 | S113: 2500 | T113: 2000 | U113: 123500 | V113: 123500
A114: GEORGETOWN | B114: 105 | C114: 2019 | D114: 1574746 | E114: 80000 | F114: 127000 | G114: 45000 | H114: 65000 | I114: 18000 | J114: 612254 | K114: 2522000 | M114: 2020 | N114: 1575000 | O114: 80000 | P114: 72000 | Q114: 48000 | R114: 42000 | S114: 50000 | T114: 651000 | U114: 2518000 | V114: 2518000
A115: GILL | B115: 106 | C115: 2018 | D115: 155000 | E115: 8500 | F115: 9000 | G115: 0 | H115: 900 | I115: 1500 | J115: 0 | K115: 174900 | M115: 2019 | N115: 155000 | O115: 9500 | P115: 5000 | Q115: 0 | R115: 900 | S115: 1500 | T115: 0 | U115: 171900 | V115: 171900
A116: GLOUCESTER | B116: 107 | C116: 2019 | D116: 3518674 | E116: 1495000 | F116: 480000 | G116: 59000 | H116: 305000 | I116: 55000 | J116: 1339617 | K116: 7252291 | M116: 2020 | N116: 3571000 | O116: 1550000 | P116: 480000 | Q116: 78075 | R116: 285000 | S116: 125000 | T116: 1205717 | U116: 7294792 | V116: 7294792
A117: GOSHEN | B117: 108 | C117: 2019 | D117: 142000 | E117: 0 | F117: 15000 | G117: 0 | H117: 5000 | I117: 1200 | J117: 0 | K117: 163200 | M117: 2020 | N117: 142000 | O117: 0 | P117: 15000 | Q117: 0 | R117: 5000 | S117: 1200 | T117: 0 | U117: 163200 | V117: 163200
A118: GOSNOLD | B118: 109 | C118: 2018 | D118: 5000 | E118: 2050 | F118: 0 | G118: 0 | H118: 0 | I118: 740 | J118: 50350 | K118: 58140 | M118: 2019 | N118: 3000 | O118: 2050 | P118: 500 | Q118: 0 | R118: 0 | S118: 320 | T118: 50350 | U118: 56220 | V118: 56220
A119: GRAFTON | B119: 110 | C119: 2019 | D119: 2884954 | E119: 125000 | F119: 91000 | G119: 69413 | H119: 54950 | I119: 58939 | J119: 334500 | K119: 3618756 | M119: 2020 | N119: 2771654.36 | O119: 150000 | P119: 105000 | Q119: 69413 | R119: 54950 | S119: 38000 | T119: 322300 | U119: 3511317.36 | V119: 3511317.36
A120: GRANBY | B120: 111 | C120: 2019 | D120: 514023.65 | E120: 10000 | F120: 15000 | G120: 0 | H120: 8000 | I120: 23000 | J120: 0 | K120: 570023.65 | M120: 2020 | N120: 525000 | O120: 15000 | P120: 25000 | Q120: 0 | R120: 13000 | S120: 26347 | T120: 0 | U120: 604347 | V120: 604347
A121: GRANVILLE | B121: 112 | C121: 2019 | D121: 190000 | E121: 0 | F121: 32000 | G121: 200000 | H121: 5000 | I121: 400 | J121: 0 | K121: 427400 | M121: 2020 | N121: 193000 | O121: 0 | P121: 20000 | Q121: 200000 | R121: 6000 | S121: 600 | T121: 0 | U121: 419600 | V121: 419600
A122: GREAT BARRINGT | B122: 113 | C122: 2019 | D122: 420000 | E122: 470000 | F122: 45000 | G122: 2000 | H122: 8000 | I122: 20000 | J122: 0 | K122: 965000 | M122: 2020 | N122: 420000 | O122: 470000 | P122: 45000 | Q122: 2000 | R122: 8000 | S122: 30000 | T122: 0 | U122: 975000 | V122: 975000
A123: GREENFIELD | B123: 114 | C123: 2019 | D123: 1590000 | E123: 610000 | F123: 275000 | G123: 35003 | H123: 300000 | I123: 15000 | J123: 605000 | K123: 3430003 | M123: 2020 | N123: 1590000 | O123: 600000 | P123: 209000 | Q123: 40000 | R123: 286000 | S123: 16500 | T123: 615000 | U123: 3356500 | V123: 3356500
A124: GROTON | B124: 115 | C124: 2019 | D124: 1549739 | E124: 120000 | F124: 90000 | G124: 260000 | H124: 25000 | I124: 20000 | J124: 1650 | K124: 2066389 | M124: 2020 | N124: 1577642 | O124: 200000 | P124: 90000 | Q124: 260000 | R124: 25000 | S124: 40000 | T124: 1263 | U124: 2193905 | V124: 2193905
A125: GROVELAND | B125: 116 | C125: 2019 | D125: 1050000 | E125: 0 | F125: 130000 | G125: 59000 | H125: 55000 | I125: 15000 | J125: 0 | K125: 1309000 | M125: 2020 | N125: 1050000 | O125: 0 | P125: 115000 | Q125: 36000 | R125: 55000 | S125: 20000 | T125: 0 | U125: 1276000 | V125: 1276000
A126: HADLEY | B126: 117 | C126: 2019 | D126: 528698 | E126: 986717 | F126: 19272 | G126: 28000 | H126: 28725 | I126: 14000 | J126: 53204 | K126: 1658616 | M126: 2020 | N126: 739305 | O126: 1384052 | P126: 35000 | Q126: 15000 | R126: 27000 | S126: 25000 | T126: 103000 | U126: 2328357 | V126: 2328357
A127: HALIFAX | B127: 118 | C127: 2019 | D127: 1060000 | E127: 154000 | F127: 180000 | G127: 2490 | H127: 5000 | I127: 3000 | J127: 15000 | K127: 1419490 | M127: 2020 | N127: 1090000 | O127: 159000 | P127: 175000 | Q127: 2490 | R127: 4500 | S127: 8000 | T127: 15000 | U127: 1453990 | V127: 1453990
A128: HAMILTON | B128: 119 | C128: 2019 | D128: 1075000 | E128: 66700 | F128: 77900 | G128: 32000 | H128: 6950 | I128: 8000 | J128: 15000 | K128: 1281550 | M128: 2020 | N128: 1075000 | O128: 69700 | P128: 76500 | Q128: 33000 | R128: 6850 | S128: 8000 | T128: 20490 | U128: 1289540 | V128: 1289540
A129: HAMPDEN | B129: 120 | C129: 2019 | D129: 526227 | E129: 0 | F129: 30000 | G129: 5600 | H129: 4500 | I129: 2700 | J129: 21000 | K129: 590027 | M129: 2020 | N129: 526227 | O129: 0 | P129: 40000 | Q129: 7000 | R129: 4500 | S129: 10000 | T129: 25000 | U129: 612727 | V129: 612727
A130: HANCOCK | B130: 121 | C130: 2019 | D130: 57000 | E130: 237444 | F130: 4300 | G130: 145000 | H130: 6000 | I130: 5500 | J130: 0 | K130: 455244 | M130: 2020 | N130: 149000 | O130: 255000 | P130: 4000 | Q130: 200000 | R130: 1500 | S130: 17550 | T130: 0 | U130: 627050 | V130: 627050
A131: HANOVER | B131: 122 | C131: 2019 | D131: 2482658 | E131: 750 | F131: 120000 | G131: 0 | H131: 87163 | I131: 60000 | J131: 0 | K131: 2750571 | M131: 2020 | N131: 2792508 | O131: 448 | P131: 120000 | Q131: 0 | R131: 101230 | S131: 85000 | T131: 0 | U131: 3099186 | V131: 3099186
A132: HANSON | B132: 123 | C132: 2019 | D132: 1365000 | E132: 0 | F132: 175000 | G132: 9000 | H132: 3000 | I132: 14000 | J132: 0 | K132: 1566000 | M132: 2020 | N132: 1395000 | O132: 0 | P132: 175000 | Q132: 9500 | R132: 3000 | S132: 20500 | T132: 0 | U132: 1603000 | V132: 1603000
A133: HARDWICK | B133: 124 | C133: 2019 | D133: 335000 | E133: 5600 | F133: 82300 | G133: 173718 | H133: 2000 | I133: 3000 | J133: 120274 | K133: 721892 | M133: 2020 | N133: 328881.63 | O133: 8145.35 | P133: 86789.91 | Q133: 175874.77 | R133: 4345.5 | S133: 3728.15 | T133: 105130.35 | U133: 712895.66 | V133: 712895.66
A134: HARVARD | B134: 125 | C134: 2019 | D134: 900000 | E134: 20000 | F134: 120000 | G134: 10000 | H134: 40000 | I134: 30000 | J134: 108049 | K134: 1228049 | M134: 2020 | N134: 900000 | O134: 20000 | P134: 64000 | Q134: 25000 | R134: 30000 | S134: 30000 | T134: 9492 | U134: 1078492 | V134: 1078492
A135: HARWICH | B135: 126 | C135: 2019 | D135: 2300000 | E135: 1095000 | F135: 340000 | G135: 55000 | H135: 10000 | I135: 150000 | J135: 270000 | K135: 4220000 | M135: 2020 | N135: 2325000 | O135: 1125000 | P135: 385994 | Q135: 55000 | R135: 8800 | S135: 225038.75 | T135: 295000 | U135: 4419832.75 | V135: 4419832.75
A136: HATFIELD | B136: 127 | C136: 2019 | D136: 622000 | E136: 46500 | F136: 32000 | G136: 3698 | H136: 11000 | I136: 12000 | J136: 6500 | K136: 733698 | M136: 2020 | N136: 578800 | O136: 45500 | P136: 62200 | Q136: 3700 | R136: 20000 | S136: 20000 | T136: 14000 | U136: 744200 | V136: 744200
A137: HAVERHILL | B137: 128 | C137: 2019 | D137: 7500000 | E137: 1315000 | F137: 500000 | G137: 2000000 | H137: 710000 | I137: 368000 | J137: 1025000 | K137: 13418000 | M137: 2020 | N137: 7632760 | O137: 1435000 | P137: 490000 | Q137: 2228000 | R137: 687000 | S137: 839000 | T137: 1032000 | U137: 14343760 | V137: 14343760
A138: HAWLEY | B138: 129 | C138: 2019 | D138: 31500 | E138: 0 | F138: 6500 | G138: 0 | H138: 0 | I138: 800 | J138: 500 | K138: 39300 | M138: 2020 | N138: 35000 | O138: 0 | P138: 6500 | Q138: 1000 | R138: 0 | S138: 800 | T138: 2500 | U138: 45800 | V138: 45800
A139: HEATH | B139: 130 | C139: 2019 | D139: 75000 | E139: 0 | F139: 19000 | G139: 0 | H139: 0 | I139: 750 | J139: 0 | K139: =SUM(D139:J139) -> 94750 | M139: 2020 | N139: 76500 | O139: 0 | P139: 15000 | Q139: 0 | R139: 0 | S139: 1200 | T139: 0 | U139: =SUM(N139:T139) -> 92700 | V139: =SUM(N139:T139) -> 92700
A140: HINGHAM | B140: 131 | C140: 2019 | D140: 4350000 | E140: 835000 | F140: 300000 | G140: 661429 | H140: 80000 | I140: 103400 | J140: 0 | K140: 6329829 | M140: 2020 | N140: 4700000 | O140: 860000 | P140: 400000 | Q140: 673335 | R140: 60000 | S140: 775000 | T140: 0 | U140: 7468335 | V140: 7468335
A141: HINSDALE | B141: 132 | C141: 2019 | D141: 250000 | E141: 0 | F141: 20000 | G141: 20000 | H141: 0 | I141: 2000 | J141: 0 | K141: 292000 | M141: 2020 | N141: 250000 | O141: 0 | P141: 20000 | Q141: 20000 | R141: 0 | S141: 2000 | T141: 0 | U141: 292000 | V141: 292000
A142: HOLBROOK | B142: 133 | C142: 2019 | D142: 1500000 | E142: 1000 | F142: 210000 | G142: 3313 | H142: 18000 | I142: 70000 | J142: 435000 | K142: 2237313 | M142: 2020 | N142: 1550000 | O142: 1000 | P142: 229000 | Q142: 3292 | R142: 15694 | S142: 54000 | T142: 179162 | U142: 2032148 | V142: 2032148
A143: HOLDEN | B143: 134 | C143: 2019 | D143: 2300000 | E143: 0 | F143: 115000 | G143: 1043435 | H143: 45800 | I143: 60000 | J143: 210375 | K143: 3774610 | M143: 2020 | N143: 2375000 | O143: 0 | P143: 115000 | Q143: 1041032 | R143: 45800 | S143: 75000 | T143: 210375 | U143: 3862207 | V143: 3862207
A144: HOLLAND | B144: 135 | C144: 2019 | D144: 300000 | E144: 0 | F144: 55000 | G144: 1400 | H144: 2000 | I144: 7500 | J144: 40000 | K144: 405900 | M144: 2020 | N144: 344000 | O144: 0 | P144: 50000 | Q144: 0 | R144: 1800 | S144: 13000 | T144: 40000 | U144: 448800 | V144: 448800
A145: HOLLISTON | B145: 136 | C145: 2019 | D145: 2050000 | E145: 0 | F145: 140000 | G145: 30000 | H145: 55000 | I145: 35000 | J145: 102339 | K145: 2412339 | M145: 2020 | N145: 2110000 | O145: 0 | P145: 130000 | Q145: 30000 | R145: 43548 | S145: 50000 | T145: 86337 | U145: 2449885 | V145: 2449885
A146: HOLYOKE | B146: 137 | C146: 2019 | D146: 3140000 | E146: 1085000 | F146: 300000 | G146: 1504000 | H146: 335000 | I146: 125000 | J146: 1598000 | K146: 8087000 | M146: 2020 | N146: 3160000 | O146: 1110000 | P146: 290000 | Q146: 1459000 | R146: 350000 | S146: 125000 | T146: 1440000 | U146: 7934000 | V146: 7934000
A147: HOPEDALE | B147: 138 | C147: 2019 | D147: 880000 | E147: 0 | F147: 210000 | G147: 70000 | H147: 19000 | I147: 16500 | J147: 0 | K147: 1195500 | M147: 2020 | N147: 850000 | O147: 0 | P147: 150000 | Q147: 52000 | R147: 20000 | S147: 15000 | T147: 0 | U147: 1087000 | V147: 1087000
A148: HOPKINTON | B148: 139 | C148: 2018 | D148: 3138016 | E148: 0 | F148: 201080 | G148: 256467 | H148: 17707 | I148: 192390 | J148: 51234 | K148: 3856894 | M148: 2019 | N148: 3155000 | O148: 0 | P148: 201000 | Q148: 256500 | R148: 12000 | S148: 202175 | T148: 43000 | U148: 3869675 | V148: 3869675
A149: HUBBARDSTON | B149: 140 | C149: 2019 | D149: 650200 | E149: 0 | F149: 45000 | G149: 337000 | H149: 12300 | I149: 6700 | J149: 0 | K149: 1051200 | M149: 2020 | N149: 639742.7 | O149: 0 | P149: 43975 | Q149: 343703 | R149: 9193 | S149: 20025 | T149: 27000 | U149: 1083638.7 | V149: 1083638.7
A150: HUDSON | B150: 141 | C150: 2019 | D150: 3005000 | E150: 511245 | F150: 304844 | G150: 0 | H150: 65000 | I150: 150000 | J150: 857222 | K150: 4893311 | M150: 2020 | N150: 2976000 | O150: 813600 | P150: 268000 | Q150: 0 | R150: 71000 | S150: 175000 | T150: 840372 | U150: 5143972 | V150: 5143972
A151: HULL | B151: 142 | C151: 2019 | D151: 1452444 | E151: 360000 | F151: 200000 | G151: 240000 | H151: 99000 | I151: 95000 | J151: 545000 | K151: 2991444 | M151: 2020 | N151: 1372000 | O151: 355000 | P151: 215000 | Q151: 230000 | R151: 118000 | S151: 250000 | T151: 535000 | U151: 3075000 | V151: 3075000
A152: HUNTINGTON | B152: 143 | C152: 2019 | D152: 280000 | E152: 0 | F152: 41500 | G152: 6100 | H152: 0 | I152: 3800 | J152: 0 | K152: 331400 | M152: 2020 | N152: 251000 | O152: 0 | P152: 26000 | Q152: 6800 | R152: 3850 | S152: 5450 | T152: 0 | U152: 293100 | V152: 293100
A153: IPSWICH | B153: 144 | C153: 2019 | D153: 2000000 | E153: 245000 | F153: 155000 | G153: 160000 | H153: 43000 | I153: 55000 | J153: 140000 | K153: 2798000 | M153: 2020 | N153: 2000000 | O153: 242000 | P153: 152000 | Q153: 155000 | R153: 40000 | S153: 79000 | T153: 110000 | U153: 2778000 | V153: 2778000
A154: KINGSTON | B154: 145 | C154: 2019 | D154: 2100000 | E154: 379450 | F154: 150000 | G154: 9450 | H154: 20000 | I154: 45000 | J154: 40000 | K154: 2743900 | M154: 2020 | N154: 2250000 | O154: 397500 | P154: 200000 | Q154: 10000 | R154: 15000 | S154: 80000 | T154: 60000 | U154: 3012500 | V154: 3012500
A155: LAKEVILLE | B155: 146 | C155: 2019 | D155: 1850000 | E155: 8000 | F155: 145000 | G155: 22000 | H155: 18000 | I155: 5800.76 | J155: 0 | K155: 2048800.76 | M155: 2020 | N155: 1850000 | O155: 0 | P155: 160000 | Q155: 20000 | R155: 18000 | S155: 23004 | T155: 0 | U155: 2071004 | V155: 2071004
A156: LANCASTER | B156: 147 | C156: 2019 | D156: 1100000 | E156: 0 | F156: 97000 | G156: 12000 | H156: 41133 | I156: 20000 | J156: 0 | K156: 1270133 | M156: 2020 | N156: 1100000 | O156: 36100 | P156: 97000 | Q156: 12000 | R156: 53950 | S156: 50000 | T156: 0 | U156: 1349050 | V156: 1349050
A157: LANESBOROUGH | B157: 148 | C157: 2019 | D157: 535000 | E157: 105291 | F157: 140000 | G157: 15449 | H157: 3000 | I157: 3800 | J157: 62000 | K157: 864540 | M157: 2020 | N157: 545000 | O157: 100194 | P157: 150000 | Q157: 0 | R157: 2200 | S157: 3000 | T157: 82628 | U157: 883022 | V157: 883022
A158: LAWRENCE | B158: 149 | C158: 2019 | D158: 5467944 | E158: 1497626 | F158: 986700 | G158: 600000 | H158: 934756 | I158: 968176 | J158: 1801492 | K158: 12256694 | M158: 2020 | N158: 5368570.19 | O158: 1058626 | P158: 1000000 | Q158: 630000 | R158: 760000 | S158: 1600000 | T158: 1588250 | U158: 12005446.19 | V158: 12005446.19
A159: LEE | B159: 150 | C159: 2019 | D159: 740000 | E159: 440000 | F159: 69660 | G159: 35000 | H159: 28000 | I159: 30000 | J159: 287455 | K159: 1630115 | M159: 2020 | N159: 760000 | O159: 440000 | P159: 75000 | Q159: 78000 | R159: 29000 | S159: 50000 | T159: 294650 | U159: 1726650 | V159: 1726650
A160: LEICESTER | B160: 151 | C160: 2019 | D160: 1475000 | E160: 95000 | F160: 165000 | G160: 45000 | H160: 45000 | I160: 45000 | J160: 189000 | K160: 2059000 | M160: 2020 | N160: 1500000 | O160: 106000 | P160: 195000 | Q160: 25000 | R160: 35000 | S160: 80000 | T160: 157000 | U160: 2098000 | V160: 2098000
A161: LENOX | B161: 152 | C161: 2019 | D161: 600000 | E161: 1776357 | F161: 50000 | G161: 55000 | H161: 22000 | I161: 60000 | J161: 74734 | K161: 2638091 | M161: 2020 | N161: 620000 | O161: 1797000 | P161: 50000 | Q161: 55000 | R161: 22000 | S161: 66000 | T161: 74734 | U161: 2684734 | V161: 2684734
A162: LEOMINSTER | B162: 153 | C162: 2019 | D162: 2750000 | E162: 265000 | F162: 183000 | G162: 0 | H162: 110000 | I162: 50000 | J162: 48000 | K162: 3406000 | M162: 2020 | N162: 2750000 | O162: 315000 | P162: 183000 | Q162: 0 | R162: 110000 | S162: 50000 | T162: 48000 | U162: 3456000 | V162: 3456000
A163: LEVERETT | B163: 154 | C163: 2019 | D163: 211083.53 | E163: 0 | F163: 16040.65 | G163: 600 | H163: 3662.5 | I163: 5252.22 | J163: 8200 | K163: 244838.9 | M163: 2020 | N163: 220075.54 | O163: 0 | P163: 17232.82 | Q163: 700 | R163: 4345.33 | S163: 5697.65 | T163: 8200 | U163: 256251.34 | V163: 256251.34
A164: LEXINGTON | B164: 155 | C164: 2019 | D164: 5080000 | E164: 1583000 | F164: 341500 | G164: 614000 | H164: 200000 | I164: 345000 | J164: 400000 | K164: 8563500 | M164: 2020 | N164: 5281392.38 | O164: 1648000 | P164: 341500 | Q164: 668000 | R164: 202000 | S164: 500000 | T164: 378000 | U164: 9018892.38 | V164: 9018892.38
A165: LEYDEN | B165: 156 | C165: 2019 | D165: 84554.31 | E165: 0 | F165: 14000 | G165: 9000 | H165: 2000 | I165: 900 | J165: 0 | K165: 110454.31 | M165: 2020 | N165: 92018.64 | O165: 0 | P165: 13000 | Q165: 9000 | R165: 1200 | S165: 1200 | T165: 0 | U165: 116418.64 | V165: 116418.64
A166: LINCOLN | B166: 157 | C166: 2019 | D166: 429439 | E166: 0 | F166: 36197 | G166: 117 | H166: 27682 | I166: 5885 | J166: 473184 | K166: 972504 | M166: 2020 | N166: 294222 | O166: 0 | P166: 36197 | Q166: 117 | R166: 27682 | S166: 5885 | T166: 420475 | U166: 784578 | V166: 784578
A167: LITTLETON | B167: 158 | C167: 2019 | D167: 1300000 | E167: 436116 | F167: 75000 | G167: 850000 | H167: 25000 | I167: 100000 | J167: 0 | K167: 2786116 | M167: 2020 | N167: 1500000 | O167: 461116 | P167: 73000 | Q167: 750000 | R167: 40000 | S167: 150000 | T167: 0 | U167: 2974116 | V167: 2974116
A168: LONGMEADOW | B168: 159 | C168: 2019 | D168: 2489287 | E168: 125000 | F168: 145000 | G168: 55900 | H168: 25000 | I168: 125000 | J168: 785000 | K168: 3750187 | M168: 2020 | N168: 2475000 | O168: 115000 | P168: 130000 | Q168: 50000 | R168: 25000 | S168: 175000 | T168: 765000 | U168: 3735000 | V168: 3735000
A169: LOWELL | B169: 160 | C169: 2019 | D169: 8750000 | E169: 2127559 | F169: 1324254 | G169: 560602 | H169: 1478500 | I169: 300000 | J169: 1740997 | K169: 16281912 | M169: 2020 | N169: 8711942.75 | O169: 1754366.31 | P169: 1246786.97 | Q169: 425000 | R169: 1361451.81 | S169: 320000 | T169: 1446540 | U169: 15266087.84 | V169: 15266087.84
A170: LUDLOW | B170: 161 | C170: 2019 | D170: 2850000 | E170: 388000 | F170: 325000 | G170: 1400000 | H170: 40000 | I170: 15000 | J170: 400000 | K170: 5418000 | M170: 2020 | N170: 2850000 | O170: 406000 | P170: 155000 | Q170: 1450000 | R170: 180000 | S170: 20000 | T170: 425000 | U170: 5486000 | V170: 5486000
A171: LUNENBURG | B171: 162 | C171: 2019 | D171: 1621640 | E171: 96113 | F171: 193552 | G171: 1735 | H171: 29716 | I171: 61701 | J171: 1376 | K171: 2005833 | M171: 2020 | N171: 1671640 | O171: 100980 | P171: 156022 | Q171: 1648 | R171: 27213 | S171: 62935 | T171: 0 | U171: 2020438 | V171: 2020438
A172: LYNN | B172: 163 | C172: 2019 | D172: 8045936 | E172: 663200 | F172: 676976 | G172: 487909 | H172: 1487770 | I172: 69582 | J172: 3221066 | K172: 14652439 | M172: 2020 | N172: 7958040 | O172: 771040 | P172: 650250 | Q172: 428088 | R172: 1490750 | S172: 285000 | T172: 1171886 | U172: 12755054 | V172: 12755054
A173: LYNNFIELD | B173: 164 | C173: 2019 | D173: 2776000 | E173: 525000 | F173: 65000 | G173: 515000 | H173: 61000 | I173: 60000 | J173: 82000 | K173: 4084000 | M173: 2020 | N173: 2775000 | O173: 500000 | P173: 90000 | Q173: 530000 | R173: 45000 | S173: 80000 | T173: 75000 | U173: 4095000 | V173: 4095000
A174: MALDEN | B174: 165 | C174: 2019 | D174: 5503810.79 | E174: 808000 | F174: 702000 | G174: 333000 | H174: 1555000 | I174: 147000 | J174: 780000 | K174: 9828810.79 | M174: 2020 | N174: 4912854.07 | O174: 725000 | P174: 525000 | Q174: 285000 | R174: 1400000 | S174: 275000 | T174: 720000 | U174: 8842854.07 | V174: 8842854.07
A175: MANCHESTER | B175: 166 | C175: 2019 | D175: 700000 | E175: 60000 | F175: 36000 | G175: 4000 | H175: 30000 | I175: 13000 | J175: 8000 | K175: 851000 | M175: 2020 | N175: 1000000 | O175: 65000 | P175: 60000 | Q175: 4000 | R175: 30000 | S175: 13000 | T175: 4000 | U175: 1176000 | V175: 1176000
A176: MANSFIELD | B176: 167 | C176: 2019 | D176: 3650000 | E176: 755000 | F176: 190000 | G176: 714699 | H176: 90000 | I176: 350000 | J176: 411500 | K176: 6161199 | M176: 2020 | N176: 3700000 | O176: 861807 | P176: 185000 | Q176: 704478 | R176: 81500 | S176: 523004 | T176: 423845 | U176: 6479634 | V176: 6479634
A177: MARBLEHEAD | B177: 168 | C177: 2019 | D177: 2844821.39 | E177: 0 | F177: 105000 | G177: 12000 | H177: 51000 | I177: 80000 | J177: 0 | K177: 3092821.39 | M177: 2020 | N177: 2792745.47 | O177: 0 | P177: 105000 | Q177: 12000 | R177: 51000 | S177: 80000 | T177: 0 | U177: 3040745.47 | V177: 3040745.47
A178: MARION | B178: 169 | C178: 2019 | D178: 600000 | E178: 30000 | F178: 75000 | G178: 0 | H178: 200 | I178: 20000 | J178: 0 | K178: 725200 | M178: 2020 | N178: 600000 | O178: 30000 | P178: 75000 | Q178: 0 | R178: 200 | S178: 20000 | T178: 0 | U178: 725200 | V178: 725200
A179: MARLBOROUGH | B179: 170 | C179: 2019 | D179: 5526591.55 | E179: 2188000 | F179: 560000 | G179: 255000 | H179: 150000 | I179: 500000 | J179: 460000 | K179: 9639591.55 | M179: 2020 | N179: 5600000 | O179: 2250493 | P179: 600000 | Q179: 300000 | R179: 135000 | S179: 750000 | T179: 440000 | U179: 10075493 | V179: 10075493
A180: MARSHFIELD | B180: 171 | C180: 2019 | D180: 4060000 | E180: 472000 | F180: 350000 | G180: 45000 | H180: 10000 | I180: 200000 | J180: 245000 | K180: 5382000 | M180: 2020 | N180: 3925000 | O180: 439000 | P180: 375000 | Q180: 45000 | R180: 10000 | S180: 225000 | T180: 150000 | U180: 5169000 | V180: 5169000
A181: MASHPEE | B181: 172 | C181: 2019 | D181: 1482650 | E181: 351500 | F181: 200000 | G181: 20000 | H181: 39000 | I181: 100000 | J181: 195000 | K181: 2388150 | M181: 2020 | N181: 1610475 | O181: 545000 | P181: 200000 | Q181: 20000 | R181: 39000 | S181: 150000 | T181: 210000 | U181: 2774475 | V181: 2774475
A182: MATTAPOISETT | B182: 173 | C182: 2019 | D182: 1007300 | E182: 0 | F182: 125000 | G182: 6969 | H182: 2000 | I182: 40000 | J182: 320550 | K182: 1501819 | M182: 2020 | N182: 1186309 | O182: 0 | P182: 111000 | Q182: 7077 | R182: 1000 | S182: 70000 | T182: 301203 | U182: 1676589 | V182: 1676589
A183: MAYNARD | B183: 174 | C183: 2019 | D183: 1319900 | E183: 108000 | F183: 95000 | G183: 30000 | H183: 86000 | I183: 36000 | J183: 50000 | K183: 1724900 | M183: 2020 | N183: 1340000 | O183: 112000 | P183: 98000 | Q183: 36000 | R183: 69000 | S183: 82000 | T183: 100000 | U183: 1837000 | V183: 1837000
A184: MEDFIELD | B184: 175 | C184: 2019 | D184: 2010000 | E184: 150000 | F184: 58000 | G184: 3396 | H184: 20435 | I184: 200000 | J184: 0 | K184: 2441831 | M184: 2020 | N184: 2190000 | O184: 175517 | P184: 67000 | Q184: 3450 | R184: 18694 | S184: 215000 | T184: 0 | U184: 2669661 | V184: 2669661
A185: MEDFORD | B185: 176 | C185: 2019 | D185: 7000056 | E185: 1742460 | F185: 675100 | G185: 1753000 | H185: 160000 | I185: 239000 | J185: 520000 | K185: 12089616 | M185: 2020 | N185: 7029750 | O185: 2195875 | P185: 692282 | Q185: 2257642 | R185: 165000 | S185: 385000 | T185: 260000 | U185: 12985549 | V185: 12985549
A186: MEDWAY | B186: 177 | C186: 2019 | D186: 1700000 | E186: 100000 | F186: 85000 | G186: 24000 | H186: 20000 | I186: 50000 | J186: 390100 | K186: 2369100 | M186: 2020 | N186: 1762565 | O186: 125000 | P186: 80000 | Q186: 24000 | R186: 20000 | S186: 50000 | T186: 477535 | U186: 2539100 | V186: 2539100
A187: MELROSE | B187: 178 | C187: 2019 | D187: 2926242.54 | E187: 200000 | F187: 365000 | G187: 75000 | H187: 100000 | I187: 45000 | J187: 65000 | K187: 3776242.54 | M187: 2020 | N187: 2940000 | O187: 200000 | P187: 365000 | Q187: 6000 | R187: 100000 | S187: 95000 | T187: 65000 | U187: 3771000 | V187: 3771000
A188: MENDON | B188: 179 | C188: 2019 | D188: 1100000 | E188: 154382 | F188: 50000 | G188: 0 | H188: 46000 | I188: 3600 | J188: 38355 | K188: 1392337 | M188: 2020 | N188: 1100000 | O188: 138382 | P188: 50000 | Q188: 0 | R188: 46000 | S188: 23567 | T188: 36833 | U188: 1394782 | V188: 1394782
A189: MERRIMAC | B189: 180 | C189: 2019 | D189: 940000 | E189: 0 | F189: 22000 | G189: 1200 | H189: 45000 | I189: 35000 | J189: 37000 | K189: 1080200 | M189: 2020 | N189: 990000 | O189: 0 | P189: 27000 | Q189: 1200 | R189: 35000 | S189: 65000 | T189: 37000 | U189: 1155200 | V189: 1155200
A190: METHUEN | B190: 181 | C190: 2019 | D190: 6260280 | E190: 93000 | F190: 0 | G190: 256000 | H190: 294527 | I190: 555000 | J190: 430000 | K190: 7888807 | M190: 2020 | N190: 6500000 | O190: 100000 | P190: 0 | Q190: 256000 | R190: 294527 | S190: 675000 | T190: 530000 | U190: 8355527 | V190: 8355527
A191: MIDDLEBOROUGH | B191: 182 | C191: 2019 | D191: 3000000 | E191: 654841 | F191: 323127 | G191: 239921 | H191: 98295 | I191: 356896 | J191: 105000 | K191: 4778080 | M191: 2020 | N191: 3100000 | O191: 775044 | P191: 341351 | Q191: 268823 | R191: 79087 | S191: 600000 | T191: 105000 | U191: 5269305 | V191: 5269305
A192: MIDDLEFIELD | B192: 183 | C192: 2019 | D192: 57000 | E192: 0 | F192: 8600 | G192: 0 | H192: 100 | I192: 2100 | J192: 3500 | K192: 71300 | M192: 2020 | N192: 58400 | O192: 0 | P192: 4600 | Q192: 0 | R192: 200 | S192: 3200 | T192: 0 | U192: 66400 | V192: 66400
A193: MIDDLETON | B193: 184 | C193: 2019 | D193: 1950000 | E193: 430000 | F193: 80000 | G193: 130000 | H193: 12000 | I193: 70000 | J193: 54855 | K193: 2726855 | M193: 2020 | N193: 1975000 | O193: 420000 | P193: 90000 | Q193: 130000 | R193: 12000 | S193: 80000 | T193: 55844 | U193: 2762844 | V193: 2762844
A194: MILFORD | B194: 185 | C194: 2019 | D194: 4030000 | E194: 1000000 | F194: 337000 | G194: 12713 | H194: 164900 | I194: 125000 | J194: 957227 | K194: 6626840 | M194: 2020 | N194: 4000000 | O194: 1000000 | P194: 300000 | Q194: 25000 | R194: 165200 | S194: 125000 | T194: 1187236 | U194: 6802436 | V194: 6802436
A195: MILLBURY | B195: 186 | C195: 2019 | D195: 1900000 | E195: 312000 | F195: 60000 | G195: 2270000 | H195: 60000 | I195: 20000 | J195: 160000 | K195: 4782000 | M195: 2020 | N195: 2099805 | O195: 331800 | P195: 70000 | Q195: 2300053 | R195: 70000 | S195: 23000 | T195: 160000 | U195: 5054658 | V195: 5054658
A196: MILLIS | B196: 187 | C196: 2019 | D196: 1175000.58 | E196: 110000 | F196: 100000 | G196: 2500 | H196: 5000 | I196: 14000 | J196: 180100 | K196: 1586600.58 | M196: 2020 | N196: 1186750 | O196: 111100 | P196: 101000 | Q196: 2525 | R196: 15058.12 | S196: 54140 | T196: 182002 | U196: 1652575.12 | V196: 1652575.12
A197: MILLVILLE | B197: 188 | C197: 2019 | D197: 397500 | E197: 0 | F197: 23900 | G197: 0 | H197: 20000 | I197: 2400 | J197: 0 | K197: 443800 | M197: 2020 | N197: 395000 | O197: 0 | P197: 28000 | Q197: 0 | R197: 10000 | S197: 1800 | T197: 0 | U197: 434800 | V197: 434800
A198: MILTON | B198: 189 | C198: 2019 | D198: 4070000 | E198: 194000 | F198: 486000 | G198: 105000 | H198: 165000 | I198: 50000 | J198: 65000 | K198: 5135000 | M198: 2020 | N198: 4230000 | O198: 205000 | P198: 535000 | Q198: 244000 | R198: 175000 | S198: 160000 | T198: 90000 | U198: 5639000 | V198: 5639000
A199: MONROE | B199: 190 | C199: 2019 | D199: 18500 | E199: 0 | F199: 1500 | G199: 168350 | H199: 0 | I199: 5000 | J199: 0 | K199: 193350 | M199: 2020 | N199: 13000 | O199: 0 | P199: 1500 | Q199: 150000 | R199: 0 | S199: 5000 | T199: 0 | U199: 169500 | V199: 169500
A200: MONSON | B200: 191 | C200: 2019 | D200: 1160000 | E200: 36000 | F200: 46500 | G200: 88900 | H200: 18000 | I200: 21000 | J200: 5507 | K200: 1375907 | M200: 2020 | N200: 1180000 | O200: 38000 | P200: 45000 | Q200: 13800 | R200: 18000 | S200: 21000 | T200: 0 | U200: 1315800 | V200: 1315800
A201: MONTAGUE | B201: 192 | C201: 2019 | D201: 657000 | E201: 0 | F201: 70000 | G201: 5000 | H201: 7000 | I201: 5000 | J201: 187792 | K201: 931792 | M201: 2020 | N201: 346037.41 | O201: 31000 | P201: 101000 | Q201: 5000 | R201: 14000 | S201: 9000 | T201: 171500 | U201: 677537.41 | V201: 677537.41
A202: MONTEREY | B202: 193 | C202: 2019 | D202: 137880 | E202: 0 | F202: 17500 | G202: 12000 | H202: 5000 | I202: 2000 | J202: 0 | K202: 174380 | M202: 2020 | N202: 140000 | O202: 0 | P202: 15000 | Q202: 12000 | R202: 17000 | S202: 2000 | T202: 0 | U202: 186000 | V202: 186000
... 159 more rows

Sheet MRGF Calculation (hidden)
A1: 1997-01-21 | I1: Municipal Revenue Growth Factor
J2: Massaschusetts Department of Revenue, Division of Local Services
A8: MUNICIPALITY | B8: DOR Code | C8: FY2020 MRGF Levy Limit (* = Est) | E8: FY2020 General Revenue Sharing | F8: Budgeted Recurring Local Receipts FY2019 (*=2018) | H8: Total, Base Municipal Revenues | J8: FY2020Levy Limit x 1.025 | K8: Estimated New Growth FY2021 | L8: Percent Change In Levy Limit | M8: FY2021 General Revenue Sharing | N8: Percent Change In GRS | O8: Budgeted Recurring Local Receipts FY2020 (*=2019) | Q8: Percent Change In Receipts | R8: Total, Estimated Current Municipal Revenues | T8: Calculated Change, Base to Current | U8: Calculated FY2021 Municipal Revenue Growth Factor Preliminary
A10: ABINGTON | B10: 1 | C10: 32788179 | E10: 2227078 | F10: 2744723 | H10: 37759980 | J10: 33607883 | K10: 508217 | L10: 4.049999239 | M10: 2285567 | N10: 2.626266345 | O10: 3501824 | Q10: 27.58387641 | R10: 39903491 | T10: 2143511 | U10: 5.68
A11: ACTON | B11: 2 | C11: 77655148 | E11: 1554927 | F11: 4120000 | H11: 83330075 | J11: 79596527 | K11: 823145 | L11: 3.560000942 | M11: 1596518 | N11: 2.674787948 | O11: 4152000 | Q11: 0.7766990291 | R11: 86168190 | T11: 2838115 | U11: 3.41
A12: ACUSHNET | B12: 3 | C12: 18027438 | E12: 1610078 | F12: 1208500 | H12: 20846016 | J12: 18478124 | K12: 306466 | L12: 4.199997803 | M12: 1655159 | N12: 2.799926463 | O12: 1408500 | Q12: 16.54944146 | R12: 21848249 | T12: 1002233 | U12: 4.81
A13: ADAMS | B13: 4 | C13: 11708307 | E13: 2552680 | F13: 1213273 | H13: 15474260 | J13: 12001015 | K13: 110058 | L13: 3.440002043 | M13: 2622288 | N13: 2.726859614 | O13: 1256000 | Q13: 3.521631158 | R13: 15989361 | T13: 515101 | U13: 3.33
A14: AGAWAM | B14: 5 | C14: 76081914 | E14: 4009668 | F14: 5317950 | H14: 85409532 | J14: 76712052 | K14: 0 | L14: 0.8282362612 | M14: 4119203 | N14: 2.731772306 | O14: 5716483 | Q14: 7.494109572 | R14: 86547738 | T14: 1138206 | U14: 1.33
A15: ALFORD | B15: 6 | C15: 1689068 | E15: 14902 | F15: 129500 | H15: 1833470 | J15: 1731295 | K15: 10810 | L15: 3.140015677 | M15: 15319 | N15: 2.79828211 | O15: 109700 | Q15: -15.28957529 | R15: 1867124 | T15: 33654 | U15: 1.84
A16: AMESBURY | B16: 7 | C16: 47359518 | E16: 2065799 | F16: 3251000 | H16: 52676317 | J16: 48543506 | K16: 710393 | L16: 4.000000591 | M16: 2123641 | N16: 2.799981992 | O16: 3338606 | Q16: 2.69474008 | R16: 54716146 | T16: 2039829 | U16: 3.87
A17: AMHERST | B17: 8 | C17: 50089984 | E17: 9143343 | F17: 4145954 | H17: 63379281 | J17: 51342234 | K17: 871566 | L17: 4.240001354 | M17: 9393657 | N17: 2.737663894 | O17: 4647128 | Q17: 12.08826726 | R17: 66254585 | T17: 2875304 | U17: 4.54
A18: ANDOVER | B18: 9 | C18: 150531622 | E18: 2120778 | F18: 8789461 | H18: 161441861 | J18: 154294913 | K18: 3492334 | L18: 4.820000544 | M18: 2173906 | N18: 2.505118405 | O18: 10008414 | Q18: 13.86834756 | R18: 169969567 | T18: 8527706 | U18: 5.28
A19: ARLINGTON | B19: 10 | C19: 106869736 | E19: 8056055 | F19: 5744000 | H19: 120669791 | J19: 109541479 | K19: 1164880 | L19: 3.589999511 | M19: 8281625 | N19: 2.80000571 | O19: 6244000 | Q19: 8.704735376 | R19: 125231984 | T19: 4562193 | U19: 3.78
A20: ASHBURNHAM | B20: 11 | C20: 9501460 | E20: 945116 | F20: 1138977 | H20: 11585553 | J20: 9738997 | K20: 157724 | L20: 4.160002779 | M20: 968756 | N20: 2.501280266 | O20: 1215692 | Q20: 6.735430127 | R20: 12081169 | T20: 495616 | U20: 4.28
A21: ASHBY | B21: 12 | C21: 5884703 | E21: 569321 | F21: 445400 | H21: 6899424 | J21: 6031821 | K21: 64732 | L21: 3.600011759 | M21: 582340 | N21: 2.286759139 | O21: 456000 | Q21: 2.379883251 | R21: 7134893 | T21: 235469 | U21: 3.41
A22: ASHFIELD | B22: 13 | C22: 3938120 | E22: 208962 | F22: 207500 | H22: 4354582 | J22: 4036573 | K22: 47651 | L22: 3.709993601 | M22: 214482 | N22: 2.641628621 | O22: 233105.09 | Q22: 12.33980241 | R22: 4531811.09 | T22: 177229.09 | U22: 4.07
A23: ASHLAND | B23: 14 | C23: 46224897 | E23: 1535807 | F23: 3210000 | H23: 50970704 | J23: 47380519 | K23: 1146377 | L23: 4.979998117 | M23: 1576015 | N23: 2.618037292 | O23: 3455135.77 | Q23: 7.636628349 | R23: 53558046.77 | T23: 2587342.77 | U23: 5.08
A24: ATHOL | B24: 15 | C24: 11659210 | E24: 2859298 | F24: 1363000 | H24: 15881508 | J24: 11950690 | K24: 272826 | L24: 4.840002024 | M24: 2938014 | N24: 2.752983425 | O24: 1425000 | Q24: 4.548789435 | R24: 16586530 | T24: 705022 | U24: 4.44
A25: ATTLEBORO | B25: 16 | C25: 76079548 | E25: 6057887 | F25: 6709563.07 | H25: 88846998.07 | J25: 77981537 | K25: 1164017 | L25: 4.030000283 | M25: 6227508 | N25: 2.800002707 | O25: 6817961.15 | Q25: 1.615575841 | R25: 92191023.15 | T25: 3344025.08 | U25: 3.76
A26: AUBURN | B26: 17 | C26: 44093695 | E26: 1818556 | F26: 4443215.73 | H26: 50355466.73 | J26: 45196037 | K26: 793687 | L26: 4.300000261 | M26: 1869476 | N26: 2.800023755 | O26: 4510500 | Q26: 1.514314724 | R26: 52369700 | T26: 2014233.27 | U26: 4
A27: AVON | B27: 18 | C27: 19542594 | E27: 735982 | F27: 1566223 | H27: 21844799 | J27: 20031159 | K27: 383255 | L27: 4.46112732 | M27: 756589 | N27: 2.799932607 | O27: 1611214 | Q27: 2.872579447 | R27: 22782217 | T27: 937418 | U27: 4.29
A28: AYER | B28: 19 | C28: 24559228 | E28: 818688 | F28: 1422900 | H28: 26800816 | J28: 25173209 | K28: 884132 | L28: 6.100000375 | M28: 841196 | N28: 2.749276892 | O28: 1456000 | Q28: 2.326235154 | R28: 28354537 | T28: 1553721 | U28: 5.8
A29: BARNSTABLE | B29: 20 | C29: 125537222 | E29: 2344044 | F29: 11788259 | H29: 139669525 | J29: 128675653 | K29: 1431124 | L29: 3.640000095 | M29: 2406585 | N29: 2.668081316 | O29: 11757377 | Q29: -0.2619725271 | R29: 144270739 | T29: 4601214 | U29: 3.29
A30: BARRE | B30: 21 | C30: 8401060 | E30: 1023653 | F30: 931585 | H30: 10356298 | J30: 8611087 | K30: 128536 | L30: 4.030003357 | M30: 1050393 | N30: 2.612213318 | O30: 1020180.57 | Q30: 9.510197137 | R30: 10810196.57 | T30: 453898.57 | U30: 4.38
A31: BECKET | B31: 22 | C31: 5753200 | E31: 141754 | F31: 359000 | H31: 6253954 | J31: 5897030 | K31: 63285 | L31: 3.599996524 | M31: 144454 | N31: 1.904708156 | O31: 359000 | Q31: 0 | R31: 6463769 | T31: 209815 | U31: 3.35
A32: BEDFORD | B32: 23 | C32: 72855273 | E32: 2241816 | F32: 5014518 | H32: 80111607 | J32: 74676655 | K32: 1726670 | L32: 4.870000281 | M32: 2275947 | N32: 1.522471068 | O32: 5094184 | Q32: 1.58870703 | R32: 83773456 | T32: 3661849 | U32: 4.57
A33: BELCHERTOWN | B33: 24 | C33: 28624718 | E33: 1963310 | F33: 2771293 | H33: 33359321 | J33: 29340336 | K33: 520970 | L33: 4.320000637 | M33: 2013900 | N33: 2.576770861 | O33: 2933293 | Q33: 5.845646779 | R33: 34808499 | T33: 1449178 | U33: 4.34
A34: BELLINGHAM | B34: 25 | C34: 41820156 | E34: 1802698 | F34: 3548299 | H34: 47171153 | J34: 42865660 | K34: 828039 | L34: 4.480000027 | M34: 1853149 | N34: 2.798638485 | O34: 3777936 | Q34: 6.471748858 | R34: 49324784 | T34: 2153631 | U34: 4.57
A35: BELMONT | B35: 26 | C35: 79495329 | E35: 2397629 | F35: 3910195 | H35: 85803153 | J35: 81482712 | K35: 1510411 | L35: 4.399999401 | M35: 2464763 | N35: 2.800016183 | O35: 4518255 | Q35: 15.55063111 | R35: 89976141 | T35: 4172988 | U35: 4.86
A36: BERKLEY | B36: 27 | C36: 8929537 | E36: 677144 | F36: 737605 | H36: 10344286 | J36: 9152775 | K36: 183948 | L36: 4.559990064 | M36: 695235 | N36: 2.671662158 | O36: 826690 | Q36: 12.07760251 | R36: 10858648 | T36: 514362 | U36: 4.97
A37: BERLIN | B37: 28 | C37: 12051641 | E37: 214087 | F37: 758795 | H37: 13024523 | J37: 12352932 | K37: 322984 | L37: 5.179999968 | M37: 220081 | N37: 2.799796344 | O37: 783413 | Q37: 3.244354536 | R37: 13679410 | T37: 654887 | U37: 5.03
A38: BERNARDSTON | B38: 29 | C38: 4570462 | E38: 332478 | F38: 394100 | H38: 5297040 | J38: 4684724 | K38: 61701 | L38: 3.85000466 | M38: 341126 | N38: 2.601074357 | O38: 395953 | Q38: 0.4701852322 | R38: 5483504 | T38: 186464 | U38: 3.52
A39: BEVERLY | B39: 30 | C39: 108035190 | E39: 6201104 | F39: 7131917 | H39: 121368211 | J39: 110736070 | K39: 2085079 | L39: 4.430000077 | M39: 6374735 | N39: 2.800001419 | O39: 6913717 | Q39: -3.05948597 | R39: 126109601 | T39: 4741390 | U39: 3.91
A40: BILLERICA | B40: 31 | C40: 141531357 | E40: 6323878 | F40: 8665000 | H40: 156520235 | J40: 145069641 | K40: 3127843 | L40: 4.71000006 | M40: 6497013 | N40: 2.737797915 | O40: 8875000 | Q40: 2.423542989 | R40: 163569497 | T40: 7049262 | U40: 4.5
A41: BLACKSTONE | B41: 32 | C41: 19444909 | E41: 1479815 | F41: 1160000 | H41: 22084724 | J41: 19931032 | K41: 324730 | L41: 4.170001516 | M41: 1520511 | N41: 2.750073489 | O41: 1345000 | Q41: 15.94827586 | R41: 23121273 | T41: 1036549 | U41: 4.69
A42: BLANDFORD | B42: 33 | C42: 2631588 | E42: 155403 | F42: 437800 | H42: 3224791 | J42: 2697378 | K42: 40000 | L42: 4.020006171 | M42: 159178 | N42: 2.429168034 | O42: 528300 | Q42: 20.67153952 | R42: 3424856 | T42: 200065 | U42: 6.2
A43: BOLTON | B43: 34 | C43: 19992283 | E43: 221862 | F43: 975438 | H43: 21189583 | J43: 20492090 | K43: 381853 | L43: 4.410001599 | M43: 227732 | N43: 2.645788824 | O43: 1074000 | Q43: 10.10438388 | R43: 22175675 | T43: 986092 | U43: 4.65
A44: BOSTON | B44: 35 | C44: 2509114748 | E44: 201589823 | F44: 354823496 | H44: 3065528067 | J44: 2571842617 | K44: 95095449 | L44: 6.290000014 | M44: 207222895 | N44: 2.7943236 | O44: 384512338 | Q44: 8.367214216 | R44: 3258673299 | T44: 193145232 | U44: 6.3
A45: BOURNE | B45: 36 | C45: 45900739 | E45: 2157316 | F45: 4411791 | H45: 52469846 | J45: 47048257 | K45: 610480 | L45: 3.829999338 | M45: 2200901 | N45: 2.020334527 | O45: 5068895.84 | Q45: 14.8942876 | R45: 54928533.84 | T45: 2458687.84 | U45: 4.69
A46: BOXBOROUGH | B46: 37 | C46: 20576812 | E46: 271331 | F46: 1027000 | H46: 21875143 | J46: 21091232 | K46: 327171 | L46: 4.089997032 | M46: 278831 | N46: 2.764151534 | O46: 1147500 | Q46: 11.73320351 | R46: 22844734 | T46: 969591 | U46: 4.43
A47: BOXFORD | B47: 38 | C47: 24460487 | E47: 678851 | F47: 1867000 | H47: 27006338 | J47: 25071999 | K47: 239713 | L47: 3.480000214 | M47: 693305 | N47: 2.129185933 | O47: 1862283 | Q47: -0.2526513123 | R47: 27867300 | T47: 860962 | U47: 3.19
A48: BOYLSTON | B48: 39 | C48: 12718273 | E48: 363726 | F48: 1841000 | H48: 14922999 | J48: 13036230 | K48: 361199 | L48: 5.340001744 | M48: 373910 | N48: 2.799909822 | O48: 1785000 | Q48: -3.041825095 | R48: 15556339 | T48: 633340 | U48: 4.24
A49: BRAINTREE | B49: 40 | C49: 96036025 | E49: 6107179 | F49: 15104000 | H49: 117247204 | J49: 98436926 | K49: 1085207 | L49: 3.630000305 | M49: 6277317 | N49: 2.785868893 | O49: 14805386 | Q49: -1.977052436 | R49: 120604836 | T49: 3357632 | U49: 2.86
A50: BREWSTER | B50: 41 | C50: 29129227 | E50: 734978 | F50: 3425684 | H50: 33289889 | J50: 29857458 | K50: 355377 | L50: 3.720002594 | M50: 746718 | N50: 1.597326723 | O50: 3005063 | Q50: -12.278453 | R50: 33964616 | T50: 674727 | U50: 2.03
A51: BRIDGEWATER | B51: 42 | C51: 40927756 | E51: 4228453 | F51: 4130782 | H51: 49286991 | J51: 41950950 | K51: 892225 | L51: 4.680000047 | M51: 4336745 | N51: 2.561031186 | O51: 4197347.9 | Q51: 1.611460009 | R51: 51377267.9 | T51: 2090276.9 | U51: 4.24
A52: BRIMFIELD | B52: 43 | C52: 7716005 | E52: 498118 | F52: 668394.48 | H52: 8882517.48 | J52: 7908905 | K52: 64814 | L52: 3.339992652 | M52: 509710 | N52: 2.327159428 | O52: 596361 | Q52: -10.7770908 | R52: 9079790 | T52: 197272.52 | U52: 2.22
A53: BROCKTON | B53: 44 | C53: 149036481 | E53: 22233988 | F53: 14865000 | H53: 186135469 | J53: 152762393 | K53: 2235547 | L53: 3.999999839 | M53: 22856533 | N53: 2.799970028 | O53: 14280000 | Q53: -3.935418769 | R53: 192134473 | T53: 5999004 | U53: 3.22
A54: BROOKFIELD | B54: 45 | C54: 5668022 | E54: 615171 | F54: 569759.95 | H54: 6852952.95 | J54: 5809723 | K54: 117328 | L54: 4.570006962 | M54: 629851 | N54: 2.386328354 | O54: 544668.39 | Q54: -4.403882723 | R54: 7101570.39 | T54: 248617.44 | U54: 3.63
A55: BROOKLINE | B55: 46 | C55: 204707848 | E55: 6741760 | F55: 15676822 | H55: 227126430 | J55: 209825544 | K55: 2743085 | L55: 3.839999823 | M55: 6930529 | N55: 2.799995847 | O55: 16059806 | Q55: 2.442995143 | R55: 235558964 | T55: 8432534 | U55: 3.71
A56: BUCKLAND | B56: 47 | C56: 3755552 | E56: 327547 | F56: 189500 | H56: 4272599 | J56: 3849441 | K56: 24036 | L56: 3.140017766 | M56: 336651 | N56: 2.779448446 | O56: 189500 | Q56: 0 | R56: 4399628 | T56: 127029 | U56: 2.97
A57: BURLINGTON | B57: 48 | C57: 130007610 | E57: 2780883 | F57: 9613515.34 | H57: 142402008.3 | J57: 133257800 | K57: 3757220 | L57: 5.389999862 | M57: 2858748 | N57: 2.800009925 | O57: 10062757.1 | Q57: 4.673022761 | R57: 149936525.1 | T57: 7534516.76 | U57: 5.29
A58: CAMBRIDGE | B58: 49 | C58: 628478895 | E58: 22812246 | F58: 50016235 | H58: 701307376 | J58: 644190867 | K58: 16151908 | L58: 5.070000004 | M58: 23450989 | N58: 2.800000491 | O58: 52114395 | Q58: 4.194957897 | R58: 735908159 | T58: 34600783 | U58: 4.93
A59: CANTON | B59: 50 | C59: 74125029 | E59: 2315718 | F59: 5422736 | H59: 81863483 | J59: 75978155 | K59: 1460263 | L59: 4.470000275 | M59: 2379478 | N59: 2.753357706 | O59: 6003804 | Q59: 10.7154027 | R59: 85821700 | T59: 3958217 | U59: 4.84
A60: CARLISLE | B60: 51 | C60: 24396248 | E60: 396688 | F60: 986585 | H60: 25779521 | J60: 25006154 | K60: 353746 | L60: 3.950000836 | M60: 403210 | N60: 1.644113258 | O60: 1035000 | Q60: 4.907331857 | R60: 26798110 | T60: 1018589 | U60: 3.95
A61: CARVER | B61: 52 | C61: 25987764 | E61: 1726117 | F61: 2261817 | H61: 29975698 | J61: 26637458 | K61: 465181 | L61: 4.289999709 | M61: 1769552 | N61: 2.516341592 | O61: 2302314 | Q61: 1.790463154 | R61: 31174505 | T61: 1198807 | U61: 4
A62: CHARLEMONT | B62: 53 | C62: 3207212 | E62: 204575 | F62: 217632 | H62: 3629419 | J62: 3287392 | K62: 60937 | L62: 4.399989773 | M62: 209772 | N62: 2.540388611 | O62: 213000 | Q62: -2.128363476 | R62: 3771101 | T62: 141682 | U62: 3.9
A63: CHARLTON | B63: 54 | C63: 21031164 | E63: 1543629 | F63: 2915700 | H63: 25490493 | J63: 21556943 | K63: 590976 | L63: 5.310000911 | M63: 1586705 | N63: 2.790566904 | O63: 3123150 | Q63: 7.114929519 | R63: 26857774 | T63: 1367281 | U63: 5.36
A64: CHATHAM | B64: 55 | C64: 28160604 | E64: 159810 | F64: 2890000 | H64: 31210414 | J64: 28864619 | K64: 515339 | L64: 4.329999456 | M64: 164285 | N64: 2.800200238 | O64: 2977500 | Q64: 3.027681661 | R64: 32521743 | T64: 1311329 | U64: 4.2
A65: CHELMSFORD | B65: 56 | C65: 101789687 | E65: 5395125 | F65: 8241800 | H65: 115426612 | J65: 104334429 | K65: 1659172 | L65: 4.129999928 | M65: 5546034 | N65: 2.797136304 | O65: 8236800 | Q65: -0.06066635929 | R65: 119776435 | T65: 4349823 | U65: 3.77
A66: CHELSEA | B66: 57 | C66: 61485089 | E66: 8858851 | F66: 20966509 | H66: 91310449 | J66: 63022216 | K66: 2219612 | L66: 6.110000101 | M66: 9103043 | N66: 2.756474852 | O66: 22111250 | Q66: 5.459855048 | R66: 96456121 | T66: 5145672 | U66: 5.64
A67: CHESHIRE | B67: 58 | C67: 3613907 | E67: 763222 | F67: 572800 | H67: 4949929 | J67: 3704255 | K67: 26743 | L67: 3.240011434 | M67: 781487 | N67: 2.393143804 | O67: 608800 | Q67: 6.284916201 | R67: 5121285 | T67: 171356 | U67: 3.46
A68: CHESTER | B68: 59 | C68: 2671146 | E68: 208138 | F68: 184050 | H68: 3063334 | J68: 2737925 | K68: 17630 | L68: 3.160029441 | M68: 213491 | N68: 2.571851368 | O68: 195900 | Q68: 6.438467808 | R68: 3164946 | T68: 101612 | U68: 3.32
A69: CHESTERFIELD | B69: 60 | C69: 3301345 | E69: 217837 | F69: 198689.12 | H69: 3717871.12 | J69: 3383879 | K69: 42917 | L69: 3.799996668 | M69: 221942 | N69: 1.884436528 | O69: 201832 | Q69: 1.581807801 | R69: 3850570 | T69: 132698.88 | U69: 3.57
A70: CHICOPEE | B70: 61 | C70: 95030164 | E70: 12227779 | F70: 9890000 | H70: 117147943 | J70: 97405918 | K70: 1187877 | L70: 3.749999842 | M70: 12570157 | N70: 2.800001537 | O70: 10607008 | Q70: 7.249828109 | R70: 121770960 | T70: 4623017 | U70: 3.95
A71: CHILMARK | B71: 62 | C71: 6144147 | E71: 3983 | F71: 363000 | H71: 6511130 | J71: 6297751 | K71: 96463 | L71: 4.070003533 | M71: 4095 | N71: 2.811950791 | O71: 391000 | Q71: 7.713498623 | R71: 6789309 | T71: 278179 | U71: 4.27
A72: CLARKSBURG | B72: 63 | C72: 2018524 | E72: 405175 | F72: 272951.27 | H72: 2696650.27 | J72: 2068987 | K72: 31085 | L72: 4.03998169 | M72: 415991 | N72: 2.669463812 | O72: 274240 | Q72: 0.4721465484 | R72: 2790303 | T72: 93652.73 | U72: 3.47
A73: CLINTON | B73: 64 | C73: 27155562 | E73: 2502102 | F73: 2020000 | H73: 31677664 | J73: 27834451 | K73: 901565 | L73: 5.820001074 | M73: 2572093 | N73: 2.79728804 | O73: 2453879 | Q73: 21.47915842 | R73: 33761988 | T73: 2084324 | U73: 6.58
A74: COHASSET | B74: 65 | C74: 36056433 | E74: 546320 | F74: 1579285 | H74: 38182038 | J74: 36957844 | K74: 739157 | L74: 4.550000828 | M74: 561617 | N74: 2.800007322 | O74: 1938000 | Q74: 22.71375971 | R74: 40196618 | T74: 2014580 | U74: 5.28
A75: COLRAIN | B75: 66 | C75: 3722805 | E75: 348715 | F75: 147000 | H75: 4218520 | J75: 3815875 | K75: 34250 | L75: 3.420001853 | M75: 357296 | N75: 2.460748749 | O75: 147000 | Q75: 0 | R75: 4354421 | T75: 135901 | U75: 3.22
A76: CONCORD | B76: 67 | C76: 79896943 | E76: 1802507 | F76: 5175601 | H76: 86875051 | J76: 81894367 | K76: 1358248 | L76: 4.200000493 | M76: 1837000 | N76: 1.913612541 | O76: 5976800 | Q76: 15.48030847 | R76: 91066415 | T76: 4191364 | U76: 4.82
A77: CONWAY | B77: 68 | C77: 4977761 | E77: 235448 | F77: 236000 | H77: 5449209 | J77: 5102205 | K77: 86115 | L77: 4.229994168 | M77: 240762 | N77: 2.256973939 | O77: 237000 | Q77: 0.4237288136 | R77: 5666082 | T77: 216873 | U77: 3.98
A78: CUMMINGTON | B78: 69 | C78: 1970288 | E78: 139956 | F78: 109500 | H78: 2219744 | J78: 2019545 | K78: 25023 | L78: 3.770007227 | M78: 142436 | N78: 1.771985481 | O78: 112500 | Q78: 2.739726027 | R78: 2299504 | T78: 79760 | U78: 3.59
A79: DALTON | B79: 70 | C79: 12984294 | E79: 1263271 | F79: 865150 | H79: 15112715 | J79: 13308901 | K79: 146723 | L79: 3.630000984 | M79: 1297099 | N79: 2.677810224 | O79: 865150 | Q79: 0 | R79: 15617873 | T79: 505158 | U79: 3.34
A80: DANVERS | B80: 71 | C80: 80994021 | E80: 3304647 | F80: 8893000 | H80: 93191668 | J80: 83018872 | K80: 907133 | L80: 3.620000543 | M80: 3389330 | N80: 2.562542989 | O80: 9079077.88 | Q80: 2.092408411 | R80: 96394412.88 | T80: 3202744.88 | U80: 3.44
A81: DARTMOUTH | B81: 72 | C81: 61564845 | E81: 2975356 | F81: 5481000 | H81: 70021201 | J81: 63103966 | K81: 763404 | L81: 3.73999967 | M81: 3050307 | N81: 2.519059904 | O81: 5583000 | Q81: 1.860974275 | R81: 72500677 | T81: 2479476 | U81: 3.54
A82: DEDHAM | B82: 73 | C82: 96531276 | E82: 3472478 | F82: 5063000 | H82: 105066754 | J82: 98944558 | K82: 1341785 | L82: 3.890000377 | M82: 3569707 | N82: 2.799988942 | O82: 5160000 | Q82: 1.915860162 | R82: 109016050 | T82: 3949296 | U82: 3.76
A83: DEERFIELD | B83: 74 | C83: 10260285 | E83: 596281 | F83: 1037000 | H83: 11893566 | J83: 10516792 | K83: 181607 | L83: 4.269998348 | M83: 610562 | N83: 2.395011748 | O83: 1160000 | Q83: 11.8611379 | R83: 12468961 | T83: 575395 | U83: 4.84
A84: DENNIS | B84: 75 | C84: 37932691 | E84: 586423 | F84: 3643000 | H84: 42162114 | J84: 38881008 | K84: 314841 | L84: 3.329998391 | M84: 602616 | N84: 2.761317343 | O84: 3643000 | Q84: 0 | R84: 43441465 | T84: 1279351 | U84: 3.03
A85: DIGHTON | B85: 76 | C85: 18525532 | E85: 825579 | F85: 1222104.42 | H85: 20573215.42 | J85: 18988670 | K85: 531683 | L85: 5.369999631 | M85: 848569 | N85: 2.784712305 | O85: 1463003.34 | Q85: 19.71181153 | R85: 21831925.34 | T85: 1258709.92 | U85: 6.12
A86: DOUGLAS | B86: 77 | C86: 14434360 | E86: 983567 | F86: 1249327 | H86: 16667254 | J86: 14795219 | K86: 307452 | L86: 4.630000914 | M86: 1005265 | N86: 2.206052053 | O86: 1277212 | Q86: 2.23200171 | R86: 17385148 | T86: 717894 | U86: 4.31
A87: DOVER | B87: 78 | C87: 31203977 | E87: 269881 | F87: 1327000 | H87: 32800858 | J87: 31984076 | K87: 480541 | L87: 4.03999785 | M87: 275600 | N87: 2.119082114 | O87: 1502400 | Q87: 13.21778448 | R87: 34242617 | T87: 1441759 | U87: 4.4
A88: DRACUT | B88: 79 | C88: 49198678 | E88: 3763375 | F88: 5593418 | H88: 58555471 | J88: 50428645 | K88: 772419 | L88: 4.069999604 | M88: 3867549 | N88: 2.768100442 | O88: 5866742 | Q88: 4.886529131 | R88: 60935355 | T88: 2379884 | U88: 4.06
A89: DUDLEY | B89: 80 | C89: 10178293 | E89: 1897257 | F89: 1813865 | H89: 13889415 | J89: 10432750 | K89: 128246 | L89: 3.759991975 | M89: 1950380 | N89: 2.799989669 | O89: 2036570 | Q89: 12.27792587 | R89: 14547946 | T89: 658531 | U89: 4.74
A90: DUNSTABLE | B90: 81 | C90: 7574022 | E90: 303611 | F90: 605000 | H90: 8482633 | J90: 7763373 | K90: 169658 | L90: 4.740004716 | M90: 310924 | N90: 2.408674258 | O90: 601000 | Q90: -0.6611570248 | R90: 8844955 | T90: 362322 | U90: 4.27
A91: DUXBURY | B91: 82 | C91: 57123110 | E91: 1042034 | F91: 3820994 | H91: 61986138 | J91: 58551188 | K91: 708327 | L91: 3.740001201 | M91: 1068389 | N91: 2.529188107 | O91: 4170130.2 | Q91: 9.137313484 | R91: 64498034.2 | T91: 2511896.2 | U91: 4.05
A92: EAST BRIDGEWATER | B92: 83 | C92: 28364047 | E92: 1592817 | F92: 2349159 | H92: 32306023 | J92: 29073148 | K92: 320514 | L92: 3.630000331 | M92: 1637322 | N92: 2.794106291 | O92: 2464159 | Q92: 4.895368938 | R92: 33495143 | T92: 1189120 | U92: 3.68
A93: EAST BROOKFIELD | B93: 84 | C93: 3870757 | E93: 311397 | F93: 333000 | H93: 4515154 | J93: 3967526 | K93: 69674 | L93: 4.3000116 | M93: 320020 | N93: 2.769133935 | O93: 337500 | Q93: 1.351351351 | R93: 4694720 | T93: 179566 | U93: 3.98
A94: EAST LONGMEADOW | B94: 85 | C94: 44321187 | E94: 1537043 | F94: 3404169.06 | H94: 49262399.06 | J94: 45429217 | K94: 527422 | L94: 3.690000451 | M94: 1580080 | N94: 2.799986728 | O94: 3610508.13 | Q94: 6.061363768 | R94: 51147227.13 | T94: 1884828.07 | U94: 3.83
A95: EASTHAM | B95: 86 | C95: 17928494 | E95: 160102 | F95: 1452500 | H95: 19541096 | J95: 18376706 | K95: 145221 | L95: 3.309999156 | M95: 164532 | N95: 2.766986046 | O95: 1470000 | Q95: 1.204819277 | R95: 20156459 | T95: 615363 | U95: 3.15
A96: EASTHAMPTON | B96: 87 | C96: 23717269 | E96: 2988106 | F96: 2065909 | H96: 28771284 | J96: 24310201 | K96: 277492 | L96: 3.67000096 | M96: 3071678 | N96: 2.796821799 | O96: 2352575.32 | Q96: 13.8760381 | R96: 30011946.32 | T96: 1240662.32 | U96: 4.31
A97: EASTON | B97: 88 | C97: 52401801 | E97: 2421137 | F97: 5069000 | H97: 59891938 | J97: 53711846 | K97: 1021835 | L97: 4.449999724 | M97: 2486247 | N97: 2.689232373 | O97: 5206000 | Q97: 2.702702703 | R97: 62425928 | T97: 2533990 | U97: 4.23
A98: EDGARTOWN | B98: 89 | C98: 22745023 | E98: 1536105 | F98: 1925500.17 | H98: 26206628.17 | J98: 23313649 | K98: 484469 | L98: 4.630001913 | M98: 1538086 | N98: 0.1289625384 | O98: 2070718.57 | Q98: 7.541853398 | R98: 27406922.57 | T98: 1200294.4 | U98: 4.58
A99: EGREMONT | B99: 90 | C99: 4485945 | E99: 223204 | F99: 263700 | H99: 4972849 | J99: 4598094 | K99: 33645 | L99: 3.250017555 | M99: 225080 | N99: 0.8404867296 | O99: 263200 | Q99: -0.1896094046 | R99: 5120019 | T99: 147170 | U99: 2.96
A100: ERVING | B100: 91 | C100: 10909997 | E100: 118855 | F100: 302392 | H100: 11331244 | J100: 11182747 | K100: 39276 | L100: 2.860000786 | M100: 120853 | N100: 1.681039923 | O100: 241000 | Q100: -20.30212439 | R100: 11583876 | T100: 252632 | U100: 2.23
A101: ESSEX | B101: 92 | C101: 9938252 | E101: 261837 | F101: 961275 | H101: 11161364 | J101: 10186708 | K101: 107333 | L101: 3.579995758 | M101: 269117 | N101: 2.780355717 | O101: 986190 | Q101: 2.591870172 | R101: 11549348 | T101: 387984 | U101: 3.48
A102: EVERETT | B102: 93 | C102: 144152596 | E102: 7336124 | F102: 6549000 | H102: 158037720 | J102: 147756411 | K102: 4137180 | L102: 5.370000413 | M102: 7541535 | N102: 2.799993566 | O102: 35114000 | Q102: 436.1734616 | R102: 194549126 | T102: 36511406 | U102: 23.1
A103: FAIRHAVEN | B103: 94 | C103: 28484856 | E103: 2560686 | F103: 2869000 | H103: 33914542 | J103: 29196977 | K103: 299091 | L103: 3.549998638 | M103: 2627732 | N103: 2.618282757 | O103: 3425000 | Q103: 19.37957476 | R103: 35548800 | T103: 1634258 | U103: 4.82
A104: FALL RIVER | B104: 95 | C104: 106816456 | E104: 25638233 | F104: 15853030 | H104: 148307719 | J104: 109486867 | K104: 2125647 | L104: 4.489999181 | M104: 26346772 | N104: 2.763603092 | O104: 16731667.51 | Q104: 5.542394798 | R104: 154690953.5 | T104: 6383234.51 | U104: 4.3
A105: FALMOUTH | B105: 96 | C105: 95461519 | E105: 1933401 | F105: 6460000 | H105: 103854920 | J105: 97848057 | K105: 1011892 | L105: 3.55999992 | M105: 1974622 | N105: 2.132046068 | O105: 7036000 | Q105: 8.916408669 | R105: 107870571 | T105: 4015651 | U105: 3.87
A106: FITCHBURG | B106: 97 | C106: 55682046 | E106: 9109619 | F106: 6448668.42 | H106: 71240333.42 | J106: 57074097 | K106: 779549 | L106: 3.90000037 | M106: 9363353 | N106: 2.785341516 | O106: 7338032.74 | Q106: 13.7914413 | R106: 74555031.74 | T106: 3314698.32 | U106: 4.65
A107: FLORIDA | B107: 98 | C107: 2471839 | D107: * | E107: 88668 | F107: 269000 | G107: * | H107: 2829507 | J107: 2533635 | K107: 12854 | L107: 3.020018699 | M107: 90148 | N107: 1.669147832 | O107: 266000 | P107: * | Q107: -1.115241636 | R107: 2902637 | T107: 73130 | U107: 2.58
A108: FOXBOROUGH | B108: 99 | C108: 49768722 | E108: 1704115 | F108: 8847959 | H108: 60320796 | J108: 51012940 | K108: 1413432 | L108: 5.340000493 | M108: 1748402 | N108: 2.598826957 | O108: 9422584 | Q108: 6.494435609 | R108: 63597358 | T108: 3276562 | U108: 5.43
A109: FRAMINGHAM | B109: 100 | C109: 207062248 | E109: 11029714 | F109: 16554636 | H109: 234646598 | J109: 212238804 | K109: 3499352 | L109: 4.189999908 | M109: 11325523 | N109: 2.681928108 | O109: 15854898 | Q109: -4.226840143 | R109: 242918577 | T109: 8271979 | U109: 3.53
A110: FRANKLIN | B110: 101 | C110: 73595444 | E110: 2759871 | F110: 6306450 | H110: 82661765 | J110: 75435330 | K110: 1781010 | L110: 4.920000211 | M110: 2833338 | N110: 2.661972244 | O110: 6690143 | Q110: 6.084136083 | R110: 86739821 | T110: 4078056 | U110: 4.93
A111: FREETOWN | B111: 102 | C111: 21671372 | E111: 1206813 | F111: 1993333 | H111: 24871518 | J111: 22213156 | K111: 650141 | L111: 5.499997877 | M111: 1235046 | N111: 2.339467672 | O111: 1957661 | Q111: -1.789565517 | R111: 26056004 | T111: 1184486 | U111: 4.76
A112: GARDNER | B112: 103 | C112: 28240124 | E112: 4550629 | F112: 2941562 | H112: 35732315 | J112: 28946127 | K112: 513970 | L112: 4.319998737 | M112: 4676622 | N112: 2.768694174 | O112: 3439366 | Q112: 16.92311772 | R112: 37576085 | T112: 1843770 | U112: 5.16
A113: AQUINNAH | B113: 104 | C113: 3209351 | E113: 4709 | F113: 123500 | H113: 3337560 | J113: 3289585 | K113: 32414 | L113: 3.509993142 | M113: 4778 | N113: 1.465279252 | O113: 123500 | Q113: 0 | R113: 3450277 | T113: 112717 | U113: 3.38
A114: GEORGETOWN | B114: 105 | C114: 17663734 | E114: 900927 | F114: 2522000 | H114: 21086661 | J114: 18105327 | K114: 249059 | L114: 3.910000003 | M114: 922226 | N114: 2.364120511 | O114: 2518000 | Q114: -0.1586042823 | R114: 21794612 | T114: 707951 | U114: 3.36
A115: GILL | B115: 106 | C115: 2764477 | D115: * | E115: 276566 | F115: 174900 | G115: * | H115: 3215943 | J115: 2833589 | K115: 33450 | L115: 3.709996502 | M115: 283798 | N115: 2.614927359 | O115: 171900 | P115: * | Q115: -1.715265866 | R115: 3322737 | T115: 106794 | U115: 3.32
A116: GLOUCESTER | B116: 107 | C116: 82035573 | E116: 4264996 | F116: 7252291 | H116: 93552860 | J116: 84086462 | K116: 1025445 | L116: 3.750000015 | M116: 4383744 | N116: 2.784246457 | O116: 7294792 | Q116: 0.5860355024 | R116: 96790443 | T116: 3237583 | U116: 3.46
A117: GOSHEN | B117: 108 | C117: 2443882 | E117: 120915 | F117: 163200 | H117: 2727997 | J117: 2504979 | K117: 32504 | L117: 3.830013069 | M117: 123294 | N117: 1.967497829 | O117: 163200 | Q117: 0 | R117: 2823977 | T117: 95980 | U117: 3.52
A118: GOSNOLD | B118: 109 | C118: 526687 | D118: * | E118: 25864 | F118: 58140 | G118: * | H118: 610691 | J118: 539854 | K118: 2317 | L118: 2.939886498 | M118: 25926 | N118: 0.2397154346 | O118: 56220 | P118: * | Q118: -3.302373581 | R118: 624317 | T118: 13626 | U118: 2.23
A119: GRAFTON | B119: 110 | C119: 37083854 | E119: 1665268 | F119: 3618756 | H119: 42367878 | J119: 38010950 | K119: 808428 | L119: 4.67999901 | M119: 1711757 | N119: 2.79168278 | O119: 3511317.36 | Q119: -2.968938497 | R119: 44042452.36 | T119: 1674574.36 | U119: 3.95
A120: GRANBY | B120: 111 | C120: 11354129 | E120: 1005421 | F120: 570023.65 | H120: 12929573.65 | J120: 11637982 | K120: 166906 | L120: 3.970000693 | M120: 1031673 | N120: 2.611045522 | O120: 604347 | Q120: 6.021390516 | R120: 13440908 | T120: 511334.35 | U120: 3.95
A121: GRANVILLE | B121: 112 | C121: 3402034 | E121: 223897 | F121: 427400 | H121: 4053331 | J121: 3487085 | K121: 31639 | L121: 3.430006872 | M121: 228664 | N121: 2.129104008 | O121: 419600 | Q121: -1.824988301 | R121: 4166988 | T121: 113657 | U121: 2.8
A122: GREAT BARRINGTON | B122: 113 | C122: 23576289 | E122: 1054826 | F122: 965000 | H122: 25596115 | J122: 24165696 | K122: 381936 | L122: 4.119999547 | M122: 1077391 | N122: 2.139215378 | O122: 975000 | Q122: 1.03626943 | R122: 26600023 | T122: 1003908 | U122: 3.92
A123: GREENFIELD | B123: 114 | C123: 35435096 | E123: 3401077 | F123: 3430003 | H123: 42266176 | J123: 36320973 | K123: 510265 | L123: 3.939997792 | M123: 3495472 | N123: 2.775444367 | O123: 3356500 | Q123: -2.142942732 | R123: 43683210 | T123: 1417034 | U123: 3.35
A124: GROTON | B124: 115 | C124: 28741001 | E124: 900536 | F124: 2066389 | H124: 31707926 | J124: 29459526 | K124: 571946 | L124: 4.490000192 | M124: 923568 | N124: 2.557587925 | O124: 2193905 | Q124: 6.17095813 | R124: 33148945 | T124: 1441019 | U124: 4.54
A125: GROVELAND | B125: 116 | C125: 12256841 | E125: 892236 | F125: 1309000 | H125: 14458077 | J125: 12563262 | K125: 174047 | L125: 3.919998636 | M125: 913879 | N125: 2.425703513 | O125: 1276000 | Q125: -2.521008403 | R125: 14927188 | T125: 469111 | U125: 3.24
A126: HADLEY | B126: 117 | C126: 11621843 | E126: 702275 | F126: 1658616 | H126: 13982734 | J126: 11912389 | K126: 235923 | L126: 4.529995802 | M126: 715769 | N126: 1.92146951 | O126: 2328357 | Q126: 40.37950918 | R126: 15192438 | T126: 1209704 | U126: 8.65
A127: HALIFAX | B127: 118 | C127: 15758854 | E127: 1011902 | F127: 1419490 | H127: 18190246 | J127: 16152825 | K127: 167044 | L127: 3.559998716 | M127: 1038892 | N127: 2.667254339 | O127: 1453990 | Q127: 2.430450373 | R127: 18812751 | T127: 622505 | U127: 3.42
A128: HAMILTON | B128: 119 | C128: 21645646 | E128: 857162 | F128: 1281550 | H128: 23784358 | J128: 22186787 | K128: 235938 | L128: 3.590001426 | M128: 877138 | N128: 2.330481286 | O128: 1289540 | Q128: 0.6234637743 | R128: 24589403 | T128: 805045 | U128: 3.38
A129: HAMPDEN | B129: 120 | C129: 12454681 | E129: 730571 | F129: 590027 | H129: 13775279 | J129: 12766048 | K129: 171875 | L129: 3.880003029 | M129: 751027 | N129: 2.800001643 | O129: 612727 | Q129: 3.847281565 | R129: 14301677 | T129: 526398 | U129: 3.82
A130: HANCOCK | B130: 121 | C130: 2410484 | E130: 109942 | F130: 455244 | H130: 2975670 | J130: 2470746 | K130: 21694 | L130: 3.399981083 | M130: 111621 | N130: 1.527168871 | O130: 627050 | Q130: 37.73932221 | R130: 3231111 | T130: 255441 | U130: 8.58
A131: HANOVER | B131: 122 | C131: 40766305 | E131: 2257814 | F131: 2750571 | H131: 45774690 | J131: 41785463 | K131: 611495 | L131: 4.000001962 | M131: 2320798 | N131: 2.789600915 | O131: 3099186 | Q131: 12.67427745 | R131: 47816942 | T131: 2042252 | U131: 4.46
A132: HANSON | B132: 123 | C132: 20106487 | E132: 1403211 | F132: 1566000 | H132: 23075698 | J132: 20609149 | K132: 418215 | L132: 4.57999948 | M132: 1441286 | N132: 2.713419436 | O132: 1603000 | Q132: 2.362707535 | R132: 24071650 | T132: 995952 | U132: 4.32
A133: HARDWICK | B133: 124 | C133: 4101377 | E133: 552843 | F133: 721892 | H133: 5376112 | J133: 4203911 | K133: 48806 | L133: 3.689980219 | M133: 566685 | N133: 2.503784981 | O133: 712895.66 | Q133: -1.246216886 | R133: 5532297.66 | T133: 156185.66 | U133: 2.91
A134: HARVARD | B134: 125 | C134: 16667075 | E134: 1577386 | F134: 1228049 | H134: 19472510 | J134: 17083752 | K134: 161671 | L134: 3.470002985 | M134: 1621418 | N134: 2.791453709 | O134: 1078492 | Q134: -12.17842285 | R134: 19945333 | T134: 472823 | U134: 2.43
A135: HARWICH | B135: 126 | C135: 41490683 | E135: 539428 | F135: 4220000 | H135: 46250111 | J135: 42527950 | K135: 394161 | L135: 3.449998642 | M135: 552235 | N135: 2.37418154 | O135: 4419832.75 | Q135: 4.735373223 | R135: 47894178.75 | T135: 1644067.75 | U135: 3.55
A136: HATFIELD | B136: 127 | C136: 7623786 | E136: 335798 | F136: 733698 | H136: 8693282 | J136: 7814381 | K136: 114357 | L136: 4.000007345 | M136: 345075 | N136: 2.762672797 | O136: 744200 | Q136: 1.431379123 | R136: 9018013 | T136: 324731 | U136: 3.74
A137: HAVERHILL | B137: 128 | C137: 110211975 | E137: 10437422 | F137: 13418000 | H137: 134067397 | J137: 112967274 | K137: 1664201 | L137: 4.009999821 | M137: 10729643 | N137: 2.799743078 | O137: 14343760 | Q137: 6.899388881 | R137: 139704878 | T137: 5637481 | U137: 4.2
A138: HAWLEY | B138: 129 | C138: 949471 | E138: 103589 | F138: 39300 | H138: 1092360 | J138: 973208 | K138: 11489 | L138: 3.710065921 | M138: 104876 | N138: 1.242409908 | O138: 45800 | Q138: 16.5394402 | R138: 1135373 | T138: 43013 | U138: 3.94
A139: HEATH | B139: 130 | C139: 2067685 | E139: 93255 | F139: 94750 | H139: 2255690 | J139: 2119377 | K139: 12199 | L139: 3.089977439 | M139: 95743 | N139: 2.667953461 | O139: 92700 | Q139: -2.163588391 | R139: 2320019 | T139: 64329 | U139: 2.85
A140: HINGHAM | B140: 131 | C140: 79423977 | E140: 1680191 | F140: 6329829 | H140: 87433997 | J140: 81409576 | K140: 1032512 | L140: 3.799999841 | M140: 1727115 | N140: 2.792777726 | O140: 7468335 | Q140: 17.98636266 | R140: 91637538 | T140: 4203541 | U140: 4.81
A141: HINSDALE | B141: 132 | C141: 4983986 | E141: 268249 | F141: 292000 | H141: 5544235 | J141: 5108586 | K141: 82734 | L141: 4.16000366 | M141: 274869 | N141: 2.467856357 | O141: 292000 | Q141: 0 | R141: 5758189 | T141: 213954 | U141: 3.86
A142: HOLBROOK | B142: 133 | C142: 22532031 | E142: 1566803 | F142: 2237313 | H142: 26336147 | J142: 23095332 | K142: 351500 | L142: 4.060002403 | M142: 1610673 | N142: 2.799969109 | O142: 2032148 | Q142: -9.170151874 | R142: 27089653 | T142: 753506 | U142: 2.86
A143: HOLDEN | B143: 134 | C143: 39897093 | E143: 2132823 | F143: 3774610 | H143: 45804526 | J143: 40894520 | K143: 869757 | L143: 4.680000119 | M143: 2189669 | N143: 2.665293838 | O143: 3862207 | Q143: 2.320690085 | R143: 47816153 | T143: 2011627 | U143: 4.39
A144: HOLLAND | B144: 135 | C144: 5160183 | E144: 218225 | F144: 405900 | H144: 5784308 | J144: 5289188 | K144: 53666 | L144: 3.540010112 | M144: 224226 | N144: 2.74991408 | O144: 448800 | Q144: 10.56910569 | R144: 6015880 | T144: 231572 | U144: 4
A145: HOLLISTON | B145: 136 | C145: 43275822 | E145: 1646755 | F145: 2412339 | H145: 47334916 | J145: 44357718 | K145: 973706 | L145: 4.750001051 | M145: 1692798 | N145: 2.795983616 | O145: 2449885 | Q145: 1.556414749 | R145: 49474107 | T145: 2139191 | U145: 4.52
A146: HOLYOKE | B146: 137 | C146: 53918766 | E146: 10862256 | F146: 8087000 | H146: 72868022 | J146: 53918766 | K146: 0 | L146: 0 | M146: 11164220 | N146: 2.779938164 | O146: 7934000 | Q146: -1.891925312 | R146: 73016986 | T146: 148964 | U146: 0.2
A147: HOPEDALE | B147: 138 | C147: 15361867 | E147: 692455 | F147: 1195500 | H147: 17249822 | J147: 15745914 | K147: 201240 | L147: 3.809999136 | M147: 711843 | N147: 2.799893134 | O147: 1087000 | Q147: -9.075700544 | R147: 17745997 | T147: 496175 | U147: 2.88
A148: HOPKINTON | B148: 139 | C148: 61955508 | D148: * | E148: 1180213 | F148: 3856894 | G148: * | H148: 66992615 | J148: 63504396 | K148: 2781802 | L148: 6.989999985 | M148: 1203569 | N148: 1.978964814 | O148: 3869675 | P148: * | Q148: 0.3313806394 | R148: 71359442 | T148: 4366827 | U148: 6.52
A149: HUBBARDSTON | B149: 140 | C149: 7273006 | E149: 545625 | F149: 1051200 | H149: 8869831 | J149: 7454831 | K149: 88731 | L149: 3.720002431 | M149: 559018 | N149: 2.454616266 | O149: 1083638.7 | Q149: 3.085873288 | R149: 9186218.7 | T149: 316387.7 | U149: 3.57
A150: HUDSON | B150: 141 | C150: 51902188 | E150: 2170140 | F150: 4893311 | H150: 58965639 | J150: 53199743 | K150: 871957 | L150: 4.180001044 | M150: 2229430 | N150: 2.732081801 | O150: 5143972 | Q150: 5.122523379 | R150: 61445102 | T150: 2479463 | U150: 4.2
A151: HULL | B151: 142 | C151: 29976106 | E151: 2274038 | F151: 2991444 | H151: 35241588 | J151: 30725509 | K151: 257795 | L151: 3.360002797 | M151: 2337049 | N151: 2.770885975 | O151: 3075000 | Q151: 2.79316611 | R151: 36395353 | T151: 1153765 | U151: 3.27
A152: HUNTINGTON | B152: 143 | C152: 3559687 | E152: 403001 | F152: 331400 | H152: 4294088 | J152: 3648679 | K152: 28833 | L152: 3.309982029 | M152: 413248 | N152: 2.542673591 | O152: 293100 | Q152: -11.55703078 | R152: 4383860 | T152: 89772 | U152: 2.09
A153: IPSWICH | B153: 144 | C153: 35583750 | E153: 2079649 | F153: 2798000 | H153: 40461399 | J153: 36473344 | K153: 334487 | L153: 3.44 | M153: 2127376 | N153: 2.294954581 | O153: 2778000 | Q153: -0.7147962831 | R153: 41713207 | T153: 1251808 | U153: 3.09
A154: KINGSTON | B154: 145 | C154: 32106154 | E154: 1051342 | F154: 2743900 | H154: 35901396 | J154: 32908808 | K154: 539383 | L154: 4.179999261 | M154: 1079880 | N154: 2.714435455 | O154: 3012500 | Q154: 9.788986479 | R154: 37540571 | T154: 1639175 | U154: 4.57
A155: LAKEVILLE | B155: 146 | C155: 19656669 | E155: 882193 | F155: 2048800.76 | H155: 22587662.76 | J155: 20148086 | K155: 379374 | L155: 4.430002866 | M155: 906521 | N155: 2.757673208 | O155: 2071004 | Q155: 1.083718848 | R155: 23504985 | T155: 917322.24 | U155: 4.06
A156: LANCASTER | B156: 147 | C156: 15064170 | E156: 1140116 | F156: 1270133 | H156: 17474419 | J156: 15440774 | K156: 289232 | L156: 4.419997916 | M156: 1168537 | N156: 2.49281652 | O156: 1349050 | Q156: 6.213286325 | R156: 18247593 | T156: 773174 | U156: 4.42
A157: LANESBOROUGH | B157: 148 | C157: 9002151 | E157: 474703 | F157: 864540 | H157: 10341394 | J157: 9227205 | K157: 105325 | L157: 3.670000648 | M157: 484959 | N157: 2.160508781 | O157: 883022 | Q157: 2.137784255 | R157: 10700511 | T157: 359117 | U157: 3.47
A158: LAWRENCE | B158: 149 | C158: 80249851 | E158: 20856383 | F158: 12256694 | H158: 113362928 | J158: 82256097 | K158: 2118596 | L158: 5.139999575 | M158: 21440172 | N158: 2.799090331 | O158: 12005446.19 | Q158: -2.049882374 | R158: 117820311.2 | T158: 4457383.19 | U158: 3.93
A159: LEE | B159: 150 | C159: 16278394 | E159: 728017 | F159: 1630115 | H159: 18636526 | J159: 16685354 | K159: 265338 | L159: 4.130002014 | M159: 746534 | N159: 2.543484561 | O159: 1726650 | Q159: 5.92197483 | R159: 19423876 | T159: 787350 | U159: 4.22
A160: LEICESTER | B160: 151 | C160: 15292785 | E160: 1853658 | F160: 2059000 | H160: 19205443 | J160: 15675105 | K160: 279858 | L160: 4.330002678 | M160: 1905283 | N160: 2.785033701 | O160: 2098000 | Q160: 1.894123361 | R160: 19958246 | T160: 752803 | U160: 3.92
A161: LENOX | B161: 152 | C161: 18419626 | E161: 606771 | F161: 2638091 | H161: 21664488 | J161: 18880117 | K161: 338921 | L161: 4.340001257 | M161: 622619 | N161: 2.61185851 | O161: 2684734 | Q161: 1.768058797 | R161: 22526391 | T161: 861903 | U161: 3.98
A162: LEOMINSTER | B162: 153 | C162: 80298856 | E162: 6218379 | F162: 3406000 | H162: 89923235 | J162: 82306327 | K162: 1349021 | L162: 4.179999775 | M162: 6388546 | N162: 2.736517025 | O162: 3456000 | Q162: 1.467997651 | R162: 93499894 | T162: 3576659 | U162: 3.98
A163: LEVERETT | B163: 154 | C163: 5296674 | E163: 206038 | F163: 244838.9 | H163: 5747550.9 | J163: 5429091 | K163: 84217 | L163: 4.090000631 | M163: 211345 | N163: 2.575738456 | O163: 256251.34 | Q163: 4.661203755 | R163: 5980904.34 | T163: 233353.44 | U163: 4.06
A164: LEXINGTON | B164: 155 | C164: 163232408 | E164: 1627400 | F164: 8563500 | H164: 173423308 | J164: 167313218 | K164: 3754345 | L164: 4.799999642 | M164: 1672967 | N164: 2.79998771 | O164: 9018892.38 | Q164: 5.317830093 | R164: 181759422.4 | T164: 8336114.38 | U164: 4.81
A165: LEYDEN | B165: 156 | C165: 1932264 | E165: 117004 | F165: 110454.31 | H165: 2159722.31 | J165: 1980571 | K165: 8309 | L165: 2.930034405 | M165: 119452 | N165: 2.092236163 | O165: 116418.64 | Q165: 5.399816449 | R165: 2224750.64 | T165: 65028.33 | U165: 3.01
A166: LINCOLN | B166: 157 | C166: 25937914 | E166: 1135489 | F166: 972504 | H166: 28045907 | J166: 26586362 | K166: 98564 | L166: 2.880000296 | M166: 1155730 | N166: 1.782580016 | O166: 784578 | Q166: -19.3239308 | R166: 28625234 | T166: 579327 | U166: 2.07
A167: LITTLETON | B167: 158 | C167: 37973455 | E167: 760519 | F167: 2786116 | H167: 41520090 | J167: 38922791 | K167: 1583493 | L167: 6.669998819 | M167: 781654 | N167: 2.779023272 | O167: 2974116 | Q167: 6.747744889 | R167: 44262054 | T167: 2741964 | U167: 6.6
A168: LONGMEADOW | B168: 159 | C168: 44067400 | E168: 1483570 | F168: 3750187 | H168: 49301157 | J168: 45169085 | K168: 304065 | L168: 3.189999864 | M168: 1525110 | N168: 2.800002696 | O168: 3735000 | Q168: -0.4049664723 | R168: 50733260 | T168: 1432103 | U168: 2.9
A169: LOWELL | B169: 160 | C169: 158905239 | E169: 26955751 | F169: 16281912 | H169: 202142902 | J169: 162877870 | K169: 2558374 | L169: 4.109999797 | M169: 27704654 | N169: 2.778267984 | O169: 15266087.84 | Q169: -6.238973408 | R169: 208406985.8 | T169: 6264083.84 | U169: 3.1
A170: LUDLOW | B170: 161 | C170: 42772547 | E170: 3277539 | F170: 5418000 | H170: 51468086 | J170: 43841861 | K170: 697193 | L170: 4.130001891 | M170: 3368368 | N170: 2.771256116 | O170: 5486000 | Q170: 1.255075674 | R170: 53393422 | T170: 1925336 | U170: 3.74
A171: LUNENBURG | B171: 162 | C171: 23794447 | E171: 1149150 | F171: 2005833 | H171: 26949430 | J171: 24389308 | K171: 480648 | L171: 4.519999982 | M171: 1180592 | N171: 2.736109298 | O171: 2020438 | Q171: 0.7281264193 | R171: 28070986 | T171: 1121556 | U171: 4.16
A172: LYNN | B172: 163 | C172: 136429137 | E172: 23776699 | F172: 14652439 | H172: 174858275 | J172: 139839865 | K172: 1950937 | L172: 3.929999938 | M172: 24442395 | N172: 2.799783099 | O172: 12755054 | Q172: -12.94927759 | R172: 178988251 | T172: 4129976 | U172: 2.36
A173: LYNNFIELD | B173: 164 | C173: 38404725 | E173: 1147136 | F173: 4084000 | H173: 43635861 | J173: 39364843 | K173: 510783 | L173: 3.830000085 | M173: 1178059 | N173: 2.695669912 | O173: 4095000 | Q173: 0.2693437806 | R173: 45148685 | T173: 1512824 | U173: 3.47
A174: MALDEN | B174: 165 | C174: 94569307 | E174: 13322297 | F174: 9828810.79 | H174: 117720414.8 | J174: 96933540 | K174: 1834645 | L174: 4.440000813 | M174: 13695321 | N174: 2.799997628 | O174: 8842854.07 | Q174: -10.0312921 | R174: 121306360.1 | T174: 3585945.28 | U174: 3.05
A175: MANCHESTER | B175: 166 | C175: 22372852 | E175: 236147 | F175: 851000 | H175: 23459999 | J175: 22932173 | K175: 257288 | L175: 3.649999562 | M175: 242759 | N175: 2.799950878 | O175: 1176000 | Q175: 38.19036428 | R175: 24608220 | T175: 1148221 | U175: 4.89
A176: MANSFIELD | B176: 167 | C176: 62548558 | E176: 2368619 | F176: 6161199 | H176: 71078376 | J176: 64112272 | K176: 988267 | L176: 4.079999734 | M176: 2434940 | N176: 2.799985983 | O176: 6479634 | Q176: 5.16839336 | R176: 74015113 | T176: 2936737 | U176: 4.13
A177: MARBLEHEAD | B177: 168 | C177: 56294235 | E177: 1209205 | F177: 3092821.39 | H177: 60596261.39 | J177: 57701591 | K177: 354654 | L177: 3.13000079 | M177: 1243063 | N177: 2.800021502 | O177: 3040745.47 | Q177: -1.683767455 | R177: 62340053.47 | T177: 1743792.08 | U177: 2.88
A178: MARION | B178: 169 | C178: 17620938 | E178: 263780 | F178: 725200 | H178: 18609918 | J178: 18061461 | K178: 207927 | L178: 3.679997058 | M178: 270489 | N178: 2.543407385 | O178: 725200 | Q178: 0 | R178: 19265077 | T178: 655159 | U178: 3.52
A179: MARLBOROUGH | B179: 170 | C179: 144113359 | E179: 5855609 | F179: 9639591.55 | H179: 159608559.6 | J179: 147716193 | K179: 1310885 | L179: 3.409620756 | M179: 6017461 | N179: 2.764050673 | O179: 10075493 | Q179: 4.521990872 | R179: 165120032 | T179: 5511472.45 | U179: 3.45
A180: MARSHFIELD | B180: 171 | C180: 62435562 | E180: 2303734 | F180: 5382000 | H180: 70121296 | J180: 63996451 | K180: 711765 | L180: 3.639999268 | M180: 2368144 | N180: 2.795895707 | O180: 5169000 | Q180: -3.957636566 | R180: 72245360 | T180: 2124064 | U180: 3.03
A181: MASHPEE | B181: 172 | C181: 49968699 | E181: 798542 | F181: 2388150 | H181: 53155391 | J181: 51217916 | K181: 809493 | L181: 4.119999202 | M181: 809481 | N181: 1.369871591 | O181: 2774475 | Q181: 16.17674769 | R181: 55611365 | T181: 2455974 | U181: 4.62
A182: MATTAPOISETT | B182: 173 | C182: 20842029 | E182: 605331 | F182: 1501819 | H182: 22949179 | J182: 21363080 | K182: 310546 | L182: 3.990000206 | M182: 617382 | N182: 1.990811639 | O182: 1676589 | Q182: 11.63722126 | R182: 23967597 | T182: 1018418 | U182: 4.44
A183: MAYNARD | B183: 174 | C183: 28986815 | E183: 1668251 | F183: 1724900 | H183: 32379966 | J183: 29711485 | K183: 489877 | L183: 4.189998108 | M183: 1714962 | N183: 2.799998322 | O183: 1837000 | Q183: 6.498927474 | R183: 33753324 | T183: 1373358 | U183: 4.24
A184: MEDFIELD | B184: 175 | C184: 34793822 | E184: 1587079 | F184: 2441831 | H184: 38822732 | J184: 35663668 | K184: 469717 | L184: 3.850002452 | M184: 1630179 | N184: 2.71568082 | O184: 2669661 | Q184: 9.330293538 | R184: 40433225 | T184: 1610493 | U184: 4.15
A185: MEDFORD | B185: 176 | C185: 118138663 | E185: 12933547 | F185: 12089616 | H185: 143161826 | J185: 121092130 | K185: 1724824 | L185: 3.959999954 | M185: 13294199 | N185: 2.788500324 | O185: 12985549 | Q185: 7.410764742 | R185: 149096702 | T185: 5934876 | U185: 4.15
A186: MEDWAY | B186: 177 | C186: 38635928 | E186: 1295508 | F186: 2369100 | H186: 42300536 | J186: 39601826 | K186: 687720 | L186: 4.280000729 | M186: 1331782 | N186: 2.799982709 | O186: 2539100 | Q186: 7.175720738 | R186: 44160428 | T186: 1859892 | U186: 4.4
A187: MELROSE | B187: 178 | C187: 64738724 | E187: 5446992 | F187: 3776242.54 | H187: 73961958.54 | J187: 66357192 | K187: 770391 | L187: 3.69000013 | M187: 5599475 | N187: 2.799398273 | O187: 3771000 | Q187: -0.1388295361 | R187: 76498058 | T187: 2536099.46 | U187: 3.43
A188: MENDON | B188: 179 | C188: 13093429 | E188: 438508 | F188: 1392337 | H188: 14924274 | J188: 13420765 | K188: 371853 | L188: 5.339999171 | M188: 450658 | N188: 2.770759028 | O188: 1394782 | Q188: 0.1756040384 | R188: 15638058 | T188: 713784 | U188: 4.78
A189: MERRIMAC | B189: 180 | C189: 11229037 | E189: 896533 | F189: 1080200 | H189: 13205770 | J189: 11509763 | K189: 197631 | L189: 4.260000212 | M189: 921550 | N189: 2.790415969 | O189: 1155200 | Q189: 6.943158674 | R189: 13784144 | T189: 578374 | U189: 4.38
A190: METHUEN | B190: 181 | C190: 93348857 | E190: 5773605 | F190: 7888807 | H190: 107011269 | J190: 95682578 | K190: 1166861 | L190: 3.749999853 | M190: 5935266 | N190: 2.800001039 | O190: 8355527 | Q190: 5.916230426 | R190: 111140232 | T190: 4128963 | U190: 3.86
A191: MIDDLEBOROUGH | B191: 182 | C191: 44431811 | E191: 2777987 | F191: 4778080 | H191: 51987878 | J191: 45542606 | K191: 959727 | L191: 4.659999116 | M191: 2851292 | N191: 2.638781247 | O191: 5269305 | Q191: 10.28080317 | R191: 54622930 | T191: 2635052 | U191: 5.07
A192: MIDDLEFIELD | B192: 183 | C192: 1463886 | E192: 113335 | F192: 71300 | H192: 1648521 | J192: 1500483 | K192: 6734 | L192: 2.959998251 | M192: 114916 | N192: 1.394979486 | O192: 66400 | Q192: -6.872370266 | R192: 1688533 | T192: 40012 | U192: 2.43
A193: MIDDLETON | B193: 184 | C193: 27689363 | E193: 603127 | F193: 2726855 | H193: 31019345 | J193: 28381597 | K193: 742075 | L193: 5.179999988 | M193: 619395 | N193: 2.69727603 | O193: 2762844 | Q193: 1.319798816 | R193: 32505911 | T193: 1486566 | U193: 4.79
A194: MILFORD | B194: 185 | C194: 73699324 | E194: 3243398 | F194: 6626840 | H194: 83569562 | J194: 75541807 | K194: 1157079 | L194: 4.069999339 | M194: 3334213 | N194: 2.79999556 | O194: 6802436 | Q194: 2.649769724 | R194: 86835535 | T194: 3265973 | U194: 3.91
A195: MILLBURY | B195: 186 | C195: 26788885 | E195: 1893940 | F195: 4782000 | H195: 33464825 | J195: 27458607 | K195: 755447 | L195: 5.320001187 | M195: 1946590 | N195: 2.77991911 | O195: 5054658 | Q195: 5.701756587 | R195: 35215302 | T195: 1750477 | U195: 5.23
A196: MILLIS | B196: 187 | C196: 19041464 | E196: 1111757 | F196: 1586600.58 | H196: 21739821.58 | J196: 19517501 | K196: 672164 | L196: 6.030003785 | M196: 1142886 | N196: 2.79998237 | O196: 1652575.12 | Q196: 4.158232439 | R196: 22985126.12 | T196: 1245304.54 | U196: 5.73
A197: MILLVILLE | B197: 188 | C197: 5015056 | E197: 435174 | F197: 443800 | H197: 5894030 | J197: 5140432 | K197: 48145 | L197: 3.460001244 | M197: 447285 | N197: 2.783024721 | O197: 434800 | Q197: -2.027940514 | R197: 6070662 | T197: 176632 | U197: 3
A198: MILTON | B198: 189 | C198: 62709536 | E198: 4304073 | F198: 5135000 | H198: 72148609 | J198: 64277274 | K198: 859121 | L198: 3.869999931 | M198: 4399609 | N198: 2.219664955 | O198: 5639000 | Q198: 9.814995131 | R198: 75175004 | T198: 3026395 | U198: 4.19
A199: MONROE | B199: 190 | C199: 650306 | E199: 27169 | F199: 193350 | H199: 870825 | J199: 650306 | K199: 0 | L199: 0 | M199: 27716 | N199: 2.013324009 | O199: 169500 | Q199: -12.33514352 | R199: 847522 | T199: -23303 | U199: -2.68
A200: MONSON | B200: 191 | C200: 14084185 | E200: 1474398 | F200: 1375907 | H200: 16934490 | J200: 14436290 | K200: 214080 | L200: 4.020005417 | M200: 1513210 | N200: 2.632396409 | O200: 1315800 | Q200: -4.368536536 | R200: 17479380 | T200: 544890 | U200: 3.22
A201: MONTAGUE | B201: 192 | C201: 18037588 | E201: 1743152 | F201: 931792 | H201: 20712532 | J201: 18488528 | K201: 634923 | L201: 6.020001122 | M201: 1785763 | N201: 2.444479885 | O201: 677537.41 | Q201: -27.28662513 | R201: 21586751.41 | T201: 874219.41 | U201: 4.22
A202: MONTEREY | B202: 193 | C202: 3196706 | E202: 293914 | F202: 174380 | H202: 3665000 | J202: 3276624 | K202: 35483 | L202: 3.609997291 | M202: 295289 | N202: 0.4678239213 | O202: 186000 | Q202: 6.663608212 | R202: 3793396 | T202: 128396 | U202: 3.5
A203: MONTGOMERY | B203: 194 | C203: 1775205 | E203: 97786 | F203: 144000 | H203: 2016991 | J203: 1819585 | K203: 13137 | L203: 3.240020167 | M203: 100366 | N203: 2.638414497 | O203: 144400 | Q203: 0.2777777778 | R203: 2077488 | T203: 60497 | U203: 3
A204: MOUNT WASHINGTON | B204: 195 | C204: 479619 | E204: 271323 | F204: 24400 | H204: 775342 | J204: 491609 | K204: 5564 | L204: 3.659988449 | M204: 272214 | N204: 0.3283908847 | O204: 25000 | Q204: 2.459016393 | R204: 794387 | T204: 19045 | U204: 2.46
A205: NAHANT | B205: 196 | C205: 8896456 | E205: 402437 | F205: 624796 | H205: 9923689 | J205: 9118867 | K205: 62275 | L205: 3.199993346 | M205: 413671 | N205: 2.79149283 | O205: 614099 | Q205: -1.712078823 | R205: 10208912 | T205: 285223 | U205: 2.87
A206: NANTUCKET | B206: 197 | C206: 70423348 | E206: 269158 | F206: 7141294 | H206: 77833800 | J206: 72183932 | K206: 1302832 | L206: 4.350000514 | M206: 271514 | N206: 0.8753223014 | O206: 8049233 | Q206: 12.71392832 | R206: 81807511 | T206: 3973711 | U206: 5.11
... 155 more rows
